Workbook

Sheet LookupTables
A1: Reach | F1: XSs to Exclude from Reach Avg Hyd | N1: Grade Control Station & Elevation Data
A2: Sub-reach | C2: U/S River Sta (ft) | F2: River Sta | G2: Reason | I2: River Station (ft) | J2: Sub-Reach | K2: HEC-HMS Node | L2: Weighting (fraction) | N2: Name | O2: River Sta (ft) | P2: Insertion Elev. (ft) | Q2: Actual Upper Sill Elevation (ft, NAVD88)
A3: 1999 | B3: 2015 | C3: 1999 | D3: 2013 | F3: (ft) | N3: GCS 1 | O3: 220 | P3: 5300 | Q3: 5296
B4: 0 | D4: 47789.72 | F4: 31163.7 | G4: In pond | I4: 47789.72 | J4: ='Hydro Input'!B5 -> 0 | K4: QR4_I | L4: =(I4-I5)/(I$4-I$6) -> 0.6669563131 | N4: GCS 2 | O4: 410 | P4: 5306 | Q4: 5302
A5: 0 | B5: 1 | C5: 76 | D5: 35867.14 | F5: 31095.11 | G5: Pond dam crest | I5: 39837.88 | J5: ='Hydro Input'!B6 -> 0 | K5: QR3_15 | L5: =(I5-I6)/(I$4-I$6) -> 0.3330436869 | N5: GCS 3 | O5: 640 | P5: 5312 | Q5: 5308
A6: 1 | B6: 2 | C6: 67 | D6: 29468.52 | F6: 29468.52 | G6: In Quail Ranch pond | I6: 35867.14 | J6: ='Hydro Input'!B7 -> 1 | K6: QR3_20 | L6: 1 | N6: GCS 4 | O6: 930 | P6: 5318 | Q6: 5314
A7: 2 | B7: 3 | C7: 52 | D7: 23305.7 | F7: 29203.96 | G7: Quail Ranch Pond dam crest | I7: 29468.52 | J7: ='Hydro Input'!B8 -> 2 | K7: QR3_24 | L7: 1 | N7: GCS 5 | O7: 1880 | P7: 5334 | Q7: 5329.32
A8: 3 | B8: 4 | C8: 40 | D8: 19072.78 | F8: 5371.243 | G8: Immediately U/S of culvert | I8: 23305.7 | J8: ='Hydro Input'!B9 -> 3 | K8: QR3_25_PW4 | L8: 1 | N8: GCS 6 | O8: 2291 | P8: 5342 | Q8: 5334.01
A9: 4 | B9: 5 | C9: 32 | D9: 15360.13 | F9: 5238 | G9: Culvert | I9: 15360.13 | J9: ='Hydro Input'!B10 -> 5 | K9: PW1_12 | L9: 1 | N9: Kayenta | O9: =2817.6+24.6 -> 2842.2 | Q9: 5345.27
A10: 5 | B10: 6 | C10: 25 | D10: 11102.16 | F10: 5047.175 | G10: Immediately D/S of culvert | I10: 11102.16 | J10: ='Hydro Input'!B11 -> 6 | K10: PW_VRW3 | L10: 1 | N10: GCS 7 | O10: 3147 | P10: 5358 | Q10: =5350.5+2.54 -> 5353.04
A11: 6 | B11: 7 | C11: 17 | D11: 6533.169 | F11: 2817.552 | G11: Immediately U/S of culvert | I11: 6533.169 | J11: ='Hydro Input'!B12 -> 7 | K11: PW14_VRW3 | L11: =(I11-I12)/(I$11-I$13) -> 0.5067319578 | N11: GCS 8 | O11: 3770 | P11: 5370 | Q11: =5361+2.54 -> 5363.54
A12: 7 | B12: 8 | C12: 16 | D12: 3600.664 | F12: 2700 | G12: Culvert | I12: 5047.175 | J12: ='Hydro Input'!B13 -> 7 | K12: VR_TVI_PW | L12: =(I12-I13)/(I$11-I$13) -> 0.4932680422 | N12: GCS 9 | O12: 4350 | P12: 5382 | Q12: =5371.6+2.54 -> 5374.14
A13: 8 | B13: 9 | C13: 4 | D13: 1099.06 | F13: 2597.97 | G13: Immediately D/S of culvert | I13: 3600.664 | J13: ='Hydro Input'!B14 -> 8 | K13: VR_TVI_PW_SEV | L13: 1 | N13: GCS 10 | O13: 4760 | P13: 5386 | Q13: =5382.7+2.54 -> 5385.24
I14: 1099.06 | J14: ='Hydro Input'!B15 -> 9 | K14: SWINBURNE_INFLOW | L14: 1 | N14: GCS 11 | O14: 5120 | P14: 5394 | Q14: =5389.91+2.54 -> 5392.45

Sheet Hydro Input
A1: Hydrology Based On Flow Change Locations
D2: Unbulked Peak Flow (cfs) | J2: Unbulked Runoff Volume (acre-feet)
A3: River Station (ft) | B3: Sub-Reach | C3: HEC-HMS Node | D3: DCM #2 | J3: =D3 -> DCM #2
D4: 2 YR | E4: 5 YR | F4: 10 YR | G4: 25 YR | H4: 50 YR | I4: 100 YR | J4: 2 YR | K4: 5 YR | L4: 10 YR | M4: 25 YR | N4: 50 YR | O4: 100 YR
A5: 47789.72 | B5: =INDEX(LookupTables!B$4:B$13,MATCH('Hydro Input'!A5,LookupTables!D$4:D$13,-1)) -> 0 | C5: QR4_I | D5: 117 | E5: 180.3 | F5: 228 | G5: 286.8 | H5: 331.3 | I5: 378 | J5: 10 | K5: 15.1 | L5: 19 | M5: 22.8 | N5: 25.9 | O5: 29
A6: 39837.88 | B6: =INDEX(LookupTables!B$4:B$13,MATCH('Hydro Input'!A6,LookupTables!D$4:D$13,-1)) -> 0 | C6: QR3_15 | D6: 759 | E6: 1174.9 | F6: 1525 | G6: 2007.1 | H6: 2401.3 | I6: 2840 | J6: 61 | K6: 93.1 | L6: 120 | M6: 154.7 | N6: 181.6 | O6: 211
A7: 35867.14 | B7: =INDEX(LookupTables!B$4:B$13,MATCH('Hydro Input'!A7,LookupTables!D$4:D$13,-1)) -> 1 | C7: QR3_20 | D7: 791 | E7: 1188.6 | F7: 1512 | G7: 1937.7 | H7: 2278.5 | I7: 2651 | J7: 71 | K7: 106.7 | L7: 136 | M7: 174.2 | N7: 203.1 | O7: 234
A8: 29468.52 | B8: =INDEX(LookupTables!B$4:B$13,MATCH('Hydro Input'!A8,LookupTables!D$4:D$13,-1)) -> 2 | C8: QRP_OUT | D8: 301 | E8: 473.2 | F8: 557 | G8: 688.1 | H8: 764.6 | I8: 837 | J8: 115 | K8: 173.3 | L8: 221 | M8: 281.9 | N8: 328.4 | O8: 378
A9: 23293.15 | B9: =INDEX(LookupTables!B$4:B$13,MATCH('Hydro Input'!A9,LookupTables!D$4:D$13,-1)) -> 3 | C9: QR3_25_PW4 | D9: 311 | E9: 487.8 | F9: 594 | G9: 708.3 | H9: 788.9 | I9: 865 | J9: 125 | K9: 187.1 | L9: 238 | M9: 303 | N9: 352.8 | O9: 406
A10: 15360.13 | B10: =INDEX(LookupTables!B$4:B$13,MATCH('Hydro Input'!A10,LookupTables!D$4:D$13,-1)) -> 5 | C10: PWP_OUT | D10: 475.2 | E10: 838.1 | F10: 1069.7 | G10: 1303.3 | H10: 1464.1 | I10: 1619.7 | J10: 197.8 | K10: 297.3 | L10: 377.3 | M10: 480.6 | N10: 558.9 | O10: 642.8
A11: 11102.16 | B11: =INDEX(LookupTables!B$4:B$13,MATCH('Hydro Input'!A11,LookupTables!D$4:D$13,-1)) -> 6 | C11: PW_VRW3 | D11: 499 | E11: 878.4 | F11: 1122 | G11: 1364.7 | H11: 1534.8 | I11: 1701 | J11: 206 | K11: 309.4 | L11: 393 | M11: 500.1 | N11: 581.8 | O11: 669
A12: 6533.169 | B12: =INDEX(LookupTables!B$4:B$13,MATCH('Hydro Input'!A12,LookupTables!D$4:D$13,-1)) -> 7 | C12: PW14_VRW3 | D12: 572 | E12: 1009.2 | F12: 1319 | G12: 1636 | H12: 1872.8 | I12: 2127 | J12: 229 | K12: 342.4 | L12: 434 | M12: 551.3 | N12: 640.7 | O12: 736
A13: 5047.175 | B13: =INDEX(LookupTables!B$4:B$13,MATCH('Hydro Input'!A13,LookupTables!D$4:D$13,-1)) -> 7 | C13: VR_TVI_PW | D13: 607 | E13: 1074.3 | F13: 1420 | G13: 1798.8 | H13: 2093.1 | I13: 2418 | J13: 240 | K13: 358.3 | L13: 453 | M13: 575.9 | N13: 669.1 | O13: 769
A14: 3600.664 | B14: =INDEX(LookupTables!B$4:B$13,MATCH('Hydro Input'!A14,LookupTables!D$4:D$13,-1)) -> 8 | C14: VR_TVI_PW_SEV | D14: 615 | E14: 1090.2 | F14: 1445 | G14: 1841.9 | H14: 2153.2 | I14: 2498 | J14: 243 | K14: 363.6 | L14: 460 | M14: 584 | N14: 678.5 | O14: 780
A15: 1099.06 | B15: =INDEX(LookupTables!B$4:B$13,MATCH('Hydro Input'!A15,LookupTables!D$4:D$13,-1)) -> 9 | C15: SWINBURNE_INFLOW | D15: 681 | E15: 1166.8 | F15: 1529 | G15: 1932.6 | H15: 2248.4 | I15: 2597 | J15: 294 | K15: 439.5 | L15: 556 | M15: 706.6 | N15: 821.1 | O15: 944
A18: Flow into Geomorphic/Hydraulic Sub-Reaches
D19: Unbulked Peak Flow (cfs) | J19: Unbulked Runoff Volume (acre-feet)
B20: Sub-Reach | C20: U/S Bounding River Station (ft) | D20: =D3 -> DCM #2 | J20: =D3 -> DCM #2
D21: 2 YR | E21: 5 YR | F21: 10 YR | G21: 25 YR | H21: 50 YR | I21: 100 YR | J21: 2 YR | K21: 5 YR | L21: 10 YR | M21: 25 YR | N21: 50 YR | O21: 100 YR
B22: 0 | C22: =VLOOKUP(B22,LookupTables!B4:D$13,3,FALSE) -> 47789.72 | D22: =INDEX(D$5:D$15,MATCH($C22,$A$5:$A$15,-1)) -> 117 | E22: =INDEX(E$5:E$15,MATCH($C22,$A$5:$A$15,-1)) -> 180.3 | F22: 228 | G22: 286.8 | H22: 331.3 | I22: 378 | J22: =INDEX(J$5:J$15,MATCH($C22,$A$5:$A$15,-1)) -> 10 | K22: =INDEX(K$5:K$15,MATCH($C22,$A$5:$A$15,-1)) -> 15.1 | L22: 19 | M22: 22.8 | N22: 25.9 | O22: 29
B23: 1 | C23: =VLOOKUP(B23,LookupTables!B5:D$13,3,FALSE) -> 35867.14 | D23: =INDEX(D$5:D$15,MATCH($C23,$A$5:$A$15,-1)) -> 791 | E23: 1188.6 | F23: 1512 | G23: 1937.7 | H23: 2278.5 | I23: 2651 | J23: =INDEX(J$5:J$15,MATCH($C23,$A$5:$A$15,-1)) -> 71 | K23: 106.7 | L23: 136 | M23: 174.2 | N23: 203.1 | O23: 234
B24: 2 | C24: =VLOOKUP(B24,LookupTables!B6:D$13,3,FALSE) -> 29468.52 | D24: =INDEX(D$5:D$15,MATCH($C24,$A$5:$A$15,-1)) -> 301 | E24: 473.2 | F24: 557 | G24: 688.1 | H24: 764.6 | I24: 837 | J24: =INDEX(J$5:J$15,MATCH($C24,$A$5:$A$15,-1)) -> 115 | K24: 173.3 | L24: 221 | M24: 281.9 | N24: 328.4 | O24: 378
B25: 3 | C25: 23293.15 | D25: 311 | E25: 487.8 | F25: 594 | G25: 708.3 | H25: 788.9 | I25: 865 | J25: 125 | K25: 187.1 | L25: 238 | M25: 303 | N25: 352.8 | O25: 406
B26: 4 | C26: =VLOOKUP(B26,LookupTables!B8:D$13,3,FALSE) -> 19072.78 | D26: 311 | E26: 487.8 | F26: 594 | G26: 708.3 | H26: 788.9 | I26: 865 | J26: 125 | K26: 187.1 | L26: 238 | M26: 303 | N26: 352.8 | O26: 406
B27: 5 | C27: =VLOOKUP(B27,LookupTables!B9:D$13,3,FALSE) -> 15360.13 | D27: 475.2 | E27: 838.1 | F27: 1069.7 | G27: 1303.3 | H27: 1464.1 | I27: 1619.7 | J27: 197.8 | K27: 297.3 | L27: 377.3 | M27: 480.6 | N27: 558.9 | O27: 642.8
B28: 6 | C28: =VLOOKUP(B28,LookupTables!B10:D$13,3,FALSE) -> 11102.16 | D28: 499 | E28: 878.4 | F28: 1122 | G28: 1364.7 | H28: 1534.8 | I28: 1701 | J28: 206 | K28: 309.4 | L28: 393 | M28: 500.1 | N28: 581.8 | O28: 669
B29: 7 | C29: =VLOOKUP(B29,LookupTables!B11:D$13,3,FALSE) -> 6533.169 | D29: 572 | E29: 1009.2 | F29: 1319 | G29: 1636 | H29: 1872.8 | I29: 2127 | J29: 229 | K29: 342.4 | L29: 434 | M29: 551.3 | N29: 640.7 | O29: 736
B30: 8 | C30: =VLOOKUP(B30,LookupTables!B12:D$13,3,FALSE) -> 3600.664 | D30: 615 | E30: 1090.2 | F30: 1445 | G30: 1841.9 | H30: 2153.2 | I30: 2498 | J30: 243 | K30: 363.6 | L30: 460 | M30: 584 | N30: 678.5 | O30: 780
B31: 9 | C31: =VLOOKUP(B31,LookupTables!B13:D$13,3,FALSE) -> 1099.06 | D31: 681 | E31: 1166.8 | F31: 1529 | G31: 1932.6 | H31: 2248.4 | I31: 2597 | J31: 294 | K31: 439.5 | L31: 556 | M31: 706.6 | N31: 821.1 | O31: 944
A34: Geomorphic/Hydraulic Sub-Reaches Weighted Average Flows
D35: Unbulked Peak Flow (cfs) | J35: Unbulked Runoff Volume (acre-feet)
A36: Sub-Reach | B36: Length (ft) | C36: U/S Bounding River Station (ft) | D36: =D3 -> DCM #2 | J36: =D3 -> DCM #2
D37: 2 YR | E37: 5 YR | F37: 10 YR | G37: 25 YR | H37: 50 YR | I37: 100 YR | J37: 2 YR | K37: 5 YR | L37: 10 YR | M37: 25 YR | N37: 50 YR | O37: 100 YR
A38: 0 | B38: =C38-C39 -> 11922.58 | C38: =C22 -> 47789.72 | D38: =D5*($A5-$A6)/$B38+D6*($A6-$A7)/$B38 -> 330.814047 | E38: =E5*($A5-$A6)/$B38+E6*($A6-$A7)/$B38 -> 511.5452509 | F38: 659.9576618 | G38: 859.7350545 | H38: 1020.700432 | I38: =I5*($A5-$A6)/$B38+I6*($A6-$A7)/$B38 -> 1197.953557
A39: 1 | B39: =C39-C40 -> 6398.62 | C39: =C23 -> 35867.14 | D39: =D7 -> 791 | E39: =E7 -> 1188.6 | F39: 1512 | G39: 1937.7 | H39: 2278.5 | I39: 2651
A40: 2 | B40: 6175.37 | C40: 29468.52 | D40: =D8 -> 301 | E40: 473.2 | F40: 557 | G40: 688.1 | H40: 764.6 | I40: 837
A41: 3 | B41: 4220.37 | C41: =C25 -> 23293.15 | D41: =D9 -> 311 | E41: 487.8 | F41: 594 | G41: 708.3 | H41: 788.9 | I41: 865
A42: 4 | B42: 3712.65 | C42: 19072.78 | D42: =D9 -> 311 | E42: =E9 -> 487.8 | F42: 594 | G42: 708.3 | H42: 788.9 | I42: 865
A43: 5 | B43: 4257.97 | C43: 15360.13 | D43: =D10 -> 475.2 | E43: 838.1 | F43: 1069.7 | G43: 1303.3 | H43: 1464.1 | I43: 1619.7
A44: 6 | B44: 4568.991 | C44: 11102.16 | D44: =D11 -> 499 | E44: 878.4 | F44: 1122 | G44: 1364.7 | H44: 1534.8 | I44: 1701
A45: 7 | B45: 2932.505 | C45: 6533.169 | D45: =D12*($A12-$A13)/$B45+D13*($A13-$A14)/$B45 -> 589.2643815 | E45: =E12*($A12-$A13)/$B45+E13*($A13-$A14)/$B45 -> 1041.31175 | F45: 1368.820072 | G45: 1716.304037 | H45: 1981.46695 | I45: 2270.541
A46: 8 | B46: 2501.604 | C46: 3600.664 | D46: =D14 -> 615 | E46: =E14 -> 1090.2 | F46: 1445 | G46: 1841.9 | H46: 2153.2 | I46: 2498
A47: 9 | B47: 1099.06 | C47: 1099.06 | D47: =D15 -> 681 | E47: 1166.8 | F47: 1529 | G47: 1932.6 | H47: 2248.4 | I47: 2597
C48: 0

Sheet HMS
A1: FID_ | B1: OBJECTID_1 | C1: OBJECTID | D1: Shape_Leng | E1: HydroID | F1: Name | G1: Sq_Mi | H1: InPoly_FID | I1: SmoPgnFlag | J1: Shape_Le_1 | K1: Shape_Area | L1: HMS_Model | M1: Notes | N1: CNAvg | O1: Impervious | P1: Pervious | Q1: CNNewAvg | R1: Sq_Mi_NEW | S1: Sub-Basin | T1: % Imperv. | U1: Imperv. Area New (sq. mi.)
B2: 1 | C2: 1 | D2: 31560.02743 | E2: 1283 | F2: QR25 | G2: 0.2335588199 | H2: 0 | I2: 0 | J2: 15044.31799 | K2: 6511246.203 | L2: Existing & Developed | N2: 62 | O2: 0.1024 | P2: 0.131159 | Q2: 62 | R2: 0.2335588199 | S2: 3 | T2: =O2/G2*100 -> 43.84334535 | U2: =T2/100*R2 -> 0.1024
B3: 2 | C3: 2 | D3: 34460.03344 | E3: 1284 | F3: VRW1 | G3: 0.3016068824 | H3: 1 | I3: 0 | J3: 14231.61955 | K3: 8408317.31 | L3: Existing & Developed | N3: 68 | O3: 0.1587 | P3: 0.142907 | Q3: 69 | R3: 0.3316637008 | S3: 9 | T3: =O3/G3*100 -> 52.61816266 | U3: =T3/100*R3 -> 0.1745153456
B4: 3 | C4: 3 | D4: 18560.01537 | E4: 1285 | F4: VR2 | G4: 0.2503102419 | H4: 2 | I4: 0 | J4: 12965.35668 | K4: 6978249.046 | L4: Existing & Developed | N4: 62 | O4: 0.1377 | P4: 0.11261 | Q4: 62 | R4: 0.2503102419 | S4: 9 | T4: 55.01173223 | U4: 0.1377
B5: 4 | C5: 4 | D5: 37380.04466 | E5: 1286 | F5: PW3 | G5: 0.3454956803 | H5: 3 | I5: 0 | J5: 13669.43733 | K5: 9631866.773 | L5: Existing & Developed | N5: 71 | O5: 0.1536 | P5: 0.191896 | Q5: 71 | R5: 0.3454956803 | S5: 4 | T5: 44.45786409 | U5: 0.1536
B6: 5 | C6: 5 | D6: 18800.01817 | E6: 1288 | F6: PW15 | G6: 0.401104749 | H6: 4 | I6: 0 | J6: 18049.79388 | K6: 11182158.63 | L6: Existing & Developed | N6: 56 | O6: 0.2323 | P6: 0.168805 | Q6: 56 | R6: 0.401104749 | S6: 6 | T6: 57.91504603 | U6: 0.2323
B7: 6 | C7: 6 | D7: 20420.01822 | E7: 1290 | F7: SEV1 | G7: 0.1696466536 | H7: 5 | I7: 0 | J7: 9595.158151 | K7: 4729477.266 | L7: Existing & Developed | N7: 55 | O7: 0.072 | P7: 0.0976467 | Q7: 55 | R7: 0.1696466536 | S7: 8 | T7: 42.44115548 | U7: 0.072
B8: 7 | C8: 7 | D8: 39860.03445 | E8: 1291 | F8: PW14.1 | G8: 0.2124211481 | H8: 6 | I8: 0 | J8: 16689.48653 | K8: 5921961.734 | L8: Existing & Developed | N8: 67 | O8: 0.1245 | P8: 0.0879212 | Q8: 67 | R8: 0.2124211481 | S8: 6 | T8: 58.60998357 | U8: 0.1245
B9: 8 | C9: 8 | D9: 22340.017 | E9: 1292 | F9: PW5 | G9: 0.1806422287 | H9: 7 | I9: 0 | J9: 11588.75525 | K9: 5036016.307 | L9: Existing & Developed | N9: 62 | O9: 0.1171 | P9: 0.0635422 | Q9: 62 | R9: 0.1806422287 | S9: 4 | T9: 64.82426666 | U9: 0.1171
B10: 9 | C10: 9 | D10: 30920.02805 | E10: 1293 | F10: PW10 | G10: 0.408029733 | H10: 8 | I10: 0 | J10: 20357.33384 | K10: 11375216.11 | L10: Existing & Developed | N10: 67 | O10: 0.2594 | P10: 0.14863 | Q10: 67 | R10: 0.408029733 | S10: 4 | T10: 63.57379844 | U10: 0.2594
B11: 10 | C11: 10 | D11: 23280.01971 | E11: 1294 | F11: PW8 | G11: 0.133088307 | H11: 9 | I11: 0 | J11: 15846.92323 | K11: 3710289.058 | L11: Existing & Developed | N11: 60 | O11: 0.072 | P11: 0.0610883 | Q11: 60 | R11: 0.133088307 | S11: 4 | T11: 54.09941836 | U11: 0.072
B12: 11 | C12: 11 | D12: 19820.01942 | E12: 1295 | F12: PW12 | G12: 0.3456570302 | H12: 10 | I12: 0 | J12: 15663.47085 | K12: 9636364.951 | L12: Existing & Developed | N12: 73 | O12: 0.2062 | P12: 0.139457 | Q12: 73 | R12: 0.3456570302 | S12: 4 | T12: 59.65450778 | U12: 0.2062
B13: 12 | C13: 12 | D13: 30400.02516 | E13: 1296 | F13: QR24 | G13: 0.4060614901 | H13: 11 | I13: 1 | J13: 25209.78432 | K13: 11320344.64 | L13: Existing & Developed | N13: 66 | O13: 0.1995 | P13: 0.206561 | Q13: 66 | R13: 0.4060614901 | S13: 2 | T13: 49.13049005 | U13: 0.1995
B14: 13 | C14: 13 | D14: 29060.02324 | E14: 1297 | F14: QR23 | G14: 0.4644831668 | H14: 12 | I14: 0 | J14: 22492.58339 | K14: 12949047.52 | L14: Existing & Developed | N14: 66 | O14: 0.238 | P14: 0.226483 | Q14: 66 | R14: 0.4644831668 | S14: 2 | T14: 51.2397471 | U14: 0.238
B15: 14 | C15: 14 | D15: 19760.01494 | E15: 1298 | F15: PW4 | G15: 0.4221537568 | H15: 13 | I15: 0 | J15: 17116.1555 | K15: 11768971.29 | L15: Existing & Developed | N15: 56 | O15: 0.2035 | P15: 0.218654 | Q15: 56 | R15: 0.4221537568 | S15: 3 | T15: 48.20518513 | U15: 0.2035
B16: 15 | C16: 15 | D16: 34340.03565 | E16: 1299 | F16: PW6 | G16: 0.4549699379 | H16: 14 | I16: 1 | J16: 19866.28757 | K16: 12683833.92 | L16: Existing & Developed | N16: 77 | O16: 0.2457 | P16: 0.20927 | Q16: 77 | R16: 0.4549699379 | S16: 4 | T16: 54.00356804 | U16: 0.2457
B17: 16 | C17: 16 | D17: 33000.02849 | E17: 1301 | F17: QR8 | G17: 0.3193288125 | H17: 15 | I17: 0 | J17: 25518.27041 | K17: 8902376.365 | L17: Existing & SSCAFCA | N17: 69 | O17: 0.1122 | P17: 0.207129 | Q17: 69 | R17: 0.3193288125 | S17: 1 | T17: 35.1361968 | U17: 0.1122
B18: 17 | C18: 17 | D18: 33460.03347 | E18: 1302 | F18: QR7 | G18: 0.4702526134 | H18: 16 | I18: 0 | J18: 26130.5175 | K18: 13109890.45 | L18: Existing & SSCAFCA | N18: 69 | O18: 0.1862 | P18: 0.284053 | Q18: 69 | R18: 0.4702526134 | S18: 1 | T18: 39.59573955 | U18: 0.1862
B19: 18 | C19: 18 | D19: 18540.0141 | E19: 1303 | F19: QR15 | G19: 0.1294678911 | H19: 17 | I19: 0 | J19: 11155.21548 | K19: 3609357.655 | L19: Existing & SSCAFCA | N19: 72 | O19: 0.0627 | P19: 0.0667679 | Q19: 72 | R19: 0.1294678911 | S19: 1 | T19: 48.42899615 | U19: 0.0627
B20: 19 | C20: 19 | D20: 35040.02638 | E20: 1304 | F20: QR9 | G20: 0.4291632615 | H20: 18 | I20: 0 | J20: 25091.67184 | K20: 11964385.07 | L20: Existing & SSCAFCA | N20: 72 | O20: 0.2011 | P20: 0.228063 | Q20: 72 | R20: 0.6310889964 | S20: 1 | T20: 46.85862422 | U20: 0.2957196213
B21: 20 | C21: 20 | D21: 36400.02956 | E21: 1305 | F21: QR4 | G21: 0.473225286 | H21: 19 | I21: 0 | J21: 27342.03738 | K21: 13192763.81 | L21: Existing & SSCAFCA | N21: 70 | O21: 0.2252 | P21: 0.248025 | Q21: 70 | R21: 0.4685903743 | S21: 0 | T21: 47.58832773 | U21: 0.222994323
B22: 21 | C22: 21 | D22: 31920.0313 | E22: 1306 | F22: QR6 | G22: 0.2805553968 | H22: 20 | I22: 0 | J22: 24348.76608 | K22: 7821435.572 | L22: Existing & SSCAFCA | N22: 72 | O22: 0.1436 | P22: 0.136955 | Q22: 72 | R22: 0.2805553968 | S22: 1 | T22: 51.18418739 | U22: 0.1436
B23: 28 | C23: 28 | D23: 10900.00838 | E23: 1323 | F23: PW11 | G23: 0.1213642692 | H23: 27 | I23: 0 | J23: 9718.705783 | K23: 3383441.643 | L23: Existing & Developed | N23: 81 | O23: 0.0795 | P23: 0.0418643 | Q23: 81 | R23: 0.1268851299 | S23: 9 | T23: 65.50527639 | U23: 0.08311645505
B24: 29 | C24: 29 | D24: 20000.0184 | E24: 1324 | F24: QR20 | G24: 0.2318659132 | H24: 28 | I24: 1 | J24: 16203.42232 | K24: 6464050.674 | L24: Existing & Developed | N24: 71 | O24: 0.1753 | P24: 0.0565659 | Q24: 71 | R24: 0.3203374658 | S24: 1 | T24: 75.60404096 | U24: 0.2421880688
B25: 30 | C25: 30 | D25: 23460.02067 | E25: 1325 | F25: QR3 | G25: 0.1955361958 | H25: 29 | I25: 0 | J25: 18133.64641 | K25: 5451236.279 | L25: Existing & SSCAFCA | N25: 68 | O25: 0.0952 | P25: 0.100336 | Q25: 68 | R25: 0.1955361958 | S25: 1 | T25: 48.68663811 | U25: 0.0952
B26: 31 | C26: 31 | D26: 23060.02868 | E26: 1327 | F26: VR6 | G26: 0.1927327847 | H26: 30 | I26: 0 | J26: 13258.94408 | K26: 5373081.665 | L26: Existing & Developed | N26: 81 | O26: 0.0627 | P26: 0.130033 | Q26: 81 | R26: 0.1927327847 | S26: 9 | T26: 32.53208845 | U26: 0.0627
B27: 32 | C27: 32 | D27: 15760.0131 | E27: 1328 | F27: VR7 | G27: 0.1938373585 | H27: 31 | I27: 0 | J27: 12347.8273 | K27: 5403875.416 | L27: Existing & Developed | N27: 62 | O27: 0.0975 | P27: 0.0963374 | Q27: 62 | R27: 0.1938373585 | S27: 9 | T27: 50.29990129 | U27: 0.0975
B28: 33 | C28: 33 | D28: 22740.01882 | E28: 1329 | F28: VRW2 | G28: 0.2003121114 | H28: 32 | I28: 0 | J28: 14410.68354 | K28: 5584381.165 | L28: Existing & Developed | N28: 64 | O28: 0.1139 | P28: 0.0864121 | Q28: 64 | R28: 0.2003121114 | S28: 9 | T28: 56.86126476 | U28: 0.1139
B29: 34 | C29: 34 | D29: 26320.0261 | E29: 1330 | F29: VRW3 | G29: 0.3502970527 | H29: 33 | I29: 0 | J29: 17418.45084 | K29: 9765721.352 | L29: Existing & Developed | N29: 66 | O29: 0.1758 | P29: 0.174497 | Q29: 66 | R29: 0.3502970527 | S29: 5 | T29: 50.18597749 | U29: 0.1758
B30: 35 | C30: 35 | D30: 32680.037 | E30: 1331 | F30: VR4 | G30: 0.2496939869 | H30: 34 | I30: 0 | J30: 13165.76274 | K30: 6961068.843 | L30: Existing & Developed | N30: 75 | O30: 0.1336 | P30: 0.116094 | Q30: 75 | R30: 0.2531599869 | S30: 9 | T30: 53.50549353 | U30: 0.1354545004
B31: 36 | C31: 36 | D31: 13800.01374 | E31: 1333 | F31: TVI1 | G31: 0.09593045563 | H31: 35 | I31: 0 | J31: 7733.926429 | K31: 2674387.614 | L31: Existing & Developed | N31: 55 | O31: 0.05 | P31: 0.0459305 | Q31: 55 | R31: 0.09593045563 | S31: 7 | T31: 52.12109092 | U31: 0.05
B32: 37 | C32: 37 | D32: 36720.0368 | E32: 1334 | F32: PW7 | G32: 0.4752885966 | H32: 36 | I32: 1 | J32: 17018.78874 | K32: 13250285.61 | L32: Existing & Developed | N32: 72 | O32: 0.2944 | P32: 0.180889 | Q32: 72 | R32: 0.4752885966 | S32: 4 | T32: 61.94131357 | U32: 0.2944
B33: 38 | C33: 38 | D33: 28540.02888 | E33: 1335 | F33: VR5 | G33: 0.257639606 | H33: 37 | I33: 0 | J33: 16756.48751 | K33: 7182579.99 | L33: Existing & Developed | N33: 60 | O33: 0.1379 | P33: 0.11974 | Q33: 60 | R33: 0.257639606 | S33: 7 | T33: 53.52437933 | U33: 0.1379
B34: 39 | C34: 39 | D34: 35040.02638 | E34: 1287 | F34: QR21 | G34: 0.2923725483 | H34: 38 | I34: 1 | J34: 18251.66912 | K34: 8150878.849 | L34: Existing & Developed | N34: 72 | O34: 0.163 | P34: 0.129373 | Q34: 72 | R34: 0.3261331062 | S34: 2 | T34: 55.75078815 | U34: 0.1818217771
B35: 43 | C35: 43 | D35: 37380.04466 | E35: 1312 | F35: QR27 | G35: 0.1403024561 | H35: 42 | I35: 0 | J35: 14718.88103 | K35: 3911407.992 | L35: Existing & Developed | N35: 72 | O35: 0.0925 | P35: 0.0478025 | Q35: 72 | R35: 0.1403024561 | S35: 4 | T35: 65.92899551 | U35: 0.0925
B36: 44 | C36: 44 | D36: 40120.03787 | E36: 1280 | F36: QR26 | G36: 0.1482366285 | H36: 43 | I36: 0 | J36: 17877.94173 | K36: 4132600.023 | L36: Existing & Developed | N36: 72 | O36: 0.0977 | P36: 0.0505366 | Q36: 72 | R36: 0.2343210992 | S36: 4 | T36: 65.90813687 | U36: 0.1544366708
B37: 45 | C37: 45 | D37: 39860.03445 | E37: 1314 | F37: PW13 | G37: 0.05506993954 | H37: 44 | I37: 0 | J37: 7251.329771 | K37: 1535261.802 | L37: Existing & Developed | N37: 66 | O37: 0.0313 | P37: 0.0237699 | Q37: 66 | R37: 0.05506993954 | S37: 6 | T37: 56.83681563 | U37: 0.0313
B38: 46 | C38: 46 | D38: 18800.01817 | E38: 1315 | F38: VR3 | G38: 0.3275587819 | H38: 45 | I38: 0 | J38: 21690.02459 | K38: 9131814.745 | L38: Existing & Developed | N38: 66 | O38: 0.1746 | P38: 0.152959 | Q38: 66 | R38: 0.3275587819 | S38: 9 | T38: 53.30340984 | U38: 0.1746
B39: 47 | C39: 47 | D39: 34460.03344 | E39: 1316 | F39: VR1 | G39: 0.07966511827 | H39: 46 | I39: 0 | J39: 10229.7893 | K39: 2220936.033 | L39: Existing & Developed | N39: 74 | O39: 0.0466 | P39: 0.0330651 | Q39: 74 | R39: 0.08561710846 | S39: 9 | T39: 58.49486075 | U39: 0.05008160838
B40: 48 | C40: 48 | D40: 20420.01822 | E40: 1317 | F40: SEV2 | G40: 0.05524918208 | H40: 47 | I40: 0 | J40: 6748.332709 | K40: 1540258.797 | L40: Existing & Developed | N40: 55 | O40: 0.0076 | P40: 0.0476492 | Q40: 55 | R40: 0.05524918208 | S40: 9 | T40: 13.75585975 | U40: 0.0076
B41: 52 | C41: 52 | D41: 22340.017 | E41: 1321 | F41: PW9 | G41: 0.1203254231 | H41: 51 | I41: 0 | J41: 7921.257048 | K41: 3354480.274 | L41: Existing & Developed | N41: 68 | O41: 0.0738 | P41: 0.0465254 | Q41: 68 | R41: 0.1203254231 | S41: 4 | T41: 61.33367174 | U41: 0.0738
B42: 53 | C42: 53 | D42: 34340.03565 | E42: 1322 | F42: PW1 | G42: 0.09994814432 | H42: 52 | I42: 1 | J42: 9052.962507 | K42: 2786394.346 | L42: Existing & Developed | N42: 72 | O42: 0.0659 | P42: 0.0340481 | Q42: 72 | R42: 0.1035651474 | S42: 4 | T42: 65.93419063 | U42: 0.06828484173
B43: 54 | C43: 54 | D43: 36720.0368 | E43: 1326 | F43: PW2 | G43: 0.1004735341 | H43: 53 | I43: 1 | J43: 8967.010927 | K43: 2801041.372 | L43: Existing & Developed | N43: 72 | O43: 0.0511 | P43: 0.0493735 | Q43: 72 | R43: 0.1004735341 | S43: 4 | T43: 50.85916453 | U43: 0.0511
B44: 57 | C44: 57 | D44: 18800.01817 | E44: 1394 | F44: PW15.1 | G44: 0.02330819542 | H44: 4 | I44: 0 | J44: 5688.269547 | K44: 649795.1952 | L44: Existing & Developed | N44: 56 | O44: 0.0144 | P44: 0.0089082 | Q44: 56 | R44: 0.02330819542 | S44: 6 | T44: 61.78084463 | U44: 0.0144
B45: 58 | C45: 58 | D45: 39860.03445 | E45: 1395 | F45: PW14.2 | G45: 0.02435730977 | H45: 6 | I45: 0 | J45: 3998.869186 | K45: 679042.8246 | L45: Existing & Developed | N45: 61 | O45: 0.0149 | P45: 0.0094573 | Q45: 61 | R45: 0.02435730977 | S45: 6 | T45: 61.17260133 | U45: 0.0149
B46: 59 | C46: 59 | D46: 39860.03445 | E46: 1396 | F46: PW14 | G46: 0.119096166 | H46: 6 | I46: 0 | J46: 10241.39161 | K46: 3320210.555 | L46: Existing & Developed | N46: 55 | O46: 0.0692 | P46: 0.0498962 | Q46: 55 | R46: 0.119096166 | S46: 6 | T46: 58.10430538 | U46: 0.0692
B47: 60 | C47: 60 | D47: 22340.017 | E47: 1397 | F47: PW5.1 | G47: 0.01648271021 | H47: 7 | I47: 0 | J47: 4576.629317 | K47: 459511.5883 | L47: Existing & Developed | N47: 55 | O47: 0.0097 | P47: 0.0067827 | Q47: 55 | R47: 0.01648271021 | S47: 4 | T47: 58.84954522 | U47: 0.0097
B48: 61 | C48: 61 | D48: 30920.02805 | E48: 1398 | F48: PW10.1 | G48: 0.005793449134 | H48: 8 | I48: 0 | J48: 4844.503563 | K48: 161512.0923 | L48: Existing & Developed | N48: 55 | O48: 0.0037 | P48: 0.0020934 | Q48: 55 | R48: 0.005793449134 | S48: 4 | T48: 63.86523665 | U48: 0.0037
B49: 62 | C49: 62 | D49: 30920.02805 | E49: 1399 | F49: PW10.2 | G49: 0.01437070542 | H49: 8 | I49: 0 | J49: 4682.764981 | K49: 400632.2738 | L49: Existing & Developed | N49: 56 | O49: 0.0089 | P49: 0.0054707 | Q49: 56 | R49: 0.01437070542 | S49: 4 | T49: 61.93154575 | U49: 0.0089
B50: 63 | C50: 63 | D50: 13800.01374 | E50: 1400 | F50: TVI1.1 | G50: 0.06363433754 | H50: 35 | I50: 0 | J50: 7258.719561 | K50: 1774023.515 | L50: Existing & Developed | N50: 62 | O50: 0.0487 | P50: 0.0149343 | Q50: 62 | R50: 0.06363433754 | S50: 7 | T50: 76.53100807 | U50: 0.0487
B51: 64 | C51: 64 | D51: 22340.017 | E51: 1401 | F51: PW9.1 | G51: 0.009502408019 | H51: 51 | I51: 0 | J51: 2864.426594 | K51: 264911.9317 | L51: Existing & Developed | N51: 57 | O51: 0.0056 | P51: 0.0039024 | Q51: 57 | R51: 0.009502408019 | S51: 4 | T51: 58.93243048 | U51: 0.0056
B52: 0 | C52: 0 | D52: 0 | E52: -281 | F52: QR2 | G52: 0 | H52: 0 | I52: 0 | J52: 0 | K52: 0 | N52: 0 | O52: 0 | P52: 0 | Q52: 69 | R52: 0.06367093814 | S52: 1 | T52: =AVERAGEIF(Q$2:Q$51,Q52,T$2:T$51) -> 42.450033 | U52: 0.02702833425
B53: 0 | C53: 0 | D53: 0 | E53: -281 | F53: QR1 | G53: 0 | H53: 0 | I53: 0 | J53: 0 | K53: 0 | N53: 0 | O53: 0 | P53: 0 | Q53: 67 | R53: 0.2689968328 | S53: 1 | T53: =AVERAGEIF(Q$2:Q$51,Q53,T$2:T$51) -> 61.091891 | U53: 0.1643352519

Sheet RAS
A1: Reach | B1: River Sta | C1: Profile | D1: Q Total | E1: Min Ch El | F1: W.S. Elev | G1: Crit W.S. | H1: E.G. Elev | I1: E.G. Slope | J1: Vel Chnl | K1: Hydr Depth C | L1: Top Width | M1: Top W Chnl | N1: Sub-reach | O1: Include in Reach Avg. Hyd? | P1: Bed Slope | Q1: Froude
D2: (cfs) | E2: (ft) | F2: (ft) | G2: (ft) | H2: (ft) | I2: (ft/ft) | J2: (ft/s) | K2: (ft) | L2: (ft) | M2: (ft) | P2: (ft/ft) | Q2: No.
A3: Main | B3: 47789.72 | C3: 2 YR | D3: 117 | E3: 6042.98 | F3: 6043.55 | G3: 6043.54 | H3: 6043.7 | I3: 0.033279 | J3: 3.65 | K3: 0.3 | L3: 134.09 | M3: 38.4 | N3: =IF(ISBLANK(B3),"",INDEX(LookupTables!B$4:B$13,MATCH(B3,LookupTables!D$4:D$13,-1))) -> 0 | O3: =IF(ISBLANK(B3),"",IF(ISNA(VLOOKUP(B3,LookupTables!F$4:F$13,1,FALSE)),1,0)) -> 1 | P3: =IF(ISBLANK(E3),"",(E3-E10)/(B3-B10)) -> 0.02606077982 | Q3: 0.99
A4: Main | B4: 47789.72 | C4: 5 YR | D4: 180.3 | E4: 6042.98 | F4: 6043.66 | G4: 6043.66 | H4: 6043.85 | I4: 0.031193 | J4: 4.14 | K4: 0.36 | L4: 158.9 | M4: 38.4 | N4: =IF(ISBLANK(B4),"",INDEX(LookupTables!B$4:B$13,MATCH(B4,LookupTables!D$4:D$13,-1))) -> 0 | O4: =IF(ISBLANK(B4),"",IF(ISNA(VLOOKUP(B4,LookupTables!F$4:F$13,1,FALSE)),1,0)) -> 1 | P4: =IF(ISBLANK(E4),"",(E4-E11)/(B4-B11)) -> 0.02606077982 | Q4: 0.99
A5: Main | B5: 47789.72 | C5: 10 YR | D5: 228 | E5: 6042.98 | F5: 6043.74 | G5: 6043.74 | H5: 6043.94 | I5: 0.03022 | J5: 4.46 | K5: 0.41 | L5: 171.12 | M5: 38.4 | N5: =IF(ISBLANK(B5),"",INDEX(LookupTables!B$4:B$13,MATCH(B5,LookupTables!D$4:D$13,-1))) -> 0 | O5: =IF(ISBLANK(B5),"",IF(ISNA(VLOOKUP(B5,LookupTables!F$4:F$13,1,FALSE)),1,0)) -> 1 | P5: 0.02606077982 | Q5: 1
A6: Main | B6: 47789.72 | C6: 25 YR | D6: 286.8 | E6: 6042.98 | F6: 6043.81 | G6: 6043.81 | H6: 6044.04 | I6: 0.029061 | J6: 4.72 | K6: 0.47 | L6: 176.61 | M6: 38.4 | N6: =IF(ISBLANK(B6),"",INDEX(LookupTables!B$4:B$13,MATCH(B6,LookupTables!D$4:D$13,-1))) -> 0 | O6: =IF(ISBLANK(B6),"",IF(ISNA(VLOOKUP(B6,LookupTables!F$4:F$13,1,FALSE)),1,0)) -> 1 | P6: 0.02606077982 | Q6: 1
A7: Main | B7: 47789.72 | C7: 50 YR | D7: 331.3 | E7: 6042.98 | F7: 6043.86 | G7: 6043.86 | H7: 6044.11 | I7: 0.030233 | J7: 5 | K7: 0.5 | L7: 179.64 | M7: 38.4 | N7: =IF(ISBLANK(B7),"",INDEX(LookupTables!B$4:B$13,MATCH(B7,LookupTables!D$4:D$13,-1))) -> 0 | O7: =IF(ISBLANK(B7),"",IF(ISNA(VLOOKUP(B7,LookupTables!F$4:F$13,1,FALSE)),1,0)) -> 1 | P7: 0.02606077982 | Q7: 1.03
A8: Main | B8: 47789.72 | C8: 100 YR | D8: 378.1 | E8: 6042.98 | F8: 6043.91 | G8: 6043.91 | H8: 6044.17 | I8: 0.02925 | J8: 5.15 | K8: 0.55 | L8: 183.54 | M8: 38.4 | N8: =IF(ISBLANK(B8),"",INDEX(LookupTables!B$4:B$13,MATCH(B8,LookupTables!D$4:D$13,-1))) -> 0 | O8: =IF(ISBLANK(B8),"",IF(ISNA(VLOOKUP(B8,LookupTables!F$4:F$13,1,FALSE)),1,0)) -> 1 | P8: 0.02606077982 | Q8: 1.02
N9: =IF(ISBLANK(B9),"",INDEX(LookupTables!B$4:B$13,MATCH(B9,LookupTables!D$4:D$13,-1))) ->  | O9: =IF(ISBLANK(B9),"",IF(ISNA(VLOOKUP(B9,LookupTables!F$4:F$13,1,FALSE)),1,0)) -> 
A10: Main | B10: 46743.32 | C10: 2 YR | D10: 117 | E10: 6015.71 | F10: 6016.53 | G10: 6016.53 | H10: 6016.67 | I10: 0.022204 | J10: 4.31 | K10: 0.29 | L10: 172.55 | M10: 12.62 | N10: =IF(ISBLANK(B10),"",INDEX(LookupTables!B$4:B$13,MATCH(B10,LookupTables!D$4:D$13,-1))) -> 0 | O10: =IF(ISBLANK(B10),"",IF(ISNA(VLOOKUP(B10,LookupTables!F$4:F$13,1,FALSE)),1,0)) -> 1 | P10: 0.02558366837 | Q10: 0.88
A11: Main | B11: 46743.32 | C11: 5 YR | D11: 180.3 | E11: 6015.71 | F11: 6016.64 | G11: 6016.64 | H11: 6016.79 | I11: 0.023405 | J11: 4.82 | K11: 0.34 | L11: 202.38 | M11: 12.62 | N11: =IF(ISBLANK(B11),"",INDEX(LookupTables!B$4:B$13,MATCH(B11,LookupTables!D$4:D$13,-1))) -> 0 | O11: =IF(ISBLANK(B11),"",IF(ISNA(VLOOKUP(B11,LookupTables!F$4:F$13,1,FALSE)),1,0)) -> 1 | P11: 0.02558366837 | Q11: 0.93
A12: Main | B12: 46743.32 | C12: 10 YR | D12: 228 | E12: 6015.71 | F12: 6016.71 | G12: 6016.71 | H12: 6016.87 | I12: 0.022579 | J12: 5.01 | K12: 0.37 | L12: 228.47 | M12: 12.62 | N12: =IF(ISBLANK(B12),"",INDEX(LookupTables!B$4:B$13,MATCH(B12,LookupTables!D$4:D$13,-1))) -> 0 | O12: =IF(ISBLANK(B12),"",IF(ISNA(VLOOKUP(B12,LookupTables!F$4:F$13,1,FALSE)),1,0)) -> 1 | P12: 0.02558366837 | Q12: 0.92
A13: Main | B13: 46743.32 | C13: 25 YR | D13: 286.8 | E13: 6015.71 | F13: 6016.75 | G13: 6016.75 | H13: 6016.96 | I13: 0.026193 | J13: 5.57 | K13: 0.4 | L13: 239.56 | M13: 12.62 | N13: =IF(ISBLANK(B13),"",INDEX(LookupTables!B$4:B$13,MATCH(B13,LookupTables!D$4:D$13,-1))) -> 0 | O13: =IF(ISBLANK(B13),"",IF(ISNA(VLOOKUP(B13,LookupTables!F$4:F$13,1,FALSE)),1,0)) -> 1 | P13: 0.02558366837 | Q13: 1
A14: Main | B14: 46743.32 | C14: 50 YR | D14: 331.3 | E14: 6015.71 | F14: 6016.83 | G14: 6016.83 | H14: 6017.01 | I14: 0.022859 | J14: 5.46 | K14: 0.45 | L14: 250.66 | M14: 12.62 | N14: =IF(ISBLANK(B14),"",INDEX(LookupTables!B$4:B$13,MATCH(B14,LookupTables!D$4:D$13,-1))) -> 0 | O14: =IF(ISBLANK(B14),"",IF(ISNA(VLOOKUP(B14,LookupTables!F$4:F$13,1,FALSE)),1,0)) -> 1 | P14: 0.02558366837 | Q14: 0.95
A15: Main | B15: 46743.32 | C15: 100 YR | D15: 378.1 | E15: 6015.71 | F15: 6016.86 | G15: 6016.86 | H15: 6017.07 | I15: 0.024168 | J15: 5.74 | K15: 0.48 | L15: 254.23 | M15: 12.62 | N15: =IF(ISBLANK(B15),"",INDEX(LookupTables!B$4:B$13,MATCH(B15,LookupTables!D$4:D$13,-1))) -> 0 | O15: =IF(ISBLANK(B15),"",IF(ISNA(VLOOKUP(B15,LookupTables!F$4:F$13,1,FALSE)),1,0)) -> 1 | P15: 0.02558366837 | Q15: 0.98
N16: =IF(ISBLANK(B16),"",INDEX(LookupTables!B$4:B$13,MATCH(B16,LookupTables!D$4:D$13,-1))) ->  | O16: =IF(ISBLANK(B16),"",IF(ISNA(VLOOKUP(B16,LookupTables!F$4:F$13,1,FALSE)),1,0)) -> 
A17: Main | B17: 45750.89 | C17: 2 YR | D17: 117 | E17: 5990.32 | F17: 5990.86 | G17: 5990.8 | H17: 5990.91 | I17: 0.01279 | J17: 2.46 | K17: 0.25 | L17: 308.78 | M17: 33.98 | N17: =IF(ISBLANK(B17),"",INDEX(LookupTables!B$4:B$13,MATCH(B17,LookupTables!D$4:D$13,-1))) -> 0 | O17: =IF(ISBLANK(B17),"",IF(ISNA(VLOOKUP(B17,LookupTables!F$4:F$13,1,FALSE)),1,0)) -> 1 | P17: 0.02235387781 | Q17: 0.62
A18: Main | B18: 45750.89 | C18: 5 YR | D18: 180.3 | E18: 5990.32 | F18: 5990.86 | G18: 5990.86 | H18: 5990.98 | I18: 0.030709 | J18: 3.8 | K18: 0.25 | L18: 308.43 | M18: 33.98 | N18: =IF(ISBLANK(B18),"",INDEX(LookupTables!B$4:B$13,MATCH(B18,LookupTables!D$4:D$13,-1))) -> 0 | O18: =IF(ISBLANK(B18),"",IF(ISNA(VLOOKUP(B18,LookupTables!F$4:F$13,1,FALSE)),1,0)) -> 1 | P18: 0.02235387781 | Q18: 0.97
A19: Main | B19: 45750.89 | C19: 10 YR | D19: 228 | E19: 5990.32 | F19: 5990.91 | G19: 5990.91 | H19: 5991.03 | I19: 0.029762 | J19: 3.99 | K19: 0.28 | L19: 325.58 | M19: 33.98 | N19: =IF(ISBLANK(B19),"",INDEX(LookupTables!B$4:B$13,MATCH(B19,LookupTables!D$4:D$13,-1))) -> 0 | O19: =IF(ISBLANK(B19),"",IF(ISNA(VLOOKUP(B19,LookupTables!F$4:F$13,1,FALSE)),1,0)) -> 1 | P19: 0.02235387781 | Q19: 0.97
A20: Main | B20: 45750.89 | C20: 25 YR | D20: 286.8 | E20: 5990.32 | F20: 5990.96 | G20: 5990.96 | H20: 5991.09 | I20: 0.029903 | J20: 4.24 | K20: 0.31 | L20: 344.01 | M20: 33.98 | N20: =IF(ISBLANK(B20),"",INDEX(LookupTables!B$4:B$13,MATCH(B20,LookupTables!D$4:D$13,-1))) -> 0 | O20: =IF(ISBLANK(B20),"",IF(ISNA(VLOOKUP(B20,LookupTables!F$4:F$13,1,FALSE)),1,0)) -> 1 | P20: 0.02235387781 | Q20: 0.98
A21: Main | B21: 45750.89 | C21: 50 YR | D21: 331.3 | E21: 5990.32 | F21: 5990.99 | G21: 5990.99 | H21: 5991.14 | I21: 0.030059 | J21: 4.41 | K21: 0.34 | L21: 356.18 | M21: 33.98 | N21: =IF(ISBLANK(B21),"",INDEX(LookupTables!B$4:B$13,MATCH(B21,LookupTables!D$4:D$13,-1))) -> 0 | O21: =IF(ISBLANK(B21),"",IF(ISNA(VLOOKUP(B21,LookupTables!F$4:F$13,1,FALSE)),1,0)) -> 1 | P21: 0.02235387781 | Q21: 1
A22: Main | B22: 45750.89 | C22: 100 YR | D22: 378.1 | E22: 5990.32 | F22: 5991.12 | G22: 5991.01 | H22: 5991.22 | I22: 0.015037 | J22: 3.56 | K22: 0.42 | L22: 408.19 | M22: 33.98 | N22: =IF(ISBLANK(B22),"",INDEX(LookupTables!B$4:B$13,MATCH(B22,LookupTables!D$4:D$13,-1))) -> 0 | O22: =IF(ISBLANK(B22),"",IF(ISNA(VLOOKUP(B22,LookupTables!F$4:F$13,1,FALSE)),1,0)) -> 1 | P22: 0.02235387781 | Q22: 0.73
N23: =IF(ISBLANK(B23),"",INDEX(LookupTables!B$4:B$13,MATCH(B23,LookupTables!D$4:D$13,-1))) ->  | O23: =IF(ISBLANK(B23),"",IF(ISNA(VLOOKUP(B23,LookupTables!F$4:F$13,1,FALSE)),1,0)) -> 
A24: Main | B24: 44783.72 | C24: 2 YR | D24: 117 | E24: 5968.7 | F24: 5969.03 | G24: 5969.03 | H24: 5969.15 | I24: 0.049431 | J24: 3.51 | K24: 0.22 | L24: 203.14 | M24: 22.74 | N24: =IF(ISBLANK(B24),"",INDEX(LookupTables!B$4:B$13,MATCH(B24,LookupTables!D$4:D$13,-1))) -> 0 | O24: =IF(ISBLANK(B24),"",IF(ISNA(VLOOKUP(B24,LookupTables!F$4:F$13,1,FALSE)),1,0)) -> 1 | P24: 0.02093637559 | Q24: 1.13
A25: Main | B25: 44783.72 | C25: 5 YR | D25: 180.3 | E25: 5968.7 | F25: 5969.21 | G25: 5969.13 | H25: 5969.28 | I25: 0.017082 | J25: 2.8 | K25: 0.33 | L25: 272 | M25: 22.74 | N25: =IF(ISBLANK(B25),"",INDEX(LookupTables!B$4:B$13,MATCH(B25,LookupTables!D$4:D$13,-1))) -> 0 | O25: =IF(ISBLANK(B25),"",IF(ISNA(VLOOKUP(B25,LookupTables!F$4:F$13,1,FALSE)),1,0)) -> 1 | P25: 0.02093637559 | Q25: 0.72
A26: Main | B26: 44783.72 | C26: 10 YR | D26: 228 | E26: 5968.7 | F26: 5969.26 | G26: 5969.18 | H26: 5969.34 | I26: 0.016559 | J26: 2.98 | K26: 0.38 | L26: 278.04 | M26: 22.74 | N26: =IF(ISBLANK(B26),"",INDEX(LookupTables!B$4:B$13,MATCH(B26,LookupTables!D$4:D$13,-1))) -> 0 | O26: =IF(ISBLANK(B26),"",IF(ISNA(VLOOKUP(B26,LookupTables!F$4:F$13,1,FALSE)),1,0)) -> 1 | P26: 0.02093637559 | Q26: 0.72
A27: Main | B27: 44783.72 | C27: 25 YR | D27: 286.8 | E27: 5968.7 | F27: 5969.21 | G27: 5969.21 | H27: 5969.38 | I27: 0.041178 | J27: 4.38 | K27: 0.33 | L27: 272.55 | M27: 22.74 | N27: =IF(ISBLANK(B27),"",INDEX(LookupTables!B$4:B$13,MATCH(B27,LookupTables!D$4:D$13,-1))) -> 0 | O27: =IF(ISBLANK(B27),"",IF(ISNA(VLOOKUP(B27,LookupTables!F$4:F$13,1,FALSE)),1,0)) -> 1 | P27: 0.02093637559 | Q27: 1.12
A28: Main | B28: 44783.72 | C28: 50 YR | D28: 331.3 | E28: 5968.7 | F28: 5969.26 | G28: 5969.26 | H28: 5969.43 | I28: 0.036349 | J28: 4.39 | K28: 0.38 | L28: 277.54 | M28: 22.74 | N28: =IF(ISBLANK(B28),"",INDEX(LookupTables!B$4:B$13,MATCH(B28,LookupTables!D$4:D$13,-1))) -> 0 | O28: =IF(ISBLANK(B28),"",IF(ISNA(VLOOKUP(B28,LookupTables!F$4:F$13,1,FALSE)),1,0)) -> 1 | P28: 0.02093637559 | Q28: 1.07
A29: Main | B29: 44783.72 | C29: 100 YR | D29: 378.1 | E29: 5968.7 | F29: 5969.29 | G29: 5969.29 | H29: 5969.48 | I29: 0.037309 | J29: 4.62 | K29: 0.4 | L29: 280.69 | M29: 22.74 | N29: =IF(ISBLANK(B29),"",INDEX(LookupTables!B$4:B$13,MATCH(B29,LookupTables!D$4:D$13,-1))) -> 0 | O29: =IF(ISBLANK(B29),"",IF(ISNA(VLOOKUP(B29,LookupTables!F$4:F$13,1,FALSE)),1,0)) -> 1 | P29: 0.02093637559 | Q29: 1.09
N30: =IF(ISBLANK(B30),"",INDEX(LookupTables!B$4:B$13,MATCH(B30,LookupTables!D$4:D$13,-1))) ->  | O30: =IF(ISBLANK(B30),"",IF(ISNA(VLOOKUP(B30,LookupTables!F$4:F$13,1,FALSE)),1,0)) -> 
A31: Main | B31: 43863.79 | C31: 2 YR | D31: 117 | E31: 5949.44 | F31: 5949.96 | G31: 5949.96 | H31: 5950.12 | I31: 0.042806 | J31: 4.03 | K31: 0.2 | L31: 216.26 | M31: 35.23 | N31: =IF(ISBLANK(B31),"",INDEX(LookupTables!B$4:B$13,MATCH(B31,LookupTables!D$4:D$13,-1))) -> 0 | O31: =IF(ISBLANK(B31),"",IF(ISNA(VLOOKUP(B31,LookupTables!F$4:F$13,1,FALSE)),1,0)) -> 1 | P31: 0.01629438717 | Q31: 1.11
A32: Main | B32: 43863.79 | C32: 5 YR | D32: 180.3 | E32: 5949.44 | F32: 5950.09 | G32: 5950.09 | H32: 5950.21 | I32: 0.027214 | J32: 3.85 | K32: 0.28 | L32: 259.83 | M32: 35.23 | N32: =IF(ISBLANK(B32),"",INDEX(LookupTables!B$4:B$13,MATCH(B32,LookupTables!D$4:D$13,-1))) -> 0 | O32: =IF(ISBLANK(B32),"",IF(ISNA(VLOOKUP(B32,LookupTables!F$4:F$13,1,FALSE)),1,0)) -> 1 | P32: 0.01629438717 | Q32: 0.93
A33: Main | B33: 43863.79 | C33: 10 YR | D33: 228 | E33: 5949.44 | F33: 5950.13 | G33: 5950.13 | H33: 5950.28 | I33: 0.028303 | J33: 4.14 | K33: 0.31 | L33: 274.3 | M33: 35.23 | N33: =IF(ISBLANK(B33),"",INDEX(LookupTables!B$4:B$13,MATCH(B33,LookupTables!D$4:D$13,-1))) -> 0 | O33: =IF(ISBLANK(B33),"",IF(ISNA(VLOOKUP(B33,LookupTables!F$4:F$13,1,FALSE)),1,0)) -> 1 | P33: 0.01629438717 | Q33: 0.96
A34: Main | B34: 43863.79 | C34: 25 YR | D34: 286.8 | E34: 5949.44 | F34: 5950.26 | G34: 5950.19 | H34: 5950.37 | I34: 0.016055 | J34: 3.57 | K34: 0.39 | L34: 323.44 | M34: 35.23 | N34: =IF(ISBLANK(B34),"",INDEX(LookupTables!B$4:B$13,MATCH(B34,LookupTables!D$4:D$13,-1))) -> 0 | O34: =IF(ISBLANK(B34),"",IF(ISNA(VLOOKUP(B34,LookupTables!F$4:F$13,1,FALSE)),1,0)) -> 1 | P34: 0.01629438717 | Q34: 0.75
A35: Main | B35: 43863.79 | C35: 50 YR | D35: 331.3 | E35: 5949.44 | F35: 5950.39 | G35: 5950.22 | H35: 5950.47 | I35: 0.009373 | J35: 3.06 | K35: 0.47 | L35: 362.97 | M35: 35.23 | N35: =IF(ISBLANK(B35),"",INDEX(LookupTables!B$4:B$13,MATCH(B35,LookupTables!D$4:D$13,-1))) -> 0 | O35: =IF(ISBLANK(B35),"",IF(ISNA(VLOOKUP(B35,LookupTables!F$4:F$13,1,FALSE)),1,0)) -> 1 | P35: 0.01629438717 | Q35: 0.59
A36: Main | B36: 43863.79 | C36: 100 YR | D36: 378.1 | E36: 5949.44 | F36: 5950.25 | G36: 5950.25 | H36: 5950.44 | I36: 0.030312 | J36: 4.85 | K36: 0.38 | L36: 319.18 | M36: 35.23 | N36: =IF(ISBLANK(B36),"",INDEX(LookupTables!B$4:B$13,MATCH(B36,LookupTables!D$4:D$13,-1))) -> 0 | O36: =IF(ISBLANK(B36),"",IF(ISNA(VLOOKUP(B36,LookupTables!F$4:F$13,1,FALSE)),1,0)) -> 1 | P36: 0.01629438717 | Q36: 1.02
N37: =IF(ISBLANK(B37),"",INDEX(LookupTables!B$4:B$13,MATCH(B37,LookupTables!D$4:D$13,-1))) ->  | O37: =IF(ISBLANK(B37),"",IF(ISNA(VLOOKUP(B37,LookupTables!F$4:F$13,1,FALSE)),1,0)) -> 
A38: Main | B38: 42816.19 | C38: 2 YR | D38: 117 | E38: 5932.37 | F38: 5932.96 | G38: 5932.96 | H38: 5933.12 | I38: 0.031559 | J38: 4.31 | K38: 0.33 | L38: 125.62 | M38: 19.17 | N38: =IF(ISBLANK(B38),"",INDEX(LookupTables!B$4:B$13,MATCH(B38,LookupTables!D$4:D$13,-1))) -> 0 | O38: =IF(ISBLANK(B38),"",IF(ISNA(VLOOKUP(B38,LookupTables!F$4:F$13,1,FALSE)),1,0)) -> 1 | P38: 0.02287089671 | Q38: 1.01
A39: Main | B39: 42816.19 | C39: 5 YR | D39: 180.3 | E39: 5932.37 | F39: 5933.08 | G39: 5933.08 | H39: 5933.28 | I39: 0.030002 | J39: 4.8 | K39: 0.4 | L39: 146.23 | M39: 19.17 | N39: =IF(ISBLANK(B39),"",INDEX(LookupTables!B$4:B$13,MATCH(B39,LookupTables!D$4:D$13,-1))) -> 0 | O39: =IF(ISBLANK(B39),"",IF(ISNA(VLOOKUP(B39,LookupTables!F$4:F$13,1,FALSE)),1,0)) -> 1 | P39: 0.02287089671 | Q39: 1.02
A40: Main | B40: 42816.19 | C40: 10 YR | D40: 228 | E40: 5932.37 | F40: 5933.16 | G40: 5933.16 | H40: 5933.37 | I40: 0.029687 | J40: 5.11 | K40: 0.41 | L40: 168.96 | M40: 19.17 | N40: =IF(ISBLANK(B40),"",INDEX(LookupTables!B$4:B$13,MATCH(B40,LookupTables!D$4:D$13,-1))) -> 0 | O40: =IF(ISBLANK(B40),"",IF(ISNA(VLOOKUP(B40,LookupTables!F$4:F$13,1,FALSE)),1,0)) -> 1 | P40: 0.02287089671 | Q40: 1.03
A41: Main | B41: 42816.19 | C41: 25 YR | D41: 286.8 | E41: 5932.37 | F41: 5933.37 | G41: 5933.25 | H41: 5933.5 | I41: 0.015333 | J41: 4.31 | K41: 0.52 | L41: 214.45 | M41: 19.17 | N41: =IF(ISBLANK(B41),"",INDEX(LookupTables!B$4:B$13,MATCH(B41,LookupTables!D$4:D$13,-1))) -> 0 | O41: =IF(ISBLANK(B41),"",IF(ISNA(VLOOKUP(B41,LookupTables!F$4:F$13,1,FALSE)),1,0)) -> 1 | P41: 0.02287089671 | Q41: 0.77
A42: Main | B42: 42816.19 | C42: 50 YR | D42: 331.3 | E42: 5932.37 | F42: 5933.27 | G42: 5933.27 | H42: 5933.53 | I42: 0.031793 | J42: 5.81 | K42: 0.46 | L42: 199.24 | M42: 19.17 | N42: =IF(ISBLANK(B42),"",INDEX(LookupTables!B$4:B$13,MATCH(B42,LookupTables!D$4:D$13,-1))) -> 0 | O42: =IF(ISBLANK(B42),"",IF(ISNA(VLOOKUP(B42,LookupTables!F$4:F$13,1,FALSE)),1,0)) -> 1 | P42: 0.02287089671 | Q42: 1.09
A43: Main | B43: 42816.19 | C43: 100 YR | D43: 378.1 | E43: 5932.37 | F43: 5933.36 | G43: 5933.36 | H43: 5933.6 | I43: 0.027312 | J43: 5.74 | K43: 0.51 | L43: 214.05 | M43: 19.17 | N43: =IF(ISBLANK(B43),"",INDEX(LookupTables!B$4:B$13,MATCH(B43,LookupTables!D$4:D$13,-1))) -> 0 | O43: =IF(ISBLANK(B43),"",IF(ISNA(VLOOKUP(B43,LookupTables!F$4:F$13,1,FALSE)),1,0)) -> 1 | P43: 0.02287089671 | Q43: 1.03
N44: =IF(ISBLANK(B44),"",INDEX(LookupTables!B$4:B$13,MATCH(B44,LookupTables!D$4:D$13,-1))) ->  | O44: =IF(ISBLANK(B44),"",IF(ISNA(VLOOKUP(B44,LookupTables!F$4:F$13,1,FALSE)),1,0)) -> 
A45: Main | B45: 41839.84 | C45: 2 YR | D45: 117 | E45: 5910.04 | F45: 5910.52 | G45: 5910.52 | H45: 5910.62 | I45: 0.042913 | J45: 3.6 | K45: 0.21 | L45: 236.41 | M45: 21.74 | N45: =IF(ISBLANK(B45),"",INDEX(LookupTables!B$4:B$13,MATCH(B45,LookupTables!D$4:D$13,-1))) -> 0 | O45: =IF(ISBLANK(B45),"",IF(ISNA(VLOOKUP(B45,LookupTables!F$4:F$13,1,FALSE)),1,0)) -> 1 | P45: 0.00936488841 | Q45: 1.08
A46: Main | B46: 41839.84 | C46: 5 YR | D46: 180.3 | E46: 5910.04 | F46: 5910.6 | G46: 5910.6 | H46: 5910.72 | I46: 0.040093 | J46: 3.99 | K46: 0.26 | L46: 268.77 | M46: 21.74 | N46: =IF(ISBLANK(B46),"",INDEX(LookupTables!B$4:B$13,MATCH(B46,LookupTables!D$4:D$13,-1))) -> 0 | O46: =IF(ISBLANK(B46),"",IF(ISNA(VLOOKUP(B46,LookupTables!F$4:F$13,1,FALSE)),1,0)) -> 1 | P46: 0.00936488841 | Q46: 1.08
A47: Main | B47: 41839.84 | C47: 10 YR | D47: 228 | E47: 5910.04 | F47: 5910.64 | G47: 5910.64 | H47: 5910.78 | I47: 0.039124 | J47: 4.22 | K47: 0.3 | L47: 273.8 | M47: 21.74 | N47: =IF(ISBLANK(B47),"",INDEX(LookupTables!B$4:B$13,MATCH(B47,LookupTables!D$4:D$13,-1))) -> 0 | O47: =IF(ISBLANK(B47),"",IF(ISNA(VLOOKUP(B47,LookupTables!F$4:F$13,1,FALSE)),1,0)) -> 1 | P47: 0.00936488841 | Q47: 1.09
A48: Main | B48: 41839.84 | C48: 25 YR | D48: 286.8 | E48: 5910.04 | F48: 5910.69 | G48: 5910.69 | H48: 5910.85 | I48: 0.041407 | J48: 4.59 | K48: 0.34 | L48: 278.46 | M48: 21.74 | N48: =IF(ISBLANK(B48),"",INDEX(LookupTables!B$4:B$13,MATCH(B48,LookupTables!D$4:D$13,-1))) -> 0 | O48: =IF(ISBLANK(B48),"",IF(ISNA(VLOOKUP(B48,LookupTables!F$4:F$13,1,FALSE)),1,0)) -> 1 | P48: 0.00936488841 | Q48: 1.13
A49: Main | B49: 41839.84 | C49: 50 YR | D49: 331.3 | E49: 5910.04 | F49: 5910.72 | G49: 5910.72 | H49: 5910.9 | I49: 0.041101 | J49: 4.78 | K49: 0.37 | L49: 282.24 | M49: 21.74 | N49: =IF(ISBLANK(B49),"",INDEX(LookupTables!B$4:B$13,MATCH(B49,LookupTables!D$4:D$13,-1))) -> 0 | O49: =IF(ISBLANK(B49),"",IF(ISNA(VLOOKUP(B49,LookupTables!F$4:F$13,1,FALSE)),1,0)) -> 1 | P49: 0.00936488841 | Q49: 1.14
A50: Main | B50: 41839.84 | C50: 100 YR | D50: 378.1 | E50: 5910.04 | F50: 5910.75 | G50: 5910.75 | H50: 5910.95 | I50: 0.042296 | J50: 5.02 | K50: 0.39 | L50: 287.31 | M50: 21.74 | N50: =IF(ISBLANK(B50),"",INDEX(LookupTables!B$4:B$13,MATCH(B50,LookupTables!D$4:D$13,-1))) -> 0 | O50: =IF(ISBLANK(B50),"",IF(ISNA(VLOOKUP(B50,LookupTables!F$4:F$13,1,FALSE)),1,0)) -> 1 | P50: 0.00936488841 | Q50: 1.17
N51: =IF(ISBLANK(B51),"",INDEX(LookupTables!B$4:B$13,MATCH(B51,LookupTables!D$4:D$13,-1))) ->  | O51: =IF(ISBLANK(B51),"",IF(ISNA(VLOOKUP(B51,LookupTables!F$4:F$13,1,FALSE)),1,0)) -> 
A52: Main | B52: 40875.6 | C52: 2 YR | D52: 117 | E52: 5901.01 | F52: 5901.99 | H52: 5902 | I52: 0.001052 | J52: 1.07 | K52: 0.54 | L52: 302.04 | M52: 41.2 | N52: =IF(ISBLANK(B52),"",INDEX(LookupTables!B$4:B$13,MATCH(B52,LookupTables!D$4:D$13,-1))) -> 0 | O52: =IF(ISBLANK(B52),"",IF(ISNA(VLOOKUP(B52,LookupTables!F$4:F$13,1,FALSE)),1,0)) -> 1 | P52: 0.003430597849 | Q52: 0.2
A53: Main | B53: 40875.6 | C53: 5 YR | D53: 180.3 | E53: 5901.01 | F53: 5902.27 | H53: 5902.28 | I53: 0.000708 | J53: 1.05 | K53: 0.76 | L53: 330.68 | M53: 41.2 | N53: =IF(ISBLANK(B53),"",INDEX(LookupTables!B$4:B$13,MATCH(B53,LookupTables!D$4:D$13,-1))) -> 0 | O53: =IF(ISBLANK(B53),"",IF(ISNA(VLOOKUP(B53,LookupTables!F$4:F$13,1,FALSE)),1,0)) -> 1 | P53: 0.003430597849 | Q53: 0.17
A54: Main | B54: 40875.6 | C54: 10 YR | D54: 228 | E54: 5901.01 | F54: 5902.47 | H54: 5902.48 | I54: 0.00057 | J54: 1.05 | K54: 0.87 | L54: 375.81 | M54: 41.2 | N54: =IF(ISBLANK(B54),"",INDEX(LookupTables!B$4:B$13,MATCH(B54,LookupTables!D$4:D$13,-1))) -> 0 | O54: =IF(ISBLANK(B54),"",IF(ISNA(VLOOKUP(B54,LookupTables!F$4:F$13,1,FALSE)),1,0)) -> 1 | P54: 0.003430597849 | Q54: 0.16
A55: Main | B55: 40875.6 | C55: 25 YR | D55: 286.8 | E55: 5901.01 | F55: 5902.69 | H55: 5902.7 | I55: 0.000456 | J55: 1.03 | K55: 1.04 | L55: 391.47 | M55: 41.2 | N55: =IF(ISBLANK(B55),"",INDEX(LookupTables!B$4:B$13,MATCH(B55,LookupTables!D$4:D$13,-1))) -> 0 | O55: =IF(ISBLANK(B55),"",IF(ISNA(VLOOKUP(B55,LookupTables!F$4:F$13,1,FALSE)),1,0)) -> 1 | P55: 0.003430597849 | Q55: 0.14
A56: Main | B56: 40875.6 | C56: 50 YR | D56: 331.3 | E56: 5901.01 | F56: 5902.83 | H56: 5902.84 | I56: 0.000413 | J56: 1.04 | K56: 1.16 | L56: 402.42 | M56: 41.2 | N56: =IF(ISBLANK(B56),"",INDEX(LookupTables!B$4:B$13,MATCH(B56,LookupTables!D$4:D$13,-1))) -> 0 | O56: =IF(ISBLANK(B56),"",IF(ISNA(VLOOKUP(B56,LookupTables!F$4:F$13,1,FALSE)),1,0)) -> 1 | P56: 0.003430597849 | Q56: 0.14
A57: Main | B57: 40875.6 | C57: 100 YR | D57: 378.1 | E57: 5901.01 | F57: 5902.98 | H57: 5902.99 | I57: 0.000366 | J57: 1.04 | K57: 1.29 | L57: 407.88 | M57: 41.2 | N57: =IF(ISBLANK(B57),"",INDEX(LookupTables!B$4:B$13,MATCH(B57,LookupTables!D$4:D$13,-1))) -> 0 | O57: =IF(ISBLANK(B57),"",IF(ISNA(VLOOKUP(B57,LookupTables!F$4:F$13,1,FALSE)),1,0)) -> 1 | P57: 0.003430597849 | Q57: 0.13
N58: =IF(ISBLANK(B58),"",INDEX(LookupTables!B$4:B$13,MATCH(B58,LookupTables!D$4:D$13,-1))) ->  | O58: =IF(ISBLANK(B58),"",IF(ISNA(VLOOKUP(B58,LookupTables!F$4:F$13,1,FALSE)),1,0)) -> 
A59: Main | B59: 39837.88 | C59: 2 YR | D59: 759 | E59: 5897.45 | F59: 5899.35 | G59: 5898.62 | H59: 5899.41 | I59: 0.002939 | J59: 2.89 | K59: 1.05 | L59: 419.33 | M59: 16.74 | N59: =IF(ISBLANK(B59),"",INDEX(LookupTables!B$4:B$13,MATCH(B59,LookupTables!D$4:D$13,-1))) -> 0 | O59: =IF(ISBLANK(B59),"",IF(ISNA(VLOOKUP(B59,LookupTables!F$4:F$13,1,FALSE)),1,0)) -> 1 | P59: 0.005506777969 | Q59: 0.37
A60: Main | B60: 39837.88 | C60: 5 YR | D60: 1174.9 | E60: 5897.45 | F60: 5899.67 | G60: 5898.84 | H60: 5899.74 | I60: 0.003188 | J60: 3.34 | K60: 1.29 | L60: 448.2 | M60: 16.74 | N60: =IF(ISBLANK(B60),"",INDEX(LookupTables!B$4:B$13,MATCH(B60,LookupTables!D$4:D$13,-1))) -> 0 | O60: =IF(ISBLANK(B60),"",IF(ISNA(VLOOKUP(B60,LookupTables!F$4:F$13,1,FALSE)),1,0)) -> 1 | P60: 0.005506777969 | Q60: 0.4
A61: Main | B61: 39837.88 | C61: 10 YR | D61: 1525 | E61: 5897.45 | F61: 5899.89 | G61: 5898.99 | H61: 5899.97 | I61: 0.003333 | J61: 3.65 | K61: 1.45 | L61: 467.22 | M61: 16.74 | N61: =IF(ISBLANK(B61),"",INDEX(LookupTables!B$4:B$13,MATCH(B61,LookupTables!D$4:D$13,-1))) -> 0 | O61: =IF(ISBLANK(B61),"",IF(ISNA(VLOOKUP(B61,LookupTables!F$4:F$13,1,FALSE)),1,0)) -> 1 | P61: 0.005506777969 | Q61: 0.42
A62: Main | B62: 39837.88 | C62: 25 YR | D62: 2007.1 | E62: 5897.45 | F62: 5900.18 | G62: 5899.17 | H62: 5900.28 | I62: 0.003381 | J62: 3.97 | K62: 1.6 | L62: 512.62 | M62: 16.74 | N62: =IF(ISBLANK(B62),"",INDEX(LookupTables!B$4:B$13,MATCH(B62,LookupTables!D$4:D$13,-1))) -> 0 | O62: =IF(ISBLANK(B62),"",IF(ISNA(VLOOKUP(B62,LookupTables!F$4:F$13,1,FALSE)),1,0)) -> 1 | P62: 0.005506777969 | Q62: 0.43
A63: Main | B63: 39837.88 | C63: 50 YR | D63: 2401.3 | E63: 5897.45 | F63: 5900.4 | G63: 5899.24 | H63: 5900.51 | I63: 0.003284 | J63: 4.12 | K63: 1.76 | L63: 531.08 | M63: 16.74 | N63: =IF(ISBLANK(B63),"",INDEX(LookupTables!B$4:B$13,MATCH(B63,LookupTables!D$4:D$13,-1))) -> 0 | O63: =IF(ISBLANK(B63),"",IF(ISNA(VLOOKUP(B63,LookupTables!F$4:F$13,1,FALSE)),1,0)) -> 1 | P63: 0.005506777969 | Q63: 0.43
A64: Main | B64: 39837.88 | C64: 100 YR | D64: 2840 | E64: 5897.45 | F64: 5900.63 | G64: 5899.51 | H64: 5900.75 | I64: 0.003219 | J64: 4.29 | K64: 1.92 | L64: 552.52 | M64: 16.74 | N64: =IF(ISBLANK(B64),"",INDEX(LookupTables!B$4:B$13,MATCH(B64,LookupTables!D$4:D$13,-1))) -> 0 | O64: =IF(ISBLANK(B64),"",IF(ISNA(VLOOKUP(B64,LookupTables!F$4:F$13,1,FALSE)),1,0)) -> 1 | P64: 0.005506777969 | Q64: 0.43
N65: =IF(ISBLANK(B65),"",INDEX(LookupTables!B$4:B$13,MATCH(B65,LookupTables!D$4:D$13,-1))) ->  | O65: =IF(ISBLANK(B65),"",IF(ISNA(VLOOKUP(B65,LookupTables!F$4:F$13,1,FALSE)),1,0)) -> 
A66: Main | B66: 38866.35 | C66: 2 YR | D66: 759 | E66: 5892.1 | F66: 5893.51 | G66: 5893.33 | H66: 5893.76 | I66: 0.017259 | J66: 5.54 | K66: 0.85 | L66: 241.16 | M66: 26.73 | N66: =IF(ISBLANK(B66),"",INDEX(LookupTables!B$4:B$13,MATCH(B66,LookupTables!D$4:D$13,-1))) -> 0 | O66: =IF(ISBLANK(B66),"",IF(ISNA(VLOOKUP(B66,LookupTables!F$4:F$13,1,FALSE)),1,0)) -> 1 | P66: 0.006482528089 | Q66: 0.86
A67: Main | B67: 38866.35 | C67: 5 YR | D67: 1174.9 | E67: 5892.1 | F67: 5893.88 | G67: 5893.63 | H67: 5894.16 | I67: 0.013738 | J67: 5.85 | K67: 1.11 | L67: 267 | M67: 26.73 | N67: =IF(ISBLANK(B67),"",INDEX(LookupTables!B$4:B$13,MATCH(B67,LookupTables!D$4:D$13,-1))) -> 0 | O67: =IF(ISBLANK(B67),"",IF(ISNA(VLOOKUP(B67,LookupTables!F$4:F$13,1,FALSE)),1,0)) -> 1 | P67: 0.006482528089 | Q67: 0.8
A68: Main | B68: 38866.35 | C68: 10 YR | D68: 1525 | E68: 5892.1 | F68: 5894.16 | G68: 5893.8 | H68: 5894.45 | I68: 0.012197 | J68: 6.1 | K68: 1.28 | L68: 292.43 | M68: 26.73 | N68: =IF(ISBLANK(B68),"",INDEX(LookupTables!B$4:B$13,MATCH(B68,LookupTables!D$4:D$13,-1))) -> 0 | O68: =IF(ISBLANK(B68),"",IF(ISNA(VLOOKUP(B68,LookupTables!F$4:F$13,1,FALSE)),1,0)) -> 1 | P68: =IF(ISBLANK(E68),"",(E68-E75)/(B68-B75)) -> 0.006482528089 | Q68: 0.77
A69: Main | B69: 38866.35 | C69: 25 YR | D69: 2007.1 | E69: 5892.1 | F69: 5894.44 | G69: 5894.04 | H69: 5894.77 | I69: 0.011784 | J69: 6.55 | K69: 1.46 | L69: 314.42 | M69: 26.73 | N69: =IF(ISBLANK(B69),"",INDEX(LookupTables!B$4:B$13,MATCH(B69,LookupTables!D$4:D$13,-1))) -> 0 | O69: =IF(ISBLANK(B69),"",IF(ISNA(VLOOKUP(B69,LookupTables!F$4:F$13,1,FALSE)),1,0)) -> 1 | P69: 0.006482528089 | Q69: 0.77
A70: Main | B70: 38866.35 | C70: 50 YR | D70: 2401.3 | E70: 5892.1 | F70: 5894.59 | G70: 5894.21 | H70: 5894.98 | I70: 0.0126 | J70: 7.08 | K70: 1.58 | L70: 321.67 | M70: 26.73 | N70: =IF(ISBLANK(B70),"",INDEX(LookupTables!B$4:B$13,MATCH(B70,LookupTables!D$4:D$13,-1))) -> 0 | O70: =IF(ISBLANK(B70),"",IF(ISNA(VLOOKUP(B70,LookupTables!F$4:F$13,1,FALSE)),1,0)) -> 1 | P70: 0.006482528089 | Q70: 0.81
A71: Main | B71: 38866.35 | C71: 100 YR | D71: 2840 | E71: 5892.1 | F71: 5894.74 | G71: 5894.4 | H71: 5895.19 | I71: 0.013273 | J71: 7.58 | K71: 1.7 | L71: 329.48 | M71: 26.73 | N71: =IF(ISBLANK(B71),"",INDEX(LookupTables!B$4:B$13,MATCH(B71,LookupTables!D$4:D$13,-1))) -> 0 | O71: =IF(ISBLANK(B71),"",IF(ISNA(VLOOKUP(B71,LookupTables!F$4:F$13,1,FALSE)),1,0)) -> 1 | P71: 0.006482528089 | Q71: 0.84
N72: =IF(ISBLANK(B72),"",INDEX(LookupTables!B$4:B$13,MATCH(B72,LookupTables!D$4:D$13,-1))) ->  | O72: =IF(ISBLANK(B72),"",IF(ISNA(VLOOKUP(B72,LookupTables!F$4:F$13,1,FALSE)),1,0)) -> 
A73: Main | B73: 37831.26 | C73: 2 YR | D73: 759 | E73: 5885.39 | F73: 5888.26 | H73: 5888.35 | I73: 0.002485 | J73: 3.35 | K73: 1.42 | L73: 254.54 | M73: 25.9 | N73: =IF(ISBLANK(B73),"",INDEX(LookupTables!B$4:B$13,MATCH(B73,LookupTables!D$4:D$13,-1))) -> 0 | O73: =IF(ISBLANK(B73),"",IF(ISNA(VLOOKUP(B73,LookupTables!F$4:F$13,1,FALSE)),1,0)) -> 1 | P73: 0.00264278994 | Q73: 0.36
A74: Main | B74: 37831.26 | C74: 5 YR | D74: 1174.9 | E74: 5885.39 | F74: 5888.74 | H74: 5888.84 | I74: 0.00265 | J74: 3.87 | K74: 1 | L74: 528.6 | M74: 25.9 | N74: =IF(ISBLANK(B74),"",INDEX(LookupTables!B$4:B$13,MATCH(B74,LookupTables!D$4:D$13,-1))) -> 0 | O74: =IF(ISBLANK(B74),"",IF(ISNA(VLOOKUP(B74,LookupTables!F$4:F$13,1,FALSE)),1,0)) -> 1 | P74: 0.00264278994 | Q74: 0.39
A75: Main | B75: 37831.26 | C75: 10 YR | D75: 1525 | E75: 5885.39 | F75: 5889.02 | H75: 5889.14 | I75: 0.002808 | J75: 4.22 | K75: 0.95 | L75: 743.29 | M75: 25.9 | N75: =IF(ISBLANK(B75),"",INDEX(LookupTables!B$4:B$13,MATCH(B75,LookupTables!D$4:D$13,-1))) -> 0 | O75: =IF(ISBLANK(B75),"",IF(ISNA(VLOOKUP(B75,LookupTables!F$4:F$13,1,FALSE)),1,0)) -> 1 | P75: 0.00264278994 | Q75: 0.4
A76: Main | B76: 37831.26 | C76: 25 YR | D76: 2007.1 | E76: 5885.39 | F76: 5889.3 | H76: 5889.43 | I76: 0.002906 | J76: 4.53 | K76: 0.93 | L76: 1042.68 | M76: 25.9 | N76: =IF(ISBLANK(B76),"",INDEX(LookupTables!B$4:B$13,MATCH(B76,LookupTables!D$4:D$13,-1))) -> 0 | O76: =IF(ISBLANK(B76),"",IF(ISNA(VLOOKUP(B76,LookupTables!F$4:F$13,1,FALSE)),1,0)) -> 1 | P76: 0.00264278994 | Q76: 0.42
A77: Main | B77: 37831.26 | C77: 50 YR | D77: 2401.3 | E77: 5885.39 | F77: 5889.47 | G77: 5888.32 | H77: 5889.59 | I77: 0.002876 | J77: 4.64 | K77: 1.01 | L77: 1135.18 | M77: 25.9 | N77: =IF(ISBLANK(B77),"",INDEX(LookupTables!B$4:B$13,MATCH(B77,LookupTables!D$4:D$13,-1))) -> 0 | O77: =IF(ISBLANK(B77),"",IF(ISNA(VLOOKUP(B77,LookupTables!F$4:F$13,1,FALSE)),1,0)) -> 1 | P77: 0.00264278994 | Q77: 0.42
A78: Main | B78: 37831.26 | C78: 100 YR | D78: 2840 | E78: 5885.39 | F78: 5889.65 | G78: 5888.78 | H78: 5889.77 | I78: 0.002845 | J78: 4.76 | K78: 1.1 | L78: 1244.6 | M78: 25.9 | N78: =IF(ISBLANK(B78),"",INDEX(LookupTables!B$4:B$13,MATCH(B78,LookupTables!D$4:D$13,-1))) -> 0 | O78: =IF(ISBLANK(B78),"",IF(ISNA(VLOOKUP(B78,LookupTables!F$4:F$13,1,FALSE)),1,0)) -> 1 | P78: 0.00264278994 | Q78: 0.42
N79: =IF(ISBLANK(B79),"",INDEX(LookupTables!B$4:B$13,MATCH(B79,LookupTables!D$4:D$13,-1))) ->  | O79: =IF(ISBLANK(B79),"",IF(ISNA(VLOOKUP(B79,LookupTables!F$4:F$13,1,FALSE)),1,0)) -> 
A80: Main | B80: 36885.29 | C80: 2 YR | D80: 759 | E80: 5882.89 | F80: 5884.59 | G80: 5884.14 | H80: 5884.75 | I80: 0.009544 | J80: 3.82 | K80: 0.87 | L80: 280.96 | M80: 19.19 | N80: =IF(ISBLANK(B80),"",INDEX(LookupTables!B$4:B$13,MATCH(B80,LookupTables!D$4:D$13,-1))) -> 0 | O80: =IF(ISBLANK(B80),"",IF(ISNA(VLOOKUP(B80,LookupTables!F$4:F$13,1,FALSE)),1,0)) -> 1 | P80: 0.007562736336 | Q80: 0.62
A81: Main | B81: 36885.29 | C81: 5 YR | D81: 1174.9 | E81: 5882.89 | F81: 5885.03 | G81: 5884.46 | H81: 5885.18 | I81: 0.008619 | J81: 4.5 | K81: 0.99 | L81: 411.91 | M81: 19.19 | N81: =IF(ISBLANK(B81),"",INDEX(LookupTables!B$4:B$13,MATCH(B81,LookupTables!D$4:D$13,-1))) -> 0 | O81: =IF(ISBLANK(B81),"",IF(ISNA(VLOOKUP(B81,LookupTables!F$4:F$13,1,FALSE)),1,0)) -> 1 | P81: 0.007562736336 | Q81: 0.62
A82: Main | B82: 36885.29 | C82: 10 YR | D82: 1525 | E82: 5882.89 | F82: 5885.24 | G82: 5884.77 | H82: 5885.4 | I82: 0.008045 | J82: 4.71 | K82: 1.17 | L82: 422.9 | M82: 19.19 | N82: =IF(ISBLANK(B82),"",INDEX(LookupTables!B$4:B$13,MATCH(B82,LookupTables!D$4:D$13,-1))) -> 0 | O82: =IF(ISBLANK(B82),"",IF(ISNA(VLOOKUP(B82,LookupTables!F$4:F$13,1,FALSE)),1,0)) -> 1 | P82: 0.007562736336 | Q82: 0.62
A83: Main | B83: 36885.29 | C83: 25 YR | D83: 2007.1 | E83: 5882.89 | F83: 5885.51 | G83: 5884.97 | H83: 5885.69 | I83: 0.007379 | J83: 4.95 | K83: 1.39 | L83: 439.19 | M83: 19.19 | N83: =IF(ISBLANK(B83),"",INDEX(LookupTables!B$4:B$13,MATCH(B83,LookupTables!D$4:D$13,-1))) -> 0 | O83: =IF(ISBLANK(B83),"",IF(ISNA(VLOOKUP(B83,LookupTables!F$4:F$13,1,FALSE)),1,0)) -> 1 | P83: 0.007562736336 | Q83: 0.6
A84: Main | B84: 36885.29 | C84: 50 YR | D84: 2401.3 | E84: 5882.89 | F84: 5885.71 | G84: 5885.13 | H84: 5885.9 | I84: 0.007005 | J84: 5.12 | K84: 1.55 | L84: 449.65 | M84: 19.19 | N84: =IF(ISBLANK(B84),"",INDEX(LookupTables!B$4:B$13,MATCH(B84,LookupTables!D$4:D$13,-1))) -> 0 | O84: =IF(ISBLANK(B84),"",IF(ISNA(VLOOKUP(B84,LookupTables!F$4:F$13,1,FALSE)),1,0)) -> 1 | P84: 0.007562736336 | Q84: 0.6
A85: Main | B85: 36885.29 | C85: 100 YR | D85: 2840 | E85: 5882.89 | F85: 5885.91 | G85: 5885.25 | H85: 5886.13 | I85: 0.006685 | J85: 5.3 | K85: 1.72 | L85: 460.66 | M85: 19.19 | N85: =IF(ISBLANK(B85),"",INDEX(LookupTables!B$4:B$13,MATCH(B85,LookupTables!D$4:D$13,-1))) -> 0 | O85: =IF(ISBLANK(B85),"",IF(ISNA(VLOOKUP(B85,LookupTables!F$4:F$13,1,FALSE)),1,0)) -> 1 | P85: 0.007562736336 | Q85: 0.59
N86: =IF(ISBLANK(B86),"",INDEX(LookupTables!B$4:B$13,MATCH(B86,LookupTables!D$4:D$13,-1))) ->  | O86: =IF(ISBLANK(B86),"",IF(ISNA(VLOOKUP(B86,LookupTables!F$4:F$13,1,FALSE)),1,0)) -> 
A87: Main | B87: 35867.14 | C87: 2 YR | D87: 791 | E87: 5875.19 | F87: 5877.8 | G87: 5877.1 | H87: 5877.97 | I87: 0.004985 | J87: 3.29 | K87: 1.48 | L87: 162.89 | M87: 158.3 | N87: =IF(ISBLANK(B87),"",INDEX(LookupTables!B$4:B$13,MATCH(B87,LookupTables!D$4:D$13,-1))) -> 1 | O87: =IF(ISBLANK(B87),"",IF(ISNA(VLOOKUP(B87,LookupTables!F$4:F$13,1,FALSE)),1,0)) -> 1 | P87: 0.006973195184 | Q87: 0.47
A88: Main | B88: 35867.14 | C88: 5 YR | D88: 1188.6 | E88: 5875.19 | F88: 5878.18 | H88: 5878.42 | I88: 0.005287 | J88: 3.92 | K88: 1.69 | L88: 181.39 | M88: 160.34 | N88: =IF(ISBLANK(B88),"",INDEX(LookupTables!B$4:B$13,MATCH(B88,LookupTables!D$4:D$13,-1))) -> 1 | O88: =IF(ISBLANK(B88),"",IF(ISNA(VLOOKUP(B88,LookupTables!F$4:F$13,1,FALSE)),1,0)) -> 1 | P88: 0.006973195184 | Q88: 0.5
A89: Main | B89: 35867.14 | C89: 10 YR | D89: 1512 | E89: 5875.19 | F89: 5878.45 | G89: 5877.67 | H89: 5878.74 | I89: 0.005432 | J89: 4.34 | K89: 1.84 | L89: 193.7 | M89: 160.34 | N89: =IF(ISBLANK(B89),"",INDEX(LookupTables!B$4:B$13,MATCH(B89,LookupTables!D$4:D$13,-1))) -> 1 | O89: =IF(ISBLANK(B89),"",IF(ISNA(VLOOKUP(B89,LookupTables!F$4:F$13,1,FALSE)),1,0)) -> 1 | P89: 0.006973195184 | Q89: 0.52
A90: Main | B90: 35867.14 | C90: 25 YR | D90: 1937.7 | E90: 5875.19 | F90: 5878.75 | G90: 5877.96 | H90: 5879.11 | I90: 0.005671 | J90: 4.84 | K90: 2.01 | L90: 207.16 | M90: 160.34 | N90: =IF(ISBLANK(B90),"",INDEX(LookupTables!B$4:B$13,MATCH(B90,LookupTables!D$4:D$13,-1))) -> 1 | O90: =IF(ISBLANK(B90),"",IF(ISNA(VLOOKUP(B90,LookupTables!F$4:F$13,1,FALSE)),1,0)) -> 1 | P90: 0.006973195184 | Q90: 0.54
A91: Main | B91: 35867.14 | C91: 50 YR | D91: 2278.5 | E91: 5875.19 | F91: 5878.96 | H91: 5879.37 | I91: 0.005864 | J91: 5.2 | K91: 2.13 | L91: 216.72 | M91: 160.34 | N91: =IF(ISBLANK(B91),"",INDEX(LookupTables!B$4:B$13,MATCH(B91,LookupTables!D$4:D$13,-1))) -> 1 | O91: =IF(ISBLANK(B91),"",IF(ISNA(VLOOKUP(B91,LookupTables!F$4:F$13,1,FALSE)),1,0)) -> 1 | P91: 0.006973195184 | Q91: 0.56
A92: Main | B92: 35867.14 | C92: 100 YR | D92: 2651 | E92: 5875.19 | F92: 5879.18 | H92: 5879.64 | I92: 0.006041 | J92: 5.56 | K92: 2.24 | L92: 227.72 | M92: 160.34 | N92: =IF(ISBLANK(B92),"",INDEX(LookupTables!B$4:B$13,MATCH(B92,LookupTables!D$4:D$13,-1))) -> 1 | O92: =IF(ISBLANK(B92),"",IF(ISNA(VLOOKUP(B92,LookupTables!F$4:F$13,1,FALSE)),1,0)) -> 1 | P92: 0.006973195184 | Q92: 0.58
N93: =IF(ISBLANK(B93),"",INDEX(LookupTables!B$4:B$13,MATCH(B93,LookupTables!D$4:D$13,-1))) ->  | O93: =IF(ISBLANK(B93),"",IF(ISNA(VLOOKUP(B93,LookupTables!F$4:F$13,1,FALSE)),1,0)) -> 
A94: Main | B94: 34497.61 | C94: 2 YR | D94: 791 | E94: 5865.64 | F94: 5867.37 | H94: 5867.64 | I94: 0.012669 | J94: 4.16 | K94: 1.07 | L94: 177.69 | M94: 177.69 | N94: =IF(ISBLANK(B94),"",INDEX(LookupTables!B$4:B$13,MATCH(B94,LookupTables!D$4:D$13,-1))) -> 1 | O94: =IF(ISBLANK(B94),"",IF(ISNA(VLOOKUP(B94,LookupTables!F$4:F$13,1,FALSE)),1,0)) -> 1 | P94: 0.01139130256 | Q94: 0.71
A95: Main | B95: 34497.61 | C95: 5 YR | D95: 1188.6 | E95: 5865.64 | F95: 5867.73 | G95: 5867.41 | H95: 5868.06 | I95: 0.011665 | J95: 4.64 | K95: 1.34 | L95: 190.89 | M95: 190.89 | N95: =IF(ISBLANK(B95),"",INDEX(LookupTables!B$4:B$13,MATCH(B95,LookupTables!D$4:D$13,-1))) -> 1 | O95: =IF(ISBLANK(B95),"",IF(ISNA(VLOOKUP(B95,LookupTables!F$4:F$13,1,FALSE)),1,0)) -> 1 | P95: 0.01139130256 | Q95: 0.71
A96: Main | B96: 34497.61 | C96: 10 YR | D96: 1512 | E96: 5865.64 | F96: 5867.96 | G96: 5867.61 | H96: 5868.35 | I96: 0.011292 | J96: 5 | K96: 1.51 | L96: 200.12 | M96: 196.86 | N96: =IF(ISBLANK(B96),"",INDEX(LookupTables!B$4:B$13,MATCH(B96,LookupTables!D$4:D$13,-1))) -> 1 | O96: =IF(ISBLANK(B96),"",IF(ISNA(VLOOKUP(B96,LookupTables!F$4:F$13,1,FALSE)),1,0)) -> 1 | P96: 0.01139130256 | Q96: 0.71
A97: Main | B97: 34497.61 | C97: 25 YR | D97: 1937.7 | E97: 5865.64 | F97: 5868.26 | G97: 5867.86 | H97: 5868.7 | I97: 0.010675 | J97: 5.35 | K97: 1.72 | L97: 211.75 | M97: 203.74 | N97: =IF(ISBLANK(B97),"",INDEX(LookupTables!B$4:B$13,MATCH(B97,LookupTables!D$4:D$13,-1))) -> 1 | O97: =IF(ISBLANK(B97),"",IF(ISNA(VLOOKUP(B97,LookupTables!F$4:F$13,1,FALSE)),1,0)) -> 1 | P97: 0.01139130256 | Q97: 0.71
A98: Main | B98: 34497.61 | C98: 50 YR | D98: 2278.5 | E98: 5865.64 | F98: 5868.48 | G98: 5868.04 | H98: 5868.96 | I98: 0.01022 | J98: 5.59 | K98: 1.87 | L98: 219.59 | M98: 208.07 | N98: =IF(ISBLANK(B98),"",INDEX(LookupTables!B$4:B$13,MATCH(B98,LookupTables!D$4:D$13,-1))) -> 1 | O98: =IF(ISBLANK(B98),"",IF(ISNA(VLOOKUP(B98,LookupTables!F$4:F$13,1,FALSE)),1,0)) -> 1 | P98: 0.01139130256 | Q98: 0.7
A99: Main | B99: 34497.61 | C99: 100 YR | D99: 2651 | E99: 5865.64 | F99: 5868.69 | G99: 5868.22 | H99: 5869.22 | I99: 0.009883 | J99: 5.86 | K99: 1.94 | L99: 236.01 | M99: 209.27 | N99: =IF(ISBLANK(B99),"",INDEX(LookupTables!B$4:B$13,MATCH(B99,LookupTables!D$4:D$13,-1))) -> 1 | O99: =IF(ISBLANK(B99),"",IF(ISNA(VLOOKUP(B99,LookupTables!F$4:F$13,1,FALSE)),1,0)) -> 1 | P99: 0.01139130256 | Q99: 0.7
N100: =IF(ISBLANK(B100),"",INDEX(LookupTables!B$4:B$13,MATCH(B100,LookupTables!D$4:D$13,-1))) ->  | O100: =IF(ISBLANK(B100),"",IF(ISNA(VLOOKUP(B100,LookupTables!F$4:F$13,1,FALSE)),1,0)) -> 
A101: Main | B101: 33039.48 | C101: 2 YR | D101: 791 | E101: 5849.03 | F101: 5851.52 | G101: 5851.13 | H101: 5851.85 | I101: 0.009351 | J101: 4.6 | K101: 1.29 | L101: 137.66 | M101: 108.29 | N101: =IF(ISBLANK(B101),"",INDEX(LookupTables!B$4:B$13,MATCH(B101,LookupTables!D$4:D$13,-1))) -> 1 | O101: =IF(ISBLANK(B101),"",IF(ISNA(VLOOKUP(B101,LookupTables!F$4:F$13,1,FALSE)),1,0)) -> 1 | P101: 0.01433232268 | Q101: 0.65
A102: Main | B102: 33039.48 | C102: 5 YR | D102: 1188.6 | E102: 5849.03 | F102: 5851.89 | G102: 5851.53 | H102: 5852.34 | I102: 0.009953 | J102: 5.47 | K102: 1.46 | L102: 160.29 | M102: 108.29 | N102: =IF(ISBLANK(B102),"",INDEX(LookupTables!B$4:B$13,MATCH(B102,LookupTables!D$4:D$13,-1))) -> 1 | O102: =IF(ISBLANK(B102),"",IF(ISNA(VLOOKUP(B102,LookupTables!F$4:F$13,1,FALSE)),1,0)) -> 1 | P102: 0.01433232268 | Q102: 0.69
A103: Main | B103: 33039.48 | C103: 10 YR | D103: 1512 | E103: 5849.03 | F103: 5852.15 | G103: 5851.83 | H103: 5852.69 | I103: 0.010204 | J103: 6.02 | K103: 1.58 | L103: 174.97 | M103: 108.29 | N103: =IF(ISBLANK(B103),"",INDEX(LookupTables!B$4:B$13,MATCH(B103,LookupTables!D$4:D$13,-1))) -> 1 | O103: =IF(ISBLANK(B103),"",IF(ISNA(VLOOKUP(B103,LookupTables!F$4:F$13,1,FALSE)),1,0)) -> 1 | P103: 0.01433232268 | Q103: 0.72
A104: Main | B104: 33039.48 | C104: 25 YR | D104: 1937.7 | E104: 5849.03 | F104: 5852.43 | G104: 5852.11 | H104: 5853.08 | I104: 0.010703 | J104: 6.69 | K104: 1.66 | L104: 198.68 | M104: 108.29 | N104: =IF(ISBLANK(B104),"",INDEX(LookupTables!B$4:B$13,MATCH(B104,LookupTables!D$4:D$13,-1))) -> 1 | O104: =IF(ISBLANK(B104),"",IF(ISNA(VLOOKUP(B104,LookupTables!F$4:F$13,1,FALSE)),1,0)) -> 1 | P104: 0.01433232268 | Q104: 0.75
A105: Main | B105: 33039.48 | C105: 50 YR | D105: 2278.5 | E105: 5849.03 | F105: 5852.62 | G105: 5852.42 | H105: 5853.35 | I105: 0.011162 | J105: 7.16 | K105: 1.79 | L105: 205.12 | M105: 108.29 | N105: =IF(ISBLANK(B105),"",INDEX(LookupTables!B$4:B$13,MATCH(B105,LookupTables!D$4:D$13,-1))) -> 1 | O105: =IF(ISBLANK(B105),"",IF(ISNA(VLOOKUP(B105,LookupTables!F$4:F$13,1,FALSE)),1,0)) -> 1 | P105: 0.01433232268 | Q105: 0.77
A106: Main | B106: 33039.48 | C106: 100 YR | D106: 2651 | E106: 5849.03 | F106: 5852.81 | G106: 5852.64 | H106: 5853.62 | I106: 0.011518 | J106: 7.62 | K106: 1.93 | L106: 210.64 | M106: 108.29 | N106: =IF(ISBLANK(B106),"",INDEX(LookupTables!B$4:B$13,MATCH(B106,LookupTables!D$4:D$13,-1))) -> 1 | O106: =IF(ISBLANK(B106),"",IF(ISNA(VLOOKUP(B106,LookupTables!F$4:F$13,1,FALSE)),1,0)) -> 1 | P106: 0.01433232268 | Q106: 0.8
N107: =IF(ISBLANK(B107),"",INDEX(LookupTables!B$4:B$13,MATCH(B107,LookupTables!D$4:D$13,-1))) ->  | O107: =IF(ISBLANK(B107),"",IF(ISNA(VLOOKUP(B107,LookupTables!F$4:F$13,1,FALSE)),1,0)) -> 
A108: Main | B108: 31565.19 | C108: 2 YR | D108: 791 | E108: 5827.9 | F108: 5829.78 | G108: 5829.78 | H108: 5830.36 | I108: 0.025732 | J108: 6.1 | K108: 1.12 | L108: 115.95 | M108: 115.95 | N108: =IF(ISBLANK(B108),"",INDEX(LookupTables!B$4:B$13,MATCH(B108,LookupTables!D$4:D$13,-1))) -> 1 | O108: =IF(ISBLANK(B108),"",IF(ISNA(VLOOKUP(B108,LookupTables!F$4:F$13,1,FALSE)),1,0)) -> 1 | P108: 0.01937781763 | Q108: 1.02
A109: Main | B109: 31565.19 | C109: 5 YR | D109: 1188.6 | E109: 5827.9 | F109: 5830.17 | G109: 5830.17 | H109: 5830.88 | I109: 0.023229 | J109: 6.76 | K109: 1.41 | L109: 125.06 | M109: 125.06 | N109: =IF(ISBLANK(B109),"",INDEX(LookupTables!B$4:B$13,MATCH(B109,LookupTables!D$4:D$13,-1))) -> 1 | O109: =IF(ISBLANK(B109),"",IF(ISNA(VLOOKUP(B109,LookupTables!F$4:F$13,1,FALSE)),1,0)) -> 1 | P109: 0.01937781763 | Q109: 1
A110: Main | B110: 31565.19 | C110: 10 YR | D110: 1512 | E110: 5827.9 | F110: 5830.43 | G110: 5830.43 | H110: 5831.24 | I110: 0.022288 | J110: 7.21 | K110: 1.57 | L110: 133.29 | M110: 131.25 | N110: =IF(ISBLANK(B110),"",INDEX(LookupTables!B$4:B$13,MATCH(B110,LookupTables!D$4:D$13,-1))) -> 1 | O110: =IF(ISBLANK(B110),"",IF(ISNA(VLOOKUP(B110,LookupTables!F$4:F$13,1,FALSE)),1,0)) -> 1 | P110: 0.01937781763 | Q110: 1
A111: Main | B111: 31565.19 | C111: 25 YR | D111: 1937.7 | E111: 5827.9 | F111: 5830.74 | G111: 5830.74 | H111: 5831.66 | I111: 0.02077 | J111: 7.7 | K111: 1.7 | L111: 149.32 | M111: 134.98 | N111: =IF(ISBLANK(B111),"",INDEX(LookupTables!B$4:B$13,MATCH(B111,LookupTables!D$4:D$13,-1))) -> 1 | O111: =IF(ISBLANK(B111),"",IF(ISNA(VLOOKUP(B111,LookupTables!F$4:F$13,1,FALSE)),1,0)) -> 1 | P111: 0.01937781763 | Q111: 0.99
A112: Main | B112: 31565.19 | C112: 50 YR | D112: 2278.5 | E112: 5827.9 | F112: 5830.98 | G112: 5830.98 | H112: 5831.97 | I112: 0.019522 | J112: 7.98 | K112: 1.83 | L112: 158.57 | M112: 137.85 | N112: =IF(ISBLANK(B112),"",INDEX(LookupTables!B$4:B$13,MATCH(B112,LookupTables!D$4:D$13,-1))) -> 1 | O112: =IF(ISBLANK(B112),"",IF(ISNA(VLOOKUP(B112,LookupTables!F$4:F$13,1,FALSE)),1,0)) -> 1 | P112: 0.01937781763 | Q112: 0.98
A113: Main | B113: 31565.19 | C113: 100 YR | D113: 2651 | E113: 5827.9 | F113: 5831.22 | G113: 5831.22 | H113: 5832.27 | I113: 0.018689 | J113: 8.29 | K113: 1.97 | L113: 166.72 | M113: 140.66 | N113: =IF(ISBLANK(B113),"",INDEX(LookupTables!B$4:B$13,MATCH(B113,LookupTables!D$4:D$13,-1))) -> 1 | O113: =IF(ISBLANK(B113),"",IF(ISNA(VLOOKUP(B113,LookupTables!F$4:F$13,1,FALSE)),1,0)) -> 1 | P113: 0.01937781763 | Q113: 0.97
N114: =IF(ISBLANK(B114),"",INDEX(LookupTables!B$4:B$13,MATCH(B114,LookupTables!D$4:D$13,-1))) ->  | O114: =IF(ISBLANK(B114),"",IF(ISNA(VLOOKUP(B114,LookupTables!F$4:F$13,1,FALSE)),1,0)) -> 
A115: Main | B115: 31163.7 | C115: 2 YR | D115: 791 | E115: 5820.12 | F115: 5826.09 | H115: 5826.12 | I115: 0.000239 | J115: 1.77 | K115: 3.37 | L115: 202.35 | M115: 23.26 | N115: =IF(ISBLANK(B115),"",INDEX(LookupTables!B$4:B$13,MATCH(B115,LookupTables!D$4:D$13,-1))) -> 1 | O115: =IF(ISBLANK(B115),"",IF(ISNA(VLOOKUP(B115,LookupTables!F$4:F$13,1,FALSE)),1,0)) -> 0 | P115: -0.03207464645 | Q115: 0.13
A116: Main | B116: 31163.7 | C116: 5 YR | D116: 1188.6 | E116: 5820.12 | F116: 5826.6 | H116: 5826.64 | I116: 0.000377 | J116: 2.35 | K116: 3.58 | L116: 220.26 | M116: 23.26 | N116: =IF(ISBLANK(B116),"",INDEX(LookupTables!B$4:B$13,MATCH(B116,LookupTables!D$4:D$13,-1))) -> 1 | O116: =IF(ISBLANK(B116),"",IF(ISNA(VLOOKUP(B116,LookupTables!F$4:F$13,1,FALSE)),1,0)) -> 0 | P116: -0.03207464645 | Q116: 0.16
A117: Main | B117: 31163.7 | C117: 10 YR | D117: 1512 | E117: 5820.12 | F117: 5826.89 | H117: 5826.95 | I117: 0.000502 | J117: 2.8 | K117: 3.7 | L117: 230.77 | M117: 23.26 | N117: =IF(ISBLANK(B117),"",INDEX(LookupTables!B$4:B$13,MATCH(B117,LookupTables!D$4:D$13,-1))) -> 1 | O117: =IF(ISBLANK(B117),"",IF(ISNA(VLOOKUP(B117,LookupTables!F$4:F$13,1,FALSE)),1,0)) -> 0 | P117: -0.03207464645 | Q117: 0.19
A118: Main | B118: 31163.7 | C118: 25 YR | D118: 1937.7 | E118: 5820.12 | F118: 5827.22 | H118: 5827.31 | I118: 0.000693 | J118: 3.4 | K118: 3.7 | L118: 252.88 | M118: 23.26 | N118: =IF(ISBLANK(B118),"",INDEX(LookupTables!B$4:B$13,MATCH(B118,LookupTables!D$4:D$13,-1))) -> 1 | O118: =IF(ISBLANK(B118),"",IF(ISNA(VLOOKUP(B118,LookupTables!F$4:F$13,1,FALSE)),1,0)) -> 0 | P118: -0.03207464645 | Q118: 0.23
A119: Main | B119: 31163.7 | C119: 50 YR | D119: 2278.5 | E119: 5820.12 | F119: 5827.46 | H119: 5827.56 | I119: 0.000818 | J119: 3.77 | K119: 3.82 | L119: 260.66 | M119: 23.26 | N119: =IF(ISBLANK(B119),"",INDEX(LookupTables!B$4:B$13,MATCH(B119,LookupTables!D$4:D$13,-1))) -> 1 | O119: =IF(ISBLANK(B119),"",IF(ISNA(VLOOKUP(B119,LookupTables!F$4:F$13,1,FALSE)),1,0)) -> 0 | P119: -0.03207464645 | Q119: 0.25
A120: Main | B120: 31163.7 | C120: 100 YR | D120: 2651 | E120: 5820.12 | F120: 5827.69 | H120: 5827.83 | I120: 0.000973 | J120: 4.2 | K120: 3.79 | L120: 280.14 | M120: 23.26 | N120: =IF(ISBLANK(B120),"",INDEX(LookupTables!B$4:B$13,MATCH(B120,LookupTables!D$4:D$13,-1))) -> 1 | O120: =IF(ISBLANK(B120),"",IF(ISNA(VLOOKUP(B120,LookupTables!F$4:F$13,1,FALSE)),1,0)) -> 0 | P120: -0.03207464645 | Q120: 0.27
N121: =IF(ISBLANK(B121),"",INDEX(LookupTables!B$4:B$13,MATCH(B121,LookupTables!D$4:D$13,-1))) ->  | O121: =IF(ISBLANK(B121),"",IF(ISNA(VLOOKUP(B121,LookupTables!F$4:F$13,1,FALSE)),1,0)) -> 
A122: Main | B122: 31095.11 | C122: 2 YR | D122: 791 | E122: 5822.32 | F122: 5825.22 | G122: 5825.22 | H122: 5825.99 | I122: 0.021374 | J122: 7.06 | K122: 1.3 | L122: 86.77 | M122: 69.94 | N122: =IF(ISBLANK(B122),"",INDEX(LookupTables!B$4:B$13,MATCH(B122,LookupTables!D$4:D$13,-1))) -> 1 | O122: =IF(ISBLANK(B122),"",IF(ISNA(VLOOKUP(B122,LookupTables!F$4:F$13,1,FALSE)),1,0)) -> 0 | P122: 0.1086223182 | Q122: 0.98
A123: Main | B123: 31095.11 | C123: 5 YR | D123: 1188.6 | E123: 5822.32 | F123: 5825.88 | G123: 5825.88 | H123: 5826.51 | I123: 0.013882 | J123: 6.66 | K123: 1.01 | L123: 213.12 | M123: 80.07 | N123: =IF(ISBLANK(B123),"",INDEX(LookupTables!B$4:B$13,MATCH(B123,LookupTables!D$4:D$13,-1))) -> 1 | O123: =IF(ISBLANK(B123),"",IF(ISNA(VLOOKUP(B123,LookupTables!F$4:F$13,1,FALSE)),1,0)) -> 0 | P123: 0.1086223182 | Q123: 0.82
A124: Main | B124: 31095.11 | C124: 10 YR | D124: 1512 | E124: 5822.32 | F124: 5826.18 | G124: 5826.18 | H124: 5826.8 | I124: 0.011959 | J124: 6.79 | K124: 1.23 | L124: 232.94 | M124: 80.1 | N124: =IF(ISBLANK(B124),"",INDEX(LookupTables!B$4:B$13,MATCH(B124,LookupTables!D$4:D$13,-1))) -> 1 | O124: =IF(ISBLANK(B124),"",IF(ISNA(VLOOKUP(B124,LookupTables!F$4:F$13,1,FALSE)),1,0)) -> 0 | P124: 0.1086223182 | Q124: 0.78
A125: Main | B125: 31095.11 | C125: 25 YR | D125: 1937.7 | E125: 5822.32 | F125: 5826.44 | G125: 5826.44 | H125: 5827.13 | I125: 0.012082 | J125: 7.33 | K125: 1.4 | L125: 249.15 | M125: 80.1 | N125: =IF(ISBLANK(B125),"",INDEX(LookupTables!B$4:B$13,MATCH(B125,LookupTables!D$4:D$13,-1))) -> 1 | O125: =IF(ISBLANK(B125),"",IF(ISNA(VLOOKUP(B125,LookupTables!F$4:F$13,1,FALSE)),1,0)) -> 0 | P125: 0.1086223182 | Q125: 0.8
A126: Main | B126: 31095.11 | C126: 50 YR | D126: 2278.5 | E126: 5822.32 | F126: 5826.62 | G126: 5826.62 | H126: 5827.36 | I126: 0.012367 | J126: 7.73 | K126: 1.54 | L126: 254.12 | M126: 80.1 | N126: =IF(ISBLANK(B126),"",INDEX(LookupTables!B$4:B$13,MATCH(B126,LookupTables!D$4:D$13,-1))) -> 1 | O126: =IF(ISBLANK(B126),"",IF(ISNA(VLOOKUP(B126,LookupTables!F$4:F$13,1,FALSE)),1,0)) -> 0 | P126: 0.1086223182 | Q126: 0.82
A127: Main | B127: 31095.11 | C127: 100 YR | D127: 2651 | E127: 5822.32 | F127: 5826.75 | G127: 5826.75 | H127: 5827.59 | I127: 0.013351 | J127: 8.3 | K127: 1.66 | L127: 258.09 | M127: 80.1 | N127: =IF(ISBLANK(B127),"",INDEX(LookupTables!B$4:B$13,MATCH(B127,LookupTables!D$4:D$13,-1))) -> 1 | O127: =IF(ISBLANK(B127),"",IF(ISNA(VLOOKUP(B127,LookupTables!F$4:F$13,1,FALSE)),1,0)) -> 0 | P127: 0.1086223182 | Q127: 0.86
N128: =IF(ISBLANK(B128),"",INDEX(LookupTables!B$4:B$13,MATCH(B128,LookupTables!D$4:D$13,-1))) ->  | O128: =IF(ISBLANK(B128),"",IF(ISNA(VLOOKUP(B128,LookupTables!F$4:F$13,1,FALSE)),1,0)) -> 
A129: Main | B129: 31021 | C129: 2 YR | D129: 791 | E129: 5814.27 | F129: 5816.99 | H129: 5817.6 | I129: 0.013358 | J129: 6.27 | K129: 1.91 | L129: 65.96 | M129: 65.96 | N129: =IF(ISBLANK(B129),"",INDEX(LookupTables!B$4:B$13,MATCH(B129,LookupTables!D$4:D$13,-1))) -> 1 | O129: =IF(ISBLANK(B129),"",IF(ISNA(VLOOKUP(B129,LookupTables!F$4:F$13,1,FALSE)),1,0)) -> 1 | P129: 0.02137326422 | Q129: 0.8
A130: Main | B130: 31021 | C130: 5 YR | D130: 1188.6 | E130: 5814.27 | F130: 5817.7 | H130: 5818.42 | I130: 0.011354 | J130: 6.78 | K130: 2.44 | L130: 71.95 | M130: 71.95 | N130: =IF(ISBLANK(B130),"",INDEX(LookupTables!B$4:B$13,MATCH(B130,LookupTables!D$4:D$13,-1))) -> 1 | O130: =IF(ISBLANK(B130),"",IF(ISNA(VLOOKUP(B130,LookupTables!F$4:F$13,1,FALSE)),1,0)) -> 1 | P130: 0.02137326422 | Q130: 0.77
A131: Main | B131: 31021 | C131: 10 YR | D131: 1512 | E131: 5814.27 | F131: 5818.21 | H131: 5818.99 | I131: 0.010374 | J131: 7.11 | K131: 2.8 | L131: 75.97 | M131: 75.97 | N131: =IF(ISBLANK(B131),"",INDEX(LookupTables!B$4:B$13,MATCH(B131,LookupTables!D$4:D$13,-1))) -> 1 | O131: =IF(ISBLANK(B131),"",IF(ISNA(VLOOKUP(B131,LookupTables!F$4:F$13,1,FALSE)),1,0)) -> 1 | P131: 0.02137326422 | Q131: 0.75
A132: Main | B132: 31021 | C132: 25 YR | D132: 1937.7 | E132: 5814.27 | F132: 5818.81 | H132: 5819.68 | I132: 0.009479 | J132: 7.45 | K132: 3.22 | L132: 80.86 | M132: 80.86 | N132: =IF(ISBLANK(B132),"",INDEX(LookupTables!B$4:B$13,MATCH(B132,LookupTables!D$4:D$13,-1))) -> 1 | O132: =IF(ISBLANK(B132),"",IF(ISNA(VLOOKUP(B132,LookupTables!F$4:F$13,1,FALSE)),1,0)) -> 1 | P132: =IF(ISBLANK(E132),"",(E132-E139)/(B132-B139)) -> 0.02137326422 | Q132: 0.73
A133: Main | B133: 31021 | C133: 50 YR | D133: 2278.5 | E133: 5814.27 | F133: 5819.26 | H133: 5820.17 | I133: 0.009019 | J133: 7.68 | K133: 3.49 | L133: 84.99 | M133: 84.99 | N133: =IF(ISBLANK(B133),"",INDEX(LookupTables!B$4:B$13,MATCH(B133,LookupTables!D$4:D$13,-1))) -> 1 | O133: =IF(ISBLANK(B133),"",IF(ISNA(VLOOKUP(B133,LookupTables!F$4:F$13,1,FALSE)),1,0)) -> 1 | P133: 0.02137326422 | Q133: 0.72
A134: Main | B134: 31021 | C134: 100 YR | D134: 2651 | E134: 5814.27 | F134: 5819.66 | H134: 5820.65 | I134: 0.00894 | J134: 8 | K134: 3.74 | L134: 88.56 | M134: 88.56 | N134: =IF(ISBLANK(B134),"",INDEX(LookupTables!B$4:B$13,MATCH(B134,LookupTables!D$4:D$13,-1))) -> 1 | O134: =IF(ISBLANK(B134),"",IF(ISNA(VLOOKUP(B134,LookupTables!F$4:F$13,1,FALSE)),1,0)) -> 1 | P134: 0.02137326422 | Q134: 0.73
N135: =IF(ISBLANK(B135),"",INDEX(LookupTables!B$4:B$13,MATCH(B135,LookupTables!D$4:D$13,-1))) ->  | O135: =IF(ISBLANK(B135),"",IF(ISNA(VLOOKUP(B135,LookupTables!F$4:F$13,1,FALSE)),1,0)) -> 
A136: Main | B136: 30864.73 | C136: 2 YR | D136: 791 | E136: 5810.93 | F136: 5814.59 | G136: 5814.32 | H136: 5815.41 | I136: 0.014576 | J136: 7.24 | K136: 2.24 | L136: 48.81 | M136: 48.81 | N136: =IF(ISBLANK(B136),"",INDEX(LookupTables!B$4:B$13,MATCH(B136,LookupTables!D$4:D$13,-1))) -> 1 | O136: =IF(ISBLANK(B136),"",IF(ISNA(VLOOKUP(B136,LookupTables!F$4:F$13,1,FALSE)),1,0)) -> 1 | P136: 0.01697968989 | Q136: 0.85
A137: Main | B137: 30864.73 | C137: 5 YR | D137: 1188.6 | E137: 5810.93 | F137: 5815.25 | G137: 5815.05 | H137: 5816.32 | I137: 0.015513 | J137: 8.3 | K137: 2.62 | L137: 54.57 | M137: 54.57 | N137: =IF(ISBLANK(B137),"",INDEX(LookupTables!B$4:B$13,MATCH(B137,LookupTables!D$4:D$13,-1))) -> 1 | O137: =IF(ISBLANK(B137),"",IF(ISNA(VLOOKUP(B137,LookupTables!F$4:F$13,1,FALSE)),1,0)) -> 1 | P137: 0.01697968989 | Q137: 0.9
A138: Main | B138: 30864.73 | C138: 10 YR | D138: 1512 | E138: 5810.93 | F138: 5815.69 | G138: 5815.53 | H138: 5816.95 | I138: 0.01616 | J138: 9 | K138: 2.87 | L138: 58.49 | M138: 58.49 | N138: =IF(ISBLANK(B138),"",INDEX(LookupTables!B$4:B$13,MATCH(B138,LookupTables!D$4:D$13,-1))) -> 1 | O138: =IF(ISBLANK(B138),"",IF(ISNA(VLOOKUP(B138,LookupTables!F$4:F$13,1,FALSE)),1,0)) -> 1 | P138: 0.01697968989 | Q138: 0.94
A139: Main | B139: 30864.73 | C139: 25 YR | D139: 1937.7 | E139: 5810.93 | F139: 5816.19 | G139: 5816.1 | H139: 5817.67 | I139: 0.017029 | J139: 9.77 | K139: 3.13 | L139: 63.44 | M139: 63.44 | N139: =IF(ISBLANK(B139),"",INDEX(LookupTables!B$4:B$13,MATCH(B139,LookupTables!D$4:D$13,-1))) -> 1 | O139: =IF(ISBLANK(B139),"",IF(ISNA(VLOOKUP(B139,LookupTables!F$4:F$13,1,FALSE)),1,0)) -> 1 | P139: 0.01697968989 | Q139: 0.97
A140: Main | B140: 30864.73 | C140: 50 YR | D140: 2278.5 | E140: 5810.93 | F140: 5816.52 | G140: 5816.52 | H140: 5818.19 | I140: 0.017455 | J140: 10.37 | K140: 3.2 | L140: 68.86 | M140: 65.51 | N140: =IF(ISBLANK(B140),"",INDEX(LookupTables!B$4:B$13,MATCH(B140,LookupTables!D$4:D$13,-1))) -> 1 | O140: =IF(ISBLANK(B140),"",IF(ISNA(VLOOKUP(B140,LookupTables!F$4:F$13,1,FALSE)),1,0)) -> 1 | P140: 0.01697968989 | Q140: 1
A141: Main | B141: 30864.73 | C141: 100 YR | D141: 2651 | E141: 5810.93 | F141: 5816.93 | G141: 5816.93 | H141: 5818.71 | I141: 0.016734 | J141: 10.7 | K141: 3.29 | L141: 76 | M141: 68.1 | N141: =IF(ISBLANK(B141),"",INDEX(LookupTables!B$4:B$13,MATCH(B141,LookupTables!D$4:D$13,-1))) -> 1 | O141: =IF(ISBLANK(B141),"",IF(ISNA(VLOOKUP(B141,LookupTables!F$4:F$13,1,FALSE)),1,0)) -> 1 | P141: 0.01697968989 | Q141: 0.99
N142: =IF(ISBLANK(B142),"",INDEX(LookupTables!B$4:B$13,MATCH(B142,LookupTables!D$4:D$13,-1))) ->  | O142: =IF(ISBLANK(B142),"",IF(ISNA(VLOOKUP(B142,LookupTables!F$4:F$13,1,FALSE)),1,0)) -> 
A143: Main | B143: 30315.25 | C143: 2 YR | D143: 791 | E143: 5801.6 | F143: 5804.82 | G143: 5804.82 | H143: 5805.77 | I143: 0.021455 | J143: 7.85 | K143: 1.88 | L143: 53.62 | M143: 53.62 | N143: =IF(ISBLANK(B143),"",INDEX(LookupTables!B$4:B$13,MATCH(B143,LookupTables!D$4:D$13,-1))) -> 1 | O143: =IF(ISBLANK(B143),"",IF(ISNA(VLOOKUP(B143,LookupTables!F$4:F$13,1,FALSE)),1,0)) -> 1 | P143: 0.02907656514 | Q143: 1.01
A144: Main | B144: 30315.25 | C144: 5 YR | D144: 1188.6 | E144: 5801.6 | F144: 5805.46 | G144: 5805.46 | H144: 5806.62 | I144: 0.020218 | J144: 8.63 | K144: 2.27 | L144: 60.71 | M144: 60.71 | N144: =IF(ISBLANK(B144),"",INDEX(LookupTables!B$4:B$13,MATCH(B144,LookupTables!D$4:D$13,-1))) -> 1 | O144: =IF(ISBLANK(B144),"",IF(ISNA(VLOOKUP(B144,LookupTables!F$4:F$13,1,FALSE)),1,0)) -> 1 | P144: 0.02907656514 | Q144: 1.01
A145: Main | B145: 30315.25 | C145: 10 YR | D145: 1512 | E145: 5801.6 | F145: 5805.91 | G145: 5805.91 | H145: 5807.2 | I145: 0.019508 | J145: 9.11 | K145: 2.53 | L145: 65.62 | M145: 65.62 | N145: =IF(ISBLANK(B145),"",INDEX(LookupTables!B$4:B$13,MATCH(B145,LookupTables!D$4:D$13,-1))) -> 1 | O145: =IF(ISBLANK(B145),"",IF(ISNA(VLOOKUP(B145,LookupTables!F$4:F$13,1,FALSE)),1,0)) -> 1 | P145: 0.02907656514 | Q145: 1.01
A146: Main | B146: 30315.25 | C146: 25 YR | D146: 1937.7 | E146: 5801.6 | F146: 5806.42 | G146: 5806.42 | H146: 5807.87 | I146: 0.018674 | J146: 9.65 | K146: 2.81 | L146: 71.45 | M146: 70.56 | N146: =IF(ISBLANK(B146),"",INDEX(LookupTables!B$4:B$13,MATCH(B146,LookupTables!D$4:D$13,-1))) -> 1 | O146: =IF(ISBLANK(B146),"",IF(ISNA(VLOOKUP(B146,LookupTables!F$4:F$13,1,FALSE)),1,0)) -> 1 | P146: 0.02907656514 | Q146: 1.01
A147: Main | B147: 30315.25 | C147: 50 YR | D147: 2278.5 | E147: 5801.6 | F147: 5806.77 | G147: 5806.77 | H147: 5808.35 | I147: 0.018022 | J147: 10.08 | K147: 2.95 | L147: 76.73 | M147: 72.28 | N147: =IF(ISBLANK(B147),"",INDEX(LookupTables!B$4:B$13,MATCH(B147,LookupTables!D$4:D$13,-1))) -> 1 | O147: =IF(ISBLANK(B147),"",IF(ISNA(VLOOKUP(B147,LookupTables!F$4:F$13,1,FALSE)),1,0)) -> 1 | P147: 0.02907656514 | Q147: 1.01
A148: Main | B148: 30315.25 | C148: 100 YR | D148: 2651 | E148: 5801.6 | F148: 5807.14 | G148: 5807.14 | H148: 5808.84 | I148: 0.016694 | J148: 10.46 | K148: 3.07 | L148: 83.68 | M148: 72.28 | N148: =IF(ISBLANK(B148),"",INDEX(LookupTables!B$4:B$13,MATCH(B148,LookupTables!D$4:D$13,-1))) -> 1 | O148: =IF(ISBLANK(B148),"",IF(ISNA(VLOOKUP(B148,LookupTables!F$4:F$13,1,FALSE)),1,0)) -> 1 | P148: 0.02907656514 | Q148: 0.99
N149: =IF(ISBLANK(B149),"",INDEX(LookupTables!B$4:B$13,MATCH(B149,LookupTables!D$4:D$13,-1))) ->  | O149: =IF(ISBLANK(B149),"",IF(ISNA(VLOOKUP(B149,LookupTables!F$4:F$13,1,FALSE)),1,0)) -> 
A150: Main | B150: 29468.52 | C150: 2 YR | D150: 301 | E150: 5776.98 | F150: 5784.84 | H150: 5784.84 | I150: 1e-06 | J150: 0.12 | K150: 5.76 | L150: 449.36 | M150: 449.36 | N150: =IF(ISBLANK(B150),"",INDEX(LookupTables!B$4:B$13,MATCH(B150,LookupTables!D$4:D$13,-1))) -> 2 | O150: =IF(ISBLANK(B150),"",IF(ISNA(VLOOKUP(B150,LookupTables!F$4:F$13,1,FALSE)),1,0)) -> 0 | P150: =IF(ISBLANK(E150),"",(E150-E157)/(B150-B157)) -> -0.02203658905 | Q150: 0.01
A151: Main | B151: 29468.52 | C151: 5 YR | D151: 473.2 | E151: 5776.98 | F151: 5785.24 | H151: 5785.24 | I151: 2e-06 | J151: 0.17 | K151: 6.08 | L151: 455.73 | M151: 455.73 | N151: =IF(ISBLANK(B151),"",INDEX(LookupTables!B$4:B$13,MATCH(B151,LookupTables!D$4:D$13,-1))) -> 2 | O151: =IF(ISBLANK(B151),"",IF(ISNA(VLOOKUP(B151,LookupTables!F$4:F$13,1,FALSE)),1,0)) -> 0 | P151: -0.02203658905 | Q151: 0.01
A152: Main | B152: 29468.52 | C152: 10 YR | D152: 557 | E152: 5776.98 | F152: 5785.41 | H152: 5785.41 | I152: 3e-06 | J152: 0.2 | K152: 6.22 | L152: 458.02 | M152: 458.02 | N152: =IF(ISBLANK(B152),"",INDEX(LookupTables!B$4:B$13,MATCH(B152,LookupTables!D$4:D$13,-1))) -> 2 | O152: =IF(ISBLANK(B152),"",IF(ISNA(VLOOKUP(B152,LookupTables!F$4:F$13,1,FALSE)),1,0)) -> 0 | P152: -0.02203658905 | Q152: 0.01
A153: Main | B153: 29468.52 | C153: 25 YR | D153: 688.1 | E153: 5776.98 | F153: 5785.62 | H153: 5785.62 | I153: 4e-06 | J153: 0.23 | K153: 6.39 | L153: 460.94 | M153: 460.94 | N153: =IF(ISBLANK(B153),"",INDEX(LookupTables!B$4:B$13,MATCH(B153,LookupTables!D$4:D$13,-1))) -> 2 | O153: =IF(ISBLANK(B153),"",IF(ISNA(VLOOKUP(B153,LookupTables!F$4:F$13,1,FALSE)),1,0)) -> 0 | P153: -0.02203658905 | Q153: 0.02
A154: Main | B154: 29468.52 | C154: 50 YR | D154: 764.6 | E154: 5776.98 | F154: 5785.73 | H154: 5785.73 | I154: 4e-06 | J154: 0.26 | K154: 6.42 | L154: 466.63 | M154: 462.14 | N154: =IF(ISBLANK(B154),"",INDEX(LookupTables!B$4:B$13,MATCH(B154,LookupTables!D$4:D$13,-1))) -> 2 | O154: =IF(ISBLANK(B154),"",IF(ISNA(VLOOKUP(B154,LookupTables!F$4:F$13,1,FALSE)),1,0)) -> 0 | P154: -0.02203658905 | Q154: 0.02
A155: Main | B155: 29468.52 | C155: 100 YR | D155: 837 | E155: 5776.98 | F155: 5785.83 | H155: 5785.83 | I155: 5e-06 | J155: 0.28 | K155: 6.38 | L155: 476.97 | M155: 462.83 | N155: =IF(ISBLANK(B155),"",INDEX(LookupTables!B$4:B$13,MATCH(B155,LookupTables!D$4:D$13,-1))) -> 2 | O155: =IF(ISBLANK(B155),"",IF(ISNA(VLOOKUP(B155,LookupTables!F$4:F$13,1,FALSE)),1,0)) -> 0 | P155: -0.02203658905 | Q155: 0.02
N156: =IF(ISBLANK(B156),"",INDEX(LookupTables!B$4:B$13,MATCH(B156,LookupTables!D$4:D$13,-1))) ->  | O156: =IF(ISBLANK(B156),"",IF(ISNA(VLOOKUP(B156,LookupTables!F$4:F$13,1,FALSE)),1,0)) -> 
A157: Main | B157: 29203.96 | C157: 2 YR | D157: 301 | E157: 5782.81 | F157: 5784.43 | G157: 5784.42 | H157: 5784.8 | I157: 0.026978 | J157: 4.9 | K157: 0.78 | L157: 79.08 | M157: 79.08 | N157: =IF(ISBLANK(B157),"",INDEX(LookupTables!B$4:B$13,MATCH(B157,LookupTables!D$4:D$13,-1))) -> 2 | O157: =IF(ISBLANK(B157),"",IF(ISNA(VLOOKUP(B157,LookupTables!F$4:F$13,1,FALSE)),1,0)) -> 0 | P157: 0.01936113394 | Q157: 0.98
A158: Main | B158: 29203.96 | C158: 5 YR | D158: 473.2 | E158: 5782.81 | F158: 5784.75 | G158: 5784.72 | H158: 5785.2 | I158: 0.023052 | J158: 5.37 | K158: 1 | L158: 88.17 | M158: 88.17 | N158: =IF(ISBLANK(B158),"",INDEX(LookupTables!B$4:B$13,MATCH(B158,LookupTables!D$4:D$13,-1))) -> 2 | O158: =IF(ISBLANK(B158),"",IF(ISNA(VLOOKUP(B158,LookupTables!F$4:F$13,1,FALSE)),1,0)) -> 0 | P158: 0.01936113394 | Q158: 0.95
A159: Main | B159: 29203.96 | C159: 10 YR | D159: 557 | E159: 5782.81 | F159: 5784.92 | G159: 5784.86 | H159: 5785.36 | I159: 0.022173 | J159: 5.37 | K159: 1.03 | L159: 100.77 | M159: 100.77 | N159: =IF(ISBLANK(B159),"",INDEX(LookupTables!B$4:B$13,MATCH(B159,LookupTables!D$4:D$13,-1))) -> 2 | O159: =IF(ISBLANK(B159),"",IF(ISNA(VLOOKUP(B159,LookupTables!F$4:F$13,1,FALSE)),1,0)) -> 0 | P159: 0.01936113394 | Q159: 0.93
A160: Main | B160: 29203.96 | C160: 25 YR | D160: 688.1 | E160: 5782.81 | F160: 5785.14 | G160: 5785.11 | H160: 5785.58 | I160: 0.022667 | J160: 5.28 | K160: 0.99 | L160: 131.98 | M160: 131.98 | N160: =IF(ISBLANK(B160),"",INDEX(LookupTables!B$4:B$13,MATCH(B160,LookupTables!D$4:D$13,-1))) -> 2 | O160: =IF(ISBLANK(B160),"",IF(ISNA(VLOOKUP(B160,LookupTables!F$4:F$13,1,FALSE)),1,0)) -> 0 | P160: 0.01936113394 | Q160: 0.94
A161: Main | B161: 29203.96 | C161: 50 YR | D161: 764.6 | E161: 5782.81 | F161: 5785.22 | G161: 5785.19 | H161: 5785.68 | I161: 0.021942 | J161: 5.43 | K161: 1.06 | L161: 133.45 | M161: 133.45 | N161: =IF(ISBLANK(B161),"",INDEX(LookupTables!B$4:B$13,MATCH(B161,LookupTables!D$4:D$13,-1))) -> 2 | O161: =IF(ISBLANK(B161),"",IF(ISNA(VLOOKUP(B161,LookupTables!F$4:F$13,1,FALSE)),1,0)) -> 0 | P161: 0.01936113394 | Q161: 0.93
A162: Main | B162: 29203.96 | C162: 100 YR | D162: 837 | E162: 5782.81 | F162: 5785.35 | G162: 5785.24 | H162: 5785.79 | I162: 0.018327 | J162: 5.29 | K162: 1.16 | L162: 135.82 | M162: 135.82 | N162: =IF(ISBLANK(B162),"",INDEX(LookupTables!B$4:B$13,MATCH(B162,LookupTables!D$4:D$13,-1))) -> 2 | O162: =IF(ISBLANK(B162),"",IF(ISNA(VLOOKUP(B162,LookupTables!F$4:F$13,1,FALSE)),1,0)) -> 0 | P162: 0.01936113394 | Q162: 0.86
N163: =IF(ISBLANK(B163),"",INDEX(LookupTables!B$4:B$13,MATCH(B163,LookupTables!D$4:D$13,-1))) ->  | O163: =IF(ISBLANK(B163),"",IF(ISNA(VLOOKUP(B163,LookupTables!F$4:F$13,1,FALSE)),1,0)) -> 
A164: Main | B164: 29009.24 | C164: 2 YR | D164: 301 | E164: 5779.04 | F164: 5780.89 | G164: 5780.75 | H164: 5781.29 | I164: 0.013163 | J164: 5.9 | K164: 1.06 | L164: 65.77 | M164: 18.84 | N164: =IF(ISBLANK(B164),"",INDEX(LookupTables!B$4:B$13,MATCH(B164,LookupTables!D$4:D$13,-1))) -> 2 | O164: =IF(ISBLANK(B164),"",IF(ISNA(VLOOKUP(B164,LookupTables!F$4:F$13,1,FALSE)),1,0)) -> 1 | P164: 0.01584306762 | Q164: 0.79
A165: Main | B165: 29009.24 | C165: 5 YR | D165: 473.2 | E165: 5779.04 | F165: 5781.28 | G165: 5781.27 | H165: 5781.78 | I165: 0.014028 | J165: 6.96 | K165: 1.06 | L165: 97.18 | M165: 18.84 | N165: =IF(ISBLANK(B165),"",INDEX(LookupTables!B$4:B$13,MATCH(B165,LookupTables!D$4:D$13,-1))) -> 2 | O165: =IF(ISBLANK(B165),"",IF(ISNA(VLOOKUP(B165,LookupTables!F$4:F$13,1,FALSE)),1,0)) -> 1 | P165: 0.01584306762 | Q165: 0.84
A166: Main | B166: 29009.24 | C166: 10 YR | D166: 557 | E166: 5779.04 | F166: 5781.41 | G166: 5781.41 | H166: 5781.95 | I166: 0.014427 | J166: 7.34 | K166: 1.14 | L166: 101.45 | M166: 18.84 | N166: =IF(ISBLANK(B166),"",INDEX(LookupTables!B$4:B$13,MATCH(B166,LookupTables!D$4:D$13,-1))) -> 2 | O166: =IF(ISBLANK(B166),"",IF(ISNA(VLOOKUP(B166,LookupTables!F$4:F$13,1,FALSE)),1,0)) -> 1 | P166: 0.01584306762 | Q166: 0.86
A167: Main | B167: 29009.24 | C167: 25 YR | D167: 688.1 | E167: 5779.04 | F167: 5781.62 | G167: 5781.62 | H167: 5782.19 | I167: 0.013992 | J167: 7.67 | K167: 1.26 | L167: 109.74 | M167: 18.84 | N167: =IF(ISBLANK(B167),"",INDEX(LookupTables!B$4:B$13,MATCH(B167,LookupTables!D$4:D$13,-1))) -> 2 | O167: =IF(ISBLANK(B167),"",IF(ISNA(VLOOKUP(B167,LookupTables!F$4:F$13,1,FALSE)),1,0)) -> 1 | P167: 0.01584306762 | Q167: 0.86
A168: Main | B168: 29009.24 | C168: 50 YR | D168: 764.6 | E168: 5779.04 | F168: 5781.71 | G168: 5781.71 | H168: 5782.32 | I168: 0.01422 | J168: 7.93 | K168: 1.2 | L168: 124.41 | M168: 18.84 | N168: =IF(ISBLANK(B168),"",INDEX(LookupTables!B$4:B$13,MATCH(B168,LookupTables!D$4:D$13,-1))) -> 2 | O168: =IF(ISBLANK(B168),"",IF(ISNA(VLOOKUP(B168,LookupTables!F$4:F$13,1,FALSE)),1,0)) -> 1 | P168: 0.01584306762 | Q168: 0.87
A169: Main | B169: 29009.24 | C169: 100 YR | D169: 837 | E169: 5779.04 | F169: 5781.73 | G169: 5781.73 | H169: 5782.43 | I169: 0.016398 | J169: 8.56 | K169: 1.19 | L169: 127.38 | M169: 18.84 | N169: =IF(ISBLANK(B169),"",INDEX(LookupTables!B$4:B$13,MATCH(B169,LookupTables!D$4:D$13,-1))) -> 2 | O169: =IF(ISBLANK(B169),"",IF(ISNA(VLOOKUP(B169,LookupTables!F$4:F$13,1,FALSE)),1,0)) -> 1 | P169: 0.01584306762 | Q169: 0.94
N170: =IF(ISBLANK(B170),"",INDEX(LookupTables!B$4:B$13,MATCH(B170,LookupTables!D$4:D$13,-1))) ->  | O170: =IF(ISBLANK(B170),"",IF(ISNA(VLOOKUP(B170,LookupTables!F$4:F$13,1,FALSE)),1,0)) -> 
A171: Main | B171: 28648.83 | C171: 2 YR | D171: 301 | E171: 5773.33 | F171: 5774.71 | G171: 5774.67 | H171: 5775.06 | I171: 0.024208 | J171: 4.77 | K171: 0.81 | L171: 78.08 | M171: 78.08 | N171: =IF(ISBLANK(B171),"",INDEX(LookupTables!B$4:B$13,MATCH(B171,LookupTables!D$4:D$13,-1))) -> 2 | O171: =IF(ISBLANK(B171),"",IF(ISNA(VLOOKUP(B171,LookupTables!F$4:F$13,1,FALSE)),1,0)) -> 1 | P171: 0.02295449092 | Q171: 0.94
A172: Main | B172: 28648.83 | C172: 5 YR | D172: 473.2 | E172: 5773.33 | F172: 5774.99 | G172: 5774.97 | H172: 5775.46 | I172: 0.023164 | J172: 5.53 | K172: 1.04 | L172: 82.21 | M172: 82.21 | N172: =IF(ISBLANK(B172),"",INDEX(LookupTables!B$4:B$13,MATCH(B172,LookupTables!D$4:D$13,-1))) -> 2 | O172: =IF(ISBLANK(B172),"",IF(ISNA(VLOOKUP(B172,LookupTables!F$4:F$13,1,FALSE)),1,0)) -> 1 | P172: 0.02295449092 | Q172: 0.95
A173: Main | B173: 28648.83 | C173: 10 YR | D173: 557 | E173: 5773.33 | F173: 5775.12 | G173: 5775.09 | H173: 5775.63 | I173: 0.022245 | J173: 5.77 | K173: 1.15 | L173: 84.12 | M173: 84.12 | N173: =IF(ISBLANK(B173),"",INDEX(LookupTables!B$4:B$13,MATCH(B173,LookupTables!D$4:D$13,-1))) -> 2 | O173: =IF(ISBLANK(B173),"",IF(ISNA(VLOOKUP(B173,LookupTables!F$4:F$13,1,FALSE)),1,0)) -> 1 | P173: 0.02295449092 | Q173: 0.95
A174: Main | B174: 28648.83 | C174: 25 YR | D174: 688.1 | E174: 5773.33 | F174: 5775.29 | G174: 5775.23 | H174: 5775.88 | I174: 0.021774 | J174: 6.17 | K174: 1.29 | L174: 86.69 | M174: 86.69 | N174: =IF(ISBLANK(B174),"",INDEX(LookupTables!B$4:B$13,MATCH(B174,LookupTables!D$4:D$13,-1))) -> 2 | O174: =IF(ISBLANK(B174),"",IF(ISNA(VLOOKUP(B174,LookupTables!F$4:F$13,1,FALSE)),1,0)) -> 1 | P174: 0.02295449092 | Q174: 0.96
A175: Main | B175: 28648.83 | C175: 50 YR | D175: 764.6 | E175: 5773.33 | F175: 5775.41 | G175: 5775.37 | H175: 5776.02 | I175: 0.02065 | J175: 6.28 | K175: 1.38 | L175: 88.37 | M175: 88.37 | N175: =IF(ISBLANK(B175),"",INDEX(LookupTables!B$4:B$13,MATCH(B175,LookupTables!D$4:D$13,-1))) -> 2 | O175: =IF(ISBLANK(B175),"",IF(ISNA(VLOOKUP(B175,LookupTables!F$4:F$13,1,FALSE)),1,0)) -> 1 | P175: 0.02295449092 | Q175: 0.94
A176: Main | B176: 28648.83 | C176: 100 YR | D176: 837 | E176: 5773.33 | F176: 5775.64 | G176: 5775.45 | H176: 5776.17 | I176: 0.015418 | J176: 5.85 | K176: 1.26 | L176: 114.8 | M176: 92.68 | N176: =IF(ISBLANK(B176),"",INDEX(LookupTables!B$4:B$13,MATCH(B176,LookupTables!D$4:D$13,-1))) -> 2 | O176: =IF(ISBLANK(B176),"",IF(ISNA(VLOOKUP(B176,LookupTables!F$4:F$13,1,FALSE)),1,0)) -> 1 | P176: 0.02295449092 | Q176: 0.83
N177: =IF(ISBLANK(B177),"",INDEX(LookupTables!B$4:B$13,MATCH(B177,LookupTables!D$4:D$13,-1))) ->  | O177: =IF(ISBLANK(B177),"",IF(ISNA(VLOOKUP(B177,LookupTables!F$4:F$13,1,FALSE)),1,0)) -> 
A178: Main | B178: 28523.8 | C178: 2 YR | D178: 301 | E178: 5770.46 | F178: 5772.56 | G178: 5772.31 | H178: 5772.81 | I178: 0.013657 | J178: 4 | K178: 0.95 | L178: 78.84 | M178: 78.84 | N178: =IF(ISBLANK(B178),"",INDEX(LookupTables!B$4:B$13,MATCH(B178,LookupTables!D$4:D$13,-1))) -> 2 | O178: =IF(ISBLANK(B178),"",IF(ISNA(VLOOKUP(B178,LookupTables!F$4:F$13,1,FALSE)),1,0)) -> 1 | P178: 0.0185770751 | Q178: 0.72
A179: Main | B179: 28523.8 | C179: 5 YR | D179: 473.2 | E179: 5770.46 | F179: 5772.86 | G179: 5772.66 | H179: 5773.21 | I179: 0.014023 | J179: 4.75 | K179: 1.21 | L179: 82.26 | M179: 82.26 | N179: =IF(ISBLANK(B179),"",INDEX(LookupTables!B$4:B$13,MATCH(B179,LookupTables!D$4:D$13,-1))) -> 2 | O179: =IF(ISBLANK(B179),"",IF(ISNA(VLOOKUP(B179,LookupTables!F$4:F$13,1,FALSE)),1,0)) -> 1 | P179: 0.0185770751 | Q179: 0.76
A180: Main | B180: 28523.8 | C180: 10 YR | D180: 557 | E180: 5770.46 | F180: 5772.98 | G180: 5772.78 | H180: 5773.38 | I180: 0.014527 | J180: 5.09 | K180: 1.31 | L180: 83.61 | M180: 83.61 | N180: =IF(ISBLANK(B180),"",INDEX(LookupTables!B$4:B$13,MATCH(B180,LookupTables!D$4:D$13,-1))) -> 2 | O180: =IF(ISBLANK(B180),"",IF(ISNA(VLOOKUP(B180,LookupTables!F$4:F$13,1,FALSE)),1,0)) -> 1 | P180: 0.0185770751 | Q180: 0.78
A181: Main | B181: 28523.8 | C181: 25 YR | D181: 688.1 | E181: 5770.46 | F181: 5773.15 | G181: 5772.96 | H181: 5773.63 | I181: 0.014766 | J181: 5.54 | K181: 1.42 | L181: 87.84 | M181: 84.59 | N181: =IF(ISBLANK(B181),"",INDEX(LookupTables!B$4:B$13,MATCH(B181,LookupTables!D$4:D$13,-1))) -> 2 | O181: =IF(ISBLANK(B181),"",IF(ISNA(VLOOKUP(B181,LookupTables!F$4:F$13,1,FALSE)),1,0)) -> 1 | P181: 0.0185770751 | Q181: 0.81
A182: Main | B182: 28523.8 | C182: 50 YR | D182: 764.6 | E182: 5770.46 | F182: 5773.22 | G182: 5773.06 | H182: 5773.76 | I182: 0.015715 | J182: 5.88 | K182: 1.46 | L182: 89.13 | M182: 84.92 | N182: =IF(ISBLANK(B182),"",INDEX(LookupTables!B$4:B$13,MATCH(B182,LookupTables!D$4:D$13,-1))) -> 2 | O182: =IF(ISBLANK(B182),"",IF(ISNA(VLOOKUP(B182,LookupTables!F$4:F$13,1,FALSE)),1,0)) -> 1 | P182: 0.0185770751 | Q182: 0.84
A183: Main | B183: 28523.8 | C183: 100 YR | D183: 837 | E183: 5770.46 | F183: 5773.14 | G183: 5773.14 | H183: 5773.86 | I183: 0.022325 | J183: 6.78 | K183: 1.41 | L183: 87.62 | M183: 84.54 | N183: =IF(ISBLANK(B183),"",INDEX(LookupTables!B$4:B$13,MATCH(B183,LookupTables!D$4:D$13,-1))) -> 2 | O183: =IF(ISBLANK(B183),"",IF(ISNA(VLOOKUP(B183,LookupTables!F$4:F$13,1,FALSE)),1,0)) -> 1 | P183: 0.0185770751 | Q183: 0.99
N184: =IF(ISBLANK(B184),"",INDEX(LookupTables!B$4:B$13,MATCH(B184,LookupTables!D$4:D$13,-1))) ->  | O184: =IF(ISBLANK(B184),"",IF(ISNA(VLOOKUP(B184,LookupTables!F$4:F$13,1,FALSE)),1,0)) -> 
A185: Main | B185: 28346.7 | C185: 2 YR | D185: 301 | E185: 5767.17 | F185: 5769.05 | G185: 5769.05 | H185: 5769.5 | I185: 0.026829 | J185: 5.4 | K185: 0.9 | L185: 61.69 | M185: 61.69 | N185: =IF(ISBLANK(B185),"",INDEX(LookupTables!B$4:B$13,MATCH(B185,LookupTables!D$4:D$13,-1))) -> 2 | O185: =IF(ISBLANK(B185),"",IF(ISNA(VLOOKUP(B185,LookupTables!F$4:F$13,1,FALSE)),1,0)) -> 1 | P185: 0.01677624122 | Q185: 1
A186: Main | B186: 28346.7 | C186: 5 YR | D186: 473.2 | E186: 5767.17 | F186: 5769.46 | G186: 5769.46 | H186: 5769.88 | I186: 0.026365 | J186: 5.24 | K186: 0.87 | L186: 103.49 | M186: 103.49 | N186: =IF(ISBLANK(B186),"",INDEX(LookupTables!B$4:B$13,MATCH(B186,LookupTables!D$4:D$13,-1))) -> 2 | O186: =IF(ISBLANK(B186),"",IF(ISNA(VLOOKUP(B186,LookupTables!F$4:F$13,1,FALSE)),1,0)) -> 1 | P186: 0.01677624122 | Q186: 0.99
A187: Main | B187: 28346.7 | C187: 10 YR | D187: 557 | E187: 5767.17 | F187: 5769.56 | G187: 5769.56 | H187: 5770.03 | I187: 0.025369 | J187: 5.48 | K187: 0.96 | L187: 105.5 | M187: 105.5 | N187: =IF(ISBLANK(B187),"",INDEX(LookupTables!B$4:B$13,MATCH(B187,LookupTables!D$4:D$13,-1))) -> 2 | O187: =IF(ISBLANK(B187),"",IF(ISNA(VLOOKUP(B187,LookupTables!F$4:F$13,1,FALSE)),1,0)) -> 1 | P187: 0.01677624122 | Q187: 0.98
A188: Main | B188: 28346.7 | C188: 25 YR | D188: 688.1 | E188: 5767.17 | F188: 5769.7 | G188: 5769.7 | H188: 5770.25 | I188: 0.025409 | J188: 5.91 | K188: 1.08 | L188: 108.09 | M188: 108.09 | N188: =IF(ISBLANK(B188),"",INDEX(LookupTables!B$4:B$13,MATCH(B188,LookupTables!D$4:D$13,-1))) -> 2 | O188: =IF(ISBLANK(B188),"",IF(ISNA(VLOOKUP(B188,LookupTables!F$4:F$13,1,FALSE)),1,0)) -> 1 | P188: 0.01677624122 | Q188: 1
A189: Main | B189: 28346.7 | C189: 50 YR | D189: 764.6 | E189: 5767.17 | F189: 5769.81 | G189: 5769.81 | H189: 5770.36 | I189: 0.023719 | J189: 6 | K189: 1.16 | L189: 109.99 | M189: 109.99 | N189: =IF(ISBLANK(B189),"",INDEX(LookupTables!B$4:B$13,MATCH(B189,LookupTables!D$4:D$13,-1))) -> 2 | O189: =IF(ISBLANK(B189),"",IF(ISNA(VLOOKUP(B189,LookupTables!F$4:F$13,1,FALSE)),1,0)) -> 1 | P189: 0.01677624122 | Q189: 0.98
A190: Main | B190: 28346.7 | C190: 100 YR | D190: 837 | E190: 5767.17 | F190: 5770.06 | G190: 5769.88 | H190: 5770.51 | I190: 0.01534 | J190: 5.37 | K190: 1.36 | L190: 114.73 | M190: 114.73 | N190: =IF(ISBLANK(B190),"",INDEX(LookupTables!B$4:B$13,MATCH(B190,LookupTables!D$4:D$13,-1))) -> 2 | O190: =IF(ISBLANK(B190),"",IF(ISNA(VLOOKUP(B190,LookupTables!F$4:F$13,1,FALSE)),1,0)) -> 1 | P190: 0.01677624122 | Q190: 0.81
N191: =IF(ISBLANK(B191),"",INDEX(LookupTables!B$4:B$13,MATCH(B191,LookupTables!D$4:D$13,-1))) ->  | O191: =IF(ISBLANK(B191),"",IF(ISNA(VLOOKUP(B191,LookupTables!F$4:F$13,1,FALSE)),1,0)) -> 
A192: Main | B192: 28126.15 | C192: 2 YR | D192: 301 | E192: 5763.47 | F192: 5765.76 | H192: 5765.99 | I192: 0.009098 | J192: 3.86 | K192: 1.23 | L192: 63.47 | M192: 63.47 | N192: =IF(ISBLANK(B192),"",INDEX(LookupTables!B$4:B$13,MATCH(B192,LookupTables!D$4:D$13,-1))) -> 2 | O192: =IF(ISBLANK(B192),"",IF(ISNA(VLOOKUP(B192,LookupTables!F$4:F$13,1,FALSE)),1,0)) -> 1 | P192: 0.01575952872 | Q192: 0.61
A193: Main | B193: 28126.15 | C193: 5 YR | D193: 473.2 | E193: 5763.47 | F193: 5766.23 | H193: 5766.51 | I193: 0.008664 | J193: 4.25 | K193: 1.47 | L193: 75.71 | M193: 75.71 | N193: =IF(ISBLANK(B193),"",INDEX(LookupTables!B$4:B$13,MATCH(B193,LookupTables!D$4:D$13,-1))) -> 2 | O193: =IF(ISBLANK(B193),"",IF(ISNA(VLOOKUP(B193,LookupTables!F$4:F$13,1,FALSE)),1,0)) -> 1 | P193: 0.01575952872 | Q193: 0.62
A194: Main | B194: 28126.15 | C194: 10 YR | D194: 557 | E194: 5763.47 | F194: 5766.42 | H194: 5766.72 | I194: 0.00844 | J194: 4.42 | K194: 1.59 | L194: 79.27 | M194: 79.27 | N194: =IF(ISBLANK(B194),"",INDEX(LookupTables!B$4:B$13,MATCH(B194,LookupTables!D$4:D$13,-1))) -> 2 | O194: =IF(ISBLANK(B194),"",IF(ISNA(VLOOKUP(B194,LookupTables!F$4:F$13,1,FALSE)),1,0)) -> 1 | P194: 0.01575952872 | Q194: 0.62
A195: Main | B195: 28126.15 | C195: 25 YR | D195: 688.1 | E195: 5763.47 | F195: 5766.69 | H195: 5767.02 | I195: 0.008169 | J195: 4.65 | K195: 1.62 | L195: 91.29 | M195: 84.17 | N195: =IF(ISBLANK(B195),"",INDEX(LookupTables!B$4:B$13,MATCH(B195,LookupTables!D$4:D$13,-1))) -> 2 | O195: =IF(ISBLANK(B195),"",IF(ISNA(VLOOKUP(B195,LookupTables!F$4:F$13,1,FALSE)),1,0)) -> 1 | P195: 0.01575952872 | Q195: 0.62
A196: Main | B196: 28126.15 | C196: 50 YR | D196: 764.6 | E196: 5763.47 | F196: 5766.79 | H196: 5767.16 | I196: 0.008447 | J196: 4.88 | K196: 1.54 | L196: 102.6 | M196: 84.71 | N196: =IF(ISBLANK(B196),"",INDEX(LookupTables!B$4:B$13,MATCH(B196,LookupTables!D$4:D$13,-1))) -> 2 | O196: =IF(ISBLANK(B196),"",IF(ISNA(VLOOKUP(B196,LookupTables!F$4:F$13,1,FALSE)),1,0)) -> 1 | P196: =IF(ISBLANK(E196),"",(E196-E203)/(B196-B203)) -> 0.01575952872 | Q196: 0.63
A197: Main | B197: 28126.15 | C197: 100 YR | D197: 837 | E197: 5763.47 | F197: 5766.55 | H197: 5767.13 | I197: 0.015181 | J197: 6.12 | K197: 1.67 | L197: 81.74 | M197: 81.74 | N197: =IF(ISBLANK(B197),"",INDEX(LookupTables!B$4:B$13,MATCH(B197,LookupTables!D$4:D$13,-1))) -> 2 | O197: =IF(ISBLANK(B197),"",IF(ISNA(VLOOKUP(B197,LookupTables!F$4:F$13,1,FALSE)),1,0)) -> 1 | P197: 0.01575952872 | Q197: 0.83
N198: =IF(ISBLANK(B198),"",INDEX(LookupTables!B$4:B$13,MATCH(B198,LookupTables!D$4:D$13,-1))) ->  | O198: =IF(ISBLANK(B198),"",IF(ISNA(VLOOKUP(B198,LookupTables!F$4:F$13,1,FALSE)),1,0)) -> 
A199: Main | B199: 27927.54 | C199: 2 YR | D199: 301 | E199: 5760.34 | F199: 5762.51 | G199: 5762.51 | H199: 5763.17 | I199: 0.024242 | J199: 6.54 | K199: 1.31 | L199: 35.25 | M199: 35.25 | N199: =IF(ISBLANK(B199),"",INDEX(LookupTables!B$4:B$13,MATCH(B199,LookupTables!D$4:D$13,-1))) -> 2 | O199: =IF(ISBLANK(B199),"",IF(ISNA(VLOOKUP(B199,LookupTables!F$4:F$13,1,FALSE)),1,0)) -> 1 | P199: 0.01853333333 | Q199: 1.01
A200: Main | B200: 27927.54 | C200: 5 YR | D200: 473.2 | E200: 5760.34 | F200: 5763.03 | G200: 5763.03 | H200: 5763.83 | I200: 0.02273 | J200: 7.18 | K200: 1.58 | L200: 41.8 | M200: 41.8 | N200: =IF(ISBLANK(B200),"",INDEX(LookupTables!B$4:B$13,MATCH(B200,LookupTables!D$4:D$13,-1))) -> 2 | O200: =IF(ISBLANK(B200),"",IF(ISNA(VLOOKUP(B200,LookupTables!F$4:F$13,1,FALSE)),1,0)) -> 1 | P200: 0.01853333333 | Q200: 1.01
... 574 more rows

Sheet Reach Avg Hyd
A1: Reach-Averaged Hydraulics
A2: Cross-sections that were within the hydraulic influence of crossings, inline structures, etc. were excluded from the averaging below.
A4: Reach | B4: Event | C4: Hyd. Depth | D4: Chan Vel. | E4: Chan Top W | F4: Top W (tot) | G4: WSEL | H4: Sf | I4: So | J4: Froude
B5: Freq. (yr) | C5: (ft) | D5: (fps) | E5: (ft) | F5: (ft) | G5: (ft) | H5: (ft/ft) | I5: (ft/ft) | J5: No.
A6: 0 | B6: 2 YR | C6: =AVERAGEIFS(RAS!K$3:K$775,RAS!$C$3:$C$775,$B6,RAS!$N$3:$N$775,$A6,RAS!$O$3:$O$775,1) -> 0.5441666667 | D6: =AVERAGEIFS(RAS!J$3:J$775,RAS!$C$3:$C$775,$B6,RAS!$N$3:$N$775,$A6,RAS!$O$3:$O$775,1) -> 3.545 | E6: =AVERAGEIFS(RAS!M$3:M$775,RAS!$C$3:$C$775,$B6,RAS!$N$3:$N$775,$A6,RAS!$O$3:$O$775,1) -> 26.13666667 | F6: =AVERAGEIFS(RAS!L$3:L$775,RAS!$C$3:$C$775,$B6,RAS!$N$3:$N$775,$A6,RAS!$O$3:$O$775,1) -> 241.24 | G6: =AVERAGEIFS(RAS!F$3:F$775,RAS!$C$3:$C$775,$B6,RAS!$N$3:$N$775,$A6,RAS!$O$3:$O$775,1) -> 5940.0925 | H6: =AVERAGEIFS(RAS!I$3:I$775,RAS!$C$3:$C$775,$B6,RAS!$N$3:$N$775,$A6,RAS!$O$3:$O$775,1) -> 0.02235508333 | I6: =AVERAGEIFS(RAS!P$3:P$775,RAS!N$3:N$775,A6,RAS!C$3:C$775,B6,RAS!O$3:O$775,1) -> 0.01409085867 | J6: =AVERAGEIFS(RAS!Q$3:Q$775,RAS!N$3:N$775,A6,RAS!C$3:C$775,B6,RAS!O$3:O$775,1) -> 0.7691666667
A7: =IF(B7="2 YR",A6+1,A6) -> 0 | B7: 5 YR | C7: =AVERAGEIFS(RAS!K$3:K$775,RAS!$C$3:$C$775,$B7,RAS!$N$3:$N$775,$A7,RAS!$O$3:$O$775,1) -> 0.6141666667 | D7: =AVERAGEIFS(RAS!J$3:J$775,RAS!$C$3:$C$775,$B7,RAS!$N$3:$N$775,$A7,RAS!$O$3:$O$775,1) -> 3.900833333 | E7: =AVERAGEIFS(RAS!M$3:M$775,RAS!$C$3:$C$775,$B7,RAS!$N$3:$N$775,$A7,RAS!$O$3:$O$775,1) -> 26.13666667 | F7: =AVERAGEIFS(RAS!L$3:L$775,RAS!$C$3:$C$775,$B7,RAS!$N$3:$N$775,$A7,RAS!$O$3:$O$775,1) -> 300.2441667 | G7: =AVERAGEIFS(RAS!F$3:F$775,RAS!$C$3:$C$775,$B7,RAS!$N$3:$N$775,$A7,RAS!$O$3:$O$775,1) -> 5940.310833 | H7: =AVERAGEIFS(RAS!I$3:I$775,RAS!$C$3:$C$775,$B7,RAS!$N$3:$N$775,$A7,RAS!$O$3:$O$775,1) -> 0.01905008333 | I7: =AVERAGEIFS(RAS!P$3:P$775,RAS!N$3:N$775,A7,RAS!C$3:C$775,B7,RAS!O$3:O$775,1) -> 0.01409085867 | J7: =AVERAGEIFS(RAS!Q$3:Q$775,RAS!N$3:N$775,A7,RAS!C$3:C$775,B7,RAS!O$3:O$775,1) -> 0.7516666667
A8: =IF(B8="2 YR",A7+1,A7) -> 0 | B8: 10 YR | C8: =AVERAGEIFS(RAS!K$3:K$775,RAS!$C$3:$C$775,$B8,RAS!$N$3:$N$775,$A8,RAS!$O$3:$O$775,1) -> 0.6816666667 | D8: =AVERAGEIFS(RAS!J$3:J$775,RAS!$C$3:$C$775,$B8,RAS!$N$3:$N$775,$A8,RAS!$O$3:$O$775,1) -> 4.136666667 | E8: =AVERAGEIFS(RAS!M$3:M$775,RAS!$C$3:$C$775,$B8,RAS!$N$3:$N$775,$A8,RAS!$O$3:$O$775,1) -> 26.13666667 | F8: =AVERAGEIFS(RAS!L$3:L$775,RAS!$C$3:$C$775,$B8,RAS!$N$3:$N$775,$A8,RAS!$O$3:$O$775,1) -> 335.16 | G8: =AVERAGEIFS(RAS!F$3:F$775,RAS!$C$3:$C$775,$B8,RAS!$N$3:$N$775,$A8,RAS!$O$3:$O$775,1) -> 5940.444167 | H8: =AVERAGEIFS(RAS!I$3:I$775,RAS!$C$3:$C$775,$B8,RAS!$N$3:$N$775,$A8,RAS!$O$3:$O$775,1) -> 0.01859891667 | I8: =AVERAGEIFS(RAS!P$3:P$775,RAS!N$3:N$775,A8,RAS!C$3:C$775,B8,RAS!O$3:O$775,1) -> 0.01409085867 | J8: =AVERAGEIFS(RAS!Q$3:Q$775,RAS!N$3:N$775,A8,RAS!C$3:C$775,B8,RAS!O$3:O$775,1) -> 0.755
A9: 0 | B9: 25 YR | C9: =AVERAGEIFS(RAS!K$3:K$775,RAS!$C$3:$C$775,$B9,RAS!$N$3:$N$775,$A9,RAS!$O$3:$O$775,1) -> 0.765 | D9: =AVERAGEIFS(RAS!J$3:J$775,RAS!$C$3:$C$775,$B9,RAS!$N$3:$N$775,$A9,RAS!$O$3:$O$775,1) -> 4.3675 | E9: =AVERAGEIFS(RAS!M$3:M$775,RAS!$C$3:$C$775,$B9,RAS!$N$3:$N$775,$A9,RAS!$O$3:$O$775,1) -> 26.13666667 | F9: =AVERAGEIFS(RAS!L$3:L$775,RAS!$C$3:$C$775,$B9,RAS!$N$3:$N$775,$A9,RAS!$O$3:$O$775,1) -> 379.1216667 | G9: =AVERAGEIFS(RAS!F$3:F$775,RAS!$C$3:$C$775,$B9,RAS!$N$3:$N$775,$A9,RAS!$O$3:$O$775,1) -> 5940.5975 | H9: =AVERAGEIFS(RAS!I$3:I$775,RAS!$C$3:$C$775,$B9,RAS!$N$3:$N$775,$A9,RAS!$O$3:$O$775,1) -> 0.018753 | I9: =AVERAGEIFS(RAS!P$3:P$775,RAS!N$3:N$775,A9,RAS!C$3:C$775,B9,RAS!O$3:O$775,1) -> 0.01409085867 | J9: =AVERAGEIFS(RAS!Q$3:Q$775,RAS!N$3:N$775,A9,RAS!C$3:C$775,B9,RAS!O$3:O$775,1) -> 0.7591666667
A10: 0 | B10: 50 YR | C10: =AVERAGEIFS(RAS!K$3:K$775,RAS!$C$3:$C$775,$B10,RAS!$N$3:$N$775,$A10,RAS!$O$3:$O$775,1) -> 0.8358333333 | D10: =AVERAGEIFS(RAS!J$3:J$775,RAS!$C$3:$C$775,$B10,RAS!$N$3:$N$775,$A10,RAS!$O$3:$O$775,1) -> 4.575833333 | E10: =AVERAGEIFS(RAS!M$3:M$775,RAS!$C$3:$C$775,$B10,RAS!$N$3:$N$775,$A10,RAS!$O$3:$O$775,1) -> 26.13666667 | F10: =AVERAGEIFS(RAS!L$3:L$775,RAS!$C$3:$C$775,$B10,RAS!$N$3:$N$775,$A10,RAS!$O$3:$O$775,1) -> 395.7058333 | G10: =AVERAGEIFS(RAS!F$3:F$775,RAS!$C$3:$C$775,$B10,RAS!$N$3:$N$775,$A10,RAS!$O$3:$O$775,1) -> 5940.693333 | H10: =AVERAGEIFS(RAS!I$3:I$775,RAS!$C$3:$C$775,$B10,RAS!$N$3:$N$775,$A10,RAS!$O$3:$O$775,1) -> 0.01899541667 | I10: =AVERAGEIFS(RAS!P$3:P$775,RAS!N$3:N$775,A10,RAS!C$3:C$775,B10,RAS!O$3:O$775,1) -> 0.01409085867 | J10: =AVERAGEIFS(RAS!Q$3:Q$775,RAS!N$3:N$775,A10,RAS!C$3:C$775,B10,RAS!O$3:O$775,1) -> 0.7725
A11: 0 | B11: 100 YR | C11: =AVERAGEIFS(RAS!K$3:K$775,RAS!$C$3:$C$775,$B11,RAS!$N$3:$N$775,$A11,RAS!$O$3:$O$775,1) -> 0.905 | D11: =AVERAGEIFS(RAS!J$3:J$775,RAS!$C$3:$C$775,$B11,RAS!$N$3:$N$775,$A11,RAS!$O$3:$O$775,1) -> 4.804166667 | E11: =AVERAGEIFS(RAS!M$3:M$775,RAS!$C$3:$C$775,$B11,RAS!$N$3:$N$775,$A11,RAS!$O$3:$O$775,1) -> 26.13666667 | F11: =AVERAGEIFS(RAS!L$3:L$775,RAS!$C$3:$C$775,$B11,RAS!$N$3:$N$775,$A11,RAS!$O$3:$O$775,1) -> 411.8608333 | G11: =AVERAGEIFS(RAS!F$3:F$775,RAS!$C$3:$C$775,$B11,RAS!$N$3:$N$775,$A11,RAS!$O$3:$O$775,1) -> 5940.7875 | H11: =AVERAGEIFS(RAS!I$3:I$775,RAS!$C$3:$C$775,$B11,RAS!$N$3:$N$775,$A11,RAS!$O$3:$O$775,1) -> 0.01933933333 | I11: =AVERAGEIFS(RAS!P$3:P$775,RAS!N$3:N$775,A11,RAS!C$3:C$775,B11,RAS!O$3:O$775,1) -> 0.01409085867 | J11: =AVERAGEIFS(RAS!Q$3:Q$775,RAS!N$3:N$775,A11,RAS!C$3:C$775,B11,RAS!O$3:O$775,1) -> 0.7875
A12: 1 | B12: 2 YR | C12: =AVERAGEIFS(RAS!K$3:K$775,RAS!$C$3:$C$775,$B12,RAS!$N$3:$N$775,$A12,RAS!$O$3:$O$775,1) -> 1.57 | D12: =AVERAGEIFS(RAS!J$3:J$775,RAS!$C$3:$C$775,$B12,RAS!$N$3:$N$775,$A12,RAS!$O$3:$O$775,1) -> 5.644285714 | E12: =AVERAGEIFS(RAS!M$3:M$775,RAS!$C$3:$C$775,$B12,RAS!$N$3:$N$775,$A12,RAS!$O$3:$O$775,1) -> 104.0885714 | F12: =AVERAGEIFS(RAS!L$3:L$775,RAS!$C$3:$C$775,$B12,RAS!$N$3:$N$775,$A12,RAS!$O$3:$O$775,1) -> 108.94 | G12: =AVERAGEIFS(RAS!F$3:F$775,RAS!$C$3:$C$775,$B12,RAS!$N$3:$N$775,$A12,RAS!$O$3:$O$775,1) -> 5837.552857 | H12: =AVERAGEIFS(RAS!I$3:I$775,RAS!$C$3:$C$775,$B12,RAS!$N$3:$N$775,$A12,RAS!$O$3:$O$775,1) -> 0.01458942857 | I12: =AVERAGEIFS(RAS!P$3:P$775,RAS!N$3:N$775,A12,RAS!C$3:C$775,B12,RAS!O$3:O$775,1) -> 0.01707202247 | J12: =AVERAGEIFS(RAS!Q$3:Q$775,RAS!N$3:N$775,A12,RAS!C$3:C$775,B12,RAS!O$3:O$775,1) -> 0.7871428571
A13: 1 | B13: 5 YR | C13: =AVERAGEIFS(RAS!K$3:K$775,RAS!$C$3:$C$775,$B13,RAS!$N$3:$N$775,$A13,RAS!$O$3:$O$775,1) -> 1.89 | D13: =AVERAGEIFS(RAS!J$3:J$775,RAS!$C$3:$C$775,$B13,RAS!$N$3:$N$775,$A13,RAS!$O$3:$O$775,1) -> 6.357142857 | E13: =AVERAGEIFS(RAS!M$3:M$775,RAS!$C$3:$C$775,$B13,RAS!$N$3:$N$775,$A13,RAS!$O$3:$O$775,1) -> 110.2585714 | F13: =AVERAGEIFS(RAS!L$3:L$775,RAS!$C$3:$C$775,$B13,RAS!$N$3:$N$775,$A13,RAS!$O$3:$O$775,1) -> 120.6942857 | G13: =AVERAGEIFS(RAS!F$3:F$775,RAS!$C$3:$C$775,$B13,RAS!$N$3:$N$775,$A13,RAS!$O$3:$O$775,1) -> 5838.054286 | H13: =AVERAGEIFS(RAS!I$3:I$775,RAS!$C$3:$C$775,$B13,RAS!$N$3:$N$775,$A13,RAS!$O$3:$O$775,1) -> 0.01388842857 | I13: =AVERAGEIFS(RAS!P$3:P$775,RAS!N$3:N$775,A13,RAS!C$3:C$775,B13,RAS!O$3:O$775,1) -> 0.01707202247 | J13: =AVERAGEIFS(RAS!Q$3:Q$775,RAS!N$3:N$775,A13,RAS!C$3:C$775,B13,RAS!O$3:O$775,1) -> 0.7971428571
A14: 1 | B14: 10 YR | C14: =AVERAGEIFS(RAS!K$3:K$775,RAS!$C$3:$C$775,$B14,RAS!$N$3:$N$775,$A14,RAS!$O$3:$O$775,1) -> 2.1 | D14: =AVERAGEIFS(RAS!J$3:J$775,RAS!$C$3:$C$775,$B14,RAS!$N$3:$N$775,$A14,RAS!$O$3:$O$775,1) -> 6.827142857 | E14: =AVERAGEIFS(RAS!M$3:M$775,RAS!$C$3:$C$775,$B14,RAS!$N$3:$N$775,$A14,RAS!$O$3:$O$775,1) -> 113.8314286 | F14: =AVERAGEIFS(RAS!L$3:L$775,RAS!$C$3:$C$775,$B14,RAS!$N$3:$N$775,$A14,RAS!$O$3:$O$775,1) -> 128.88 | G14: =AVERAGEIFS(RAS!F$3:F$775,RAS!$C$3:$C$775,$B14,RAS!$N$3:$N$775,$A14,RAS!$O$3:$O$775,1) -> 5838.4 | H14: =AVERAGEIFS(RAS!I$3:I$775,RAS!$C$3:$C$775,$B14,RAS!$N$3:$N$775,$A14,RAS!$O$3:$O$775,1) -> 0.01360828571 | I14: =AVERAGEIFS(RAS!P$3:P$775,RAS!N$3:N$775,A14,RAS!C$3:C$775,B14,RAS!O$3:O$775,1) -> 0.01707202247 | J14: =AVERAGEIFS(RAS!Q$3:Q$775,RAS!N$3:N$775,A14,RAS!C$3:C$775,B14,RAS!O$3:O$775,1) -> 0.8071428571
A15: 1 | B15: 25 YR | C15: =AVERAGEIFS(RAS!K$3:K$775,RAS!$C$3:$C$775,$B15,RAS!$N$3:$N$775,$A15,RAS!$O$3:$O$775,1) -> 2.321428571 | D15: =AVERAGEIFS(RAS!J$3:J$775,RAS!$C$3:$C$775,$B15,RAS!$N$3:$N$775,$A15,RAS!$O$3:$O$775,1) -> 7.35 | E15: =AVERAGEIFS(RAS!M$3:M$775,RAS!$C$3:$C$775,$B15,RAS!$N$3:$N$775,$A15,RAS!$O$3:$O$775,1) -> 117.4585714 | F15: =AVERAGEIFS(RAS!L$3:L$775,RAS!$C$3:$C$775,$B15,RAS!$N$3:$N$775,$A15,RAS!$O$3:$O$775,1) -> 140.38 | G15: =AVERAGEIFS(RAS!F$3:F$775,RAS!$C$3:$C$775,$B15,RAS!$N$3:$N$775,$A15,RAS!$O$3:$O$775,1) -> 5838.8 | H15: =AVERAGEIFS(RAS!I$3:I$775,RAS!$C$3:$C$775,$B15,RAS!$N$3:$N$775,$A15,RAS!$O$3:$O$775,1) -> 0.01328585714 | I15: =AVERAGEIFS(RAS!P$3:P$775,RAS!N$3:N$775,A15,RAS!C$3:C$775,B15,RAS!O$3:O$775,1) -> 0.01707202247 | J15: =AVERAGEIFS(RAS!Q$3:Q$775,RAS!N$3:N$775,A15,RAS!C$3:C$775,B15,RAS!O$3:O$775,1) -> 0.8142857143
A16: 1 | B16: 50 YR | C16: =AVERAGEIFS(RAS!K$3:K$775,RAS!$C$3:$C$775,$B16,RAS!$N$3:$N$775,$A16,RAS!$O$3:$O$775,1) -> 2.465714286 | D16: =AVERAGEIFS(RAS!J$3:J$775,RAS!$C$3:$C$775,$B16,RAS!$N$3:$N$775,$A16,RAS!$O$3:$O$775,1) -> 7.722857143 | E16: =AVERAGEIFS(RAS!M$3:M$775,RAS!$C$3:$C$775,$B16,RAS!$N$3:$N$775,$A16,RAS!$O$3:$O$775,1) -> 119.6185714 | F16: =AVERAGEIFS(RAS!L$3:L$775,RAS!$C$3:$C$775,$B16,RAS!$N$3:$N$775,$A16,RAS!$O$3:$O$775,1) -> 147.2257143 | G16: =AVERAGEIFS(RAS!F$3:F$775,RAS!$C$3:$C$775,$B16,RAS!$N$3:$N$775,$A16,RAS!$O$3:$O$775,1) -> 5839.084286 | H16: =AVERAGEIFS(RAS!I$3:I$775,RAS!$C$3:$C$775,$B16,RAS!$N$3:$N$775,$A16,RAS!$O$3:$O$775,1) -> 0.01303771429 | I16: =AVERAGEIFS(RAS!P$3:P$775,RAS!N$3:N$775,A16,RAS!C$3:C$775,B16,RAS!O$3:O$775,1) -> 0.01707202247 | J16: =AVERAGEIFS(RAS!Q$3:Q$775,RAS!N$3:N$775,A16,RAS!C$3:C$775,B16,RAS!O$3:O$775,1) -> 0.82
A17: 1 | B17: 100 YR | C17: =AVERAGEIFS(RAS!K$3:K$775,RAS!$C$3:$C$775,$B17,RAS!$N$3:$N$775,$A17,RAS!$O$3:$O$775,1) -> 2.597142857 | D17: =AVERAGEIFS(RAS!J$3:J$775,RAS!$C$3:$C$775,$B17,RAS!$N$3:$N$775,$A17,RAS!$O$3:$O$775,1) -> 8.07 | E17: =AVERAGEIFS(RAS!M$3:M$775,RAS!$C$3:$C$775,$B17,RAS!$N$3:$N$775,$A17,RAS!$O$3:$O$775,1) -> 121.0714286 | F17: =AVERAGEIFS(RAS!L$3:L$775,RAS!$C$3:$C$775,$B17,RAS!$N$3:$N$775,$A17,RAS!$O$3:$O$775,1) -> 155.6185714 | G17: =AVERAGEIFS(RAS!F$3:F$775,RAS!$C$3:$C$775,$B17,RAS!$N$3:$N$775,$A17,RAS!$O$3:$O$775,1) -> 5839.375714 | H17: =AVERAGEIFS(RAS!I$3:I$775,RAS!$C$3:$C$775,$B17,RAS!$N$3:$N$775,$A17,RAS!$O$3:$O$775,1) -> 0.01264271429 | I17: =AVERAGEIFS(RAS!P$3:P$775,RAS!N$3:N$775,A17,RAS!C$3:C$775,B17,RAS!O$3:O$775,1) -> 0.01707202247 | J17: =AVERAGEIFS(RAS!Q$3:Q$775,RAS!N$3:N$775,A17,RAS!C$3:C$775,B17,RAS!O$3:O$775,1) -> 0.8228571429
A18: 2 | B18: 2 YR | C18: =AVERAGEIFS(RAS!K$3:K$775,RAS!$C$3:$C$775,$B18,RAS!$N$3:$N$775,$A18,RAS!$O$3:$O$775,1) -> 0.9214285714 | D18: =AVERAGEIFS(RAS!J$3:J$775,RAS!$C$3:$C$775,$B18,RAS!$N$3:$N$775,$A18,RAS!$O$3:$O$775,1) -> 4.706428571 | E18: =AVERAGEIFS(RAS!M$3:M$775,RAS!$C$3:$C$775,$B18,RAS!$N$3:$N$775,$A18,RAS!$O$3:$O$775,1) -> 76.60857143 | F18: =AVERAGEIFS(RAS!L$3:L$775,RAS!$C$3:$C$775,$B18,RAS!$N$3:$N$775,$A18,RAS!$O$3:$O$775,1) -> 79.96071429 | G18: =AVERAGEIFS(RAS!F$3:F$775,RAS!$C$3:$C$775,$B18,RAS!$N$3:$N$775,$A18,RAS!$O$3:$O$775,1) -> 5742.64 | H18: =AVERAGEIFS(RAS!I$3:I$775,RAS!$C$3:$C$775,$B18,RAS!$N$3:$N$775,$A18,RAS!$O$3:$O$775,1) -> 0.01983935714 | I18: =AVERAGEIFS(RAS!P$3:P$775,RAS!N$3:N$775,A18,RAS!C$3:C$775,B18,RAS!O$3:O$775,1) -> 0.0191341318 | J18: =AVERAGEIFS(RAS!Q$3:Q$775,RAS!N$3:N$775,A18,RAS!C$3:C$775,B18,RAS!O$3:O$775,1) -> 0.8514285714
A19: 2 | B19: 5 YR | C19: =AVERAGEIFS(RAS!K$3:K$775,RAS!$C$3:$C$775,$B19,RAS!$N$3:$N$775,$A19,RAS!$O$3:$O$775,1) -> 1.107142857 | D19: =AVERAGEIFS(RAS!J$3:J$775,RAS!$C$3:$C$775,$B19,RAS!$N$3:$N$775,$A19,RAS!$O$3:$O$775,1) -> 5.323571429 | E19: =AVERAGEIFS(RAS!M$3:M$775,RAS!$C$3:$C$775,$B19,RAS!$N$3:$N$775,$A19,RAS!$O$3:$O$775,1) -> 86.07214286 | F19: =AVERAGEIFS(RAS!L$3:L$775,RAS!$C$3:$C$775,$B19,RAS!$N$3:$N$775,$A19,RAS!$O$3:$O$775,1) -> 91.66785714 | G19: =AVERAGEIFS(RAS!F$3:F$775,RAS!$C$3:$C$775,$B19,RAS!$N$3:$N$775,$A19,RAS!$O$3:$O$775,1) -> 5742.973571 | H19: =AVERAGEIFS(RAS!I$3:I$775,RAS!$C$3:$C$775,$B19,RAS!$N$3:$N$775,$A19,RAS!$O$3:$O$775,1) -> 0.01931085714 | I19: =AVERAGEIFS(RAS!P$3:P$775,RAS!N$3:N$775,A19,RAS!C$3:C$775,B19,RAS!O$3:O$775,1) -> 0.0191341318 | J19: =AVERAGEIFS(RAS!Q$3:Q$775,RAS!N$3:N$775,A19,RAS!C$3:C$775,B19,RAS!O$3:O$775,1) -> 0.8714285714
A20: 2 | B20: 10 YR | C20: =AVERAGEIFS(RAS!K$3:K$775,RAS!$C$3:$C$775,$B20,RAS!$N$3:$N$775,$A20,RAS!$O$3:$O$775,1) -> 1.205714286 | D20: =AVERAGEIFS(RAS!J$3:J$775,RAS!$C$3:$C$775,$B20,RAS!$N$3:$N$775,$A20,RAS!$O$3:$O$775,1) -> 5.593571429 | E20: =AVERAGEIFS(RAS!M$3:M$775,RAS!$C$3:$C$775,$B20,RAS!$N$3:$N$775,$A20,RAS!$O$3:$O$775,1) -> 87.88071429 | F20: =AVERAGEIFS(RAS!L$3:L$775,RAS!$C$3:$C$775,$B20,RAS!$N$3:$N$775,$A20,RAS!$O$3:$O$775,1) -> 93.78142857 | G20: =AVERAGEIFS(RAS!F$3:F$775,RAS!$C$3:$C$775,$B20,RAS!$N$3:$N$775,$A20,RAS!$O$3:$O$775,1) -> 5743.103571 | H20: =AVERAGEIFS(RAS!I$3:I$775,RAS!$C$3:$C$775,$B20,RAS!$N$3:$N$775,$A20,RAS!$O$3:$O$775,1) -> 0.01892285714 | I20: =AVERAGEIFS(RAS!P$3:P$775,RAS!N$3:N$775,A20,RAS!C$3:C$775,B20,RAS!O$3:O$775,1) -> 0.0191341318 | J20: =AVERAGEIFS(RAS!Q$3:Q$775,RAS!N$3:N$775,A20,RAS!C$3:C$775,B20,RAS!O$3:O$775,1) -> 0.8764285714
A21: 2 | B21: 25 YR | C21: =AVERAGEIFS(RAS!K$3:K$775,RAS!$C$3:$C$775,$B21,RAS!$N$3:$N$775,$A21,RAS!$O$3:$O$775,1) -> 1.33 | D21: =AVERAGEIFS(RAS!J$3:J$775,RAS!$C$3:$C$775,$B21,RAS!$N$3:$N$775,$A21,RAS!$O$3:$O$775,1) -> 5.969285714 | E21: =AVERAGEIFS(RAS!M$3:M$775,RAS!$C$3:$C$775,$B21,RAS!$N$3:$N$775,$A21,RAS!$O$3:$O$775,1) -> 90.855 | F21: =AVERAGEIFS(RAS!L$3:L$775,RAS!$C$3:$C$775,$B21,RAS!$N$3:$N$775,$A21,RAS!$O$3:$O$775,1) -> 98.08857143 | G21: =AVERAGEIFS(RAS!F$3:F$775,RAS!$C$3:$C$775,$B21,RAS!$N$3:$N$775,$A21,RAS!$O$3:$O$775,1) -> 5743.289286 | H21: =AVERAGEIFS(RAS!I$3:I$775,RAS!$C$3:$C$775,$B21,RAS!$N$3:$N$775,$A21,RAS!$O$3:$O$775,1) -> 0.01874221429 | I21: =AVERAGEIFS(RAS!P$3:P$775,RAS!N$3:N$775,A21,RAS!C$3:C$775,B21,RAS!O$3:O$775,1) -> 0.0191341318 | J21: =AVERAGEIFS(RAS!Q$3:Q$775,RAS!N$3:N$775,A21,RAS!C$3:C$775,B21,RAS!O$3:O$775,1) -> 0.8885714286
A22: 2 | B22: 50 YR | C22: =AVERAGEIFS(RAS!K$3:K$775,RAS!$C$3:$C$775,$B22,RAS!$N$3:$N$775,$A22,RAS!$O$3:$O$775,1) -> 1.343571429 | D22: =AVERAGEIFS(RAS!J$3:J$775,RAS!$C$3:$C$775,$B22,RAS!$N$3:$N$775,$A22,RAS!$O$3:$O$775,1) -> 6.148571429 | E22: =AVERAGEIFS(RAS!M$3:M$775,RAS!$C$3:$C$775,$B22,RAS!$N$3:$N$775,$A22,RAS!$O$3:$O$775,1) -> 92.18714286 | F22: =AVERAGEIFS(RAS!L$3:L$775,RAS!$C$3:$C$775,$B22,RAS!$N$3:$N$775,$A22,RAS!$O$3:$O$775,1) -> 102.8635714 | G22: =AVERAGEIFS(RAS!F$3:F$775,RAS!$C$3:$C$775,$B22,RAS!$N$3:$N$775,$A22,RAS!$O$3:$O$775,1) -> 5743.393571 | H22: =AVERAGEIFS(RAS!I$3:I$775,RAS!$C$3:$C$775,$B22,RAS!$N$3:$N$775,$A22,RAS!$O$3:$O$775,1) -> 0.01839435714 | I22: =AVERAGEIFS(RAS!P$3:P$775,RAS!N$3:N$775,A22,RAS!C$3:C$775,B22,RAS!O$3:O$775,1) -> 0.0191341318 | J22: =AVERAGEIFS(RAS!Q$3:Q$775,RAS!N$3:N$775,A22,RAS!C$3:C$775,B22,RAS!O$3:O$775,1) -> 0.89
A23: 2 | B23: 100 YR | C23: =AVERAGEIFS(RAS!K$3:K$775,RAS!$C$3:$C$775,$B23,RAS!$N$3:$N$775,$A23,RAS!$O$3:$O$775,1) -> 1.342857143 | D23: =AVERAGEIFS(RAS!J$3:J$775,RAS!$C$3:$C$775,$B23,RAS!$N$3:$N$775,$A23,RAS!$O$3:$O$775,1) -> 6.227857143 | E23: =AVERAGEIFS(RAS!M$3:M$775,RAS!$C$3:$C$775,$B23,RAS!$N$3:$N$775,$A23,RAS!$O$3:$O$775,1) -> 94.19571429 | F23: =AVERAGEIFS(RAS!L$3:L$775,RAS!$C$3:$C$775,$B23,RAS!$N$3:$N$775,$A23,RAS!$O$3:$O$775,1) -> 116.9007143 | G23: =AVERAGEIFS(RAS!F$3:F$775,RAS!$C$3:$C$775,$B23,RAS!$N$3:$N$775,$A23,RAS!$O$3:$O$775,1) -> 5743.493571 | H23: =AVERAGEIFS(RAS!I$3:I$775,RAS!$C$3:$C$775,$B23,RAS!$N$3:$N$775,$A23,RAS!$O$3:$O$775,1) -> 0.01767414286 | I23: =AVERAGEIFS(RAS!P$3:P$775,RAS!N$3:N$775,A23,RAS!C$3:C$775,B23,RAS!O$3:O$775,1) -> 0.0191341318 | J23: =AVERAGEIFS(RAS!Q$3:Q$775,RAS!N$3:N$775,A23,RAS!C$3:C$775,B23,RAS!O$3:O$775,1) -> 0.8807142857
A24: 3 | B24: 2 YR | C24: =AVERAGEIFS(RAS!K$3:K$775,RAS!$C$3:$C$775,$B24,RAS!$N$3:$N$775,$A24,RAS!$O$3:$O$775,1) -> 0.9283333333 | D24: =AVERAGEIFS(RAS!J$3:J$775,RAS!$C$3:$C$775,$B24,RAS!$N$3:$N$775,$A24,RAS!$O$3:$O$775,1) -> 5.078333333 | E24: =AVERAGEIFS(RAS!M$3:M$775,RAS!$C$3:$C$775,$B24,RAS!$N$3:$N$775,$A24,RAS!$O$3:$O$775,1) -> 57.89083333 | F24: =AVERAGEIFS(RAS!L$3:L$775,RAS!$C$3:$C$775,$B24,RAS!$N$3:$N$775,$A24,RAS!$O$3:$O$775,1) -> 93.89416667 | G24: =AVERAGEIFS(RAS!F$3:F$775,RAS!$C$3:$C$775,$B24,RAS!$N$3:$N$775,$A24,RAS!$O$3:$O$775,1) -> 5639.1025 | H24: =AVERAGEIFS(RAS!I$3:I$775,RAS!$C$3:$C$775,$B24,RAS!$N$3:$N$775,$A24,RAS!$O$3:$O$775,1) -> 0.01805233333 | I24: =AVERAGEIFS(RAS!P$3:P$775,RAS!N$3:N$775,A24,RAS!C$3:C$775,B24,RAS!O$3:O$775,1) -> 0.0168744486 | J24: =AVERAGEIFS(RAS!Q$3:Q$775,RAS!N$3:N$775,A24,RAS!C$3:C$775,B24,RAS!O$3:O$775,1) -> 0.8341666667
A25: 3 | B25: 5 YR | C25: =AVERAGEIFS(RAS!K$3:K$775,RAS!$C$3:$C$775,$B25,RAS!$N$3:$N$775,$A25,RAS!$O$3:$O$775,1) -> 1.100833333 | D25: =AVERAGEIFS(RAS!J$3:J$775,RAS!$C$3:$C$775,$B25,RAS!$N$3:$N$775,$A25,RAS!$O$3:$O$775,1) -> 5.690833333 | E25: =AVERAGEIFS(RAS!M$3:M$775,RAS!$C$3:$C$775,$B25,RAS!$N$3:$N$775,$A25,RAS!$O$3:$O$775,1) -> 63.62416667 | F25: =AVERAGEIFS(RAS!L$3:L$775,RAS!$C$3:$C$775,$B25,RAS!$N$3:$N$775,$A25,RAS!$O$3:$O$775,1) -> 113.6716667 | G25: =AVERAGEIFS(RAS!F$3:F$775,RAS!$C$3:$C$775,$B25,RAS!$N$3:$N$775,$A25,RAS!$O$3:$O$775,1) -> 5639.450833 | H25: =AVERAGEIFS(RAS!I$3:I$775,RAS!$C$3:$C$775,$B25,RAS!$N$3:$N$775,$A25,RAS!$O$3:$O$775,1) -> 0.01707041667 | I25: =AVERAGEIFS(RAS!P$3:P$775,RAS!N$3:N$775,A25,RAS!C$3:C$775,B25,RAS!O$3:O$775,1) -> 0.0168744486 | J25: =AVERAGEIFS(RAS!Q$3:Q$775,RAS!N$3:N$775,A25,RAS!C$3:C$775,B25,RAS!O$3:O$775,1) -> 0.845
A26: 3 | B26: 10 YR | C26: =AVERAGEIFS(RAS!K$3:K$775,RAS!$C$3:$C$775,$B26,RAS!$N$3:$N$775,$A26,RAS!$O$3:$O$775,1) -> 1.196666667 | D26: =AVERAGEIFS(RAS!J$3:J$775,RAS!$C$3:$C$775,$B26,RAS!$N$3:$N$775,$A26,RAS!$O$3:$O$775,1) -> 6.000833333 | E26: =AVERAGEIFS(RAS!M$3:M$775,RAS!$C$3:$C$775,$B26,RAS!$N$3:$N$775,$A26,RAS!$O$3:$O$775,1) -> 65.54166667 | F26: =AVERAGEIFS(RAS!L$3:L$775,RAS!$C$3:$C$775,$B26,RAS!$N$3:$N$775,$A26,RAS!$O$3:$O$775,1) -> 127.4966667 | G26: =AVERAGEIFS(RAS!F$3:F$775,RAS!$C$3:$C$775,$B26,RAS!$N$3:$N$775,$A26,RAS!$O$3:$O$775,1) -> 5639.62 | H26: =AVERAGEIFS(RAS!I$3:I$775,RAS!$C$3:$C$775,$B26,RAS!$N$3:$N$775,$A26,RAS!$O$3:$O$775,1) -> 0.01672675 | I26: =AVERAGEIFS(RAS!P$3:P$775,RAS!N$3:N$775,A26,RAS!C$3:C$775,B26,RAS!O$3:O$775,1) -> 0.0168744486 | J26: =AVERAGEIFS(RAS!Q$3:Q$775,RAS!N$3:N$775,A26,RAS!C$3:C$775,B26,RAS!O$3:O$775,1) -> 0.8491666667
A27: 3 | B27: 25 YR | C27: =AVERAGEIFS(RAS!K$3:K$775,RAS!$C$3:$C$775,$B27,RAS!$N$3:$N$775,$A27,RAS!$O$3:$O$775,1) -> 1.283333333 | D27: =AVERAGEIFS(RAS!J$3:J$775,RAS!$C$3:$C$775,$B27,RAS!$N$3:$N$775,$A27,RAS!$O$3:$O$775,1) -> 6.279166667 | E27: =AVERAGEIFS(RAS!M$3:M$775,RAS!$C$3:$C$775,$B27,RAS!$N$3:$N$775,$A27,RAS!$O$3:$O$775,1) -> 66.77333333 | F27: =AVERAGEIFS(RAS!L$3:L$775,RAS!$C$3:$C$775,$B27,RAS!$N$3:$N$775,$A27,RAS!$O$3:$O$775,1) -> 140.7291667 | G27: =AVERAGEIFS(RAS!F$3:F$775,RAS!$C$3:$C$775,$B27,RAS!$N$3:$N$775,$A27,RAS!$O$3:$O$775,1) -> 5639.789167 | H27: =AVERAGEIFS(RAS!I$3:I$775,RAS!$C$3:$C$775,$B27,RAS!$N$3:$N$775,$A27,RAS!$O$3:$O$775,1) -> 0.01636925 | I27: =AVERAGEIFS(RAS!P$3:P$775,RAS!N$3:N$775,A27,RAS!C$3:C$775,B27,RAS!O$3:O$775,1) -> 0.0168744486 | J27: =AVERAGEIFS(RAS!Q$3:Q$775,RAS!N$3:N$775,A27,RAS!C$3:C$775,B27,RAS!O$3:O$775,1) -> 0.8525
A28: 3 | B28: 50 YR | C28: =AVERAGEIFS(RAS!K$3:K$775,RAS!$C$3:$C$775,$B28,RAS!$N$3:$N$775,$A28,RAS!$O$3:$O$775,1) -> 1.335833333 | D28: =AVERAGEIFS(RAS!J$3:J$775,RAS!$C$3:$C$775,$B28,RAS!$N$3:$N$775,$A28,RAS!$O$3:$O$775,1) -> 6.475 | E28: =AVERAGEIFS(RAS!M$3:M$775,RAS!$C$3:$C$775,$B28,RAS!$N$3:$N$775,$A28,RAS!$O$3:$O$775,1) -> 67.40333333 | F28: =AVERAGEIFS(RAS!L$3:L$775,RAS!$C$3:$C$775,$B28,RAS!$N$3:$N$775,$A28,RAS!$O$3:$O$775,1) -> 149.9858333 | G28: =AVERAGEIFS(RAS!F$3:F$775,RAS!$C$3:$C$775,$B28,RAS!$N$3:$N$775,$A28,RAS!$O$3:$O$775,1) -> 5639.89 | H28: =AVERAGEIFS(RAS!I$3:I$775,RAS!$C$3:$C$775,$B28,RAS!$N$3:$N$775,$A28,RAS!$O$3:$O$775,1) -> 0.0160095 | I28: =AVERAGEIFS(RAS!P$3:P$775,RAS!N$3:N$775,A28,RAS!C$3:C$775,B28,RAS!O$3:O$775,1) -> 0.0168744486 | J28: =AVERAGEIFS(RAS!Q$3:Q$775,RAS!N$3:N$775,A28,RAS!C$3:C$775,B28,RAS!O$3:O$775,1) -> 0.8533333333
A29: 3 | B29: 100 YR | C29: =AVERAGEIFS(RAS!K$3:K$775,RAS!$C$3:$C$775,$B29,RAS!$N$3:$N$775,$A29,RAS!$O$3:$O$775,1) -> 1.39 | D29: =AVERAGEIFS(RAS!J$3:J$775,RAS!$C$3:$C$775,$B29,RAS!$N$3:$N$775,$A29,RAS!$O$3:$O$775,1) -> 6.690833333 | E29: =AVERAGEIFS(RAS!M$3:M$775,RAS!$C$3:$C$775,$B29,RAS!$N$3:$N$775,$A29,RAS!$O$3:$O$775,1) -> 67.935 | F29: =AVERAGEIFS(RAS!L$3:L$775,RAS!$C$3:$C$775,$B29,RAS!$N$3:$N$775,$A29,RAS!$O$3:$O$775,1) -> 154.4558333 | G29: =AVERAGEIFS(RAS!F$3:F$775,RAS!$C$3:$C$775,$B29,RAS!$N$3:$N$775,$A29,RAS!$O$3:$O$775,1) -> 5639.974167 | H29: =AVERAGEIFS(RAS!I$3:I$775,RAS!$C$3:$C$775,$B29,RAS!$N$3:$N$775,$A29,RAS!$O$3:$O$775,1) -> 0.01607208333 | I29: =AVERAGEIFS(RAS!P$3:P$775,RAS!N$3:N$775,A29,RAS!C$3:C$775,B29,RAS!O$3:O$775,1) -> 0.0168744486 | J29: =AVERAGEIFS(RAS!Q$3:Q$775,RAS!N$3:N$775,A29,RAS!C$3:C$775,B29,RAS!O$3:O$775,1) -> 0.8641666667
A30: 4 | B30: 2 YR | C30: =AVERAGEIFS(RAS!K$3:K$775,RAS!$C$3:$C$775,$B30,RAS!$N$3:$N$775,$A30,RAS!$O$3:$O$775,1) -> 1.3425 | D30: =AVERAGEIFS(RAS!J$3:J$775,RAS!$C$3:$C$775,$B30,RAS!$N$3:$N$775,$A30,RAS!$O$3:$O$775,1) -> 5.83125 | E30: =AVERAGEIFS(RAS!M$3:M$775,RAS!$C$3:$C$775,$B30,RAS!$N$3:$N$775,$A30,RAS!$O$3:$O$775,1) -> 42.41 | F30: =AVERAGEIFS(RAS!L$3:L$775,RAS!$C$3:$C$775,$B30,RAS!$N$3:$N$775,$A30,RAS!$O$3:$O$775,1) -> 44.42875 | G30: =AVERAGEIFS(RAS!F$3:F$775,RAS!$C$3:$C$775,$B30,RAS!$N$3:$N$775,$A30,RAS!$O$3:$O$775,1) -> 5576.05875 | H30: =AVERAGEIFS(RAS!I$3:I$775,RAS!$C$3:$C$775,$B30,RAS!$N$3:$N$775,$A30,RAS!$O$3:$O$775,1) -> 0.017673 | I30: =AVERAGEIFS(RAS!P$3:P$775,RAS!N$3:N$775,A30,RAS!C$3:C$775,B30,RAS!O$3:O$775,1) -> 0.01811799381 | J30: =AVERAGEIFS(RAS!Q$3:Q$775,RAS!N$3:N$775,A30,RAS!C$3:C$775,B30,RAS!O$3:O$775,1) -> 0.865
A31: 4 | B31: 5 YR | C31: =AVERAGEIFS(RAS!K$3:K$775,RAS!$C$3:$C$775,$B31,RAS!$N$3:$N$775,$A31,RAS!$O$3:$O$775,1) -> 1.605 | D31: =AVERAGEIFS(RAS!J$3:J$775,RAS!$C$3:$C$775,$B31,RAS!$N$3:$N$775,$A31,RAS!$O$3:$O$775,1) -> 6.5175 | E31: =AVERAGEIFS(RAS!M$3:M$775,RAS!$C$3:$C$775,$B31,RAS!$N$3:$N$775,$A31,RAS!$O$3:$O$775,1) -> 49.94375 | F31: =AVERAGEIFS(RAS!L$3:L$775,RAS!$C$3:$C$775,$B31,RAS!$N$3:$N$775,$A31,RAS!$O$3:$O$775,1) -> 52.59125 | G31: =AVERAGEIFS(RAS!F$3:F$775,RAS!$C$3:$C$775,$B31,RAS!$N$3:$N$775,$A31,RAS!$O$3:$O$775,1) -> 5576.5675 | H31: =AVERAGEIFS(RAS!I$3:I$775,RAS!$C$3:$C$775,$B31,RAS!$N$3:$N$775,$A31,RAS!$O$3:$O$775,1) -> 0.017146375 | I31: =AVERAGEIFS(RAS!P$3:P$775,RAS!N$3:N$775,A31,RAS!C$3:C$775,B31,RAS!O$3:O$775,1) -> 0.01811799381 | J31: =AVERAGEIFS(RAS!Q$3:Q$775,RAS!N$3:N$775,A31,RAS!C$3:C$775,B31,RAS!O$3:O$775,1) -> 0.87875
A32: 4 | B32: 10 YR | C32: =AVERAGEIFS(RAS!K$3:K$775,RAS!$C$3:$C$775,$B32,RAS!$N$3:$N$775,$A32,RAS!$O$3:$O$775,1) -> 1.725 | D32: =AVERAGEIFS(RAS!J$3:J$775,RAS!$C$3:$C$775,$B32,RAS!$N$3:$N$775,$A32,RAS!$O$3:$O$775,1) -> 6.80375 | E32: =AVERAGEIFS(RAS!M$3:M$775,RAS!$C$3:$C$775,$B32,RAS!$N$3:$N$775,$A32,RAS!$O$3:$O$775,1) -> 53.7025 | F32: =AVERAGEIFS(RAS!L$3:L$775,RAS!$C$3:$C$775,$B32,RAS!$N$3:$N$775,$A32,RAS!$O$3:$O$775,1) -> 56.95875 | G32: =AVERAGEIFS(RAS!F$3:F$775,RAS!$C$3:$C$775,$B32,RAS!$N$3:$N$775,$A32,RAS!$O$3:$O$775,1) -> 5576.83125 | H32: =AVERAGEIFS(RAS!I$3:I$775,RAS!$C$3:$C$775,$B32,RAS!$N$3:$N$775,$A32,RAS!$O$3:$O$775,1) -> 0.016902125 | I32: =AVERAGEIFS(RAS!P$3:P$775,RAS!N$3:N$775,A32,RAS!C$3:C$775,B32,RAS!O$3:O$775,1) -> 0.01811799381 | J32: =AVERAGEIFS(RAS!Q$3:Q$775,RAS!N$3:N$775,A32,RAS!C$3:C$775,B32,RAS!O$3:O$775,1) -> 0.88375
A33: 4 | B33: 25 YR | C33: =AVERAGEIFS(RAS!K$3:K$775,RAS!$C$3:$C$775,$B33,RAS!$N$3:$N$775,$A33,RAS!$O$3:$O$775,1) -> 1.8575 | D33: =AVERAGEIFS(RAS!J$3:J$775,RAS!$C$3:$C$775,$B33,RAS!$N$3:$N$775,$A33,RAS!$O$3:$O$775,1) -> 7.14125 | E33: =AVERAGEIFS(RAS!M$3:M$775,RAS!$C$3:$C$775,$B33,RAS!$N$3:$N$775,$A33,RAS!$O$3:$O$775,1) -> 56.5725 | F33: =AVERAGEIFS(RAS!L$3:L$775,RAS!$C$3:$C$775,$B33,RAS!$N$3:$N$775,$A33,RAS!$O$3:$O$775,1) -> 60.07875 | G33: =AVERAGEIFS(RAS!F$3:F$775,RAS!$C$3:$C$775,$B33,RAS!$N$3:$N$775,$A33,RAS!$O$3:$O$775,1) -> 5577.06375 | H33: =AVERAGEIFS(RAS!I$3:I$775,RAS!$C$3:$C$775,$B33,RAS!$N$3:$N$775,$A33,RAS!$O$3:$O$775,1) -> 0.01674925 | I33: =AVERAGEIFS(RAS!P$3:P$775,RAS!N$3:N$775,A33,RAS!C$3:C$775,B33,RAS!O$3:O$775,1) -> 0.01811799381 | J33: =AVERAGEIFS(RAS!Q$3:Q$775,RAS!N$3:N$775,A33,RAS!C$3:C$775,B33,RAS!O$3:O$775,1) -> 0.89125
A34: 4 | B34: 50 YR | C34: =AVERAGEIFS(RAS!K$3:K$775,RAS!$C$3:$C$775,$B34,RAS!$N$3:$N$775,$A34,RAS!$O$3:$O$775,1) -> 1.94625 | D34: =AVERAGEIFS(RAS!J$3:J$775,RAS!$C$3:$C$775,$B34,RAS!$N$3:$N$775,$A34,RAS!$O$3:$O$775,1) -> 7.35875 | E34: =AVERAGEIFS(RAS!M$3:M$775,RAS!$C$3:$C$775,$B34,RAS!$N$3:$N$775,$A34,RAS!$O$3:$O$775,1) -> 58.29125 | F34: =AVERAGEIFS(RAS!L$3:L$775,RAS!$C$3:$C$775,$B34,RAS!$N$3:$N$775,$A34,RAS!$O$3:$O$775,1) -> 61.97125 | G34: =AVERAGEIFS(RAS!F$3:F$775,RAS!$C$3:$C$775,$B34,RAS!$N$3:$N$775,$A34,RAS!$O$3:$O$775,1) -> 5577.21 | H34: =AVERAGEIFS(RAS!I$3:I$775,RAS!$C$3:$C$775,$B34,RAS!$N$3:$N$775,$A34,RAS!$O$3:$O$775,1) -> 0.016662375 | I34: =AVERAGEIFS(RAS!P$3:P$775,RAS!N$3:N$775,A34,RAS!C$3:C$775,B34,RAS!O$3:O$775,1) -> 0.01811799381 | J34: =AVERAGEIFS(RAS!Q$3:Q$775,RAS!N$3:N$775,A34,RAS!C$3:C$775,B34,RAS!O$3:O$775,1) -> 0.8975
A35: 4 | B35: 100 YR | C35: =AVERAGEIFS(RAS!K$3:K$775,RAS!$C$3:$C$775,$B35,RAS!$N$3:$N$775,$A35,RAS!$O$3:$O$775,1) -> 2.02375 | D35: =AVERAGEIFS(RAS!J$3:J$775,RAS!$C$3:$C$775,$B35,RAS!$N$3:$N$775,$A35,RAS!$O$3:$O$775,1) -> 7.56375 | E35: =AVERAGEIFS(RAS!M$3:M$775,RAS!$C$3:$C$775,$B35,RAS!$N$3:$N$775,$A35,RAS!$O$3:$O$775,1) -> 59.72875 | F35: =AVERAGEIFS(RAS!L$3:L$775,RAS!$C$3:$C$775,$B35,RAS!$N$3:$N$775,$A35,RAS!$O$3:$O$775,1) -> 63.57375 | G35: =AVERAGEIFS(RAS!F$3:F$775,RAS!$C$3:$C$775,$B35,RAS!$N$3:$N$775,$A35,RAS!$O$3:$O$775,1) -> 5577.34 | H35: =AVERAGEIFS(RAS!I$3:I$775,RAS!$C$3:$C$775,$B35,RAS!$N$3:$N$775,$A35,RAS!$O$3:$O$775,1) -> 0.01668725 | I35: =AVERAGEIFS(RAS!P$3:P$775,RAS!N$3:N$775,A35,RAS!C$3:C$775,B35,RAS!O$3:O$775,1) -> 0.01811799381 | J35: =AVERAGEIFS(RAS!Q$3:Q$775,RAS!N$3:N$775,A35,RAS!C$3:C$775,B35,RAS!O$3:O$775,1) -> 0.90375
A36: 5 | B36: 2 YR | C36: =AVERAGEIFS(RAS!K$3:K$775,RAS!$C$3:$C$775,$B36,RAS!$N$3:$N$775,$A36,RAS!$O$3:$O$775,1) -> 1.455714286 | D36: =AVERAGEIFS(RAS!J$3:J$775,RAS!$C$3:$C$775,$B36,RAS!$N$3:$N$775,$A36,RAS!$O$3:$O$775,1) -> 5.408571429 | E36: =AVERAGEIFS(RAS!M$3:M$775,RAS!$C$3:$C$775,$B36,RAS!$N$3:$N$775,$A36,RAS!$O$3:$O$775,1) -> 63.81142857 | F36: =AVERAGEIFS(RAS!L$3:L$775,RAS!$C$3:$C$775,$B36,RAS!$N$3:$N$775,$A36,RAS!$O$3:$O$775,1) -> 63.81142857 | G36: =AVERAGEIFS(RAS!F$3:F$775,RAS!$C$3:$C$775,$B36,RAS!$N$3:$N$775,$A36,RAS!$O$3:$O$775,1) -> 5510.202857 | H36: =AVERAGEIFS(RAS!I$3:I$775,RAS!$C$3:$C$775,$B36,RAS!$N$3:$N$775,$A36,RAS!$O$3:$O$775,1) -> 0.01553228571 | I36: =AVERAGEIFS(RAS!P$3:P$775,RAS!N$3:N$775,A36,RAS!C$3:C$775,B36,RAS!O$3:O$775,1) -> 0.01340339277 | J36: =AVERAGEIFS(RAS!Q$3:Q$775,RAS!N$3:N$775,A36,RAS!C$3:C$775,B36,RAS!O$3:O$775,1) -> 0.8014285714
A37: 5 | B37: 5 YR | C37: =AVERAGEIFS(RAS!K$3:K$775,RAS!$C$3:$C$775,$B37,RAS!$N$3:$N$775,$A37,RAS!$O$3:$O$775,1) -> 1.888571429 | D37: =AVERAGEIFS(RAS!J$3:J$775,RAS!$C$3:$C$775,$B37,RAS!$N$3:$N$775,$A37,RAS!$O$3:$O$775,1) -> 6.428571429 | E37: =AVERAGEIFS(RAS!M$3:M$775,RAS!$C$3:$C$775,$B37,RAS!$N$3:$N$775,$A37,RAS!$O$3:$O$775,1) -> 71.15714286 | F37: =AVERAGEIFS(RAS!L$3:L$775,RAS!$C$3:$C$775,$B37,RAS!$N$3:$N$775,$A37,RAS!$O$3:$O$775,1) -> 72.19714286 | G37: =AVERAGEIFS(RAS!F$3:F$775,RAS!$C$3:$C$775,$B37,RAS!$N$3:$N$775,$A37,RAS!$O$3:$O$775,1) -> 5510.851429 | H37: =AVERAGEIFS(RAS!I$3:I$775,RAS!$C$3:$C$775,$B37,RAS!$N$3:$N$775,$A37,RAS!$O$3:$O$775,1) -> 0.01483885714 | I37: =AVERAGEIFS(RAS!P$3:P$775,RAS!N$3:N$775,A37,RAS!C$3:C$775,B37,RAS!O$3:O$775,1) -> 0.01340339277 | J37: =AVERAGEIFS(RAS!Q$3:Q$775,RAS!N$3:N$775,A37,RAS!C$3:C$775,B37,RAS!O$3:O$775,1) -> 0.8257142857
A38: 5 | B38: 10 YR | C38: =AVERAGEIFS(RAS!K$3:K$775,RAS!$C$3:$C$775,$B38,RAS!$N$3:$N$775,$A38,RAS!$O$3:$O$775,1) -> 2.054285714 | D38: =AVERAGEIFS(RAS!J$3:J$775,RAS!$C$3:$C$775,$B38,RAS!$N$3:$N$775,$A38,RAS!$O$3:$O$775,1) -> 6.915714286 | E38: =AVERAGEIFS(RAS!M$3:M$775,RAS!$C$3:$C$775,$B38,RAS!$N$3:$N$775,$A38,RAS!$O$3:$O$775,1) -> 74.60428571 | F38: =AVERAGEIFS(RAS!L$3:L$775,RAS!$C$3:$C$775,$B38,RAS!$N$3:$N$775,$A38,RAS!$O$3:$O$775,1) -> 80.41714286 | G38: =AVERAGEIFS(RAS!F$3:F$775,RAS!$C$3:$C$775,$B38,RAS!$N$3:$N$775,$A38,RAS!$O$3:$O$775,1) -> 5511.192857 | H38: =AVERAGEIFS(RAS!I$3:I$775,RAS!$C$3:$C$775,$B38,RAS!$N$3:$N$775,$A38,RAS!$O$3:$O$775,1) -> 0.01459585714 | I38: =AVERAGEIFS(RAS!P$3:P$775,RAS!N$3:N$775,A38,RAS!C$3:C$775,B38,RAS!O$3:O$775,1) -> 0.01340339277 | J38: =AVERAGEIFS(RAS!Q$3:Q$775,RAS!N$3:N$775,A38,RAS!C$3:C$775,B38,RAS!O$3:O$775,1) -> 0.84
A39: 5 | B39: 25 YR | C39: =AVERAGEIFS(RAS!K$3:K$775,RAS!$C$3:$C$775,$B39,RAS!$N$3:$N$775,$A39,RAS!$O$3:$O$775,1) -> 2.235714286 | D39: =AVERAGEIFS(RAS!J$3:J$775,RAS!$C$3:$C$775,$B39,RAS!$N$3:$N$775,$A39,RAS!$O$3:$O$775,1) -> 7.29 | E39: =AVERAGEIFS(RAS!M$3:M$775,RAS!$C$3:$C$775,$B39,RAS!$N$3:$N$775,$A39,RAS!$O$3:$O$775,1) -> 77.93571429 | F39: =AVERAGEIFS(RAS!L$3:L$775,RAS!$C$3:$C$775,$B39,RAS!$N$3:$N$775,$A39,RAS!$O$3:$O$775,1) -> 86.36571429 | G39: =AVERAGEIFS(RAS!F$3:F$775,RAS!$C$3:$C$775,$B39,RAS!$N$3:$N$775,$A39,RAS!$O$3:$O$775,1) -> 5511.502857 | H39: =AVERAGEIFS(RAS!I$3:I$775,RAS!$C$3:$C$775,$B39,RAS!$N$3:$N$775,$A39,RAS!$O$3:$O$775,1) -> 0.01420571429 | I39: =AVERAGEIFS(RAS!P$3:P$775,RAS!N$3:N$775,A39,RAS!C$3:C$775,B39,RAS!O$3:O$775,1) -> 0.01340339277 | J39: =AVERAGEIFS(RAS!Q$3:Q$775,RAS!N$3:N$775,A39,RAS!C$3:C$775,B39,RAS!O$3:O$775,1) -> 0.8428571429
A40: 5 | B40: 50 YR | C40: =AVERAGEIFS(RAS!K$3:K$775,RAS!$C$3:$C$775,$B40,RAS!$N$3:$N$775,$A40,RAS!$O$3:$O$775,1) -> 2.351428571 | D40: =AVERAGEIFS(RAS!J$3:J$775,RAS!$C$3:$C$775,$B40,RAS!$N$3:$N$775,$A40,RAS!$O$3:$O$775,1) -> 7.502857143 | E40: =AVERAGEIFS(RAS!M$3:M$775,RAS!$C$3:$C$775,$B40,RAS!$N$3:$N$775,$A40,RAS!$O$3:$O$775,1) -> 80.16857143 | F40: =AVERAGEIFS(RAS!L$3:L$775,RAS!$C$3:$C$775,$B40,RAS!$N$3:$N$775,$A40,RAS!$O$3:$O$775,1) -> 89.50285714 | G40: =AVERAGEIFS(RAS!F$3:F$775,RAS!$C$3:$C$775,$B40,RAS!$N$3:$N$775,$A40,RAS!$O$3:$O$775,1) -> 5511.702857 | H40: =AVERAGEIFS(RAS!I$3:I$775,RAS!$C$3:$C$775,$B40,RAS!$N$3:$N$775,$A40,RAS!$O$3:$O$775,1) -> 0.01395557143 | I40: =AVERAGEIFS(RAS!P$3:P$775,RAS!N$3:N$775,A40,RAS!C$3:C$775,B40,RAS!O$3:O$775,1) -> 0.01340339277 | J40: =AVERAGEIFS(RAS!Q$3:Q$775,RAS!N$3:N$775,A40,RAS!C$3:C$775,B40,RAS!O$3:O$775,1) -> 0.8442857143
A41: 5 | B41: 100 YR | C41: =AVERAGEIFS(RAS!K$3:K$775,RAS!$C$3:$C$775,$B41,RAS!$N$3:$N$775,$A41,RAS!$O$3:$O$775,1) -> 2.451428571 | D41: =AVERAGEIFS(RAS!J$3:J$775,RAS!$C$3:$C$775,$B41,RAS!$N$3:$N$775,$A41,RAS!$O$3:$O$775,1) -> 7.698571429 | E41: =AVERAGEIFS(RAS!M$3:M$775,RAS!$C$3:$C$775,$B41,RAS!$N$3:$N$775,$A41,RAS!$O$3:$O$775,1) -> 82.29857143 | F41: =AVERAGEIFS(RAS!L$3:L$775,RAS!$C$3:$C$775,$B41,RAS!$N$3:$N$775,$A41,RAS!$O$3:$O$775,1) -> 92.67857143 | G41: =AVERAGEIFS(RAS!F$3:F$775,RAS!$C$3:$C$775,$B41,RAS!$N$3:$N$775,$A41,RAS!$O$3:$O$775,1) -> 5511.881429 | H41: =AVERAGEIFS(RAS!I$3:I$775,RAS!$C$3:$C$775,$B41,RAS!$N$3:$N$775,$A41,RAS!$O$3:$O$775,1) -> 0.013838 | I41: =AVERAGEIFS(RAS!P$3:P$775,RAS!N$3:N$775,A41,RAS!C$3:C$775,B41,RAS!O$3:O$775,1) -> 0.01340339277 | J41: =AVERAGEIFS(RAS!Q$3:Q$775,RAS!N$3:N$775,A41,RAS!C$3:C$775,B41,RAS!O$3:O$775,1) -> 0.8471428571
A42: 6 | B42: 2 YR | C42: =AVERAGEIFS(RAS!K$3:K$775,RAS!$C$3:$C$775,$B42,RAS!$N$3:$N$775,$A42,RAS!$O$3:$O$775,1) -> 1.31 | D42: =AVERAGEIFS(RAS!J$3:J$775,RAS!$C$3:$C$775,$B42,RAS!$N$3:$N$775,$A42,RAS!$O$3:$O$775,1) -> 5.085 | E42: =AVERAGEIFS(RAS!M$3:M$775,RAS!$C$3:$C$775,$B42,RAS!$N$3:$N$775,$A42,RAS!$O$3:$O$775,1) -> 76.9725 | F42: =AVERAGEIFS(RAS!L$3:L$775,RAS!$C$3:$C$775,$B42,RAS!$N$3:$N$775,$A42,RAS!$O$3:$O$775,1) -> 76.9725 | G42: =AVERAGEIFS(RAS!F$3:F$775,RAS!$C$3:$C$775,$B42,RAS!$N$3:$N$775,$A42,RAS!$O$3:$O$775,1) -> 5450.48625 | H42: =AVERAGEIFS(RAS!I$3:I$775,RAS!$C$3:$C$775,$B42,RAS!$N$3:$N$775,$A42,RAS!$O$3:$O$775,1) -> 0.014912 | I42: =AVERAGEIFS(RAS!P$3:P$775,RAS!N$3:N$775,A42,RAS!C$3:C$775,B42,RAS!O$3:O$775,1) -> 0.0148308775 | J42: =AVERAGEIFS(RAS!Q$3:Q$775,RAS!N$3:N$775,A42,RAS!C$3:C$775,B42,RAS!O$3:O$775,1) -> 0.785
A43: 6 | B43: 5 YR | C43: =AVERAGEIFS(RAS!K$3:K$775,RAS!$C$3:$C$775,$B43,RAS!$N$3:$N$775,$A43,RAS!$O$3:$O$775,1) -> 1.71125 | D43: =AVERAGEIFS(RAS!J$3:J$775,RAS!$C$3:$C$775,$B43,RAS!$N$3:$N$775,$A43,RAS!$O$3:$O$775,1) -> 6.03875 | E43: =AVERAGEIFS(RAS!M$3:M$775,RAS!$C$3:$C$775,$B43,RAS!$N$3:$N$775,$A43,RAS!$O$3:$O$775,1) -> 87.37375 | F43: =AVERAGEIFS(RAS!L$3:L$775,RAS!$C$3:$C$775,$B43,RAS!$N$3:$N$775,$A43,RAS!$O$3:$O$775,1) -> 87.37375 | G43: =AVERAGEIFS(RAS!F$3:F$775,RAS!$C$3:$C$775,$B43,RAS!$N$3:$N$775,$A43,RAS!$O$3:$O$775,1) -> 5451.08 | H43: =AVERAGEIFS(RAS!I$3:I$775,RAS!$C$3:$C$775,$B43,RAS!$N$3:$N$775,$A43,RAS!$O$3:$O$775,1) -> 0.014799125 | I43: =AVERAGEIFS(RAS!P$3:P$775,RAS!N$3:N$775,A43,RAS!C$3:C$775,B43,RAS!O$3:O$775,1) -> 0.0148308775 | J43: =AVERAGEIFS(RAS!Q$3:Q$775,RAS!N$3:N$775,A43,RAS!C$3:C$775,B43,RAS!O$3:O$775,1) -> 0.8175
A44: 6 | B44: 10 YR | C44: =AVERAGEIFS(RAS!K$3:K$775,RAS!$C$3:$C$775,$B44,RAS!$N$3:$N$775,$A44,RAS!$O$3:$O$775,1) -> 1.88875 | D44: =AVERAGEIFS(RAS!J$3:J$775,RAS!$C$3:$C$775,$B44,RAS!$N$3:$N$775,$A44,RAS!$O$3:$O$775,1) -> 6.5025 | E44: =AVERAGEIFS(RAS!M$3:M$775,RAS!$C$3:$C$775,$B44,RAS!$N$3:$N$775,$A44,RAS!$O$3:$O$775,1) -> 91.96375 | F44: =AVERAGEIFS(RAS!L$3:L$775,RAS!$C$3:$C$775,$B44,RAS!$N$3:$N$775,$A44,RAS!$O$3:$O$775,1) -> 94.31625 | G44: =AVERAGEIFS(RAS!F$3:F$775,RAS!$C$3:$C$775,$B44,RAS!$N$3:$N$775,$A44,RAS!$O$3:$O$775,1) -> 5451.3925 | H44: =AVERAGEIFS(RAS!I$3:I$775,RAS!$C$3:$C$775,$B44,RAS!$N$3:$N$775,$A44,RAS!$O$3:$O$775,1) -> 0.014773875 | I44: =AVERAGEIFS(RAS!P$3:P$775,RAS!N$3:N$775,A44,RAS!C$3:C$775,B44,RAS!O$3:O$775,1) -> 0.0148308775 | J44: =AVERAGEIFS(RAS!Q$3:Q$775,RAS!N$3:N$775,A44,RAS!C$3:C$775,B44,RAS!O$3:O$775,1) -> 0.83375
A45: 6 | B45: 25 YR | C45: =AVERAGEIFS(RAS!K$3:K$775,RAS!$C$3:$C$775,$B45,RAS!$N$3:$N$775,$A45,RAS!$O$3:$O$775,1) -> 2.0675 | D45: =AVERAGEIFS(RAS!J$3:J$775,RAS!$C$3:$C$775,$B45,RAS!$N$3:$N$775,$A45,RAS!$O$3:$O$775,1) -> 6.8975 | E45: =AVERAGEIFS(RAS!M$3:M$775,RAS!$C$3:$C$775,$B45,RAS!$N$3:$N$775,$A45,RAS!$O$3:$O$775,1) -> 95.70625 | F45: =AVERAGEIFS(RAS!L$3:L$775,RAS!$C$3:$C$775,$B45,RAS!$N$3:$N$775,$A45,RAS!$O$3:$O$775,1) -> 99.00875 | G45: =AVERAGEIFS(RAS!F$3:F$775,RAS!$C$3:$C$775,$B45,RAS!$N$3:$N$775,$A45,RAS!$O$3:$O$775,1) -> 5451.66875 | H45: =AVERAGEIFS(RAS!I$3:I$775,RAS!$C$3:$C$775,$B45,RAS!$N$3:$N$775,$A45,RAS!$O$3:$O$775,1) -> 0.01471025 | I45: =AVERAGEIFS(RAS!P$3:P$775,RAS!N$3:N$775,A45,RAS!C$3:C$775,B45,RAS!O$3:O$775,1) -> 0.0148308775 | J45: =AVERAGEIFS(RAS!Q$3:Q$775,RAS!N$3:N$775,A45,RAS!C$3:C$775,B45,RAS!O$3:O$775,1) -> 0.84125
A46: 6 | B46: 50 YR | C46: =AVERAGEIFS(RAS!K$3:K$775,RAS!$C$3:$C$775,$B46,RAS!$N$3:$N$775,$A46,RAS!$O$3:$O$775,1) -> 2.16 | D46: =AVERAGEIFS(RAS!J$3:J$775,RAS!$C$3:$C$775,$B46,RAS!$N$3:$N$775,$A46,RAS!$O$3:$O$775,1) -> 7.14625 | E46: =AVERAGEIFS(RAS!M$3:M$775,RAS!$C$3:$C$775,$B46,RAS!$N$3:$N$775,$A46,RAS!$O$3:$O$775,1) -> 98.01125 | F46: =AVERAGEIFS(RAS!L$3:L$775,RAS!$C$3:$C$775,$B46,RAS!$N$3:$N$775,$A46,RAS!$O$3:$O$775,1) -> 103.145 | G46: =AVERAGEIFS(RAS!F$3:F$775,RAS!$C$3:$C$775,$B46,RAS!$N$3:$N$775,$A46,RAS!$O$3:$O$775,1) -> 5451.84625 | H46: =AVERAGEIFS(RAS!I$3:I$775,RAS!$C$3:$C$775,$B46,RAS!$N$3:$N$775,$A46,RAS!$O$3:$O$775,1) -> 0.01468125 | I46: =AVERAGEIFS(RAS!P$3:P$775,RAS!N$3:N$775,A46,RAS!C$3:C$775,B46,RAS!O$3:O$775,1) -> 0.0148308775 | J46: =AVERAGEIFS(RAS!Q$3:Q$775,RAS!N$3:N$775,A46,RAS!C$3:C$775,B46,RAS!O$3:O$775,1) -> 0.84625
A47: 6 | B47: 100 YR | C47: =AVERAGEIFS(RAS!K$3:K$775,RAS!$C$3:$C$775,$B47,RAS!$N$3:$N$775,$A47,RAS!$O$3:$O$775,1) -> 2.2375 | D47: =AVERAGEIFS(RAS!J$3:J$775,RAS!$C$3:$C$775,$B47,RAS!$N$3:$N$775,$A47,RAS!$O$3:$O$775,1) -> 7.36125 | E47: =AVERAGEIFS(RAS!M$3:M$775,RAS!$C$3:$C$775,$B47,RAS!$N$3:$N$775,$A47,RAS!$O$3:$O$775,1) -> 100.185 | F47: =AVERAGEIFS(RAS!L$3:L$775,RAS!$C$3:$C$775,$B47,RAS!$N$3:$N$775,$A47,RAS!$O$3:$O$775,1) -> 108 | G47: =AVERAGEIFS(RAS!F$3:F$775,RAS!$C$3:$C$775,$B47,RAS!$N$3:$N$775,$A47,RAS!$O$3:$O$775,1) -> 5452.0125 | H47: =AVERAGEIFS(RAS!I$3:I$775,RAS!$C$3:$C$775,$B47,RAS!$N$3:$N$775,$A47,RAS!$O$3:$O$775,1) -> 0.014631125 | I47: =AVERAGEIFS(RAS!P$3:P$775,RAS!N$3:N$775,A47,RAS!C$3:C$775,B47,RAS!O$3:O$775,1) -> 0.0148308775 | J47: =AVERAGEIFS(RAS!Q$3:Q$775,RAS!N$3:N$775,A47,RAS!C$3:C$775,B47,RAS!O$3:O$775,1) -> 0.8525
A48: 7 | B48: 2 YR | C48: =AVERAGEIFS(RAS!K$3:K$775,RAS!$C$3:$C$775,$B48,RAS!$N$3:$N$775,$A48,RAS!$O$3:$O$775,1) -> 1.767692308 | D48: =AVERAGEIFS(RAS!J$3:J$775,RAS!$C$3:$C$775,$B48,RAS!$N$3:$N$775,$A48,RAS!$O$3:$O$775,1) -> 6.623846154 | E48: =AVERAGEIFS(RAS!M$3:M$775,RAS!$C$3:$C$775,$B48,RAS!$N$3:$N$775,$A48,RAS!$O$3:$O$775,1) -> 55.15076923 | F48: =AVERAGEIFS(RAS!L$3:L$775,RAS!$C$3:$C$775,$B48,RAS!$N$3:$N$775,$A48,RAS!$O$3:$O$775,1) -> 55.15076923 | G48: =AVERAGEIFS(RAS!F$3:F$775,RAS!$C$3:$C$775,$B48,RAS!$N$3:$N$775,$A48,RAS!$O$3:$O$775,1) -> 5381.710769 | H48: =AVERAGEIFS(RAS!I$3:I$775,RAS!$C$3:$C$775,$B48,RAS!$N$3:$N$775,$A48,RAS!$O$3:$O$775,1) -> 0.01236630769 | I48: =AVERAGEIFS(RAS!P$3:P$775,RAS!N$3:N$775,A48,RAS!C$3:C$775,B48,RAS!O$3:O$775,1) -> 0.02617114203 | J48: =AVERAGEIFS(RAS!Q$3:Q$775,RAS!N$3:N$775,A48,RAS!C$3:C$775,B48,RAS!O$3:O$775,1) -> 0.8915384615
A49: 7 | B49: 5 YR | C49: =AVERAGEIFS(RAS!K$3:K$775,RAS!$C$3:$C$775,$B49,RAS!$N$3:$N$775,$A49,RAS!$O$3:$O$775,1) -> 2.312307692 | D49: =AVERAGEIFS(RAS!J$3:J$775,RAS!$C$3:$C$775,$B49,RAS!$N$3:$N$775,$A49,RAS!$O$3:$O$775,1) -> 7.64 | E49: =AVERAGEIFS(RAS!M$3:M$775,RAS!$C$3:$C$775,$B49,RAS!$N$3:$N$775,$A49,RAS!$O$3:$O$775,1) -> 62.72615385 | F49: =AVERAGEIFS(RAS!L$3:L$775,RAS!$C$3:$C$775,$B49,RAS!$N$3:$N$775,$A49,RAS!$O$3:$O$775,1) -> 63.68 | G49: =AVERAGEIFS(RAS!F$3:F$775,RAS!$C$3:$C$775,$B49,RAS!$N$3:$N$775,$A49,RAS!$O$3:$O$775,1) -> 5382.576923 | H49: =AVERAGEIFS(RAS!I$3:I$775,RAS!$C$3:$C$775,$B49,RAS!$N$3:$N$775,$A49,RAS!$O$3:$O$775,1) -> 0.01136584615 | I49: =AVERAGEIFS(RAS!P$3:P$775,RAS!N$3:N$775,A49,RAS!C$3:C$775,B49,RAS!O$3:O$775,1) -> 0.02617114203 | J49: =AVERAGEIFS(RAS!Q$3:Q$775,RAS!N$3:N$775,A49,RAS!C$3:C$775,B49,RAS!O$3:O$775,1) -> 0.8907692308
A50: 7 | B50: 10 YR | C50: =AVERAGEIFS(RAS!K$3:K$775,RAS!$C$3:$C$775,$B50,RAS!$N$3:$N$775,$A50,RAS!$O$3:$O$775,1) -> 2.606923077 | D50: =AVERAGEIFS(RAS!J$3:J$775,RAS!$C$3:$C$775,$B50,RAS!$N$3:$N$775,$A50,RAS!$O$3:$O$775,1) -> 8.187692308 | E50: =AVERAGEIFS(RAS!M$3:M$775,RAS!$C$3:$C$775,$B50,RAS!$N$3:$N$775,$A50,RAS!$O$3:$O$775,1) -> 66.78846154 | F50: =AVERAGEIFS(RAS!L$3:L$775,RAS!$C$3:$C$775,$B50,RAS!$N$3:$N$775,$A50,RAS!$O$3:$O$775,1) -> 68.75769231 | G50: =AVERAGEIFS(RAS!F$3:F$775,RAS!$C$3:$C$775,$B50,RAS!$N$3:$N$775,$A50,RAS!$O$3:$O$775,1) -> 5383.093846 | H50: =AVERAGEIFS(RAS!I$3:I$775,RAS!$C$3:$C$775,$B50,RAS!$N$3:$N$775,$A50,RAS!$O$3:$O$775,1) -> 0.01082492308 | I50: =AVERAGEIFS(RAS!P$3:P$775,RAS!N$3:N$775,A50,RAS!C$3:C$775,B50,RAS!O$3:O$775,1) -> 0.02617114203 | J50: =AVERAGEIFS(RAS!Q$3:Q$775,RAS!N$3:N$775,A50,RAS!C$3:C$775,B50,RAS!O$3:O$775,1) -> 0.8884615385
A51: 7 | B51: 25 YR | C51: =AVERAGEIFS(RAS!K$3:K$775,RAS!$C$3:$C$775,$B51,RAS!$N$3:$N$775,$A51,RAS!$O$3:$O$775,1) -> 2.836923077 | D51: =AVERAGEIFS(RAS!J$3:J$775,RAS!$C$3:$C$775,$B51,RAS!$N$3:$N$775,$A51,RAS!$O$3:$O$775,1) -> 8.663076923 | E51: =AVERAGEIFS(RAS!M$3:M$775,RAS!$C$3:$C$775,$B51,RAS!$N$3:$N$775,$A51,RAS!$O$3:$O$775,1) -> 70.73307692 | F51: =AVERAGEIFS(RAS!L$3:L$775,RAS!$C$3:$C$775,$B51,RAS!$N$3:$N$775,$A51,RAS!$O$3:$O$775,1) -> 75.01538462 | G51: =AVERAGEIFS(RAS!F$3:F$775,RAS!$C$3:$C$775,$B51,RAS!$N$3:$N$775,$A51,RAS!$O$3:$O$775,1) -> 5383.588462 | H51: =AVERAGEIFS(RAS!I$3:I$775,RAS!$C$3:$C$775,$B51,RAS!$N$3:$N$775,$A51,RAS!$O$3:$O$775,1) -> 0.01030761538 | I51: =AVERAGEIFS(RAS!P$3:P$775,RAS!N$3:N$775,A51,RAS!C$3:C$775,B51,RAS!O$3:O$775,1) -> 0.02617114203 | J51: =AVERAGEIFS(RAS!Q$3:Q$775,RAS!N$3:N$775,A51,RAS!C$3:C$775,B51,RAS!O$3:O$775,1) -> 0.8876923077
A52: 7 | B52: 50 YR | C52: =AVERAGEIFS(RAS!K$3:K$775,RAS!$C$3:$C$775,$B52,RAS!$N$3:$N$775,$A52,RAS!$O$3:$O$775,1) -> 2.881538462 | D52: =AVERAGEIFS(RAS!J$3:J$775,RAS!$C$3:$C$775,$B52,RAS!$N$3:$N$775,$A52,RAS!$O$3:$O$775,1) -> 8.97 | E52: =AVERAGEIFS(RAS!M$3:M$775,RAS!$C$3:$C$775,$B52,RAS!$N$3:$N$775,$A52,RAS!$O$3:$O$775,1) -> 72.67461538 | F52: =AVERAGEIFS(RAS!L$3:L$775,RAS!$C$3:$C$775,$B52,RAS!$N$3:$N$775,$A52,RAS!$O$3:$O$775,1) -> 83.26153846 | G52: =AVERAGEIFS(RAS!F$3:F$775,RAS!$C$3:$C$775,$B52,RAS!$N$3:$N$775,$A52,RAS!$O$3:$O$775,1) -> 5383.94 | H52: =AVERAGEIFS(RAS!I$3:I$775,RAS!$C$3:$C$775,$B52,RAS!$N$3:$N$775,$A52,RAS!$O$3:$O$775,1) -> 0.009997230769 | I52: =AVERAGEIFS(RAS!P$3:P$775,RAS!N$3:N$775,A52,RAS!C$3:C$775,B52,RAS!O$3:O$775,1) -> 0.08865536303 | J52: =AVERAGEIFS(RAS!Q$3:Q$775,RAS!N$3:N$775,A52,RAS!C$3:C$775,B52,RAS!O$3:O$775,1) -> 0.8846153846
A53: 7 | B53: 100 YR | C53: =AVERAGEIFS(RAS!K$3:K$775,RAS!$C$3:$C$775,$B53,RAS!$N$3:$N$775,$A53,RAS!$O$3:$O$775,1) -> 3.045384615 | D53: =AVERAGEIFS(RAS!J$3:J$775,RAS!$C$3:$C$775,$B53,RAS!$N$3:$N$775,$A53,RAS!$O$3:$O$775,1) -> 9.292307692 | E53: =AVERAGEIFS(RAS!M$3:M$775,RAS!$C$3:$C$775,$B53,RAS!$N$3:$N$775,$A53,RAS!$O$3:$O$775,1) -> 74.60692308 | F53: =AVERAGEIFS(RAS!L$3:L$775,RAS!$C$3:$C$775,$B53,RAS!$N$3:$N$775,$A53,RAS!$O$3:$O$775,1) -> 89.44230769 | G53: =AVERAGEIFS(RAS!F$3:F$775,RAS!$C$3:$C$775,$B53,RAS!$N$3:$N$775,$A53,RAS!$O$3:$O$775,1) -> 5384.280769 | H53: =AVERAGEIFS(RAS!I$3:I$775,RAS!$C$3:$C$775,$B53,RAS!$N$3:$N$775,$A53,RAS!$O$3:$O$775,1) -> 0.009808230769 | I53: =AVERAGEIFS(RAS!P$3:P$775,RAS!N$3:N$775,A53,RAS!C$3:C$775,B53,RAS!O$3:O$775,1) -> 0.02628209378 | J53: =AVERAGEIFS(RAS!Q$3:Q$775,RAS!N$3:N$775,A53,RAS!C$3:C$775,B53,RAS!O$3:O$775,1) -> 0.8815384615
A54: 8 | B54: 2 YR | C54: =AVERAGEIFS(RAS!K$3:K$775,RAS!$C$3:$C$775,$B54,RAS!$N$3:$N$775,$A54,RAS!$O$3:$O$775,1) -> 1.749090909 | D54: =AVERAGEIFS(RAS!J$3:J$775,RAS!$C$3:$C$775,$B54,RAS!$N$3:$N$775,$A54,RAS!$O$3:$O$775,1) -> 6.423636364 | E54: =AVERAGEIFS(RAS!M$3:M$775,RAS!$C$3:$C$775,$B54,RAS!$N$3:$N$775,$A54,RAS!$O$3:$O$775,1) -> 56.95636364 | F54: =AVERAGEIFS(RAS!L$3:L$775,RAS!$C$3:$C$775,$B54,RAS!$N$3:$N$775,$A54,RAS!$O$3:$O$775,1) -> 59.83727273 | G54: =AVERAGEIFS(RAS!F$3:F$775,RAS!$C$3:$C$775,$B54,RAS!$N$3:$N$775,$A54,RAS!$O$3:$O$775,1) -> 5343.608182 | H54: =AVERAGEIFS(RAS!I$3:I$775,RAS!$C$3:$C$775,$B54,RAS!$N$3:$N$775,$A54,RAS!$O$3:$O$775,1) -> 0.01676318182 | I54: =AVERAGEIFS(RAS!P$3:P$775,RAS!N$3:N$775,A54,RAS!C$3:C$775,B54,RAS!O$3:O$775,1) -> 0.01962547575 | J54: =AVERAGEIFS(RAS!Q$3:Q$775,RAS!N$3:N$775,A54,RAS!C$3:C$775,B54,RAS!O$3:O$775,1) -> 0.8627272727
A55: 8 | B55: 5 YR | C55: =AVERAGEIFS(RAS!K$3:K$775,RAS!$C$3:$C$775,$B55,RAS!$N$3:$N$775,$A55,RAS!$O$3:$O$775,1) -> 2.370909091 | D55: =AVERAGEIFS(RAS!J$3:J$775,RAS!$C$3:$C$775,$B55,RAS!$N$3:$N$775,$A55,RAS!$O$3:$O$775,1) -> 7.675454545 | E55: =AVERAGEIFS(RAS!M$3:M$775,RAS!$C$3:$C$775,$B55,RAS!$N$3:$N$775,$A55,RAS!$O$3:$O$775,1) -> 62.09909091 | F55: =AVERAGEIFS(RAS!L$3:L$775,RAS!$C$3:$C$775,$B55,RAS!$N$3:$N$775,$A55,RAS!$O$3:$O$775,1) -> 65.82181818 | G55: =AVERAGEIFS(RAS!F$3:F$775,RAS!$C$3:$C$775,$B55,RAS!$N$3:$N$775,$A55,RAS!$O$3:$O$775,1) -> 5344.411818 | H55: =AVERAGEIFS(RAS!I$3:I$775,RAS!$C$3:$C$775,$B55,RAS!$N$3:$N$775,$A55,RAS!$O$3:$O$775,1) -> 0.01590254545 | I55: =AVERAGEIFS(RAS!P$3:P$775,RAS!N$3:N$775,A55,RAS!C$3:C$775,B55,RAS!O$3:O$775,1) -> 0.01962547575 | J55: =AVERAGEIFS(RAS!Q$3:Q$775,RAS!N$3:N$775,A55,RAS!C$3:C$775,B55,RAS!O$3:O$775,1) -> 0.8836363636
A56: 8 | B56: 10 YR | C56: =AVERAGEIFS(RAS!K$3:K$775,RAS!$C$3:$C$775,$B56,RAS!$N$3:$N$775,$A56,RAS!$O$3:$O$775,1) -> 2.743636364 | D56: =AVERAGEIFS(RAS!J$3:J$775,RAS!$C$3:$C$775,$B56,RAS!$N$3:$N$775,$A56,RAS!$O$3:$O$775,1) -> 8.360909091 | E56: =AVERAGEIFS(RAS!M$3:M$775,RAS!$C$3:$C$775,$B56,RAS!$N$3:$N$775,$A56,RAS!$O$3:$O$775,1) -> 65.21272727 | F56: =AVERAGEIFS(RAS!L$3:L$775,RAS!$C$3:$C$775,$B56,RAS!$N$3:$N$775,$A56,RAS!$O$3:$O$775,1) -> 69.35 | G56: =AVERAGEIFS(RAS!F$3:F$775,RAS!$C$3:$C$775,$B56,RAS!$N$3:$N$775,$A56,RAS!$O$3:$O$775,1) -> 5344.914545 | H56: =AVERAGEIFS(RAS!I$3:I$775,RAS!$C$3:$C$775,$B56,RAS!$N$3:$N$775,$A56,RAS!$O$3:$O$775,1) -> 0.01554972727 | I56: =AVERAGEIFS(RAS!P$3:P$775,RAS!N$3:N$775,A56,RAS!C$3:C$775,B56,RAS!O$3:O$775,1) -> 0.01962547575 | J56: =AVERAGEIFS(RAS!Q$3:Q$775,RAS!N$3:N$775,A56,RAS!C$3:C$775,B56,RAS!O$3:O$775,1) -> 0.8945454545
A57: 8 | B57: 25 YR | C57: =AVERAGEIFS(RAS!K$3:K$775,RAS!$C$3:$C$775,$B57,RAS!$N$3:$N$775,$A57,RAS!$O$3:$O$775,1) -> 3.099090909 | D57: =AVERAGEIFS(RAS!J$3:J$775,RAS!$C$3:$C$775,$B57,RAS!$N$3:$N$775,$A57,RAS!$O$3:$O$775,1) -> 8.99 | E57: =AVERAGEIFS(RAS!M$3:M$775,RAS!$C$3:$C$775,$B57,RAS!$N$3:$N$775,$A57,RAS!$O$3:$O$775,1) -> 68.46545455 | F57: =AVERAGEIFS(RAS!L$3:L$775,RAS!$C$3:$C$775,$B57,RAS!$N$3:$N$775,$A57,RAS!$O$3:$O$775,1) -> 73.03181818 | G57: =AVERAGEIFS(RAS!F$3:F$775,RAS!$C$3:$C$775,$B57,RAS!$N$3:$N$775,$A57,RAS!$O$3:$O$775,1) -> 5345.414545 | H57: =AVERAGEIFS(RAS!I$3:I$775,RAS!$C$3:$C$775,$B57,RAS!$N$3:$N$775,$A57,RAS!$O$3:$O$775,1) -> 0.01531718182 | I57: =AVERAGEIFS(RAS!P$3:P$775,RAS!N$3:N$775,A57,RAS!C$3:C$775,B57,RAS!O$3:O$775,1) -> 0.01962547575 | J57: =AVERAGEIFS(RAS!Q$3:Q$775,RAS!N$3:N$775,A57,RAS!C$3:C$775,B57,RAS!O$3:O$775,1) -> 0.9045454545
A58: 8 | B58: 50 YR | C58: =AVERAGEIFS(RAS!K$3:K$775,RAS!$C$3:$C$775,$B58,RAS!$N$3:$N$775,$A58,RAS!$O$3:$O$775,1) -> 3.350909091 | D58: =AVERAGEIFS(RAS!J$3:J$775,RAS!$C$3:$C$775,$B58,RAS!$N$3:$N$775,$A58,RAS!$O$3:$O$775,1) -> 9.404545455 | E58: =AVERAGEIFS(RAS!M$3:M$775,RAS!$C$3:$C$775,$B58,RAS!$N$3:$N$775,$A58,RAS!$O$3:$O$775,1) -> 70.69727273 | F58: =AVERAGEIFS(RAS!L$3:L$775,RAS!$C$3:$C$775,$B58,RAS!$N$3:$N$775,$A58,RAS!$O$3:$O$775,1) -> 75.56727273 | G58: =AVERAGEIFS(RAS!F$3:F$775,RAS!$C$3:$C$775,$B58,RAS!$N$3:$N$775,$A58,RAS!$O$3:$O$775,1) -> 5345.772727 | H58: =AVERAGEIFS(RAS!I$3:I$775,RAS!$C$3:$C$775,$B58,RAS!$N$3:$N$775,$A58,RAS!$O$3:$O$775,1) -> 0.01510727273 | I58: =AVERAGEIFS(RAS!P$3:P$775,RAS!N$3:N$775,A58,RAS!C$3:C$775,B58,RAS!O$3:O$775,1) -> 0.1721515725 | J58: =AVERAGEIFS(RAS!Q$3:Q$775,RAS!N$3:N$775,A58,RAS!C$3:C$775,B58,RAS!O$3:O$775,1) -> 0.9127272727
A59: 8 | B59: 100 YR | C59: =AVERAGEIFS(RAS!K$3:K$775,RAS!$C$3:$C$775,$B59,RAS!$N$3:$N$775,$A59,RAS!$O$3:$O$775,1) -> 3.604545455 | D59: =AVERAGEIFS(RAS!J$3:J$775,RAS!$C$3:$C$775,$B59,RAS!$N$3:$N$775,$A59,RAS!$O$3:$O$775,1) -> 9.775454545 | E59: =AVERAGEIFS(RAS!M$3:M$775,RAS!$C$3:$C$775,$B59,RAS!$N$3:$N$775,$A59,RAS!$O$3:$O$775,1) -> 72.98818182 | F59: =AVERAGEIFS(RAS!L$3:L$775,RAS!$C$3:$C$775,$B59,RAS!$N$3:$N$775,$A59,RAS!$O$3:$O$775,1) -> 78.4 | G59: =AVERAGEIFS(RAS!F$3:F$775,RAS!$C$3:$C$775,$B59,RAS!$N$3:$N$775,$A59,RAS!$O$3:$O$775,1) -> 5346.153636 | H59: =AVERAGEIFS(RAS!I$3:I$775,RAS!$C$3:$C$775,$B59,RAS!$N$3:$N$775,$A59,RAS!$O$3:$O$775,1) -> 0.014763 | I59: =AVERAGEIFS(RAS!P$3:P$775,RAS!N$3:N$775,A59,RAS!C$3:C$775,B59,RAS!O$3:O$775,1) -> 0.01978521217 | J59: =AVERAGEIFS(RAS!Q$3:Q$775,RAS!N$3:N$775,A59,RAS!C$3:C$775,B59,RAS!O$3:O$775,1) -> 0.9109090909
A60: 9 | B60: 2 YR | C60: =AVERAGEIFS(RAS!K$3:K$775,RAS!$C$3:$C$775,$B60,RAS!$N$3:$N$775,$A60,RAS!$O$3:$O$775,1) -> 1.723 | D60: =AVERAGEIFS(RAS!J$3:J$775,RAS!$C$3:$C$775,$B60,RAS!$N$3:$N$775,$A60,RAS!$O$3:$O$775,1) -> 6.789 | E60: =AVERAGEIFS(RAS!M$3:M$775,RAS!$C$3:$C$775,$B60,RAS!$N$3:$N$775,$A60,RAS!$O$3:$O$775,1) -> 60.273 | F60: =AVERAGEIFS(RAS!L$3:L$775,RAS!$C$3:$C$775,$B60,RAS!$N$3:$N$775,$A60,RAS!$O$3:$O$775,1) -> 60.273 | G60: =AVERAGEIFS(RAS!F$3:F$775,RAS!$C$3:$C$775,$B60,RAS!$N$3:$N$775,$A60,RAS!$O$3:$O$775,1) -> 5303.87 | H60: =AVERAGEIFS(RAS!I$3:I$775,RAS!$C$3:$C$775,$B60,RAS!$N$3:$N$775,$A60,RAS!$O$3:$O$775,1) -> 0.0186093 | I60: =AVERAGEIFS(RAS!P$3:P$775,RAS!N$3:N$775,A60,RAS!C$3:C$775,B60,RAS!O$3:O$775,1) -> 0.03522200409 | J60: =AVERAGEIFS(RAS!Q$3:Q$775,RAS!N$3:N$775,A60,RAS!C$3:C$775,B60,RAS!O$3:O$775,1) -> 0.915
A61: 9 | B61: 5 YR | C61: =AVERAGEIFS(RAS!K$3:K$775,RAS!$C$3:$C$775,$B61,RAS!$N$3:$N$775,$A61,RAS!$O$3:$O$775,1) -> 2.222 | D61: =AVERAGEIFS(RAS!J$3:J$775,RAS!$C$3:$C$775,$B61,RAS!$N$3:$N$775,$A61,RAS!$O$3:$O$775,1) -> 7.989 | E61: =AVERAGEIFS(RAS!M$3:M$775,RAS!$C$3:$C$775,$B61,RAS!$N$3:$N$775,$A61,RAS!$O$3:$O$775,1) -> 66.589 | F61: =AVERAGEIFS(RAS!L$3:L$775,RAS!$C$3:$C$775,$B61,RAS!$N$3:$N$775,$A61,RAS!$O$3:$O$775,1) -> 67.713 | G61: =AVERAGEIFS(RAS!F$3:F$775,RAS!$C$3:$C$775,$B61,RAS!$N$3:$N$775,$A61,RAS!$O$3:$O$775,1) -> 5304.608 | H61: =AVERAGEIFS(RAS!I$3:I$775,RAS!$C$3:$C$775,$B61,RAS!$N$3:$N$775,$A61,RAS!$O$3:$O$775,1) -> 0.0178041 | I61: =AVERAGEIFS(RAS!P$3:P$775,RAS!N$3:N$775,A61,RAS!C$3:C$775,B61,RAS!O$3:O$775,1) -> 0.03522200409 | J61: =AVERAGEIFS(RAS!Q$3:Q$775,RAS!N$3:N$775,A61,RAS!C$3:C$775,B61,RAS!O$3:O$775,1) -> 0.94
A62: 9 | B62: 10 YR | C62: =AVERAGEIFS(RAS!K$3:K$775,RAS!$C$3:$C$775,$B62,RAS!$N$3:$N$775,$A62,RAS!$O$3:$O$775,1) -> 2.548 | D62: =AVERAGEIFS(RAS!J$3:J$775,RAS!$C$3:$C$775,$B62,RAS!$N$3:$N$775,$A62,RAS!$O$3:$O$775,1) -> 8.666 | E62: =AVERAGEIFS(RAS!M$3:M$775,RAS!$C$3:$C$775,$B62,RAS!$N$3:$N$775,$A62,RAS!$O$3:$O$775,1) -> 69.861 | F62: =AVERAGEIFS(RAS!L$3:L$775,RAS!$C$3:$C$775,$B62,RAS!$N$3:$N$775,$A62,RAS!$O$3:$O$775,1) -> 71.341 | G62: =AVERAGEIFS(RAS!F$3:F$775,RAS!$C$3:$C$775,$B62,RAS!$N$3:$N$775,$A62,RAS!$O$3:$O$775,1) -> 5305.06 | H62: =AVERAGEIFS(RAS!I$3:I$775,RAS!$C$3:$C$775,$B62,RAS!$N$3:$N$775,$A62,RAS!$O$3:$O$775,1) -> 0.0173932 | I62: =AVERAGEIFS(RAS!P$3:P$775,RAS!N$3:N$775,A62,RAS!C$3:C$775,B62,RAS!O$3:O$775,1) -> 0.03522200409 | J62: =AVERAGEIFS(RAS!Q$3:Q$775,RAS!N$3:N$775,A62,RAS!C$3:C$775,B62,RAS!O$3:O$775,1) -> 0.95
A63: 9 | B63: 25 YR | C63: =AVERAGEIFS(RAS!K$3:K$775,RAS!$C$3:$C$775,$B63,RAS!$N$3:$N$775,$A63,RAS!$O$3:$O$775,1) -> 2.873 | D63: =AVERAGEIFS(RAS!J$3:J$775,RAS!$C$3:$C$775,$B63,RAS!$N$3:$N$775,$A63,RAS!$O$3:$O$775,1) -> 9.234 | E63: =AVERAGEIFS(RAS!M$3:M$775,RAS!$C$3:$C$775,$B63,RAS!$N$3:$N$775,$A63,RAS!$O$3:$O$775,1) -> 73.203 | F63: =AVERAGEIFS(RAS!L$3:L$775,RAS!$C$3:$C$775,$B63,RAS!$N$3:$N$775,$A63,RAS!$O$3:$O$775,1) -> 75.004 | G63: =AVERAGEIFS(RAS!F$3:F$775,RAS!$C$3:$C$775,$B63,RAS!$N$3:$N$775,$A63,RAS!$O$3:$O$775,1) -> 5305.525 | H63: =AVERAGEIFS(RAS!I$3:I$775,RAS!$C$3:$C$775,$B63,RAS!$N$3:$N$775,$A63,RAS!$O$3:$O$775,1) -> 0.0168131 | I63: =AVERAGEIFS(RAS!P$3:P$775,RAS!N$3:N$775,A63,RAS!C$3:C$775,B63,RAS!O$3:O$775,1) -> 0.03522200409 | J63: =AVERAGEIFS(RAS!Q$3:Q$775,RAS!N$3:N$775,A63,RAS!C$3:C$775,B63,RAS!O$3:O$775,1) -> 0.953
A64: 9 | B64: 50 YR | C64: =AVERAGEIFS(RAS!K$3:K$775,RAS!$C$3:$C$775,$B64,RAS!$N$3:$N$775,$A64,RAS!$O$3:$O$775,1) -> 3.074 | D64: =AVERAGEIFS(RAS!J$3:J$775,RAS!$C$3:$C$775,$B64,RAS!$N$3:$N$775,$A64,RAS!$O$3:$O$775,1) -> 9.584 | E64: =AVERAGEIFS(RAS!M$3:M$775,RAS!$C$3:$C$775,$B64,RAS!$N$3:$N$775,$A64,RAS!$O$3:$O$775,1) -> 76.094 | F64: =AVERAGEIFS(RAS!L$3:L$775,RAS!$C$3:$C$775,$B64,RAS!$N$3:$N$775,$A64,RAS!$O$3:$O$775,1) -> 78.259 | G64: =AVERAGEIFS(RAS!F$3:F$775,RAS!$C$3:$C$775,$B64,RAS!$N$3:$N$775,$A64,RAS!$O$3:$O$775,1) -> 5305.868 | H64: =AVERAGEIFS(RAS!I$3:I$775,RAS!$C$3:$C$775,$B64,RAS!$N$3:$N$775,$A64,RAS!$O$3:$O$775,1) -> 0.0164637 | I64: =AVERAGEIFS(RAS!P$3:P$775,RAS!N$3:N$775,A64,RAS!C$3:C$775,B64,RAS!O$3:O$775,1) -> 0.03522200409 | J64: =AVERAGEIFS(RAS!Q$3:Q$775,RAS!N$3:N$775,A64,RAS!C$3:C$775,B64,RAS!O$3:O$775,1) -> 0.954
A65: 9 | B65: 100 YR | C65: =AVERAGEIFS(RAS!K$3:K$775,RAS!$C$3:$C$775,$B65,RAS!$N$3:$N$775,$A65,RAS!$O$3:$O$775,1) -> 3.279 | D65: =AVERAGEIFS(RAS!J$3:J$775,RAS!$C$3:$C$775,$B65,RAS!$N$3:$N$775,$A65,RAS!$O$3:$O$775,1) -> 9.966 | E65: =AVERAGEIFS(RAS!M$3:M$775,RAS!$C$3:$C$775,$B65,RAS!$N$3:$N$775,$A65,RAS!$O$3:$O$775,1) -> 78.673 | F65: =AVERAGEIFS(RAS!L$3:L$775,RAS!$C$3:$C$775,$B65,RAS!$N$3:$N$775,$A65,RAS!$O$3:$O$775,1) -> 81.367 | G65: =AVERAGEIFS(RAS!F$3:F$775,RAS!$C$3:$C$775,$B65,RAS!$N$3:$N$775,$A65,RAS!$O$3:$O$775,1) -> 5306.206 | H65: =AVERAGEIFS(RAS!I$3:I$775,RAS!$C$3:$C$775,$B65,RAS!$N$3:$N$775,$A65,RAS!$O$3:$O$775,1) -> 0.0162503 | I65: =AVERAGEIFS(RAS!P$3:P$775,RAS!N$3:N$775,A65,RAS!C$3:C$775,B65,RAS!O$3:O$775,1) -> 0.03522200409 | J65: =AVERAGEIFS(RAS!Q$3:Q$775,RAS!N$3:N$775,A65,RAS!C$3:C$775,B65,RAS!O$3:O$775,1) -> 0.959

Sheet MUSLE
A1: MUSLE Yields By Sub-Reach
AH2: From Tt Tribs Study
A4: α: | B4: 285 | C4: β: | D4: 0.56 | E4: K: | F4: =AL27 -> 0.206731702 | G4: C: | H4: 0.2 | I4: P: | J4: 1 | K4: Ffs: | L4: 0.2 | M4: LS: | N4: =AQ44 -> 1.168239735
B5: V (acre-ft) | H5: qp (cfs) | N5: Rw | T5: Ys, Clay & Silt (tons) | Z5: Imperv. Area | AA5: Y's, Clay & Silt adj. for Impervious Area (tons)
A6: Sub-Reach | B6: 2-yr | C6: 5-yr | D6: 10-yr | E6: 25-yr | F6: 50-yr | G6: 100-yr | H6: 2-yr | I6: 5-yr | J6: 10-yr | K6: 25-yr | L6: 50-yr | M6: 100-yr | N6: 2-yr | O6: 5-yr | P6: 10-yr | Q6: 25-yr | R6: 50-yr | S6: 100-yr | T6: 2-yr | U6: 5-yr | V6: 10-yr | W6: 25-yr | X6: 50-yr | Y6: 100-yr | Z6: (fraction) | AA6: 2-yr | AB6: 5-yr | AC6: 10-yr | AD6: 25-yr | AE6: 50-yr | AF6: 100-yr
A7: 0 | B7: ='Hydro Input'!J22 -> 10 | C7: ='Hydro Input'!K22 -> 15.1 | D7: ='Hydro Input'!L22 -> 19 | E7: ='Hydro Input'!M22 -> 22.8 | F7: ='Hydro Input'!N22 -> 25.9 | G7: ='Hydro Input'!O22 -> 29 | H7: ='Hydro Input'!D22 -> 117 | I7: ='Hydro Input'!E22 -> 180.3 | J7: ='Hydro Input'!F22 -> 228 | K7: ='Hydro Input'!G22 -> 286.8 | L7: ='Hydro Input'!H22 -> 331.3 | M7: ='Hydro Input'!I22 -> 378 | N7: =$B$4*(B7*H7)^$D$4 -> 14894.60336 | O7: =$B$4*(C7*I7)^$D$4 -> 23901.74218 | P7: 31002.04847 | Q7: 39042.05749 | R7: 45458.6707 | S7: 52141.4551 | T7: =N7*$F$4*$N$4*$H$4*$J$4*$L$4 -> 143.8891304 | U7: =O7*$F$4*$N$4*$H$4*$J$4*$L$4 -> 230.9024828 | V7: 299.4949033 | W7: 377.1653104 | X7: 439.1529225 | Y7: 503.7118779 | Z7: =SUMIF(HMS!S$2:S$53,A7,HMS!U$2:U$53)/SUMIF(HMS!S$2:S$53,A7,HMS!R$2:R$53) -> 0.4758832773 | AA7: =T7*(1-$Z7) -> 75.41469945 | AB7: =U7*(1-$Z7) -> 121.0198525 | AC7: 156.9702872 | AD7: 197.6786464 | AE7: 230.1673905 | AF7: 264.0038187
A8: 1 | B8: ='Hydro Input'!J23 -> 71 | C8: ='Hydro Input'!K23 -> 106.7 | D8: ='Hydro Input'!L23 -> 136 | E8: ='Hydro Input'!M23 -> 174.2 | F8: ='Hydro Input'!N23 -> 203.1 | G8: ='Hydro Input'!O23 -> 234 | H8: ='Hydro Input'!D23 -> 791 | I8: ='Hydro Input'!E23 -> 1188.6 | J8: ='Hydro Input'!F23 -> 1512 | K8: ='Hydro Input'!G23 -> 1937.7 | L8: ='Hydro Input'!H23 -> 2278.5 | M8: ='Hydro Input'!I23 -> 2651 | N8: =$B$4*(B8*H8)^$D$4 -> 130175.2337 | O8: =$B$4*(C8*I8)^$D$4 -> 205417.2644 | P8: =$B$4*(D8*J8)^$D$4 -> 269262.3624 | Q8: =$B$4*(E8*K8)^$D$4 -> 355395.7961 | R8: =$B$4*(F8*L8)^$D$4 -> 424078.1294 | S8: =$B$4*(G8*M8)^$D$4 -> 499706.7175 | T8: =N8*$F$4*$N$4*$H$4*$J$4*$L$4 -> 1257.556225 | U8: =O8*$F$4*$N$4*$H$4*$J$4*$L$4 -> 1984.430926 | V8: =P8*$F$4*$N$4*$H$4*$J$4*$L$4 -> 2601.2057 | W8: =Q8*$F$4*$N$4*$H$4*$J$4*$L$4 -> 3433.296665 | X8: =R8*$F$4*$N$4*$H$4*$J$4*$L$4 -> 4096.80149 | Y8: =S8*$F$4*$N$4*$H$4*$J$4*$L$4 -> 4827.410524 | Z8: =SUMIF(HMS!S$2:S$53,A8,HMS!U$2:U$53)/SUMIF(HMS!S$2:S$53,A8,HMS!R$2:R$53) -> 0.496101016 | AA8: =T8*(1-$Z8) -> 633.681304 | AB8: =U8*(1-$Z8) -> 999.9527276 | AC8: =V8*(1-$Z8) -> 1310.744909 | AD8: =W8*(1-$Z8) -> 1730.034701 | AE8: =X8*(1-$Z8) -> 2064.374109 | AF8: =Y8*(1-$Z8) -> 2432.527259
A9: 2 | B9: ='Hydro Input'!J24 -> 115 | C9: ='Hydro Input'!K24 -> 173.3 | D9: ='Hydro Input'!L24 -> 221 | E9: ='Hydro Input'!M24 -> 281.9 | F9: ='Hydro Input'!N24 -> 328.4 | G9: ='Hydro Input'!O24 -> 378 | H9: ='Hydro Input'!D24 -> 301 | I9: ='Hydro Input'!E24 -> 473.2 | J9: ='Hydro Input'!F24 -> 557 | K9: ='Hydro Input'!G24 -> 688.1 | L9: ='Hydro Input'!H24 -> 764.6 | M9: ='Hydro Input'!I24 -> 837 | N9: =$B$4*(B9*H9)^$D$4 -> 99273.39815 | O9: 160915.214 | P9: 202014.9185 | Q9: 260605.1386 | R9: 301129.8637 | S9: 342741.3669 | T9: 959.0294271 | U9: 1554.519422 | V9: 1951.562605 | W9: 2517.572698 | X9: 2909.0613 | Y9: 3311.048708 | Z9: =SUMIF(HMS!S$2:S$53,A9,HMS!U$2:U$53)/SUMIF(HMS!S$2:S$53,A9,HMS!R$2:R$53) -> 0.5175342905 | AA9: 462.6988129 | AB9: 750.0023159 | AC9: 941.5620369 | AD9: 1214.642498 | AE9: 1403.522324 | AF9: 1597.467464
A10: 3 | B10: ='Hydro Input'!J25 -> 125 | C10: ='Hydro Input'!K25 -> 187.1 | D10: ='Hydro Input'!L25 -> 238 | E10: ='Hydro Input'!M25 -> 303 | F10: ='Hydro Input'!N25 -> 352.8 | G10: ='Hydro Input'!O25 -> 406 | H10: ='Hydro Input'!D25 -> 311 | I10: ='Hydro Input'!E25 -> 487.8 | J10: ='Hydro Input'!F25 -> 594 | K10: ='Hydro Input'!G25 -> 708.3 | L10: ='Hydro Input'!H25 -> 788.9 | M10: ='Hydro Input'!I25 -> 865 | N10: 105940.0772 | O10: 170852.5979 | P10: 218297.3005 | Q10: 275787.379 | R10: 319001.8181 | S10: 363369.4897 | T10: 1023.432797 | U10: 1650.519395 | V10: 2108.858354 | W10: 2664.240541 | X10: 3081.713093 | Y10: 3510.326432 | Z10: =SUMIF(HMS!S$2:S$53,A10,HMS!U$2:U$53)/SUMIF(HMS!S$2:S$53,A10,HMS!R$2:R$53) -> 0.4665153771 | AA10: 545.9856599 | AB10: 880.5267169 | AC10: 1125.043504 | AD10: 1421.33136 | AE10: 1644.046547 | AF10: 1872.705173
A11: 4 | B11: ='Hydro Input'!J26 -> 125 | C11: ='Hydro Input'!K26 -> 187.1 | D11: ='Hydro Input'!L26 -> 238 | E11: ='Hydro Input'!M26 -> 303 | F11: ='Hydro Input'!N26 -> 352.8 | G11: ='Hydro Input'!O26 -> 406 | H11: ='Hydro Input'!D26 -> 311 | I11: ='Hydro Input'!E26 -> 487.8 | J11: ='Hydro Input'!F26 -> 594 | K11: ='Hydro Input'!G26 -> 708.3 | L11: ='Hydro Input'!H26 -> 788.9 | M11: ='Hydro Input'!I26 -> 865 | N11: 105940.0772 | O11: 170852.5979 | P11: 218297.3005 | Q11: 275787.379 | R11: 319001.8181 | S11: 363369.4897 | T11: 1023.432797 | U11: 1650.519395 | V11: 2108.858354 | W11: 2664.240541 | X11: 3081.713093 | Y11: 3510.326432 | Z11: =SUMIF(HMS!S$2:S$53,A11,HMS!U$2:U$53)/SUMIF(HMS!S$2:S$53,A11,HMS!R$2:R$53) -> 0.588160653 | AA11: 421.4898949 | AB11: 679.7488298 | AC11: 868.5108474 | AD11: 1097.239085 | AE11: 1269.170708 | AF11: 1445.690546
A12: 5 | B12: ='Hydro Input'!J27 -> 197.8 | C12: ='Hydro Input'!K27 -> 297.3 | D12: ='Hydro Input'!L27 -> 377.3 | E12: ='Hydro Input'!M27 -> 480.6 | F12: ='Hydro Input'!N27 -> 558.9 | G12: ='Hydro Input'!O27 -> 642.8 | H12: ='Hydro Input'!D27 -> 475.2 | I12: ='Hydro Input'!E27 -> 838.1 | J12: ='Hydro Input'!F27 -> 1069.7 | K12: ='Hydro Input'!G27 -> 1303.3 | L12: ='Hydro Input'!H27 -> 1464.1 | M12: ='Hydro Input'!I27 -> 1619.7 | N12: 173693.0266 | O12: 299833.1725 | P12: 392804.2595 | Q12: 502421.9799 | R12: 583541.2699 | S12: 667806.6081 | T12: 1677.959321 | U12: 2896.53463 | V12: 3794.680659 | W12: 4853.641282 | X12: 5637.293174 | Y12: 6451.337424 | Z12: =SUMIF(HMS!S$2:S$53,A12,HMS!U$2:U$53)/SUMIF(HMS!S$2:S$53,A12,HMS!R$2:R$53) -> 0.5018597749 | AA12: 835.859034 | AB12: 1442.880413 | AC12: 1890.283078 | AD12: 2417.793961 | AE12: 2808.162491 | AF12: 3213.670677
A13: 6 | B13: ='Hydro Input'!J28 -> 206 | C13: ='Hydro Input'!K28 -> 309.4 | D13: ='Hydro Input'!L28 -> 393 | E13: ='Hydro Input'!M28 -> 500.1 | F13: ='Hydro Input'!N28 -> 581.8 | G13: ='Hydro Input'!O28 -> 669 | H13: ='Hydro Input'!D28 -> 499 | I13: ='Hydro Input'!E28 -> 878.4 | J13: ='Hydro Input'!F28 -> 1122 | K13: ='Hydro Input'!G28 -> 1364.7 | L13: ='Hydro Input'!H28 -> 1534.8 | M13: ='Hydro Input'!I28 -> 1701 | N13: 182619.3569 | O13: 314777.6845 | P13: 412762.9314 | Q13: 527154.0238 | R13: 612783.6148 | S13: 701904.2977 | T13: 1764.192024 | U13: 3040.905903 | V13: 3987.491161 | W13: 5092.564884 | X13: 5919.788482 | Y13: 6780.737731 | Z13: =SUMIF(HMS!S$2:S$53,A13,HMS!U$2:U$53)/SUMIF(HMS!S$2:S$53,A13,HMS!R$2:R$53) -> 0.5825050897 | AA13: 736.5411907 | AB13: 1269.562737 | AC13: 1664.757265 | AD13: 2126.11992 | AE13: 2471.481562 | AF13: 2830.923491
A14: 7 | B14: ='Hydro Input'!J29 -> 229 | C14: ='Hydro Input'!K29 -> 342.4 | D14: ='Hydro Input'!L29 -> 434 | E14: ='Hydro Input'!M29 -> 551.3 | F14: ='Hydro Input'!N29 -> 640.7 | G14: ='Hydro Input'!O29 -> 736 | H14: ='Hydro Input'!D29 -> 572 | I14: ='Hydro Input'!E29 -> 1009.2 | J14: ='Hydro Input'!F29 -> 1319 | K14: ='Hydro Input'!G29 -> 1636 | L14: ='Hydro Input'!H29 -> 1872.8 | M14: ='Hydro Input'!I29 -> 2127 | N14: 209167.6448 | O14: 360089.9652 | P14: 477723.0474 | Q14: 616227.0857 | R14: 723047.2686 | S14: 839162.8135 | T14: 2020.661428 | U14: 3478.644626 | V14: 4615.037553 | W14: 5953.054091 | X14: 6984.989137 | Y14: 8106.721914 | Z14: =SUMIF(HMS!S$2:S$53,A14,HMS!U$2:U$53)/SUMIF(HMS!S$2:S$53,A14,HMS!R$2:R$53) -> 0.5671081141 | AA14: 874.7279365 | AB14: 1505.877032 | AC14: 1997.81231 | AD14: 2577.028812 | AE14: 3023.745121 | AF14: 3509.334138
A15: 8 | B15: ='Hydro Input'!J30 -> 243 | C15: ='Hydro Input'!K30 -> 363.6 | D15: ='Hydro Input'!L30 -> 460 | E15: ='Hydro Input'!M30 -> 584 | F15: ='Hydro Input'!N30 -> 678.5 | G15: ='Hydro Input'!O30 -> 780 | H15: ='Hydro Input'!D30 -> 615 | I15: ='Hydro Input'!E30 -> 1090.2 | J15: ='Hydro Input'!F30 -> 1445 | K15: ='Hydro Input'!G30 -> 1841.9 | L15: ='Hydro Input'!H30 -> 2153.2 | M15: ='Hydro Input'!I30 -> 2498 | N15: 225192.7674 | O15: 388863.9553 | P15: 519415.9004 | Q15: 680119.2092 | R15: 807309.4292 | S15: 948570.4702 | T15: 2175.471927 | U15: 3756.6154 | V15: 5017.81084 | W15: 6570.283155 | X15: 7799.002691 | Y15: 9163.65322 | Z15: =SUMIF(HMS!S$2:S$53,A15,HMS!U$2:U$53)/SUMIF(HMS!S$2:S$53,A15,HMS!R$2:R$53) -> 0.4244115548 | AA15: 1252.176504 | AB15: 2162.264417 | AC15: 2888.19394 | AD15: 3781.779066 | AE15: 4489.015833 | AF15: 5274.492909
A16: 9 | B16: ='Hydro Input'!J31 -> 294 | C16: ='Hydro Input'!K31 -> 439.5 | D16: ='Hydro Input'!L31 -> 556 | E16: ='Hydro Input'!M31 -> 706.6 | F16: ='Hydro Input'!N31 -> 821.1 | G16: ='Hydro Input'!O31 -> 944 | H16: ='Hydro Input'!D31 -> 681 | I16: ='Hydro Input'!E31 -> 1166.8 | J16: ='Hydro Input'!F31 -> 1529 | K16: ='Hydro Input'!G31 -> 1932.6 | L16: ='Hydro Input'!H31 -> 2248.4 | M16: ='Hydro Input'!I31 -> 2597 | N16: 265266.0972 | O16: 449179.3971 | P16: 596149.1583 | Q16: 777358.9456 | R16: 920356.0089 | S16: 1078781.447 | T16: 2562.59983 | U16: 4339.291975 | V16: 5759.091523 | W16: 7509.666417 | X16: 8891.087767 | Y16: 10421.55474 | Z16: =SUMIF(HMS!S$2:S$53,A16,HMS!U$2:U$53)/SUMIF(HMS!S$2:S$53,A16,HMS!R$2:R$53) -> 0.5141299476 | AA16: 1245.090514 | AB16: 2108.332019 | AC16: 2798.1701 | AD16: 3648.722016 | AE16: 4319.913279 | AF16: 5063.521345 | AH16: See Appendix A.2 (PDF p. 174) for details
AH19: USDA Web Soil Survey
AH20: Symbol | AI20: Name | AJ20: Area | AK20: Soil Type | AL20: K
AH21: BCC | AI21: Bluepoint loamy fine sand, 1 to 9 percent slopes | AJ21: 3355.3 | AK21: loamy fine sand | AL21: 0.2 | AW21: Sta | AX21: Elev
A22: Cf calculations for MPM-Woo | AH22: BKD | AI22: Bluepoint-Kokan association, hilly | AJ22: 1353.4 | AK22: loamy fine sand | AL22: 0.2 | AW22: 0 | AX22: 6147.9238
B23: Cf (ppm) | AH23: LtB | AI23: Latene Sandy Loam | AJ23: 596 | AK23: Sandy Loam | AL23: 0.24 | AW23: 15.73944541 | AX23: 6147.6807
A24: Sub-Reach | B24: 2-yr | C24: 5-yr | D24: 10-yr | E24: 25-yr | F24: 50-yr | G24: 100-yr | AH24: MaB | AI24: Madurez loamy fine sand, 1 to 5 percent slopes | AJ24: 3733.2 | AK24: loamy fine sand | AL24: 0.2 | AW24: 38.76092912 | AX24: 6147.2212
A25: 0 | B25: =AA7/(B7*43560*62.4/2000+AA7)*10^6 -> 5518.363539 | C25: =AB7/(C7*43560*62.4/2000+AB7)*10^6 -> 5862.510837 | D25: 6042.120298 | E25: 6338.999121 | F25: 6496.374026 | G25: 6653.809706 | AH25: MWA | AI25: Madurez-Wink association, gently sloping | AJ25: 621.5 | AK25: fine sandy loam | AL25: 0.28 | AW25: 58.11657146 | AX25: 6146.686
A26: 1 | B26: =AA8/(B8*43560*62.4/2000+AA8)*10^6 -> 6524.201595 | C26: =AB8/(C8*43560*62.4/2000+AB8)*10^6 -> 6848.38454 | D26: =AC8/(D8*43560*62.4/2000+AC8)*10^6 -> 7041.543798 | E26: =AD8/(E8*43560*62.4/2000+AD8)*10^6 -> 7254.411127 | F26: =AE8/(F8*43560*62.4/2000+AE8)*10^6 -> 7423.352239 | G26: =AF8/(G8*43560*62.4/2000+AF8)*10^6 -> 7590.845548 | AH26: PAC | AI26: Pajarito loamy fine sand, 1 to 9 percent slopes | AJ26: 1268 | AK26: loamy fine sand | AL26: 0.2 | AW26: 71.00343875 | AX26: 6146.1323
A27: 2 | B27: 2951.713973 | C27: 3174.247789 | D27: 3125.035034 | E27: 3160.357638 | F27: 3134.802219 | G27: 3099.912183 | AI27: Sum: | AJ27: =SUM(AJ21:AJ26) -> 10927.4 | AK27: Weighted Avg.: | AL27: =SUM(AL21*(AJ21/AJ27),AL22*(AJ22/AJ27),AL23*(AJ23/AJ27),AL24*(AJ24/AJ27),AL25*(AJ25/AJ27),AL26*(AJ26/AJ27)) -> 0.206731702 | AW27: 82.83524087 | AX27: 6145.6812
A28: 3 | B28: 3203.577456 | C28: 3450.841498 | D28: 3466.107022 | E28: 3439.646807 | F28: 3417.090672 | G28: 3382.434915 | AW28: 84.9225412 | AX28: 6145.5806
A29: 4 | B29: 2474.90492 | C29: 2666.077728 | D29: 2677.881013 | E29: 2657.422059 | F29: =AE11/(F11*43560*62.4/2000+AE11)*10^6 -> 2639.981922 | G29: 2613.18685 | AH29: *Assumed normal soils (<15% gravel/rock) exist in the watershed based on Tt (2012) Tribs study | AW29: 89.12367531 | AX29: 6145.4272
A30: 5 | B30: 3099.674042 | C30: 3558.318752 | D30: 3672.819238 | E30: 3687.978897 | F30: 3683.350499 | G30: 3665.121454 | AW30: 98.38752759 | AX30: 6145.1426
A31: 6 | B31: 2623.894165 | C31: 3010.108483 | D31: 3107.165439 | E31: 3118.401396 | F31: 3115.916813 | G31: 3103.912293 | AW31: 132.9530475 | AX31: 6143.9551
A32: 7 | B32: 2802.696975 | C32: 3225.597435 | D32: 3375.623453 | E32: 3427.659286 | F32: 3460.529026 | G32: 3496.096775 | AH32: LS Factor Calculations | AW32: 143.5124149 | AX32: 6143.6245
A33: 8 | B33: 3777.228658 | C33: 4356.585956 | D33: 4598.585959 | E33: 4742.16267 | F33: 4844.508963 | G33: 4950.945395 | AL33: Start | AN33: End | AW33: 148.6797648 | AX33: 6143.4858
A34: 9 | B34: 3106.418247 | C34: 3517.283949 | D34: 3689.36498 | E34: 3785.103075 | F34: 3856.191131 | G34: =AF16/(G16*43560*62.4/2000+AF16)*10^6 -> 3931.22149 | AI34: Headwater Watershed | AJ34: λ (feet) | AK34: λ, trunc. (feet) | AL34: Sta (ft) | AM34: Elev. (ft) | AN34: Sta (ft) | AO34: Elev. (ft) | AP34: S (ft/ft) | AQ34: LS | AR34: LS, trun | AT34: λmax (feet) | AU34: Smax (ft/ft) | AW34: 149.9748778 | AX34: 6143.4351
AH35: 1 | AI35: QR7 | AJ35: =AN35-AL35 -> 162.8630763 | AK35: =IF(ISNA(MATCH(AP35,AU$35:AU$38,1)),IF(AJ35<=AT$35,AJ35,AT$35),IF(AJ35<=INDEX(AT$35:AT$38,MATCH(AP35,AU$35:AU$38,1)),AJ35,INDEX(AT$35:AT$38,MATCH(AP35,AU$35:AU$38,1)))) -> 162.8630763 | AL35: 101.1461728 | AM35: 6183.4414 | AN35: 264.0092491 | AO35: 6167.1138 | AP35: =((AM35-AO35)/(AN35-AL35))*100 -> 10.02535404 | AQ35: =(0.065+0.0454*$AP35+0.0065*$AP35^2)*(AJ35/72.6)^IF($AP35<3.5,0.3,IF(AND($AP35>=3.5,$AP35<4.5),0.4,0.5)) -> 1.757551536 | AR35: =(0.065+0.0454*$AP35+0.0065*$AP35^2)*(AK35/72.6)^IF($AP35<3.5,0.3,IF(AND($AP35>=3.5,$AP35<4.5),0.4,0.5)) -> 1.757551536 | AT35: 200 | AU35: 10 | AW35: 162.5095651 | AX35: 6143.0327
AH36: 2 | AI36: QR7 | AJ36: 252.6335493 | AK36: 200 | AL36: 141.1486627 | AM36: 6157.8154 | AN36: 393.7822121 | AO36: 6145.7988 | AP36: 4.756533735 | AQ36: =(0.065+0.0454*$AP36+0.0065*$AP36^2)*(AJ36/72.6)^IF($AP36<3.5,0.3,IF(AND($AP36>=3.5,$AP36<4.5),0.4,0.5)) -> 0.7984131568 | AR36: =(0.065+0.0454*AP36+0.0065*AP36^2)*(AK36/72.6)^IF(AP36<3.5,0.3,IF(AND(AP36>=3.5,AP36<4.5),0.4,0.5)) -> 0.7103905424 | AT36: 150 | AU36: 15 | AW36: 173.2908875 | AX36: 6142.7241
AH37: 3 | AI37: QR4 | AJ37: 547.7428184 | AK37: 200 | AL37: 35.67124028 | AM37: 6157.2207 | AN37: 583.4140587 | AO37: 6132.7412 | AP37: 4.469159463 | AQ37: =(0.065+0.0454*$AP37+0.0065*$AP37^2)*(AJ37/72.6)^IF($AP37<3.5,0.3,IF(AND($AP37>=3.5,$AP37<4.5),0.4,0.5)) -> 0.8925672338 | AR37: =(0.065+0.0454*AP37+0.0065*AP37^2)*(AK37/72.6)^IF(AP37<3.5,0.3,IF(AND(AP37>=3.5,AP37<4.5),0.4,0.5)) -> 0.5965162256 | AT37: 100 | AU37: 20 | AW37: 180.9272879 | AX37: 6142.353
AH38: 4 | AI38: QR4 | AJ38: 527.897015 | AK38: 200 | AL38: 129.0530576 | AM38: 6147.3232 | AN38: 656.9500726 | AO38: 6122.9644 | AP38: 4.6143091 | AQ38: =(0.065+0.0454*$AP38+0.0065*$AP38^2)*(AJ38/72.6)^IF($AP38<3.5,0.3,IF(AND($AP38>=3.5,$AP38<4.5),0.4,0.5)) -> 1.11336389 | AR38: =(0.065+0.0454*AP38+0.0065*AP38^2)*(AK38/72.6)^IF(AP38<3.5,0.3,IF(AND(AP38>=3.5,AP38<4.5),0.4,0.5)) -> 0.6852949421 | AT38: 50 | AU38: 100 | AW38: 191.8846673 | AX38: 6142.0405
AH39: 5 | AI39: QR3 | AJ39: 0 | AK39: 0 | AT39: Cite tribs report | AW39: 201.562228 | AX39: 6141.6895
AH40: 6 | AI40: QR3 | AJ40: 216.4853814 | AK40: 200 | AL40: 55.60859016 | AM40: 6131.6958 | AN40: 272.0939715 | AO40: 6123.2617 | AP40: 3.895921261 | AQ40: =(0.065+0.0454*$AP40+0.0065*$AP40^2)*(AJ40/72.6)^IF($AP40<3.5,0.3,IF(AND($AP40>=3.5,$AP40<4.5),0.4,0.5)) -> 0.5271766505 | AR40: =(0.065+0.0454*AP40+0.0065*AP40^2)*(AK40/72.6)^IF(AP40<3.5,0.3,IF(AND(AP40>=3.5,AP40<4.5),0.4,0.5)) -> 0.5107363102 | AW40: 209.9106403 | AX40: 6141.2905
AH41: 7 | AI41: QR8 | AJ41: =AN41-AL41 -> 647.4934618 | AK41: =IF(ISNA(MATCH(AP41,AU$35:AU$38,1)),IF(AJ41<=AT$35,AJ41,AT$35),IF(AJ41<=INDEX(AT$35:AT$38,MATCH(AP41,AU$35:AU$38,1)),AJ41,INDEX(AT$35:AT$38,MATCH(AP41,AU$35:AU$38,1)))) -> 200 | AL41: 267.5543925 | AM41: 6141.9517 | AN41: 915.0478543 | AO41: 6118.5146 | AP41: =((AM41-AO41)/(AN41-AL41))*100 -> 3.619665894 | AQ41: =(0.065+0.0454*$AP41+0.0065*$AP41^2)*(AJ41/72.6)^IF($AP41<3.5,0.3,IF(AND($AP41>=3.5,$AP41<4.5),0.4,0.5)) -> 0.7546302865 | AR41: =(0.065+0.0454*AP41+0.0065*AP41^2)*(AK41/72.6)^IF(AP41<3.5,0.3,IF(AND(AP41>=3.5,AP41<4.5),0.4,0.5)) -> 0.4716850099 | AW41: 229.9188079 | AX41: 6140.1343
AH42: 8 | AI42: QR8 | AJ42: =AN42-AL42 -> 705.9218172 | AK42: =IF(ISNA(MATCH(AP42,AU$35:AU$38,1)),IF(AJ42<=AT$35,AJ42,AT$35),IF(AJ42<=INDEX(AT$35:AT$38,MATCH(AP42,AU$35:AU$38,1)),AJ42,INDEX(AT$35:AT$38,MATCH(AP42,AU$35:AU$38,1)))) -> 200 | AL42: 0 | AM42: 6161.6104 | AN42: 705.9218172 | AO42: 6129.3086 | AP42: =((AM42-AO42)/(AN42-AL42))*100 -> 4.575832509 | AQ42: =(0.065+0.0454*$AP42+0.0065*$AP42^2)*(AJ42/72.6)^IF($AP42<3.5,0.3,IF(AND($AP42>=3.5,$AP42<4.5),0.4,0.5)) -> 1.274866865 | AR42: =(0.065+0.0454*AP42+0.0065*AP42^2)*(AK42/72.6)^IF(AP42<3.5,0.3,IF(AND(AP42>=3.5,AP42<4.5),0.4,0.5)) -> 0.6785807402 | AW42: 232.3441493 | AX42: 6139.9893
AW43: 233.0239466 | AX43: 6139.9492
AP44: Avg. of highlighted: | AQ44: =AVERAGE(AQ35,AQ38,AQ40,AQ42) -> 1.168239735 | AW44: 235.0293487 | AX44: 6139.8003
AW45: 249.4796583 | AX45: 6138.6855
AW46: 254.8254376 | AX46: 6138.5454
AW47: 271.8543313 | AX47: 6138.3135
AW48: 273.7845183 | AX48: 6138.2974
AW49: 286.9777675 | AX49: 6137.502
AW50: 298.8467934 | AX50: 6136.9297
AW51: 314.637368 | AX51: 6136.1592
AW52: 325.3718685 | AX52: 6135.4194
AW53: 331.7582168 | AX53: 6135.3882
AW54: 337.484475 | AX54: 6135.2402
AW55: 347.6339005 | AX55: 6134.6265
AW56: 366.6417486 | AX56: 6133.6265
AW57: 379.9986149 | AX57: 6132.9902
AW58: 393.0094044 | AX58: 6132.4185
AW59: 397.5941588 | AX59: 6132.4517
AW60: 405.8089195 | AX60: 6132.3574
AW61: 438.1545401 | AX61: 6130.9624
AW62: 438.7840954 | AX62: 6130.9365
AW63: 439.1055704 | AX63: 6130.9263
AW64: 455.1760547 | AX64: 6130.7388
AW65: 457.0939718 | AX65: 6130.8188
AW66: 463.8494379 | AX66: 6130.6372
AW67: 481.5319482 | AX67: 6130.1841
AW68: 504.5431898 | AX68: 6129.6211
AW69: 511.0863292 | AX69: 6129.5898
AW70: 516.6010701 | AX70: 6129.8398
AW71: 547.634089 | AX71: 6130.3818
AW72: 553.2208229 | AX72: 6130.4312
AW73: 556.2231426 | AX73: 6130.4497
AW74: 564.2361111 | AX74: 6130.5166

Sheet MPM-Woo
A1: From SSCAFCA Manual | M1: MPM-Woo Calculations
M2: D50 = 0.64 mm (avg. of S1 & S2, collected during field recon)
M3: a | N3: 8.3e-05 | O3: b | P3: 4.5 | Q3: c | R3: 0.082 | S3: d | T3: -2.657 | W3: Cs,max: | X3: =510000-65000*0.64 -> 468400
M4: Sub-Reach | N4: Recurrence | O4: Flow | P4: Top W | Q4: q | R4: V (avg.) | S4: Y | T4: Cf | U4: So | V4: Qs,bm | W4: Qs,bm | X4: Cs | Y4: Qs,f | Z4: Qs,f | AA4: Qs,tot
N5: Interval | O5: (cfs) | P5: (ft) | Q5: (cfs/ft) | R5: (fps) | S5: (ft) | T5: (ppm) | U5: (ft/ft) | V5: (cfs) | W5: (tpd) | X5: (ppm) | Y5: (cfs) | Z5: (tpd) | AA5: (tpd)
M6: 0 | O6: 0.001 | W6: 0.001 | Z6: 0.001 | AA6: =SUM(W6,Z6) -> 0.002
M7: 0 | N7: 2 YR | O7: =VLOOKUP(M7,'Hydro Input'!$A$38:$I$47,VLOOKUP(N7,$A$25:$C$30,2,FALSE),FALSE) -> 330.814047 | P7: ='Reach Avg Hyd'!F6 -> 241.24 | Q7: =O7/P7 -> 1.371306777 | R7: ='Reach Avg Hyd'!D6 -> 3.545 | S7: ='Reach Avg Hyd'!C6 -> 0.5441666667 | T7: =VLOOKUP(M7,MUSLE!A$25:G$34,VLOOKUP(N7,A$25:C$30,3,FALSE),FALSE) -> 5518.363539 | U7: ='Reach Avg Hyd'!I6 -> 0.01409085867 | V7: =P7*N$3*(R7^P$3)*(S7^R$3)*(1-T7/10^6)^T$3 -> 5.74798857 | W7: =V7*3600*24*(62.4*2.65/2000) -> 41061.05525 | X7: =2650000*V7/(O7+2.65*V7) -> 44017.73225 | Y7: =(O7/2.65)*(T7/(10^6-T7)) -> 0.6927102401 | Z7: =Y7*3600*24*(62.4*2.65/2000) -> 4948.411621 | AA7: =SUM(W7,Z7) -> 46009.46687
M8: =IF(N8="2 YR",M7+1,M7) -> 0 | N8: 5 YR | O8: =VLOOKUP(M8,'Hydro Input'!$A$38:$I$47,VLOOKUP(N8,$A$25:$D$30,2,FALSE),FALSE) -> 511.5452509 | P8: ='Reach Avg Hyd'!F7 -> 300.2441667 | Q8: =O8/P8 -> 1.703764162 | R8: ='Reach Avg Hyd'!D7 -> 3.900833333 | S8: ='Reach Avg Hyd'!C7 -> 0.6141666667 | T8: =VLOOKUP(M8,MUSLE!A$25:G$34,VLOOKUP(N8,A$25:C$30,3,FALSE),FALSE) -> 5862.510837 | U8: ='Reach Avg Hyd'!I7 -> 0.01409085867 | V8: =P8*N$3*(R8^P$3)*(S8^R$3)*(1-T8/10^6)^T$3 -> 11.12205911 | W8: =V8*3600*24*(62.4*2.65/2000) -> 79451.00761 | X8: =2650000*V8/(O8+2.65*V8) -> 54477.70333 | Y8: =(O8/2.65)*(T8/(10^6-T8)) -> 1.138348895 | Z8: =Y8*3600*24*(62.4*2.65/2000) -> 8131.854524 | AA8: 87582.86214
M9: =IF(N9="2 YR",M8+1,M8) -> 0 | N9: 10 YR | O9: =VLOOKUP(M9,'Hydro Input'!$A$38:$I$47,VLOOKUP(N9,$A$25:$D$30,2,FALSE),FALSE) -> 659.9576618 | P9: ='Reach Avg Hyd'!F8 -> 335.16 | Q9: 1.969082414 | R9: ='Reach Avg Hyd'!D8 -> 4.136666667 | S9: ='Reach Avg Hyd'!C8 -> 0.6816666667 | T9: =VLOOKUP(M9,MUSLE!A$25:G$34,VLOOKUP(N9,A$25:C$30,3,FALSE),FALSE) -> 6042.120298 | U9: ='Reach Avg Hyd'!I8 -> 0.01409085867 | V9: 16.31562925 | W9: 116551.5459 | X9: =2650000*V9/(O9+2.65*V9) -> 61485.75304 | Y9: 1.513880476 | Z9: 10814.4839 | AA9: 127366.0298
M10: 0 | N10: 25 YR | O10: =VLOOKUP(M10,'Hydro Input'!$A$38:$I$47,VLOOKUP(N10,$A$25:$D$30,2,FALSE),FALSE) -> 859.7350545 | P10: ='Reach Avg Hyd'!F9 -> 379.1216667 | Q10: 2.267702245 | R10: ='Reach Avg Hyd'!D9 -> 4.3675 | S10: ='Reach Avg Hyd'!C9 -> 0.765 | T10: =VLOOKUP(M10,MUSLE!A$25:G$34,VLOOKUP(N10,A$25:C$30,3,FALSE),FALSE) -> 6338.999121 | U10: ='Reach Avg Hyd'!I9 -> 0.01409085867 | V10: 23.80690996 | W10: 170065.8993 | X10: 68364.4495 | Y10: 2.06967049 | Z10: 14784.79877 | AA10: 184850.698
M11: 0 | N11: 50 YR | O11: =VLOOKUP(M11,'Hydro Input'!$A$38:$I$47,VLOOKUP(N11,$A$25:$D$30,2,FALSE),FALSE) -> 1020.700432 | P11: ='Reach Avg Hyd'!F10 -> 395.7058333 | Q11: 2.579442469 | R11: ='Reach Avg Hyd'!D10 -> 4.575833333 | S11: ='Reach Avg Hyd'!C10 -> 0.8358333333 | T11: =VLOOKUP(M11,MUSLE!A$25:G$34,VLOOKUP(N11,A$25:C$30,3,FALSE),FALSE) -> 6496.374026 | U11: ='Reach Avg Hyd'!I10 -> 0.01409085867 | V11: 30.881686 | W11: 220604.9298 | X11: 74225.60453 | Y11: 2.518569788 | Z11: 17991.53424 | AA11: 238596.464
M12: 0 | N12: 100 YR | O12: =VLOOKUP(M12,'Hydro Input'!$A$38:$I$47,VLOOKUP(N12,$A$25:$D$30,2,FALSE),FALSE) -> 1197.953557 | P12: ='Reach Avg Hyd'!F11 -> 411.8608333 | Q12: 2.908636753 | R12: ='Reach Avg Hyd'!D11 -> 4.804166667 | S12: ='Reach Avg Hyd'!C11 -> 0.905 | T12: =VLOOKUP(M12,MUSLE!A$25:G$34,VLOOKUP(N12,A$25:C$30,3,FALSE),FALSE) -> 6653.809706 | U12: ='Reach Avg Hyd'!I11 -> 0.01409085867 | V12: 40.29569862 | W12: 287854.4184 | X12: 81842.99853 | Y12: 3.028055655 | Z12: 21631.07303 | AA12: 309485.4915
M13: 1 | O13: 0.001 | W13: 0.001 | Z13: 0.001 | AA13: 0.002
M14: =IF(N14="2 YR",M12+1,M12) -> 1 | N14: 2 YR | O14: =VLOOKUP(M14,'Hydro Input'!$A$38:$I$47,VLOOKUP(N14,$A$25:$D$30,2,FALSE),FALSE) -> 791 | P14: ='Reach Avg Hyd'!F12 -> 108.94 | Q14: 7.260877547 | R14: ='Reach Avg Hyd'!D12 -> 5.644285714 | S14: ='Reach Avg Hyd'!C12 -> 1.57 | T14: =VLOOKUP(M14,MUSLE!A$25:G$34,VLOOKUP(N14,A$25:C$30,3,FALSE),FALSE) -> 6524.201595 | U14: ='Reach Avg Hyd'!I12 -> 0.01707202247 | V14: 23.02092467 | W14: 164451.1724 | X14: 71602.18322 | Y14: =(O14/2.65)*(T14/(10^6-T14)) -> 1.960201376 | Z14: =Y14*3600*24*(62.4*2.65/2000) -> 14002.80046 | AA14: 178453.9729
M15: 1 | N15: 5 YR | O15: =VLOOKUP(M15,'Hydro Input'!$A$38:$I$47,VLOOKUP(N15,$A$25:$D$30,2,FALSE),FALSE) -> 1188.6 | P15: ='Reach Avg Hyd'!F13 -> 120.6942857 | Q15: 9.848022158 | R15: ='Reach Avg Hyd'!D13 -> 6.357142857 | S15: ='Reach Avg Hyd'!C13 -> 1.89 | T15: =VLOOKUP(M15,MUSLE!A$25:G$34,VLOOKUP(N15,A$25:C$30,3,FALSE),FALSE) -> 6848.38454 | U15: ='Reach Avg Hyd'!I13 -> 0.01707202247 | V15: 44.26324131 | W15: 316196.766 | X15: 89821.43042 | Y15: 3.092875489 | Z15: 22094.11689 | AA15: 338290.8828
M16: 1 | N16: 10 YR | O16: =VLOOKUP(M16,'Hydro Input'!$A$38:$I$47,VLOOKUP(N16,$A$25:$D$30,2,FALSE),FALSE) -> 1512 | P16: ='Reach Avg Hyd'!F14 -> 128.88 | Q16: 11.73184358 | R16: ='Reach Avg Hyd'!D14 -> 6.827142857 | S16: ='Reach Avg Hyd'!C14 -> 2.1 | T16: =VLOOKUP(M16,MUSLE!A$25:G$34,VLOOKUP(N16,A$25:C$30,3,FALSE),FALSE) -> 7041.543798 | U16: ='Reach Avg Hyd'!I14 -> 0.01707202247 | V16: 65.75294106 | W16: 469709.5536 | X16: 103333.3018 | Y16: 4.046156936 | Z16: 28903.93247 | AA16: 498613.4861
M17: 1 | N17: 25 YR | O17: =VLOOKUP(M17,'Hydro Input'!$A$38:$I$47,VLOOKUP(N17,$A$25:$D$30,2,FALSE),FALSE) -> 1937.7 | P17: ='Reach Avg Hyd'!F15 -> 140.38 | Q17: 13.80324833 | R17: ='Reach Avg Hyd'!D15 -> 7.35 | S17: ='Reach Avg Hyd'!C15 -> 2.321428571 | T17: =VLOOKUP(M17,MUSLE!A$25:G$34,VLOOKUP(N17,A$25:C$30,3,FALSE),FALSE) -> 7254.411127 | U17: ='Reach Avg Hyd'!I15 -> 0.01707202247 | V17: 100.7093556 | W17: 719422.519 | X17: 121056.9894 | Y17: 5.343242242 | Z17: 38169.7288 | AA17: 757592.2478
M18: 1 | N18: 50 YR | O18: =VLOOKUP(M18,'Hydro Input'!$A$38:$I$47,VLOOKUP(N18,$A$25:$D$30,2,FALSE),FALSE) -> 2278.5 | P18: ='Reach Avg Hyd'!F16 -> 147.2257143 | Q18: 15.47623668 | R18: ='Reach Avg Hyd'!D16 -> 7.722857143 | S18: ='Reach Avg Hyd'!C16 -> 2.465714286 | T18: =VLOOKUP(M18,MUSLE!A$25:G$34,VLOOKUP(N18,A$25:C$30,3,FALSE),FALSE) -> 7423.352239 | U18: ='Reach Avg Hyd'!I16 -> 0.01707202247 | V18: 132.6783263 | W18: 947794.5229 | X18: 133682.3277 | Y18: 6.430417548 | Z18: 45936.02213 | AA18: 993730.5451
M19: 1 | N19: 100 YR | O19: =VLOOKUP(M19,'Hydro Input'!$A$38:$I$47,VLOOKUP(N19,$A$25:$D$30,2,FALSE),FALSE) -> 2651 | P19: ='Reach Avg Hyd'!F17 -> 155.6185714 | Q19: 17.03524185 | R19: ='Reach Avg Hyd'!D17 -> 8.07 | S19: ='Reach Avg Hyd'!C17 -> 2.597142857 | T19: =VLOOKUP(M19,MUSLE!A$25:G$34,VLOOKUP(N19,A$25:C$30,3,FALSE),FALSE) -> 7590.845548 | U19: ='Reach Avg Hyd'!I17 -> 0.01707202247 | V19: 171.7321977 | W19: 1226777.884 | X19: 146515.4829 | Y19: 7.651793602 | Z19: 54660.98549 | AA19: 1281438.87
M20: 2 | O20: 0.001 | W20: 0.001 | Z20: 0.001 | AA20: 0.002
M21: =IF(N21="2 YR",M19+1,M19) -> 2 | N21: 2 YR | O21: =VLOOKUP(M21,'Hydro Input'!$A$38:$I$47,VLOOKUP(N21,$A$25:$D$30,2,FALSE),FALSE) -> 301 | P21: ='Reach Avg Hyd'!F18 -> 79.96071429 | Q21: 3.764348564 | R21: ='Reach Avg Hyd'!D18 -> 4.706428571 | S21: ='Reach Avg Hyd'!C18 -> 0.9214285714 | T21: =VLOOKUP(M21,MUSLE!A$25:G$34,VLOOKUP(N21,A$25:C$30,3,FALSE),FALSE) -> 2951.713973 | U21: ='Reach Avg Hyd'!I18 -> 0.0191341318 | V21: 7.072343043 | W21: 50521.65029 | X21: 58615.15259 | Y21: =(O21/2.65)*(T21/(10^6-T21)) -> 0.3362627044 | Z21: =Y21*3600*24*(62.4*2.65/2000) -> 2402.110115 | AA21: 52923.76041
M22: 2 | N22: 5 YR | O22: =VLOOKUP(M22,'Hydro Input'!$A$38:$I$47,VLOOKUP(N22,$A$25:$D$30,2,FALSE),FALSE) -> 473.2 | P22: ='Reach Avg Hyd'!F19 -> 91.66785714 | Q22: 5.162114778 | R22: ='Reach Avg Hyd'!D19 -> 5.323571429 | S22: ='Reach Avg Hyd'!C19 -> 1.107142857 | T22: =VLOOKUP(M22,MUSLE!A$25:G$34,VLOOKUP(N22,A$25:C$30,3,FALSE),FALSE) -> 3174.247789 | U22: ='Reach Avg Hyd'!I19 -> 0.0191341318 | V22: 14.3384568 | W22: 102427.5117 | X22: 74329.30389 | Y22: 0.5686177842 | Z22: 4061.950709 | AA22: 106489.4624
A23: Recurrence | B23: Lookup Column | M23: 2 | N23: 10 YR | O23: =VLOOKUP(M23,'Hydro Input'!$A$38:$I$47,VLOOKUP(N23,$A$25:$D$30,2,FALSE),FALSE) -> 557 | P23: ='Reach Avg Hyd'!F20 -> 93.78142857 | Q23: 5.93934224 | R23: ='Reach Avg Hyd'!D20 -> 5.593571429 | S23: ='Reach Avg Hyd'!C20 -> 1.205714286 | T23: =VLOOKUP(M23,MUSLE!A$25:G$34,VLOOKUP(N23,A$25:C$30,3,FALSE),FALSE) -> 3125.035034 | U23: ='Reach Avg Hyd'!I20 -> 0.0191341318 | V23: 18.4531288 | W23: 131820.8852 | X23: 80707.58782 | Y23: 0.6589060909 | Z23: 4706.929924 | AA23: 136527.8151
A24: Interval | B24: For Flow | C24: For Cf | M24: 2 | N24: 25 YR | O24: =VLOOKUP(M24,'Hydro Input'!$A$38:$I$47,VLOOKUP(N24,$A$25:$D$30,2,FALSE),FALSE) -> 688.1 | P24: ='Reach Avg Hyd'!F21 -> 98.08857143 | Q24: 7.015088404 | R24: ='Reach Avg Hyd'!D21 -> 5.969285714 | S24: ='Reach Avg Hyd'!C21 -> 1.33 | T24: =VLOOKUP(M24,MUSLE!A$25:G$34,VLOOKUP(N24,A$25:C$30,3,FALSE),FALSE) -> 3160.357638 | U24: ='Reach Avg Hyd'!I21 -> 0.0191341318 | V24: 26.07087226 | W24: 186238.6316 | X24: 91242.63549 | Y24: 0.8232213307 | Z24: 5880.724383 | AA24: 192119.356
A25: 2 YR | B25: 4 | C25: 2 | M25: 2 | N25: 50 YR | O25: =VLOOKUP(M25,'Hydro Input'!$A$38:$I$47,VLOOKUP(N25,$A$25:$D$30,2,FALSE),FALSE) -> 764.6 | P25: ='Reach Avg Hyd'!F22 -> 102.8635714 | Q25: 7.433146539 | R25: ='Reach Avg Hyd'!D22 -> 6.148571429 | S25: ='Reach Avg Hyd'!C22 -> 1.343571429 | T25: =VLOOKUP(M25,MUSLE!A$25:G$34,VLOOKUP(N25,A$25:C$30,3,FALSE),FALSE) -> 3134.802219 | U25: ='Reach Avg Hyd'!I22 -> 0.0191341318 | V25: 31.25820748 | W25: 223294.6306 | X25: 97747.11117 | Y25: 0.9073234406 | Z25: 6481.512179 | AA25: 229776.1428
A26: 5 YR | B26: =B25+1 -> 5 | C26: 3 | M26: 2 | N26: 100 YR | O26: =VLOOKUP(M26,'Hydro Input'!$A$38:$I$47,VLOOKUP(N26,$A$25:$D$30,2,FALSE),FALSE) -> 837 | P26: ='Reach Avg Hyd'!F23 -> 116.9007143 | Q26: 7.159922034 | R26: ='Reach Avg Hyd'!D23 -> 6.227857143 | S26: ='Reach Avg Hyd'!C23 -> 1.342857143 | T26: =VLOOKUP(M26,MUSLE!A$25:G$34,VLOOKUP(N26,A$25:C$30,3,FALSE),FALSE) -> 3099.912183 | U26: ='Reach Avg Hyd'!I23 -> 0.0191341318 | V26: 37.62705243 | W26: 268790.8057 | X26: 106448.6438 | Y26: 0.9821489138 | Z26: 7016.031838 | AA26: 275806.8375
A27: 10 YR | B27: =B26+1 -> 6 | C27: 4 | M27: 3 | O27: 0.001 | W27: 0.001 | Z27: 0.001 | AA27: 0.002
A28: 25 YR | B28: 7 | C28: 5 | M28: =IF(N28="2 YR",M26+1,M26) -> 3 | N28: 2 YR | O28: =VLOOKUP(M28,'Hydro Input'!$A$38:$I$47,VLOOKUP(N28,$A$25:$D$30,2,FALSE),FALSE) -> 311 | P28: ='Reach Avg Hyd'!F24 -> 93.89416667 | Q28: 3.312239845 | R28: ='Reach Avg Hyd'!D24 -> 5.078333333 | S28: ='Reach Avg Hyd'!C24 -> 0.9283333333 | T28: =VLOOKUP(M28,MUSLE!A$25:G$34,VLOOKUP(N28,A$25:C$30,3,FALSE),FALSE) -> 3203.577456 | U28: ='Reach Avg Hyd'!I24 -> 0.0168744486 | V28: 11.70890958 | W28: 83643.20448 | X28: 90719.34176 | Y28: =(O28/2.65)*(T28/(10^6-T28)) -> 0.377175325 | Z28: =Y28*3600*24*(62.4*2.65/2000) -> 2694.371547 | AA28: 86337.57603
A29: 50 YR | B29: 8 | C29: 6 | M29: 3 | N29: 5 YR | O29: =VLOOKUP(M29,'Hydro Input'!$A$38:$I$47,VLOOKUP(N29,$A$25:$D$30,2,FALSE),FALSE) -> 487.8 | P29: ='Reach Avg Hyd'!F25 -> 113.6716667 | Q29: 4.291306834 | R29: ='Reach Avg Hyd'!D25 -> 5.690833333 | S29: ='Reach Avg Hyd'!C25 -> 1.100833333 | T29: =VLOOKUP(M29,MUSLE!A$25:G$34,VLOOKUP(N29,A$25:C$30,3,FALSE),FALSE) -> 3450.841498 | U29: ='Reach Avg Hyd'!I25 -> 0.0168744486 | V29: 24.01219005 | W29: 171532.3282 | X29: 115394.5883 | Y29: 0.6374148943 | Z29: 4553.406443 | AA29: 176085.7347
A30: 100 YR | B30: 9 | C30: 7 | M30: 3 | N30: 10 YR | O30: =VLOOKUP(M30,'Hydro Input'!$A$38:$I$47,VLOOKUP(N30,$A$25:$D$30,2,FALSE),FALSE) -> 594 | P30: ='Reach Avg Hyd'!F26 -> 127.4966667 | Q30: 4.658945332 | R30: ='Reach Avg Hyd'!D26 -> 6.000833333 | S30: ='Reach Avg Hyd'!C26 -> 1.196666667 | T30: =VLOOKUP(M30,MUSLE!A$25:G$34,VLOOKUP(N30,A$25:C$30,3,FALSE),FALSE) -> 3466.107022 | U30: ='Reach Avg Hyd'!I26 -> 0.0168744486 | V30: 34.42938983 | W30: 245948.1366 | X30: 133147.751 | Y30: 0.7796334518 | Z30: 5569.352104 | AA30: 251517.4887
M31: 3 | N31: 25 YR | O31: =VLOOKUP(M31,'Hydro Input'!$A$38:$I$47,VLOOKUP(N31,$A$25:$D$30,2,FALSE),FALSE) -> 708.3 | P31: ='Reach Avg Hyd'!F27 -> 140.7291667 | Q31: 5.033071799 | R31: ='Reach Avg Hyd'!D27 -> 6.279166667 | S31: ='Reach Avg Hyd'!C27 -> 1.283333333 | T31: =VLOOKUP(M31,MUSLE!A$25:G$34,VLOOKUP(N31,A$25:C$30,3,FALSE),FALSE) -> 3439.646807 | U31: ='Reach Avg Hyd'!I27 -> 0.0168744486 | V31: 46.86849559 | W31: 334807.5354 | X31: 149190.7358 | Y31: 0.9225323679 | Z31: 6590.157942 | AA31: 341397.6934
M32: 3 | N32: 50 YR | O32: =VLOOKUP(M32,'Hydro Input'!$A$38:$I$47,VLOOKUP(N32,$A$25:$D$30,2,FALSE),FALSE) -> 788.9 | P32: ='Reach Avg Hyd'!F28 -> 149.9858333 | Q32: 5.259830095 | R32: ='Reach Avg Hyd'!D28 -> 6.475 | S32: ='Reach Avg Hyd'!C28 -> 1.335833333 | T32: =VLOOKUP(M32,MUSLE!A$25:G$34,VLOOKUP(N32,A$25:C$30,3,FALSE),FALSE) -> 3417.090672 | U32: ='Reach Avg Hyd'!I28 -> 0.0168744486 | V32: 57.53985987 | W32: 411038.981 | X32: 161975.5325 | Y32: 1.020749439 | Z32: 7291.776696 | AA32: 418330.7577
M33: 3 | N33: 100 YR | O33: =VLOOKUP(M33,'Hydro Input'!$A$38:$I$47,VLOOKUP(N33,$A$25:$D$30,2,FALSE),FALSE) -> 865 | P33: ='Reach Avg Hyd'!F29 -> 154.4558333 | Q33: 5.600306452 | R33: ='Reach Avg Hyd'!D29 -> 6.690833333 | S33: ='Reach Avg Hyd'!C29 -> 1.39 | T33: =VLOOKUP(M33,MUSLE!A$25:G$34,VLOOKUP(N33,A$25:C$30,3,FALSE),FALSE) -> 3382.434915 | U33: ='Reach Avg Hyd'!I29 -> 0.0168744486 | V33: 68.89381761 | W33: 492146.5686 | X33: 174278.4327 | Y33: 1.107824958 | Z33: 7913.805192 | AA33: 500060.3738
M34: 4 | O34: 0.001 | W34: 0.001 | Z34: 0.001 | AA34: 0.002
M35: =IF(N35="2 YR",M33+1,M33) -> 4 | N35: 2 YR | O35: =VLOOKUP(M35,'Hydro Input'!$A$38:$I$47,VLOOKUP(N35,$A$25:$D$30,2,FALSE),FALSE) -> 311 | P35: ='Reach Avg Hyd'!F30 -> 44.42875 | Q35: 6.999971865 | R35: ='Reach Avg Hyd'!D30 -> 5.83125 | S35: ='Reach Avg Hyd'!C30 -> 1.3425 | T35: =VLOOKUP(M35,MUSLE!A$25:G$34,VLOOKUP(N35,A$25:C$30,3,FALSE),FALSE) -> 2474.90492 | U35: ='Reach Avg Hyd'!I30 -> 0.01811799381 | V35: 10.61739604 | W35: 75845.92069 | X35: 82964.03579 | Y35: =(O35/2.65)*(T35/(10^6-T35)) -> 0.2911717281 | Z35: =Y35*3600*24*(62.4*2.65/2000) -> 2080.000381 | AA35: 77925.92107
M36: 4 | N36: 5 YR | O36: =VLOOKUP(M36,'Hydro Input'!$A$38:$I$47,VLOOKUP(N36,$A$25:$D$30,2,FALSE),FALSE) -> 487.8 | P36: ='Reach Avg Hyd'!F31 -> 52.59125 | Q36: 9.275307204 | R36: ='Reach Avg Hyd'!D31 -> 6.5175 | S36: ='Reach Avg Hyd'!C31 -> 1.605 | T36: =VLOOKUP(M36,MUSLE!A$25:G$34,VLOOKUP(N36,A$25:C$30,3,FALSE),FALSE) -> 2666.077728 | U36: ='Reach Avg Hyd'!I31 -> 0.01811799381 | V36: 21.05163192 | W36: 150383.4273 | X36: 102627.2567 | Y36: 0.4920714161 | Z36: 3515.137748 | AA36: 153898.565
M37: 4 | N37: 10 YR | O37: =VLOOKUP(M37,'Hydro Input'!$A$38:$I$47,VLOOKUP(N37,$A$25:$D$30,2,FALSE),FALSE) -> 594 | P37: ='Reach Avg Hyd'!F32 -> 56.95875 | Q37: 10.42859964 | R37: ='Reach Avg Hyd'!D32 -> 6.80375 | S37: ='Reach Avg Hyd'!C32 -> 1.725 | T37: =VLOOKUP(M37,MUSLE!A$25:G$34,VLOOKUP(N37,A$25:C$30,3,FALSE),FALSE) -> 2677.881013 | U37: ='Reach Avg Hyd'!I32 -> 0.01811799381 | V37: 27.83024424 | W37: 198806.7969 | X37: 110445.7222 | Y37: 0.6018612682 | Z37: 4299.427266 | AA37: 203106.2242
M38: 4 | N38: 25 YR | O38: =VLOOKUP(M38,'Hydro Input'!$A$38:$I$47,VLOOKUP(N38,$A$25:$D$30,2,FALSE),FALSE) -> 708.3 | P38: ='Reach Avg Hyd'!F33 -> 60.07875 | Q38: 11.78952625 | R38: ='Reach Avg Hyd'!D33 -> 7.14125 | S38: ='Reach Avg Hyd'!C33 -> 1.8575 | T38: =VLOOKUP(M38,MUSLE!A$25:G$34,VLOOKUP(N38,A$25:C$30,3,FALSE),FALSE) -> 2657.422059 | U38: ='Reach Avg Hyd'!I33 -> 0.01811799381 | V38: 36.72025987 | W38: 262313.0858 | X38: 120789.0258 | Y38: 0.7121763434 | Z38: 5087.468742 | AA38: 267400.5546
M39: 4 | N39: 50 YR | O39: =VLOOKUP(M39,'Hydro Input'!$A$38:$I$47,VLOOKUP(N39,$A$25:$D$30,2,FALSE),FALSE) -> 788.9 | P39: ='Reach Avg Hyd'!F34 -> 61.97125 | Q39: 12.73009662 | R39: ='Reach Avg Hyd'!D34 -> 7.35875 | S39: ='Reach Avg Hyd'!C34 -> 1.94625 | T39: =VLOOKUP(M39,MUSLE!A$25:G$34,VLOOKUP(N39,A$25:C$30,3,FALSE),FALSE) -> 2639.981922 | U39: ='Reach Avg Hyd'!I34 -> 0.01811799381 | V39: 43.51622493 | W39: 310860.4156 | X39: 127533.4008 | Y39: 0.7879979372 | Z39: 5629.104241 | AA39: 316489.5199
M40: 4 | N40: 100 YR | O40: =VLOOKUP(M40,'Hydro Input'!$A$38:$I$47,VLOOKUP(N40,$A$25:$D$30,2,FALSE),FALSE) -> 865 | P40: ='Reach Avg Hyd'!F35 -> 63.57375 | Q40: 13.60624472 | R40: ='Reach Avg Hyd'!D35 -> 7.56375 | S40: ='Reach Avg Hyd'!C35 -> 2.02375 | T40: =VLOOKUP(M40,MUSLE!A$25:G$34,VLOOKUP(N40,A$25:C$30,3,FALSE),FALSE) -> 2613.18685 | U40: ='Reach Avg Hyd'!I35 -> 0.01811799381 | V40: 50.67542364 | W40: 362002.5239 | X40: 134385.3033 | Y40: 0.8552184779 | Z40: 6109.297668 | AA40: 368111.8216
M41: 5 | O41: 0.001 | W41: 0.001 | Z41: 0.001 | AA41: 0.002
M42: =IF(N42="2 YR",M40+1,M40) -> 5 | N42: 2 YR | O42: =VLOOKUP(M42,'Hydro Input'!$A$38:$I$47,VLOOKUP(N42,$A$25:$D$30,2,FALSE),FALSE) -> 475.2 | P42: ='Reach Avg Hyd'!F36 -> 63.81142857 | Q42: 7.446941882 | R42: ='Reach Avg Hyd'!D36 -> 5.408571429 | S42: ='Reach Avg Hyd'!C36 -> 1.455714286 | T42: =VLOOKUP(M42,MUSLE!A$25:G$34,VLOOKUP(N42,A$25:C$30,3,FALSE),FALSE) -> 3099.674042 | U42: ='Reach Avg Hyd'!I36 -> 0.01340339277 | V42: 10.95980177 | W42: 78291.91384 | X42: 57598.11706 | Y42: =(O42/2.65)*(T42/(10^6-T42)) -> 0.5575641557 | Z42: =Y42*3600*24*(62.4*2.65/2000) -> 3982.988539 | AA42: 82274.90237
M43: 5 | N43: 5 YR | O43: =VLOOKUP(M43,'Hydro Input'!$A$38:$I$47,VLOOKUP(N43,$A$25:$D$30,2,FALSE),FALSE) -> 838.1 | P43: ='Reach Avg Hyd'!F37 -> 72.19714286 | Q43: 11.60849262 | R43: ='Reach Avg Hyd'!D37 -> 6.428571429 | S43: ='Reach Avg Hyd'!C37 -> 1.888571429 | T43: =VLOOKUP(M43,MUSLE!A$25:G$34,VLOOKUP(N43,A$25:C$30,3,FALSE),FALSE) -> 3558.318752 | U43: ='Reach Avg Hyd'!I37 -> 0.01340339277 | V43: 27.59748556 | W43: 197144.0732 | X43: 80257.52986 | Y43: 1.129387379 | Z43: 8067.837472 | AA43: 205211.9106
M44: 5 | N44: 10 YR | O44: =VLOOKUP(M44,'Hydro Input'!$A$38:$I$47,VLOOKUP(N44,$A$25:$D$30,2,FALSE),FALSE) -> 1069.7 | P44: ='Reach Avg Hyd'!F38 -> 80.41714286 | Q44: 13.30189014 | R44: ='Reach Avg Hyd'!D38 -> 6.915714286 | S44: ='Reach Avg Hyd'!C38 -> 2.054285714 | T44: =VLOOKUP(M44,MUSLE!A$25:G$34,VLOOKUP(N44,A$25:C$30,3,FALSE),FALSE) -> 3672.819238 | U44: ='Reach Avg Hyd'!I38 -> 0.01340339277 | V44: 43.0108035 | W44: 307249.9113 | X44: 96291.87049 | Y44: 1.48803689 | Z44: 10629.8689 | AA44: 317879.7802
M45: 5 | N45: 25 YR | O45: =VLOOKUP(M45,'Hydro Input'!$A$38:$I$47,VLOOKUP(N45,$A$25:$D$30,2,FALSE),FALSE) -> 1303.3 | P45: ='Reach Avg Hyd'!F39 -> 86.36571429 | Q45: 15.09047903 | R45: ='Reach Avg Hyd'!D39 -> 7.29 | S45: ='Reach Avg Hyd'!C39 -> 2.235714286 | T45: =VLOOKUP(M45,MUSLE!A$25:G$34,VLOOKUP(N45,A$25:C$30,3,FALSE),FALSE) -> 3687.978897 | U45: ='Reach Avg Hyd'!I39 -> 0.01340339277 | V45: 58.96699232 | W45: 421233.7759 | X45: 107061.2094 | Y45: 1.820503752 | Z45: 13004.86322 | AA45: 434238.6392
M46: 5 | N46: 50 YR | O46: =VLOOKUP(M46,'Hydro Input'!$A$38:$I$47,VLOOKUP(N46,$A$25:$D$30,2,FALSE),FALSE) -> 1464.1 | P46: ='Reach Avg Hyd'!F40 -> 89.50285714 | Q46: 16.35813701 | R46: ='Reach Avg Hyd'!D40 -> 7.502857143 | S46: ='Reach Avg Hyd'!C40 -> 2.351428571 | T46: =VLOOKUP(M46,MUSLE!A$25:G$34,VLOOKUP(N46,A$25:C$30,3,FALSE),FALSE) -> 3683.350499 | U46: ='Reach Avg Hyd'!I40 -> 0.01340339277 | V46: 69.8461363 | W46: 498949.5067 | X46: 112232.0699 | Y46: 2.042539792 | Z46: 14590.98922 | AA46: 513540.4959
M47: 5 | N47: 100 YR | O47: =VLOOKUP(M47,'Hydro Input'!$A$38:$I$47,VLOOKUP(N47,$A$25:$D$30,2,FALSE),FALSE) -> 1619.7 | P47: ='Reach Avg Hyd'!F41 -> 92.67857143 | Q47: 17.47653179 | R47: ='Reach Avg Hyd'!D41 -> 7.698571429 | S47: ='Reach Avg Hyd'!C41 -> 2.451428571 | T47: =VLOOKUP(M47,MUSLE!A$25:G$34,VLOOKUP(N47,A$25:C$30,3,FALSE),FALSE) -> 3665.121454 | U47: ='Reach Avg Hyd'!I41 -> 0.01340339277 | V47: 81.48402535 | W47: 582085.3723 | X47: 117633.9205 | Y47: 2.248390518 | Z47: 16061.49458 | AA47: 598146.8668
M48: 6 | O48: 0.001 | W48: 0.001 | Z48: 0.001 | AA48: 0.002
M49: =IF(N49="2 YR",M47+1,M47) -> 6 | N49: 2 YR | O49: =VLOOKUP(M49,'Hydro Input'!$A$38:$I$47,VLOOKUP(N49,$A$25:$D$30,2,FALSE),FALSE) -> 499 | P49: ='Reach Avg Hyd'!F42 -> 76.9725 | Q49: 6.482834779 | R49: ='Reach Avg Hyd'!D42 -> 5.085 | S49: ='Reach Avg Hyd'!C42 -> 1.31 | T49: =VLOOKUP(M49,MUSLE!A$25:G$34,VLOOKUP(N49,A$25:C$30,3,FALSE),FALSE) -> 2623.894165 | U49: ='Reach Avg Hyd'!I42 -> 0.0148308775 | V49: 9.916786947 | W49: 70841.08323 | X49: 50029.52931 | Y49: =(O49/2.65)*(T49/(10^6-T49)) -> 0.4953840573 | Z49: =Y49*3600*24*(62.4*2.65/2000) -> 3538.801773 | AA49: 74379.885
M50: 6 | N50: 5 YR | O50: =VLOOKUP(M50,'Hydro Input'!$A$38:$I$47,VLOOKUP(N50,$A$25:$D$30,2,FALSE),FALSE) -> 878.4 | P50: ='Reach Avg Hyd'!F43 -> 87.37375 | Q50: 10.05336271 | R50: ='Reach Avg Hyd'!D43 -> 6.03875 | S50: ='Reach Avg Hyd'!C43 -> 1.71125 | T50: =VLOOKUP(M50,MUSLE!A$25:G$34,VLOOKUP(N50,A$25:C$30,3,FALSE),FALSE) -> 3010.108483 | U50: ='Reach Avg Hyd'!I43 -> 0.0148308775 | V50: 24.96497658 | W50: 178338.6084 | X50: 70040.42612 | Y50: 1.000778221 | Z50: 7149.111264 | AA50: 185487.7196
M51: 6 | N51: 10 YR | O51: =VLOOKUP(M51,'Hydro Input'!$A$38:$I$47,VLOOKUP(N51,$A$25:$D$30,2,FALSE),FALSE) -> 1122 | P51: ='Reach Avg Hyd'!F44 -> 94.31625 | Q51: 11.89614727 | R51: ='Reach Avg Hyd'!D44 -> 6.5025 | S51: ='Reach Avg Hyd'!C44 -> 1.88875 | T51: =VLOOKUP(M51,MUSLE!A$25:G$34,VLOOKUP(N51,A$25:C$30,3,FALSE),FALSE) -> 3107.165439 | U51: ='Reach Avg Hyd'!I44 -> 0.0148308775 | V51: 37.91085262 | W51: 270818.1471 | X51: 82181.38057 | Y51: 1.319662532 | Z51: 9427.077917 | AA51: 280245.225
M52: 6 | N52: 25 YR | O52: =VLOOKUP(M52,'Hydro Input'!$A$38:$I$47,VLOOKUP(N52,$A$25:$D$30,2,FALSE),FALSE) -> 1364.7 | P52: ='Reach Avg Hyd'!F45 -> 99.00875 | Q52: 13.78363023 | R52: ='Reach Avg Hyd'!D45 -> 6.8975 | S52: ='Reach Avg Hyd'!C45 -> 2.0675 | T52: =VLOOKUP(M52,MUSLE!A$25:G$34,VLOOKUP(N52,A$25:C$30,3,FALSE),FALSE) -> 3118.401396 | U52: ='Reach Avg Hyd'!I45 -> 0.0148308775 | V52: 52.27991863 | W52: 373464.3173 | X52: 92162.01001 | Y52: 1.610941443 | Z52: 11507.84397 | AA52: 384972.1613
M53: 6 | N53: 50 YR | O53: =VLOOKUP(M53,'Hydro Input'!$A$38:$I$47,VLOOKUP(N53,$A$25:$D$30,2,FALSE),FALSE) -> 1534.8 | P53: ='Reach Avg Hyd'!F46 -> 103.145 | Q53: 14.88002327 | R53: ='Reach Avg Hyd'!D46 -> 7.14625 | S53: ='Reach Avg Hyd'!C46 -> 2.16 | T53: =VLOOKUP(M53,MUSLE!A$25:G$34,VLOOKUP(N53,A$25:C$30,3,FALSE),FALSE) -> 3115.916813 | U53: ='Reach Avg Hyd'!I46 -> 0.0148308775 | V53: 64.10686469 | W53: 457950.7214 | X53: 99656.75281 | Y53: 1.810285652 | Z53: 12931.86969 | AA53: 470882.5911
M54: 6 | N54: 100 YR | O54: =VLOOKUP(M54,'Hydro Input'!$A$38:$I$47,VLOOKUP(N54,$A$25:$D$30,2,FALSE),FALSE) -> 1701 | P54: ='Reach Avg Hyd'!F47 -> 108 | Q54: 15.75 | R54: ='Reach Avg Hyd'!D47 -> 7.36125 | S54: ='Reach Avg Hyd'!C47 -> 2.2375 | T54: =VLOOKUP(M54,MUSLE!A$25:G$34,VLOOKUP(N54,A$25:C$30,3,FALSE),FALSE) -> 3103.912293 | U54: ='Reach Avg Hyd'!I47 -> 0.0148308775 | V54: 76.92220207 | W54: 549497.7504 | X54: 107013.4106 | Y54: 1.998563672 | Z54: 14276.84352 | AA54: 563774.594
M55: 7 | O55: 0.001 | W55: 0.001 | Z55: 0.001 | AA55: 0.002
M56: =IF(N56="2 YR",M54+1,M54) -> 7 | N56: 2 YR | O56: =VLOOKUP(M56,'Hydro Input'!$A$38:$I$47,VLOOKUP(N56,$A$25:$D$30,2,FALSE),FALSE) -> 589.2643815 | P56: ='Reach Avg Hyd'!F48 -> 55.15076923 | Q56: 10.68460857 | R56: ='Reach Avg Hyd'!D48 -> 6.623846154 | S56: ='Reach Avg Hyd'!C48 -> 1.767692308 | T56: =VLOOKUP(M56,MUSLE!A$25:G$34,VLOOKUP(N56,A$25:C$30,3,FALSE),FALSE) -> 2802.696975 | U56: ='Reach Avg Hyd'!I48 -> 0.02617114203 | V56: 23.94151947 | W56: 171027.4893 | X56: 97202.56182 | Y56: =(O56/2.65)*(T56/(10^6-T56)) -> 0.6249702813 | Z56: =Y56*3600*24*(62.4*2.65/2000) -> 4464.507703 | AA56: 175491.997
M57: 7 | N57: 5 YR | O57: =VLOOKUP(M57,'Hydro Input'!$A$38:$I$47,VLOOKUP(N57,$A$25:$D$30,2,FALSE),FALSE) -> 1041.31175 | P57: ='Reach Avg Hyd'!F49 -> 63.68 | Q57: 16.35225737 | R57: ='Reach Avg Hyd'!D49 -> 7.64 | S57: ='Reach Avg Hyd'!C49 -> 2.312307692 | T57: =VLOOKUP(M57,MUSLE!A$25:G$34,VLOOKUP(N57,A$25:C$30,3,FALSE),FALSE) -> 3225.597435 | U57: ='Reach Avg Hyd'!I49 -> 0.02617114203 | V57: 53.77508439 | W57: 384145.1116 | X57: 120376.8212 | Y57: 1.27159316 | Z57: 9083.691863 | AA57: 393228.8035
M58: 7 | N58: 10 YR | O58: =VLOOKUP(M58,'Hydro Input'!$A$38:$I$47,VLOOKUP(N58,$A$25:$D$30,2,FALSE),FALSE) -> 1368.820072 | P58: ='Reach Avg Hyd'!F50 -> 68.75769231 | Q58: 19.90788269 | R58: ='Reach Avg Hyd'!D50 -> 8.187692308 | S58: ='Reach Avg Hyd'!C50 -> 2.606923077 | T58: =VLOOKUP(M58,MUSLE!A$25:G$34,VLOOKUP(N58,A$25:C$30,3,FALSE),FALSE) -> 3375.623453 | U58: ='Reach Avg Hyd'!I50 -> 0.02617114203 | V58: 80.10331687 | W58: 572222.2095 | X58: 134257.5509 | Y58: 1.749536394 | Z58: 12497.90421 | AA58: 584720.1137
M59: 7 | N59: 25 YR | O59: =VLOOKUP(M59,'Hydro Input'!$A$38:$I$47,VLOOKUP(N59,$A$25:$D$30,2,FALSE),FALSE) -> 1716.304037 | P59: ='Reach Avg Hyd'!F51 -> 75.01538462 | Q59: 22.87936063 | R59: ='Reach Avg Hyd'!D51 -> 8.663076923 | S59: ='Reach Avg Hyd'!C51 -> 2.836923077 | T59: =VLOOKUP(M59,MUSLE!A$25:G$34,VLOOKUP(N59,A$25:C$30,3,FALSE),FALSE) -> 3427.659286 | U59: ='Reach Avg Hyd'!I51 -> 0.02617114203 | V59: 113.4615575 | W59: 810518.5362 | X59: 149071.1609 | Y59: 2.227599782 | Z59: 15912.97488 | AA59: 826431.5111
M60: 7 | N60: 50 YR | O60: =VLOOKUP(M60,'Hydro Input'!$A$38:$I$47,VLOOKUP(N60,$A$25:$D$30,2,FALSE),FALSE) -> 1981.46695 | P60: ='Reach Avg Hyd'!F52 -> 83.26153846 | Q60: 23.79810638 | R60: ='Reach Avg Hyd'!D52 -> 8.97 | S60: ='Reach Avg Hyd'!C52 -> 2.881538462 | T60: =VLOOKUP(M60,MUSLE!A$25:G$34,VLOOKUP(N60,A$25:C$30,3,FALSE),FALSE) -> 3460.529026 | U60: ='Reach Avg Hyd'!I52 -> 0.08865536303 | V60: 147.4951773 | W60: 1053639.469 | X60: 164758.8475 | Y60: 2.596503727 | Z60: 18548.25939 | AA60: 1072187.728
M61: 7 | N61: 100 YR | O61: =VLOOKUP(M61,'Hydro Input'!$A$38:$I$47,VLOOKUP(N61,$A$25:$D$30,2,FALSE),FALSE) -> 2270.541 | P61: ='Reach Avg Hyd'!F53 -> 89.44230769 | Q61: 25.38553688 | R61: ='Reach Avg Hyd'!D53 -> 9.292307692 | S61: ='Reach Avg Hyd'!C53 -> 3.045384615 | T61: =VLOOKUP(M61,MUSLE!A$25:G$34,VLOOKUP(N61,A$25:C$30,3,FALSE),FALSE) -> 3496.096775 | U61: ='Reach Avg Hyd'!I53 -> 0.02628209378 | V61: 186.5851815 | W61: 1332880.947 | X61: 178825.3923 | Y61: 3.005992663 | Z61: 21473.4649 | AA61: 1354354.412
M62: 8 | O62: 0.001 | W62: 0.001 | Z62: 0.001 | AA62: 0.002
M63: =IF(N63="2 YR",M61+1,M61) -> 8 | N63: 2 YR | O63: =VLOOKUP(M63,'Hydro Input'!$A$38:$I$47,VLOOKUP(N63,$A$25:$D$30,2,FALSE),FALSE) -> 615 | P63: ='Reach Avg Hyd'!F54 -> 59.83727273 | Q63: 10.27787484 | R63: ='Reach Avg Hyd'!D54 -> 6.423636364 | S63: ='Reach Avg Hyd'!C54 -> 1.749090909 | T63: =VLOOKUP(M63,MUSLE!A$25:G$34,VLOOKUP(N63,A$25:C$30,3,FALSE),FALSE) -> 3777.228658 | U63: ='Reach Avg Hyd'!I54 -> 0.01962547575 | V63: 22.66426494 | W63: 161903.3551 | X63: 88970.27703 | Y63: =(O63/2.65)*(T63/(10^6-T63)) -> 0.8799258035 | Z63: =Y63*3600*24*(62.4*2.65/2000) -> 6285.795734 | AA63: 168189.1509
M64: 8 | N64: 5 YR | O64: =VLOOKUP(M64,'Hydro Input'!$A$38:$I$47,VLOOKUP(N64,$A$25:$D$30,2,FALSE),FALSE) -> 1090.2 | P64: ='Reach Avg Hyd'!F55 -> 65.82181818 | Q64: 16.56289708 | R64: ='Reach Avg Hyd'!D55 -> 7.675454545 | S64: ='Reach Avg Hyd'!C55 -> 2.370909091 | T64: =VLOOKUP(M64,MUSLE!A$25:G$34,VLOOKUP(N64,A$25:C$30,3,FALSE),FALSE) -> 4356.585956 | U64: ='Reach Avg Hyd'!I55 -> 0.01962547575 | V64: 57.04237423 | W64: 407485.1665 | X64: 121771.2933 | Y64: 1.800125424 | Z64: 12859.28957 | AA64: 420344.4561
M65: 8 | N65: 10 YR | O65: =VLOOKUP(M65,'Hydro Input'!$A$38:$I$47,VLOOKUP(N65,$A$25:$D$30,2,FALSE),FALSE) -> 1445 | P65: ='Reach Avg Hyd'!F56 -> 69.35 | Q65: 20.83633742 | R65: ='Reach Avg Hyd'!D56 -> 8.360909091 | S65: ='Reach Avg Hyd'!C56 -> 2.743636364 | T65: =VLOOKUP(M65,MUSLE!A$25:G$34,VLOOKUP(N65,A$25:C$30,3,FALSE),FALSE) -> 4598.585959 | U65: ='Reach Avg Hyd'!I56 -> 0.01962547575 | V65: 89.43895817 | W65: 638911.8485 | X65: 140910.4481 | Y65: 2.519115202 | Z65: 17995.43044 | AA65: 656907.279
M66: 8 | N66: 25 YR | O66: =VLOOKUP(M66,'Hydro Input'!$A$38:$I$47,VLOOKUP(N66,$A$25:$D$30,2,FALSE),FALSE) -> 1841.9 | P66: ='Reach Avg Hyd'!F57 -> 73.03181818 | Q66: 25.2205141 | R66: ='Reach Avg Hyd'!D57 -> 8.99 | S66: ='Reach Avg Hyd'!C57 -> 3.099090909 | T66: =VLOOKUP(M66,MUSLE!A$25:G$34,VLOOKUP(N66,A$25:C$30,3,FALSE),FALSE) -> 4742.16267 | U66: ='Reach Avg Hyd'!I57 -> 0.01962547575 | V66: 131.9092121 | W66: 942300.3159 | X66: 159509.8728 | Y66: 3.311776462 | Z66: 23657.84737 | AA66: 965958.1633
M67: 8 | N67: 50 YR | O67: =VLOOKUP(M67,'Hydro Input'!$A$38:$I$47,VLOOKUP(N67,$A$25:$D$30,2,FALSE),FALSE) -> 2153.2 | P67: ='Reach Avg Hyd'!F58 -> 75.56727273 | Q67: 28.49381647 | R67: ='Reach Avg Hyd'!D58 -> 9.404545455 | S67: ='Reach Avg Hyd'!C58 -> 3.350909091 | T67: =VLOOKUP(M67,MUSLE!A$25:G$34,VLOOKUP(N67,A$25:C$30,3,FALSE),FALSE) -> 4844.508963 | U67: ='Reach Avg Hyd'!I58 -> 0.1721515725 | V67: 168.3058009 | W67: 1202301.241 | X67: 171594.5647 | Y67: 3.955462917 | Z67: 28256.05503 | AA67: 1230557.296
M68: 8 | N68: 100 YR | O68: =VLOOKUP(M68,'Hydro Input'!$A$38:$I$47,VLOOKUP(N68,$A$25:$D$30,2,FALSE),FALSE) -> 2498 | P68: ='Reach Avg Hyd'!F59 -> 78.4 | Q68: 31.8622449 | R68: ='Reach Avg Hyd'!D59 -> 9.775454545 | S68: ='Reach Avg Hyd'!C59 -> 3.604545455 | T68: =VLOOKUP(M68,MUSLE!A$25:G$34,VLOOKUP(N68,A$25:C$30,3,FALSE),FALSE) -> 4950.945395 | U68: ='Reach Avg Hyd'!I59 -> 0.01978521217 | V68: 209.1218469 | W68: 1493872.788 | X68: 181566.6784 | Y68: 4.690187502 | Z68: 33504.59831 | AA68: 1527377.386
M69: 9 | O69: 0.001 | W69: 0.001 | Z69: 0.001 | AA69: 0.002
M70: =IF(N70="2 YR",M68+1,M68) -> 9 | N70: 2 YR | O70: =VLOOKUP(M70,'Hydro Input'!$A$38:$I$47,VLOOKUP(N70,$A$25:$D$30,2,FALSE),FALSE) -> 681 | P70: ='Reach Avg Hyd'!F60 -> 60.273 | Q70: 11.29859141 | R70: ='Reach Avg Hyd'!D60 -> 6.789 | S70: ='Reach Avg Hyd'!C60 -> 1.723 | T70: =VLOOKUP(M70,MUSLE!A$25:G$34,VLOOKUP(N70,A$25:C$30,3,FALSE),FALSE) -> 3106.418247 | U70: ='Reach Avg Hyd'!I60 -> 0.03522200409 | V70: 29.19393059 | W70: 208548.3613 | X70: 102014.2367 | Y70: =(O70/2.65)*(T70/(10^6-T70)) -> 0.8007784306 | Z70: =Y70*3600*24*(62.4*2.65/2000) -> 5720.402359 | AA70: 214268.7636
M71: 9 | N71: 5 YR | O71: =VLOOKUP(M71,'Hydro Input'!$A$38:$I$47,VLOOKUP(N71,$A$25:$D$30,2,FALSE),FALSE) -> 1166.8 | P71: ='Reach Avg Hyd'!F61 -> 67.713 | Q71: 17.23155081 | R71: ='Reach Avg Hyd'!D61 -> 7.989 | S71: ='Reach Avg Hyd'!C61 -> 2.222 | T71: =VLOOKUP(M71,MUSLE!A$25:G$34,VLOOKUP(N71,A$25:C$30,3,FALSE),FALSE) -> 3517.283949 | U71: ='Reach Avg Hyd'!I61 -> 0.03522200409 | V71: 69.73725938 | W71: 498171.7387 | X71: 136729.2293 | Y71: 1.554133087 | Z71: 11102.03052 | AA71: =SUM(W71,Z71) -> 509273.7692
M72: 9 | N72: 10 YR | O72: =VLOOKUP(M72,'Hydro Input'!$A$38:$I$47,VLOOKUP(N72,$A$25:$D$30,2,FALSE),FALSE) -> 1529 | P72: ='Reach Avg Hyd'!F62 -> 71.341 | Q72: 21.43227597 | R72: ='Reach Avg Hyd'!D62 -> 8.666 | S72: ='Reach Avg Hyd'!C62 -> 2.548 | T72: =VLOOKUP(M72,MUSLE!A$25:G$34,VLOOKUP(N72,A$25:C$30,3,FALSE),FALSE) -> 3689.36498 | U72: ='Reach Avg Hyd'!I62 -> 0.03522200409 | V72: 107.1950732 | W72: 765753.5795 | X72: 156677.5815 | Y72: 2.136576594 | Z72: 15262.746 | AA72: 781016.3255
M73: 9 | N73: 25 YR | O73: =VLOOKUP(M73,'Hydro Input'!$A$38:$I$47,VLOOKUP(N73,$A$25:$D$30,2,FALSE),FALSE) -> 1932.6 | P73: ='Reach Avg Hyd'!F63 -> 75.004 | Q73: 25.76662578 | R73: ='Reach Avg Hyd'!D63 -> 9.234 | S73: ='Reach Avg Hyd'!C63 -> 2.873 | T73: =VLOOKUP(M73,MUSLE!A$25:G$34,VLOOKUP(N73,A$25:C$30,3,FALSE),FALSE) -> 3785.103075 | U73: ='Reach Avg Hyd'!I63 -> 0.03522200409 | V73: 151.4873783 | W73: 1082157.964 | X73: 171994.1756 | Y73: 2.770899538 | Z73: 19794.06493 | AA73: 1101952.029
M74: 9 | N74: 50 YR | O74: =VLOOKUP(M74,'Hydro Input'!$A$38:$I$47,VLOOKUP(N74,$A$25:$D$30,2,FALSE),FALSE) -> 2248.4 | P74: ='Reach Avg Hyd'!F64 -> 78.259 | Q74: 28.73024189 | R74: ='Reach Avg Hyd'!D64 -> 9.584 | S74: ='Reach Avg Hyd'!C64 -> 3.074 | T74: =VLOOKUP(M74,MUSLE!A$25:G$34,VLOOKUP(N74,A$25:C$30,3,FALSE),FALSE) -> 3856.191131 | U74: ='Reach Avg Hyd'!I64 -> 0.03522200409 | V74: 187.941663 | W74: 1342571.043 | X74: 181341.8194 | Y74: 3.284461792 | Z74: 23462.7236 | AA74: 1366033.766
M75: 9 | N75: 100 YR | O75: =VLOOKUP(M75,'Hydro Input'!$A$38:$I$47,VLOOKUP(N75,$A$25:$D$30,2,FALSE),FALSE) -> 2597 | P75: ='Reach Avg Hyd'!F65 -> 81.367 | Q75: 31.91711628 | R75: ='Reach Avg Hyd'!D65 -> 9.966 | S75: ='Reach Avg Hyd'!C65 -> 3.279 | T75: =VLOOKUP(M75,MUSLE!A$25:G$34,VLOOKUP(N75,A$25:C$30,3,FALSE),FALSE) -> 3931.22149 | U75: ='Reach Avg Hyd'!I65 -> 0.03522200409 | V75: 234.264468 | W75: 1673480.409 | X75: 192927.0551 | Y75: 3.867802247 | Z75: 27629.84648 | AA75: 1701110.255

Sheet Bulking Factors
A1: Bulking Factor Calculations
A3: Number in columns C through E are not linked but pasted as values. Update as necessary.
A4: Sub-Reach | B4: Recurrence | C4: Flow | D4: Qs,bm | E4: Qs,f | F4: Qs,tot | G4: Bf
B5: Interval | C5: (cfs) | D5: (cfs) | E5: (cfs) | F5: (cfs) | G5: (fraction)
A6: 0 | B6: 2 YR | C6: ='MPM-Woo'!O7 -> 330.814047 | D6: ='MPM-Woo'!V7 -> 5.74798857 | E6: ='MPM-Woo'!Y7 -> 0.6927102401 | F6: =SUM(D6:E6) -> 6.44069881 | G6: =(C6+F6)/C6 -> 1.019469242
A7: =IF(B7="2 YR",A6+1,A6) -> 0 | B7: 5 YR | C7: ='MPM-Woo'!O8 -> 511.5452509 | D7: ='MPM-Woo'!V8 -> 11.12205911 | E7: ='MPM-Woo'!Y8 -> 1.138348895 | F7: =SUM(D7:E7) -> 12.26040801 | G7: =(C7+F7)/C7 -> 1.023967397
A8: =IF(B8="2 YR",A7+1,A7) -> 0 | B8: 10 YR | C8: ='MPM-Woo'!O9 -> 659.9576618 | D8: ='MPM-Woo'!V9 -> 16.31562925 | E8: ='MPM-Woo'!Y9 -> 1.513880476 | F8: 17.82950972 | G8: 1.027016142
A9: 0 | B9: 25 YR | C9: ='MPM-Woo'!O10 -> 859.7350545 | D9: ='MPM-Woo'!V10 -> 23.80690996 | E9: ='MPM-Woo'!Y10 -> 2.06967049 | F9: 25.87658045 | G9: 1.03009832
A10: 0 | B10: 50 YR | C10: ='MPM-Woo'!O11 -> 1020.700432 | D10: ='MPM-Woo'!V11 -> 30.881686 | E10: ='MPM-Woo'!Y11 -> 2.518569788 | F10: 33.40025579 | G10: 1.032722878
A11: 0 | B11: 100 YR | C11: ='MPM-Woo'!O12 -> 1197.953557 | D11: ='MPM-Woo'!V12 -> 40.29569862 | E11: ='MPM-Woo'!Y12 -> 3.028055655 | F11: 43.32375427 | G11: 1.036164803
A12: =IF(B12="2 YR",A11+1,A11) -> 1 | B12: 2 YR | C12: ='MPM-Woo'!O14 -> 791 | D12: ='MPM-Woo'!V14 -> 23.02092467 | E12: ='MPM-Woo'!Y14 -> 1.960201376 | F12: 24.98112604 | G12: 1.031581702
A13: 1 | B13: 5 YR | C13: ='MPM-Woo'!O15 -> 1188.6 | D13: ='MPM-Woo'!V15 -> 44.26324131 | E13: ='MPM-Woo'!Y15 -> 3.092875489 | F13: 47.3561168 | G13: 1.039841929
A14: 1 | B14: 10 YR | C14: ='MPM-Woo'!O16 -> 1512 | D14: ='MPM-Woo'!V16 -> 65.75294106 | E14: ='MPM-Woo'!Y16 -> 4.046156936 | F14: 69.799098 | G14: 1.046163425
A15: 1 | B15: 25 YR | C15: ='MPM-Woo'!O17 -> 1937.7 | D15: ='MPM-Woo'!V17 -> 100.7093556 | E15: ='MPM-Woo'!Y17 -> 5.343242242 | F15: 106.0525979 | G15: 1.054731175
A16: 1 | B16: 50 YR | C16: ='MPM-Woo'!O18 -> 2278.5 | D16: ='MPM-Woo'!V18 -> 132.6783263 | E16: ='MPM-Woo'!Y18 -> 6.430417548 | F16: 139.1087438 | G16: 1.061052773
A17: 1 | B17: 100 YR | C17: ='MPM-Woo'!O19 -> 2651 | D17: ='MPM-Woo'!V19 -> 171.7321977 | E17: ='MPM-Woo'!Y19 -> 7.651793602 | F17: 179.3839913 | G17: 1.067666538
A18: =IF(B18="2 YR",A17+1,A17) -> 2 | B18: 2 YR | C18: ='MPM-Woo'!O21 -> 301 | D18: ='MPM-Woo'!V21 -> 7.072343043 | E18: ='MPM-Woo'!Y21 -> 0.3362627044 | F18: 7.408605748 | G18: 1.024613308
A19: 2 | B19: 5 YR | C19: ='MPM-Woo'!O22 -> 473.2 | D19: ='MPM-Woo'!V22 -> 14.3384568 | E19: ='MPM-Woo'!Y22 -> 0.5686177842 | F19: 14.90707458 | G19: 1.031502694
A20: 2 | B20: 10 YR | C20: ='MPM-Woo'!O23 -> 557 | D20: ='MPM-Woo'!V23 -> 18.4531288 | E20: ='MPM-Woo'!Y23 -> 0.6589060909 | F20: 19.11203489 | G20: 1.03431245
A21: 2 | B21: 25 YR | C21: ='MPM-Woo'!O24 -> 688.1 | D21: ='MPM-Woo'!V24 -> 26.07087226 | E21: ='MPM-Woo'!Y24 -> 0.8232213307 | F21: 26.89409359 | G21: 1.039084571
A22: 2 | B22: 50 YR | C22: ='MPM-Woo'!O25 -> 764.6 | D22: ='MPM-Woo'!V25 -> 31.25820748 | E22: ='MPM-Woo'!Y25 -> 0.9073234406 | F22: 32.16553092 | G22: 1.042068442
A23: 2 | B23: 100 YR | C23: ='MPM-Woo'!O26 -> 837 | D23: ='MPM-Woo'!V26 -> 37.62705243 | E23: ='MPM-Woo'!Y26 -> 0.9821489138 | F23: 38.60920135 | G23: 1.046128078
A24: =IF(B24="2 YR",A23+1,A23) -> 3 | B24: 2 YR | C24: ='MPM-Woo'!O28 -> 311 | D24: ='MPM-Woo'!V28 -> 11.70890958 | E24: ='MPM-Woo'!Y28 -> 0.377175325 | F24: 12.08608491 | G24: 1.038862009
A25: 3 | B25: 5 YR | C25: ='MPM-Woo'!O29 -> 487.8 | D25: ='MPM-Woo'!V29 -> 24.01219005 | E25: ='MPM-Woo'!Y29 -> 0.6374148943 | F25: 24.64960494 | G25: 1.050532195
A26: 3 | B26: 10 YR | C26: ='MPM-Woo'!O30 -> 594 | D26: ='MPM-Woo'!V30 -> 34.42938983 | E26: ='MPM-Woo'!Y30 -> 0.7796334518 | F26: 35.20902328 | G26: 1.05927445
A27: 3 | B27: 25 YR | C27: ='MPM-Woo'!O31 -> 708.3 | D27: ='MPM-Woo'!V31 -> 46.86849559 | E27: ='MPM-Woo'!Y31 -> 0.9225323679 | F27: 47.79102796 | G27: 1.067472862
A28: 3 | B28: 50 YR | C28: ='MPM-Woo'!O32 -> 788.9 | D28: ='MPM-Woo'!V32 -> 57.53985987 | E28: ='MPM-Woo'!Y32 -> 1.020749439 | F28: 58.56060931 | G28: 1.074230713
A29: 3 | B29: 100 YR | C29: ='MPM-Woo'!O33 -> 865 | D29: ='MPM-Woo'!V33 -> 68.89381761 | E29: ='MPM-Woo'!Y33 -> 1.107824958 | F29: 70.00164257 | G29: 1.080926754
A30: =IF(B30="2 YR",A29+1,A29) -> 4 | B30: 2 YR | C30: ='MPM-Woo'!O35 -> 311 | D30: ='MPM-Woo'!V35 -> 10.61739604 | E30: ='MPM-Woo'!Y35 -> 0.2911717281 | F30: 10.90856776 | G30: 1.035075781
A31: 4 | B31: 5 YR | C31: ='MPM-Woo'!O36 -> 487.8 | D31: ='MPM-Woo'!V36 -> 21.05163192 | E31: ='MPM-Woo'!Y36 -> 0.4920714161 | F31: 21.54370334 | G31: 1.044165033
A32: 4 | B32: 10 YR | C32: ='MPM-Woo'!O37 -> 594 | D32: ='MPM-Woo'!V37 -> 27.83024424 | E32: ='MPM-Woo'!Y37 -> 0.6018612682 | F32: 28.43210551 | G32: 1.047865497
A33: 4 | B33: 25 YR | C33: ='MPM-Woo'!O38 -> 708.3 | D33: ='MPM-Woo'!V38 -> 36.72025987 | E33: ='MPM-Woo'!Y38 -> 0.7121763434 | F33: 37.43243621 | G33: 1.052848279
A34: 4 | B34: 50 YR | C34: ='MPM-Woo'!O39 -> 788.9 | D34: ='MPM-Woo'!V39 -> 43.51622493 | E34: ='MPM-Woo'!Y39 -> 0.7879979372 | F34: 44.30422287 | G34: 1.056159492
A35: 4 | B35: 100 YR | C35: ='MPM-Woo'!O40 -> 865 | D35: ='MPM-Woo'!V40 -> 50.67542364 | E35: ='MPM-Woo'!Y40 -> 0.8552184779 | F35: 51.53064212 | G35: 1.059572997
A36: =IF(B36="2 YR",A35+1,A35) -> 5 | B36: 2 YR | C36: ='MPM-Woo'!O42 -> 475.2 | D36: ='MPM-Woo'!V42 -> 10.95980177 | E36: ='MPM-Woo'!Y42 -> 0.5575641557 | F36: 11.51736592 | G36: 1.024236881
A37: 5 | B37: 5 YR | C37: ='MPM-Woo'!O43 -> 838.1 | D37: ='MPM-Woo'!V43 -> 27.59748556 | E37: ='MPM-Woo'!Y43 -> 1.129387379 | F37: 28.72687294 | G37: 1.034276188
A38: 5 | B38: 10 YR | C38: ='MPM-Woo'!O44 -> 1069.7 | D38: ='MPM-Woo'!V44 -> 43.0108035 | E38: ='MPM-Woo'!Y44 -> 1.48803689 | F38: 44.49884039 | G38: 1.041599365
A39: 5 | B39: 25 YR | C39: ='MPM-Woo'!O45 -> 1303.3 | D39: ='MPM-Woo'!V45 -> 58.96699232 | E39: ='MPM-Woo'!Y45 -> 1.820503752 | F39: 60.78749607 | G39: 1.046641215
A40: 5 | B40: 50 YR | C40: ='MPM-Woo'!O46 -> 1464.1 | D40: ='MPM-Woo'!V46 -> 69.8461363 | E40: ='MPM-Woo'!Y46 -> 2.042539792 | F40: 71.8886761 | G40: 1.049100933
A41: 5 | B41: 100 YR | C41: ='MPM-Woo'!O47 -> 1619.7 | D41: ='MPM-Woo'!V47 -> 81.48402535 | E41: ='MPM-Woo'!Y47 -> 2.248390518 | F41: 83.73241587 | G41: 1.05169625
A42: =IF(B42="2 YR",A41+1,A41) -> 6 | B42: 2 YR | C42: ='MPM-Woo'!O49 -> 499 | D42: ='MPM-Woo'!V49 -> 9.916786947 | E42: ='MPM-Woo'!Y49 -> 0.4953840573 | F42: 10.412171 | G42: 1.020866074
A43: 6 | B43: 5 YR | C43: ='MPM-Woo'!O50 -> 878.4 | D43: ='MPM-Woo'!V50 -> 24.96497658 | E43: ='MPM-Woo'!Y50 -> 1.000778221 | F43: 25.9657548 | G43: 1.029560286
A44: 6 | B44: 10 YR | C44: ='MPM-Woo'!O51 -> 1122 | D44: ='MPM-Woo'!V51 -> 37.91085262 | E44: ='MPM-Woo'!Y51 -> 1.319662532 | F44: 39.23051515 | G44: 1.034964809
A45: 6 | B45: 25 YR | C45: ='MPM-Woo'!O52 -> 1364.7 | D45: ='MPM-Woo'!V52 -> 52.27991863 | E45: ='MPM-Woo'!Y52 -> 1.610941443 | F45: 53.89086007 | G45: 1.039489163
A46: 6 | B46: 50 YR | C46: ='MPM-Woo'!O53 -> 1534.8 | D46: ='MPM-Woo'!V53 -> 64.10686469 | E46: ='MPM-Woo'!Y53 -> 1.810285652 | F46: 65.91715034 | G46: 1.042948365
A47: 6 | B47: 100 YR | C47: ='MPM-Woo'!O54 -> 1701 | D47: ='MPM-Woo'!V54 -> 76.92220207 | E47: ='MPM-Woo'!Y54 -> 1.998563672 | F47: 78.92076574 | G47: 1.046396688
A48: =IF(B48="2 YR",A47+1,A47) -> 7 | B48: 2 YR | C48: ='MPM-Woo'!O56 -> 589.2643815 | D48: ='MPM-Woo'!V56 -> 23.94151947 | E48: ='MPM-Woo'!Y56 -> 0.6249702813 | F48: 24.56648975 | G48: 1.041690098
A49: 7 | B49: 5 YR | C49: ='MPM-Woo'!O57 -> 1041.31175 | D49: ='MPM-Woo'!V57 -> 53.77508439 | E49: ='MPM-Woo'!Y57 -> 1.27159316 | F49: 55.04667755 | G49: 1.052862822
A50: 7 | B50: 10 YR | C50: ='MPM-Woo'!O58 -> 1368.820072 | D50: ='MPM-Woo'!V58 -> 80.10331687 | E50: ='MPM-Woo'!Y58 -> 1.749536394 | F50: 81.85285327 | G50: 1.05979811
A51: 7 | B51: 25 YR | C51: ='MPM-Woo'!O59 -> 1716.304037 | D51: ='MPM-Woo'!V59 -> 113.4615575 | E51: ='MPM-Woo'!Y59 -> 2.227599782 | F51: 115.6891573 | G51: 1.067405981
A52: 7 | B52: 50 YR | C52: ='MPM-Woo'!O60 -> 1981.46695 | D52: ='MPM-Woo'!V60 -> 147.4951773 | E52: ='MPM-Woo'!Y60 -> 2.596503727 | F52: 150.091681 | G52: 1.075747759
A53: 7 | B53: 100 YR | C53: ='MPM-Woo'!O61 -> 2270.541 | D53: ='MPM-Woo'!V61 -> 186.5851815 | E53: ='MPM-Woo'!Y61 -> 3.005992663 | F53: 189.5911742 | G53: 1.083500441
A54: =IF(B54="2 YR",A53+1,A53) -> 8 | B54: 2 YR | C54: ='MPM-Woo'!O63 -> 615 | D54: ='MPM-Woo'!V63 -> 22.66426494 | E54: ='MPM-Woo'!Y63 -> 0.8799258035 | F54: 23.54419074 | G54: 1.038283237
A55: 8 | B55: 5 YR | C55: ='MPM-Woo'!O64 -> 1090.2 | D55: ='MPM-Woo'!V64 -> 57.04237423 | E55: ='MPM-Woo'!Y64 -> 1.800125424 | F55: 58.84249965 | G55: 1.053974041
A56: 8 | B56: 10 YR | C56: ='MPM-Woo'!O65 -> 1445 | D56: ='MPM-Woo'!V65 -> 89.43895817 | E56: ='MPM-Woo'!Y65 -> 2.519115202 | F56: 91.95807338 | G56: 1.063638805
A57: 8 | B57: 25 YR | C57: ='MPM-Woo'!O66 -> 1841.9 | D57: ='MPM-Woo'!V66 -> 131.9092121 | E57: ='MPM-Woo'!Y66 -> 3.311776462 | F57: 135.2209886 | G57: 1.07341386
A58: 8 | B58: 50 YR | C58: ='MPM-Woo'!O67 -> 2153.2 | D58: ='MPM-Woo'!V67 -> 168.3058009 | E58: ='MPM-Woo'!Y67 -> 3.955462917 | F58: 172.2612638 | G58: 1.080002445
A59: 8 | B59: 100 YR | C59: ='MPM-Woo'!O68 -> 2498 | D59: ='MPM-Woo'!V68 -> 209.1218469 | E59: ='MPM-Woo'!Y68 -> 4.690187502 | F59: 213.8120344 | G59: 1.085593288
A60: =IF(B60="2 YR",A59+1,A59) -> 9 | B60: 2 YR | C60: ='MPM-Woo'!O70 -> 681 | D60: ='MPM-Woo'!V70 -> 29.19393059 | E60: ='MPM-Woo'!Y70 -> 0.8007784306 | F60: 29.99470902 | G60: 1.044045094
A61: 9 | B61: 5 YR | C61: ='MPM-Woo'!O71 -> 1166.8 | D61: ='MPM-Woo'!V71 -> 69.73725938 | E61: ='MPM-Woo'!Y71 -> 1.554133087 | F61: 71.29139246 | G61: 1.061099925
A62: 9 | B62: 10 YR | C62: ='MPM-Woo'!O72 -> 1529 | D62: ='MPM-Woo'!V72 -> 107.1950732 | E62: ='MPM-Woo'!Y72 -> 2.136576594 | F62: 109.3316498 | G62: 1.07150533
A63: =IF(B63="2 YR",A62+1,A62) -> 9 | B63: 25 YR | C63: ='MPM-Woo'!O73 -> 1932.6 | D63: ='MPM-Woo'!V73 -> 151.4873783 | E63: ='MPM-Woo'!Y73 -> 2.770899538 | F63: 154.2582779 | G63: 1.079819041
A64: 9 | B64: 50 YR | C64: ='MPM-Woo'!O74 -> 2248.4 | D64: ='MPM-Woo'!V74 -> 187.941663 | E64: ='MPM-Woo'!Y74 -> 3.284461792 | F64: 191.2261248 | G64: 1.085049869
A65: 9 | B65: 100 YR | C65: ='MPM-Woo'!O75 -> 2597 | D65: ='MPM-Woo'!V75 -> 234.264468 | E65: ='MPM-Woo'!Y75 -> 3.867802247 | F65: 238.1322702 | G65: 1.091695137

Sheet Sed Yields
E2: Total Yield (tons): | F2: =SUM(F8:F2887) -> 1209.629656 | J2: Total Yield (tons): | K2: =SUM(K8:K2887) -> 2196.302045 | O2: Total Yield (tons): | P2: =SUM(P8:P2887) -> 3143.263261 | T2: Total Yield (tons): | U2: =SUM(U8:U2887) -> 4525.097191 | Y2: Total Yield (tons): | Z2: =SUM(Z8:Z2887) -> 5743.085542 | AD2: Total Yield (tons): | AE2: =SUM(AE8:AE2887) -> 7210.816937 | AG2: Total Yield (tons): | AH2: =SUM(AH8:AH2887) -> 5073.268485 | AJ2: Total Yield (tons): | AK2: =SUM(AK8:AK2887) -> 9353.44027 | AM2: Total Yield (tons): | AN2: =SUM(AN8:AN2887) -> 13644.98275 | AP2: Total Yield (tons): | AQ2: =SUM(AQ8:AQ2887) -> 20340.95575 | AS2: Total Yield (tons): | AT2: =SUM(AT8:AT2887) -> 26485.93679 | AV2: Total Yield (tons): | AW2: =SUM(AW8:AW2887) -> 32946.06671 | AY2: Total Yield (tons): | AZ2: =SUM(AZ8:AZ2887) -> 7122.391075 | BB2: Total Yield (tons): | BC2: =SUM(BC8:BC2887) -> 13377.78141 | BE2: Total Yield (tons): | BF2: =SUM(BF8:BF2887) -> 19200.57886 | BH2: Total Yield (tons): | BI2: =SUM(BI8:BI2887) -> 27659.38512 | BK2: Total Yield (tons): | BL2: =SUM(BL8:BL2887) -> 34828.68814 | BN2: Total Yield (tons): | BO2: =SUM(BO8:BO2887) -> 43293.24593 | BQ2: Total Yield (tons): | BR2: =SUM(BR8:BR2887) -> 11853.9637 | BT2: Total Yield (tons): | BU2: =SUM(BU8:BU2887) -> 22591.92266 | BW2: Total Yield (tons): | BX2: =SUM(BX8:BX2887) -> 33105.86084 | BZ2: Total Yield (tons): | CA2: =SUM(CA8:CA2887) -> 48840.60482 | CC2: Total Yield (tons): | CD2: =SUM(CD8:CD2887) -> 62568.43709 | CF2: Total Yield (tons): | CG2: =SUM(CG8:CG2887) -> 78705.45459 | CI2: Total Yield (tons): | CJ2: =SUM(CJ8:CJ2887) -> 10769.66078 | CL2: Total Yield (tons): | CM2: =SUM(CM8:CM2887) -> 20208.67566 | CO2: Total Yield (tons): | CP2: =SUM(CP8:CP2887) -> 28728.93939 | CR2: Total Yield (tons): | CS2: =SUM(CS8:CS2887) -> 40989.633 | CU2: Total Yield (tons): | CV2: =SUM(CV8:CV2887) -> 51252.88847 | CX2: Total Yield (tons): | CY2: =SUM(CY8:CY2887) -> 62929.04049 | DA2: Total Yield (tons): | DB2: =SUM(DB8:DB2887) -> 12330.57825 | DD2: Total Yield (tons): | DE2: =SUM(DE8:DE2887) -> 23683.17555 | DG2: Total Yield (tons): | DH2: =SUM(DH8:DH2887) -> 35082.85744 | DJ2: Total Yield (tons): | DK2: =SUM(DK8:DK2887) -> 51557.00003 | DM2: Total Yield (tons): | DN2: =SUM(DN8:DN2887) -> 65071.33065 | DP2: Total Yield (tons): | DQ2: =SUM(DQ8:DQ2887) -> 80194.13509 | DS2: Total Yield (tons): | DT2: =SUM(DT8:DT2887) -> 11075.2784 | DV2: Total Yield (tons): | DW2: =SUM(DW8:DW2887) -> 21127.96421 | DY2: Total Yield (tons): | DZ2: =SUM(DZ8:DZ2887) -> 31028.25172 | EB2: Total Yield (tons): | EC2: =SUM(EC8:EC2887) -> 45449.28276 | EE2: Total Yield (tons): | EF2: =SUM(EF8:EF2887) -> 57734.33282 | EH2: Total Yield (tons): | EI2: =SUM(EI8:EI2887) -> 41344.16237 | EM2: Total Yield (tons): | EN2: =SUM(EN8:EN2887) -> 23824.1619 | ER2: Total Yield (tons): | ES2: =SUM(ES8:ES2887) -> 44215.14882 | EW2: Total Yield (tons): | EX2: =SUM(EX8:EX2887) -> 62759.23198 | FB2: Total Yield (tons): | FC2: =SUM(FC8:FC2887) -> 89194.54426 | FG2: Total Yield (tons): | FH2: =SUM(FH8:FH2887) -> 111840.249 | FL2: Total Yield (tons): | FM2: =SUM(FM8:FM2887) -> 138058.9347 | FO2: Total Yield (tons): | FP2: =SUM(FP8:FP2887) -> 22923.52461 | FR2: Total Yield (tons): | FS2: =SUM(FS8:FS2887) -> 43817.59589 | FU2: Total Yield (tons): | FV2: =SUM(FV8:FV2887) -> 63893.8687 | FX2: Total Yield (tons): | FY2: =SUM(FY8:FY2887) -> 92958.2507 | GA2: Total Yield (tons): | GB2: =SUM(GB8:GB2887) -> 117437.8752 | GD2: Total Yield (tons): | GE2: =SUM(GE8:GE2887) -> 143909.2277 | GG2: Total Yield (tons): | GH2: =SUM(GH8:GH2887) -> 32135.68368 | GJ2: Total Yield (tons): | GK2: =SUM(GK8:GK2887) -> 59674.50193 | GM2: Total Yield (tons): | GN2: =SUM(GN8:GN2887) -> 85641.76522 | GP2: Total Yield (tons): | GQ2: =SUM(GQ8:GQ2887) -> 122057.9873 | GS2: Total Yield (tons): | GT2: =SUM(GT8:GT2887) -> 151685.7072 | GV2: Total Yield (tons): | GW2: =SUM(GW8:GW2887) -> 184893.9329
D3: 0 | E3: 6 | F3: 12 | I3: 0 | J3: 6 | K3: 12 | N3: 0 | O3: 6 | P3: 12 | S3: 0 | T3: 6 | U3: 12 | X3: 0 | Y3: 6 | Z3: 12 | AC3: 0 | AD3: 6 | AE3: 12 | AF3: 1 | AG3: 13 | AH3: 19 | AI3: 1 | AJ3: 13 | AK3: 19 | AL3: 1 | AM3: 13 | AN3: 19 | AO3: 1 | AP3: 13 | AQ3: 19 | AR3: 1 | AS3: 13 | AT3: 19 | AU3: 1 | AV3: 13 | AW3: 19 | AX3: 2 | AY3: 20 | AZ3: 26 | BA3: 2 | BB3: 20 | BC3: 26 | BD3: 2 | BE3: 20 | BF3: 26 | BG3: 2 | BH3: 20 | BI3: 26 | BJ3: 2 | BK3: 20 | BL3: 26 | BM3: 2 | BN3: 20 | BO3: 26 | BP3: 3 | BQ3: 27 | BR3: 33 | BS3: 3 | BT3: 27 | BU3: 33 | BV3: 3 | BW3: 27 | BX3: 33 | BY3: 3 | BZ3: 27 | CA3: 33 | CB3: 3 | CC3: 27 | CD3: 33 | CE3: 3 | CF3: 27 | CG3: 33 | CH3: 4 | CI3: 34 | CJ3: 40 | CK3: 4 | CL3: 34 | CM3: 40 | CN3: 4 | CO3: 34 | CP3: 40 | CQ3: 4 | CR3: 34 | CS3: 40 | CT3: 4 | CU3: 34 | CV3: 40 | CW3: 4 | CX3: 34 | CY3: 40 | CZ3: 5 | DA3: 41 | DB3: 47 | DC3: 5 | DD3: 41 | DE3: 47 | DF3: 5 | DG3: 41 | DH3: 47 | DI3: 5 | DJ3: 41 | DK3: 47 | DL3: 5 | DM3: 41 | DN3: 47 | DO3: 5 | DP3: 41 | DQ3: 47 | DR3: 6 | DS3: 48 | DT3: 54 | DU3: 6 | DV3: 48 | DW3: 54 | DX3: 6 | DY3: 48 | DZ3: 54 | EA3: 6 | EB3: 48 | EC3: 54 | ED3: 6 | EE3: 48 | EF3: 54 | EG3: 6 | EH3: 48 | EI3: 54 | EL3: 7 | EM3: 55 | EN3: 61 | EQ3: 7 | ER3: 55 | ES3: 61 | EV3: 7 | EW3: 55 | EX3: 61 | FA3: 7 | FB3: 55 | FC3: 61 | FF3: 7 | FG3: 55 | FH3: 61 | FK3: 7 | FL3: 55 | FM3: 61 | FN3: 8 | FO3: 62 | FP3: 68 | FQ3: 8 | FR3: 62 | FS3: 68 | FT3: 8 | FU3: 62 | FV3: 68 | FW3: 8 | FX3: 62 | FY3: 68 | FZ3: 8 | GA3: 62 | GB3: 68 | GC3: 8 | GD3: 62 | GE3: 68 | GF3: 9 | GG3: 69 | GH3: 75 | GI3: 9 | GJ3: 69 | GK3: 75 | GL3: 9 | GM3: 69 | GN3: 75 | GO3: 9 | GP3: 69 | GQ3: 75 | GR3: 9 | GS3: 69 | GT3: 75 | GU3: 9 | GV3: 69 | GW3: 75
B4: 2 - YR | G4: 5 - YR | L4: 10 - YR | Q4: 25 - YR | V4: 50 - YR | AA4: 100 - YR | AF4: 2 - YR | AI4: 5 - YR | AL4: 10 - YR | AO4: 25 - YR | AR4: 50 - YR | AU4: 100 - YR | AX4: 2 - YR | BA4: 5 - YR | BD4: 10 - YR | BG4: 25 - YR | BJ4: 50 - YR | BM4: 100 - YR | BP4: 2 - YR | BS4: 5 - YR | BV4: 10 - YR | BY4: 25 - YR | CB4: 50 - YR | CE4: 100 - YR | CH4: 2 - YR | CK4: 5 - YR | CN4: 10 - YR | CQ4: 25 - YR | CT4: 50 - YR | CW4: 100 - YR | CZ4: 2 - YR | DC4: 5 - YR | DF4: 10 - YR | DI4: 25 - YR | DL4: 50 - YR | DO4: 100 - YR | DR4: 2 - YR | DU4: 5 - YR | DX4: 10 - YR | EA4: 25 - YR | ED4: 50 - YR | EG4: 100 - YR | EJ4: 2 - YR | EO4: 5 - YR | ET4: 10 - YR | EY4: 25 - YR | FD4: 50 - YR | FI4: 100 - YR | FN4: 2 - YR | FQ4: 5 - YR | FT4: 10 - YR | FW4: 25 - YR | FZ4: 50 - YR | GC4: 100 - YR | GF4: 2 - YR | GI4: 5 - YR | GL4: 10 - YR | GO4: 25 - YR | GR4: 50 - YR | GU4: 100 - YR
A5: Time | B5: Flow (cfs) | D5: Flow Avg. | E5: Qs | F5: Yield | G5: Flow (cfs) | I5: Flow Avg. | J5: Qs | K5: Yield | L5: Flow (cfs) | N5: Flow Avg. | O5: Qs | P5: Yield | Q5: Flow (cfs) | S5: Flow Avg. | T5: Qs | U5: Yield | V5: Flow (cfs) | X5: Flow Avg. | Y5: Qs | Z5: Yield | AA5: Flow (cfs) | AC5: Flow Avg. | AD5: Qs | AE5: Yield | AF5: Flow (cfs) | AG5: Qs | AH5: Yield | AI5: Flow (cfs) | AJ5: Qs | AK5: Yield | AL5: Flow (cfs) | AM5: Qs | AN5: Yield | AO5: Flow (cfs) | AP5: Qs | AQ5: Yield | AR5: Flow (cfs) | AS5: Qs | AT5: Yield | AU5: Flow (cfs) | AV5: Qs | AW5: Yield | AX5: Flow (cfs) | AY5: Qs | AZ5: Yield | BA5: Flow (cfs) | BB5: Qs | BC5: Yield | BD5: Flow (cfs) | BE5: Qs | BF5: Yield | BG5: Flow (cfs) | BH5: Qs | BI5: Yield | BJ5: Flow (cfs) | BK5: Qs | BL5: Yield | BM5: Flow (cfs) | BN5: Qs | BO5: Yield | BP5: Flow (cfs) | BQ5: Qs | BR5: Yield | BS5: Flow (cfs) | BT5: Qs | BU5: Yield | BV5: Flow (cfs) | BW5: Qs | BX5: Yield | BY5: Flow (cfs) | BZ5: Qs | CA5: Yield | CB5: Flow (cfs) | CC5: Qs | CD5: Yield | CE5: Flow (cfs) | CF5: Qs | CG5: Yield | CH5: Flow (cfs) | CI5: Qs | CJ5: Yield | CK5: Flow (cfs) | CL5: Qs | CM5: Yield | CN5: Flow (cfs) | CO5: Qs | CP5: Yield | CQ5: Flow (cfs) | CR5: Qs | CS5: Yield | CT5: Flow (cfs) | CU5: Qs | CV5: Yield | CW5: Flow (cfs) | CX5: Qs | CY5: Yield | CZ5: Flow (cfs) | DA5: Qs | DB5: Yield | DC5: Flow (cfs) | DD5: Qs | DE5: Yield | DF5: Flow (cfs) | DG5: Qs | DH5: Yield | DI5: Flow (cfs) | DJ5: Qs | DK5: Yield | DL5: Flow (cfs) | DM5: Qs | DN5: Yield | DO5: Flow (cfs) | DP5: Qs | DQ5: Yield | DR5: Flow (cfs) | DS5: Qs | DT5: Yield | DU5: Flow (cfs) | DV5: Qs | DW5: Yield | DX5: Flow (cfs) | DY5: Qs | DZ5: Yield | EA5: Flow (cfs) | EB5: Qs | EC5: Yield | ED5: Flow (cfs) | EE5: Qs | EF5: Yield | EG5: Flow (cfs) | EH5: Qs | EI5: Yield | EJ5: Flow (cfs) | EL5: Flow Avg. | EM5: Qs | EN5: Yield | EO5: Flow (cfs) | EQ5: Flow Avg. | ER5: Qs | ES5: Yield | ET5: Flow (cfs) | EV5: Flow Avg. | EW5: Qs | EX5: Yield | EY5: Flow (cfs) | FA5: Flow Avg. | FB5: Qs | FC5: Yield | FD5: Flow (cfs) | FF5: Flow Avg. | FG5: Qs | FH5: Yield | FI5: Flow (cfs) | FK5: Flow Avg. | FL5: Qs | FM5: Yield | FN5: Flow (cfs) | FO5: Qs | FP5: Yield | FQ5: Flow (cfs) | FR5: Qs | FS5: Yield | FT5: Flow (cfs) | FU5: Qs | FV5: Yield | FW5: Flow (cfs) | FX5: Qs | FY5: Yield | FZ5: Flow (cfs) | GA5: Qs | GB5: Yield | GC5: Flow (cfs) | GD5: Qs | GE5: Yield | GF5: Flow (cfs) | GG5: Qs | GH5: Yield | GI5: Flow (cfs) | GJ5: Qs | GK5: Yield | GL5: Flow (cfs) | GM5: Qs | GN5: Yield | GO5: Flow (cfs) | GP5: Qs | GQ5: Yield | GR5: Flow (cfs) | GS5: Qs | GT5: Yield | GU5: Flow (cfs) | GV5: Qs | GW5: Yield
A6: (min) | B6: QR4_I | C6: QR3_15 | D6: (cfs) | E6: (tpd) | F6: (tons) | G6: QR4_I | H6: QR3_15 | I6: (cfs) | J6: (tpd) | K6: (tons) | L6: QR4_I | M6: QR3_15 | N6: (cfs) | O6: (tpd) | P6: (tons) | Q6: QR4_I | R6: QR3_15 | S6: (cfs) | T6: (tpd) | U6: (tons) | V6: QR4_I | W6: QR3_15 | X6: (cfs) | Y6: (tpd) | Z6: (tons) | AA6: QR4_I | AB6: QR3_15 | AC6: (cfs) | AD6: (tpd) | AE6: (tons) | AF6: QR3_20 | AG6: (tpd) | AH6: (tons) | AI6: QR3_20 | AJ6: (tpd) | AK6: (tons) | AL6: QR3_20 | AM6: (tpd) | AN6: (tons) | AO6: QR3_20 | AP6: (tpd) | AQ6: (tons) | AR6: QR3_20 | AS6: (tpd) | AT6: (tons) | AU6: QR3_20 | AV6: (tpd) | AW6: (tons) | AX6: QRP_OUT | AY6: (tpd) | AZ6: (tons) | BA6: QRP_OUT | BB6: (tpd) | BC6: (tons) | BD6: QRP_OUT | BE6: (tpd) | BF6: (tons) | BG6: QRP_OUT | BH6: (tpd) | BI6: (tons) | BJ6: QRP_OUT | BK6: (tpd) | BL6: (tons) | BM6: QRP_OUT | BN6: (tpd) | BO6: (tons) | BP6: QR3_25_PW4 | BQ6: (tpd) | BR6: (tons) | BS6: QR3_25_PW4 | BT6: (tpd) | BU6: (tons) | BV6: QR3_25_PW4 | BW6: (tpd) | BX6: (tons) | BY6: QR3_25_PW4 | BZ6: (tpd) | CA6: (tons) | CB6: QR3_25_PW4 | CC6: (tpd) | CD6: (tons) | CE6: QR3_25_PW4 | CF6: (tpd) | CG6: (tons) | CH6: QR3_25_PW4 | CI6: (tpd) | CJ6: (tons) | CK6: QR3_25_PW4 | CL6: (tpd) | CM6: (tons) | CN6: QR3_25_PW4 | CO6: (tpd) | CP6: (tons) | CQ6: QR3_25_PW4 | CR6: (tpd) | CS6: (tons) | CT6: QR3_25_PW4 | CU6: (tpd) | CV6: (tons) | CW6: QR3_25_PW4 | CX6: (tpd) | CY6: (tons) | CZ6: PWP_OUT | DA6: (tpd) | DB6: (tons) | DC6: PWP_OUT | DD6: (tpd) | DE6: (tons) | DF6: PWP_OUT | DG6: (tpd) | DH6: (tons) | DI6: PWP_OUT | DJ6: (tpd) | DK6: (tons) | DL6: PWP_OUT | DM6: (tpd) | DN6: (tons) | DO6: PWP_OUT | DP6: (tpd) | DQ6: (tons) | DR6: PW_VRW3 | DS6: (tpd) | DT6: (tons) | DU6: PW_VRW3 | DV6: (tpd) | DW6: (tons) | DX6: PW_VRW3 | DY6: (tpd) | DZ6: (tons) | EA6: PW_VRW3 | EB6: (tpd) | EC6: (tons) | ED6: PW_VRW3 | EE6: (tpd) | EF6: (tons) | EG6: PW_VRW3 | EH6: (tpd) | EI6: (tons) | EJ6: PW14_VRW3 | EK6: VR_TVI_PW | EL6: (cfs) | EM6: (tpd) | EN6: (tons) | EO6: PW14_VRW3 | EP6: VR_TVI_PW | EQ6: (cfs) | ER6: (tpd) | ES6: (tons) | ET6: PW14_VRW3 | EU6: VR_TVI_PW | EV6: (cfs) | EW6: (tpd) | EX6: (tons) | EY6: PW14_VRW3 | EZ6: VR_TVI_PW | FA6: (cfs) | FB6: (tpd) | FC6: (tons) | FD6: PW14_VRW3 | FE6: VR_TVI_PW | FF6: (cfs) | FG6: (tpd) | FH6: (tons) | FI6: PW14_VRW3 | FJ6: VR_TVI_PW | FK6: (cfs) | FL6: (tpd) | FM6: (tons) | FN6: VR_TVI_PW_SEV | FO6: (tpd) | FP6: (tons) | FQ6: VR_TVI_PW_SEV | FR6: (tpd) | FS6: (tons) | FT6: VR_TVI_PW_SEV | FU6: (tpd) | FV6: (tons) | FW6: VR_TVI_PW_SEV | FX6: (tpd) | FY6: (tons) | FZ6: VR_TVI_PW_SEV | GA6: (tpd) | GB6: (tons) | GC6: VR_TVI_PW_SEV | GD6: (tpd) | GE6: (tons) | GF6: SWINBURNE_INFLOW | GG6: (tpd) | GH6: (tons) | GI6: SWINBURNE_INFLOW | GJ6: (tpd) | GK6: (tons) | GL6: SWINBURNE_INFLOW | GM6: (tpd) | GN6: (tons) | GO6: SWINBURNE_INFLOW | GP6: (tpd) | GQ6: (tons) | GR6: SWINBURNE_INFLOW | GS6: (tpd) | GT6: (tons) | GU6: SWINBURNE_INFLOW | GV6: (tpd) | GW6: (tons)
A7: 1 | B7: 0 | C7: 0 | D7: =B7*VLOOKUP(B$6,LookupTables!$K$4:$L$14,2,FALSE)+C7*VLOOKUP(C$6,LookupTables!$K$4:$L$14,2,FALSE) -> 0 | E7: =IF(D7<0.01,0,interp(INDIRECT("'MPM-Woo'!O"&E$3&":O"&F$3),INDIRECT("'MPM-Woo'!AA"&E$3&":AA"&F$3),D7,3)) -> 0 | G7: 0 | H7: 0 | I7: =G7*VLOOKUP(G$6,LookupTables!$K$4:$L$14,2,FALSE)+H7*VLOOKUP(H$6,LookupTables!$K$4:$L$14,2,FALSE) -> 0 | J7: =IF(I7<0.01,0,interp(INDIRECT("'MPM-Woo'!O"&J$3&":O"&K$3),INDIRECT("'MPM-Woo'!AA"&J$3&":AA"&K$3),I7,3)) -> 0 | L7: 0 | M7: 0 | N7: =L7*VLOOKUP(L$6,LookupTables!$K$4:$L$14,2,FALSE)+M7*VLOOKUP(M$6,LookupTables!$K$4:$L$14,2,FALSE) -> 0 | O7: =IF(N7<0.01,0,interp(INDIRECT("'MPM-Woo'!O"&O$3&":O"&P$3),INDIRECT("'MPM-Woo'!AA"&O$3&":AA"&P$3),N7,3)) -> 0 | Q7: 0 | R7: 0 | S7: =Q7*VLOOKUP(Q$6,LookupTables!$K$4:$L$14,2,FALSE)+R7*VLOOKUP(R$6,LookupTables!$K$4:$L$14,2,FALSE) -> 0 | T7: =IF(S7<0.01,0,interp(INDIRECT("'MPM-Woo'!O"&T$3&":O"&U$3),INDIRECT("'MPM-Woo'!AA"&T$3&":AA"&U$3),S7,3)) -> 0 | V7: 0 | W7: 0 | X7: =V7*VLOOKUP(V$6,LookupTables!$K$4:$L$14,2,FALSE)+W7*VLOOKUP(W$6,LookupTables!$K$4:$L$14,2,FALSE) -> 0 | Y7: =IF(X7<0.01,0,interp(INDIRECT("'MPM-Woo'!O"&Y$3&":O"&Z$3),INDIRECT("'MPM-Woo'!AA"&Y$3&":AA"&Z$3),X7,3)) -> 0 | AA7: 0 | AB7: 0 | AC7: =AA7*VLOOKUP(AA$6,LookupTables!$K$4:$L$14,2,FALSE)+AB7*VLOOKUP(AB$6,LookupTables!$K$4:$L$14,2,FALSE) -> 0 | AD7: =IF(AC7<0.01,0,interp(INDIRECT("'MPM-Woo'!O"&AD$3&":O"&AE$3),INDIRECT("'MPM-Woo'!AA"&AD$3&":AA"&AE$3),AC7,3)) -> 0 | AF7: 0 | AG7: =IF(AF7<0.01,0,interp(INDIRECT("'MPM-Woo'!O"&AG$3&":O"&AH$3),INDIRECT("'MPM-Woo'!AA"&AG$3&":AA"&AH$3),AF7,3)) -> 0 | AI7: 0 | AJ7: =IF(AI7<0.01,0,interp(INDIRECT("'MPM-Woo'!O"&AJ$3&":O"&AK$3),INDIRECT("'MPM-Woo'!AA"&AJ$3&":AA"&AK$3),AI7,3)) -> 0 | AL7: 0 | AM7: =IF(AL7<0.01,0,interp(INDIRECT("'MPM-Woo'!O"&AM$3&":O"&AN$3),INDIRECT("'MPM-Woo'!AA"&AM$3&":AA"&AN$3),AL7,3)) -> 0 | AO7: 0 | AP7: =IF(AO7<0.01,0,interp(INDIRECT("'MPM-Woo'!O"&AP$3&":O"&AQ$3),INDIRECT("'MPM-Woo'!AA"&AP$3&":AA"&AQ$3),AO7,3)) -> 0 | AR7: 0 | AS7: =IF(AR7<0.01,0,interp(INDIRECT("'MPM-Woo'!O"&AS$3&":O"&AT$3),INDIRECT("'MPM-Woo'!AA"&AS$3&":AA"&AT$3),AR7,3)) -> 0 | AU7: 0 | AV7: =IF(AU7<0.01,0,interp(INDIRECT("'MPM-Woo'!O"&AV$3&":O"&AW$3),INDIRECT("'MPM-Woo'!AA"&AV$3&":AA"&AW$3),AU7,3)) -> 0 | AX7: 0 | AY7: =IF(AX7<0.01,0,interp(INDIRECT("'MPM-Woo'!O"&AY$3&":O"&AZ$3),INDIRECT("'MPM-Woo'!AA"&AY$3&":AA"&AZ$3),AX7,3)) -> 0 | BA7: 0 | BB7: =IF(BA7<0.01,0,interp(INDIRECT("'MPM-Woo'!O"&BB$3&":O"&BC$3),INDIRECT("'MPM-Woo'!AA"&BB$3&":AA"&BC$3),BA7,3)) -> 0 | BD7: 0 | BE7: =IF(BD7<0.01,0,interp(INDIRECT("'MPM-Woo'!O"&BE$3&":O"&BF$3),INDIRECT("'MPM-Woo'!AA"&BE$3&":AA"&BF$3),BD7,3)) -> 0 | BG7: 0 | BH7: =IF(BG7<0.01,0,interp(INDIRECT("'MPM-Woo'!O"&BH$3&":O"&BI$3),INDIRECT("'MPM-Woo'!AA"&BH$3&":AA"&BI$3),BG7,3)) -> 0 | BJ7: 0 | BK7: =IF(BJ7<0.01,0,interp(INDIRECT("'MPM-Woo'!O"&BK$3&":O"&BL$3),INDIRECT("'MPM-Woo'!AA"&BK$3&":AA"&BL$3),BJ7,3)) -> 0 | BM7: 0 | BN7: =IF(BM7<0.01,0,interp(INDIRECT("'MPM-Woo'!O"&BN$3&":O"&BO$3),INDIRECT("'MPM-Woo'!AA"&BN$3&":AA"&BO$3),BM7,3)) -> 0 | BP7: 0 | BQ7: =IF(BP7<0.01,0,interp(INDIRECT("'MPM-Woo'!O"&BQ$3&":O"&BR$3),INDIRECT("'MPM-Woo'!AA"&BQ$3&":AA"&BR$3),BP7,3)) -> 0 | BS7: 0 | BT7: =IF(BS7<0.01,0,interp(INDIRECT("'MPM-Woo'!O"&BT$3&":O"&BU$3),INDIRECT("'MPM-Woo'!AA"&BT$3&":AA"&BU$3),BS7,3)) -> 0 | BV7: 0 | BW7: =IF(BV7<0.01,0,interp(INDIRECT("'MPM-Woo'!O"&BW$3&":O"&BX$3),INDIRECT("'MPM-Woo'!AA"&BW$3&":AA"&BX$3),BV7,3)) -> 0 | BY7: 0 | BZ7: =IF(BY7<0.01,0,interp(INDIRECT("'MPM-Woo'!O"&BZ$3&":O"&CA$3),INDIRECT("'MPM-Woo'!AA"&BZ$3&":AA"&CA$3),BY7,3)) -> 0 | CB7: 0 | CC7: =IF(CB7<0.01,0,interp(INDIRECT("'MPM-Woo'!O"&CC$3&":O"&CD$3),INDIRECT("'MPM-Woo'!AA"&CC$3&":AA"&CD$3),CB7,3)) -> 0 | CE7: 0 | CF7: =IF(CE7<0.01,0,interp(INDIRECT("'MPM-Woo'!O"&CF$3&":O"&CG$3),INDIRECT("'MPM-Woo'!AA"&CF$3&":AA"&CG$3),CE7,3)) -> 0 | CH7: 0 | CI7: =IF(CH7<0.01,0,interp(INDIRECT("'MPM-Woo'!O"&CI$3&":O"&CJ$3),INDIRECT("'MPM-Woo'!AA"&CI$3&":AA"&CJ$3),CH7,3)) -> 0 | CK7: 0 | CL7: =IF(CK7<0.01,0,interp(INDIRECT("'MPM-Woo'!O"&CL$3&":O"&CM$3),INDIRECT("'MPM-Woo'!AA"&CL$3&":AA"&CM$3),CK7,3)) -> 0 | CN7: 0 | CO7: =IF(CN7<0.01,0,interp(INDIRECT("'MPM-Woo'!O"&CO$3&":O"&CP$3),INDIRECT("'MPM-Woo'!AA"&CO$3&":AA"&CP$3),CN7,3)) -> 0 | CQ7: 0 | CR7: =IF(CQ7<0.01,0,interp(INDIRECT("'MPM-Woo'!O"&CR$3&":O"&CS$3),INDIRECT("'MPM-Woo'!AA"&CR$3&":AA"&CS$3),CQ7,3)) -> 0 | CT7: 0 | CU7: =IF(CT7<0.01,0,interp(INDIRECT("'MPM-Woo'!O"&CU$3&":O"&CV$3),INDIRECT("'MPM-Woo'!AA"&CU$3&":AA"&CV$3),CT7,3)) -> 0 | CW7: 0 | CX7: =IF(CW7<0.01,0,interp(INDIRECT("'MPM-Woo'!O"&CX$3&":O"&CY$3),INDIRECT("'MPM-Woo'!AA"&CX$3&":AA"&CY$3),CW7,3)) -> 0 | CZ7: 0 | DA7: =IF(CZ7<0.01,0,interp(INDIRECT("'MPM-Woo'!O"&DA$3&":O"&DB$3),INDIRECT("'MPM-Woo'!AA"&DA$3&":AA"&DB$3),CZ7,3)) -> 0 | DC7: 0 | DD7: =IF(DC7<0.01,0,interp(INDIRECT("'MPM-Woo'!O"&DD$3&":O"&DE$3),INDIRECT("'MPM-Woo'!AA"&DD$3&":AA"&DE$3),DC7,3)) -> 0 | DF7: 0 | DG7: =IF(DF7<0.01,0,interp(INDIRECT("'MPM-Woo'!O"&DG$3&":O"&DH$3),INDIRECT("'MPM-Woo'!AA"&DG$3&":AA"&DH$3),DF7,3)) -> 0 | DI7: 0 | DJ7: =IF(DI7<0.01,0,interp(INDIRECT("'MPM-Woo'!O"&DJ$3&":O"&DK$3),INDIRECT("'MPM-Woo'!AA"&DJ$3&":AA"&DK$3),DI7,3)) -> 0 | DL7: 0 | DM7: =IF(DL7<0.01,0,interp(INDIRECT("'MPM-Woo'!O"&DM$3&":O"&DN$3),INDIRECT("'MPM-Woo'!AA"&DM$3&":AA"&DN$3),DL7,3)) -> 0 | DO7: 0 | DP7: =IF(DO7<0.01,0,interp(INDIRECT("'MPM-Woo'!O"&DP$3&":O"&DQ$3),INDIRECT("'MPM-Woo'!AA"&DP$3&":AA"&DQ$3),DO7,3)) -> 0 | DR7: 0 | DS7: =IF(DR7<0.01,0,interp(INDIRECT("'MPM-Woo'!O"&DS$3&":O"&DT$3),INDIRECT("'MPM-Woo'!AA"&DS$3&":AA"&DT$3),DR7,3)) -> 0 | DU7: 0 | DV7: =IF(DU7<0.01,0,interp(INDIRECT("'MPM-Woo'!O"&DV$3&":O"&DW$3),INDIRECT("'MPM-Woo'!AA"&DV$3&":AA"&DW$3),DU7,3)) -> 0 | DX7: 0 | DY7: =IF(DX7<0.01,0,interp(INDIRECT("'MPM-Woo'!O"&DY$3&":O"&DZ$3),INDIRECT("'MPM-Woo'!AA"&DY$3&":AA"&DZ$3),DX7,3)) -> 0 | EA7: 0 | EB7: =IF(EA7<0.01,0,interp(INDIRECT("'MPM-Woo'!O"&EB$3&":O"&EC$3),INDIRECT("'MPM-Woo'!AA"&EB$3&":AA"&EC$3),EA7,3)) -> 0 | ED7: 0 | EE7: =IF(ED7<0.01,0,interp(INDIRECT("'MPM-Woo'!O"&EE$3&":O"&EF$3),INDIRECT("'MPM-Woo'!AA"&EE$3&":AA"&EF$3),ED7,3)) -> 0 | EG7: 0 | EH7: =IF(EG7<0.01,0,interp(INDIRECT("'MPM-Woo'!O"&EH$3&":O"&EI$3),INDIRECT("'MPM-Woo'!AA"&EH$3&":AA"&EI$3),EG7,3)) -> 0 | EJ7: 0 | EK7: 0 | EL7: =EJ7*VLOOKUP(EJ$6,LookupTables!$K$4:$L$14,2,FALSE)+EK7*VLOOKUP(EK$6,LookupTables!$K$4:$L$14,2,FALSE) -> 0 | EM7: =IF(EL7<0.01,0,interp(INDIRECT("'MPM-Woo'!O"&EM$3&":O"&EN$3),INDIRECT("'MPM-Woo'!AA"&EM$3&":AA"&EN$3),EL7,3)) -> 0 | EO7: 0 | EP7: 0 | EQ7: =EO7*VLOOKUP(EO$6,LookupTables!$K$4:$L$14,2,FALSE)+EP7*VLOOKUP(EP$6,LookupTables!$K$4:$L$14,2,FALSE) -> 0 | ER7: =IF(EQ7<0.01,0,interp(INDIRECT("'MPM-Woo'!O"&ER$3&":O"&ES$3),INDIRECT("'MPM-Woo'!AA"&ER$3&":AA"&ES$3),EQ7,3)) -> 0 | ET7: 0 | EU7: 0 | EV7: =ET7*VLOOKUP(ET$6,LookupTables!$K$4:$L$14,2,FALSE)+EU7*VLOOKUP(EU$6,LookupTables!$K$4:$L$14,2,FALSE) -> 0 | EW7: =IF(EV7<0.01,0,interp(INDIRECT("'MPM-Woo'!O"&EW$3&":O"&EX$3),INDIRECT("'MPM-Woo'!AA"&EW$3&":AA"&EX$3),EV7,3)) -> 0 | EY7: 0 | EZ7: 0 | FA7: =EY7*VLOOKUP(EY$6,LookupTables!$K$4:$L$14,2,FALSE)+EZ7*VLOOKUP(EZ$6,LookupTables!$K$4:$L$14,2,FALSE) -> 0 | FB7: =IF(FA7<0.01,0,interp(INDIRECT("'MPM-Woo'!O"&FB$3&":O"&FC$3),INDIRECT("'MPM-Woo'!AA"&FB$3&":AA"&FC$3),FA7,3)) -> 0 | FD7: 0 | FE7: 0 | FF7: =FD7*VLOOKUP(FD$6,LookupTables!$K$4:$L$14,2,FALSE)+FE7*VLOOKUP(FE$6,LookupTables!$K$4:$L$14,2,FALSE) -> 0 | FG7: =IF(FF7<0.01,0,interp(INDIRECT("'MPM-Woo'!O"&FG$3&":O"&FH$3),INDIRECT("'MPM-Woo'!AA"&FG$3&":AA"&FH$3),FF7,3)) -> 0 | FI7: 0 | FJ7: 0 | FK7: =FI7*VLOOKUP(FI$6,LookupTables!$K$4:$L$14,2,FALSE)+FJ7*VLOOKUP(FJ$6,LookupTables!$K$4:$L$14,2,FALSE) -> 0 | FL7: =IF(FK7<0.01,0,interp(INDIRECT("'MPM-Woo'!O"&FL$3&":O"&FM$3),INDIRECT("'MPM-Woo'!AA"&FL$3&":AA"&FM$3),FK7,3)) -> 0 | FN7: 0 | FO7: =IF(FN7<0.01,0,interp(INDIRECT("'MPM-Woo'!O"&FO$3&":O"&FP$3),INDIRECT("'MPM-Woo'!AA"&FO$3&":AA"&FP$3),FN7,3)) -> 0 | FQ7: 0 | FR7: =IF(FQ7<0.01,0,interp(INDIRECT("'MPM-Woo'!O"&FR$3&":O"&FS$3),INDIRECT("'MPM-Woo'!AA"&FR$3&":AA"&FS$3),FQ7,3)) -> 0 | FT7: 0 | FU7: =IF(FT7<0.01,0,interp(INDIRECT("'MPM-Woo'!O"&FU$3&":O"&FV$3),INDIRECT("'MPM-Woo'!AA"&FU$3&":AA"&FV$3),FT7,3)) -> 0 | FW7: 0 | FX7: =IF(FW7<0.01,0,interp(INDIRECT("'MPM-Woo'!O"&FX$3&":O"&FY$3),INDIRECT("'MPM-Woo'!AA"&FX$3&":AA"&FY$3),FW7,3)) -> 0 | FZ7: 0 | GA7: =IF(FZ7<0.01,0,interp(INDIRECT("'MPM-Woo'!O"&GA$3&":O"&GB$3),INDIRECT("'MPM-Woo'!AA"&GA$3&":AA"&GB$3),FZ7,3)) -> 0 | GC7: 0 | GD7: =IF(GC7<0.01,0,interp(INDIRECT("'MPM-Woo'!O"&GD$3&":O"&GE$3),INDIRECT("'MPM-Woo'!AA"&GD$3&":AA"&GE$3),GC7,3)) -> 0 | GF7: 0 | GG7: =IF(GF7<0.01,0,interp(INDIRECT("'MPM-Woo'!O"&GG$3&":O"&GH$3),INDIRECT("'MPM-Woo'!AA"&GG$3&":AA"&GH$3),GF7,3)) -> 0 | GI7: 0 | GJ7: =IF(GI7<0.01,0,interp(INDIRECT("'MPM-Woo'!O"&GJ$3&":O"&GK$3),INDIRECT("'MPM-Woo'!AA"&GJ$3&":AA"&GK$3),GI7,3)) -> 0 | GL7: 0 | GM7: =IF(GL7<0.01,0,interp(INDIRECT("'MPM-Woo'!O"&GM$3&":O"&GN$3),INDIRECT("'MPM-Woo'!AA"&GM$3&":AA"&GN$3),GL7,3)) -> 0 | GO7: 0 | GP7: =IF(GO7<0.01,0,interp(INDIRECT("'MPM-Woo'!O"&GP$3&":O"&GQ$3),INDIRECT("'MPM-Woo'!AA"&GP$3&":AA"&GQ$3),GO7,3)) -> 0 | GR7: 0 | GS7: =IF(GR7<0.01,0,interp(INDIRECT("'MPM-Woo'!O"&GS$3&":O"&GT$3),INDIRECT("'MPM-Woo'!AA"&GS$3&":AA"&GT$3),GR7,3)) -> 0 | GU7: 0 | GV7: =IF(GU7<0.01,0,interp(INDIRECT("'MPM-Woo'!O"&GV$3&":O"&GW$3),INDIRECT("'MPM-Woo'!AA"&GV$3&":AA"&GW$3),GU7,3)) -> 0
A8: 2 | B8: 0 | C8: 0 | D8: =B8*VLOOKUP(B$6,LookupTables!$K$4:$L$14,2,FALSE)+C8*VLOOKUP(C$6,LookupTables!$K$4:$L$14,2,FALSE) -> 0 | E8: =IF(D8<0.01,0,interp(INDIRECT("'MPM-Woo'!O"&E$3&":O"&F$3),INDIRECT("'MPM-Woo'!AA"&E$3&":AA"&F$3),D8,3)) -> 0 | F8: =E8*($A8-$A7)/(24*60) -> 0 | G8: 0 | H8: 0 | I8: =G8*VLOOKUP(G$6,LookupTables!$K$4:$L$14,2,FALSE)+H8*VLOOKUP(H$6,LookupTables!$K$4:$L$14,2,FALSE) -> 0 | J8: =IF(I8<0.01,0,interp(INDIRECT("'MPM-Woo'!O"&J$3&":O"&K$3),INDIRECT("'MPM-Woo'!AA"&J$3&":AA"&K$3),I8,3)) -> 0 | K8: =J8*($A8-$A7)/(24*60) -> 0 | L8: 0 | M8: 0 | N8: =L8*VLOOKUP(L$6,LookupTables!$K$4:$L$14,2,FALSE)+M8*VLOOKUP(M$6,LookupTables!$K$4:$L$14,2,FALSE) -> 0 | O8: =IF(N8<0.01,0,interp(INDIRECT("'MPM-Woo'!O"&O$3&":O"&P$3),INDIRECT("'MPM-Woo'!AA"&O$3&":AA"&P$3),N8,3)) -> 0 | P8: =O8*($A8-$A7)/(24*60) -> 0 | Q8: 0 | R8: 0 | S8: =Q8*VLOOKUP(Q$6,LookupTables!$K$4:$L$14,2,FALSE)+R8*VLOOKUP(R$6,LookupTables!$K$4:$L$14,2,FALSE) -> 0 | T8: =IF(S8<0.01,0,interp(INDIRECT("'MPM-Woo'!O"&T$3&":O"&U$3),INDIRECT("'MPM-Woo'!AA"&T$3&":AA"&U$3),S8,3)) -> 0 | U8: =T8*($A8-$A7)/(24*60) -> 0 | V8: 0 | W8: 0 | X8: =V8*VLOOKUP(V$6,LookupTables!$K$4:$L$14,2,FALSE)+W8*VLOOKUP(W$6,LookupTables!$K$4:$L$14,2,FALSE) -> 0 | Y8: =IF(X8<0.01,0,interp(INDIRECT("'MPM-Woo'!O"&Y$3&":O"&Z$3),INDIRECT("'MPM-Woo'!AA"&Y$3&":AA"&Z$3),X8,3)) -> 0 | Z8: =Y8*($A8-$A7)/(24*60) -> 0 | AA8: 0 | AB8: 0 | AC8: =AA8*VLOOKUP(AA$6,LookupTables!$K$4:$L$14,2,FALSE)+AB8*VLOOKUP(AB$6,LookupTables!$K$4:$L$14,2,FALSE) -> 0 | AD8: =IF(AC8<0.01,0,interp(INDIRECT("'MPM-Woo'!O"&AD$3&":O"&AE$3),INDIRECT("'MPM-Woo'!AA"&AD$3&":AA"&AE$3),AC8,3)) -> 0 | AE8: =AD8*($A8-$A7)/(24*60) -> 0 | AF8: 0 | AG8: =IF(AF8<0.01,0,interp(INDIRECT("'MPM-Woo'!O"&AG$3&":O"&AH$3),INDIRECT("'MPM-Woo'!AA"&AG$3&":AA"&AH$3),AF8,3)) -> 0 | AH8: =AG8*($A8-$A7)/(24*60) -> 0 | AI8: 0 | AJ8: =IF(AI8<0.01,0,interp(INDIRECT("'MPM-Woo'!O"&AJ$3&":O"&AK$3),INDIRECT("'MPM-Woo'!AA"&AJ$3&":AA"&AK$3),AI8,3)) -> 0 | AK8: =AJ8*($A8-$A7)/(24*60) -> 0 | AL8: 0 | AM8: =IF(AL8<0.01,0,interp(INDIRECT("'MPM-Woo'!O"&AM$3&":O"&AN$3),INDIRECT("'MPM-Woo'!AA"&AM$3&":AA"&AN$3),AL8,3)) -> 0 | AN8: =AM8*($A8-$A7)/(24*60) -> 0 | AO8: 0 | AP8: =IF(AO8<0.01,0,interp(INDIRECT("'MPM-Woo'!O"&AP$3&":O"&AQ$3),INDIRECT("'MPM-Woo'!AA"&AP$3&":AA"&AQ$3),AO8,3)) -> 0 | AQ8: =AP8*($A8-$A7)/(24*60) -> 0 | AR8: 0 | AS8: =IF(AR8<0.01,0,interp(INDIRECT("'MPM-Woo'!O"&AS$3&":O"&AT$3),INDIRECT("'MPM-Woo'!AA"&AS$3&":AA"&AT$3),AR8,3)) -> 0 | AT8: =AS8*($A8-$A7)/(24*60) -> 0 | AU8: 0 | AV8: =IF(AU8<0.01,0,interp(INDIRECT("'MPM-Woo'!O"&AV$3&":O"&AW$3),INDIRECT("'MPM-Woo'!AA"&AV$3&":AA"&AW$3),AU8,3)) -> 0 | AW8: =AV8*($A8-$A7)/(24*60) -> 0 | AX8: 0 | AY8: =IF(AX8<0.01,0,interp(INDIRECT("'MPM-Woo'!O"&AY$3&":O"&AZ$3),INDIRECT("'MPM-Woo'!AA"&AY$3&":AA"&AZ$3),AX8,3)) -> 0 | AZ8: =AY8*($A8-$A7)/(24*60) -> 0 | BA8: 0 | BB8: =IF(BA8<0.01,0,interp(INDIRECT("'MPM-Woo'!O"&BB$3&":O"&BC$3),INDIRECT("'MPM-Woo'!AA"&BB$3&":AA"&BC$3),BA8,3)) -> 0 | BC8: =BB8*($A8-$A7)/(24*60) -> 0 | BD8: 0 | BE8: =IF(BD8<0.01,0,interp(INDIRECT("'MPM-Woo'!O"&BE$3&":O"&BF$3),INDIRECT("'MPM-Woo'!AA"&BE$3&":AA"&BF$3),BD8,3)) -> 0 | BF8: =BE8*($A8-$A7)/(24*60) -> 0 | BG8: 0 | BH8: =IF(BG8<0.01,0,interp(INDIRECT("'MPM-Woo'!O"&BH$3&":O"&BI$3),INDIRECT("'MPM-Woo'!AA"&BH$3&":AA"&BI$3),BG8,3)) -> 0 | BI8: =BH8*($A8-$A7)/(24*60) -> 0 | BJ8: 0 | BK8: =IF(BJ8<0.01,0,interp(INDIRECT("'MPM-Woo'!O"&BK$3&":O"&BL$3),INDIRECT("'MPM-Woo'!AA"&BK$3&":AA"&BL$3),BJ8,3)) -> 0 | BL8: =BK8*($A8-$A7)/(24*60) -> 0 | BM8: 0 | BN8: =IF(BM8<0.01,0,interp(INDIRECT("'MPM-Woo'!O"&BN$3&":O"&BO$3),INDIRECT("'MPM-Woo'!AA"&BN$3&":AA"&BO$3),BM8,3)) -> 0 | BO8: =BN8*($A8-$A7)/(24*60) -> 0 | BP8: 0 | BQ8: =IF(BP8<0.01,0,interp(INDIRECT("'MPM-Woo'!O"&BQ$3&":O"&BR$3),INDIRECT("'MPM-Woo'!AA"&BQ$3&":AA"&BR$3),BP8,3)) -> 0 | BR8: =BQ8*($A8-$A7)/(24*60) -> 0 | BS8: 0 | BT8: =IF(BS8<0.01,0,interp(INDIRECT("'MPM-Woo'!O"&BT$3&":O"&BU$3),INDIRECT("'MPM-Woo'!AA"&BT$3&":AA"&BU$3),BS8,3)) -> 0 | BU8: =BT8*($A8-$A7)/(24*60) -> 0 | BV8: 0 | BW8: =IF(BV8<0.01,0,interp(INDIRECT("'MPM-Woo'!O"&BW$3&":O"&BX$3),INDIRECT("'MPM-Woo'!AA"&BW$3&":AA"&BX$3),BV8,3)) -> 0 | BX8: =BW8*($A8-$A7)/(24*60) -> 0 | BY8: 0 | BZ8: =IF(BY8<0.01,0,interp(INDIRECT("'MPM-Woo'!O"&BZ$3&":O"&CA$3),INDIRECT("'MPM-Woo'!AA"&BZ$3&":AA"&CA$3),BY8,3)) -> 0 | CA8: =BZ8*($A8-$A7)/(24*60) -> 0 | CB8: 0 | CC8: =IF(CB8<0.01,0,interp(INDIRECT("'MPM-Woo'!O"&CC$3&":O"&CD$3),INDIRECT("'MPM-Woo'!AA"&CC$3&":AA"&CD$3),CB8,3)) -> 0 | CD8: =CC8*($A8-$A7)/(24*60) -> 0 | CE8: 0 | CF8: =IF(CE8<0.01,0,interp(INDIRECT("'MPM-Woo'!O"&CF$3&":O"&CG$3),INDIRECT("'MPM-Woo'!AA"&CF$3&":AA"&CG$3),CE8,3)) -> 0 | CG8: =CF8*($A8-$A7)/(24*60) -> 0 | CH8: 0 | CI8: =IF(CH8<0.01,0,interp(INDIRECT("'MPM-Woo'!O"&CI$3&":O"&CJ$3),INDIRECT("'MPM-Woo'!AA"&CI$3&":AA"&CJ$3),CH8,3)) -> 0 | CJ8: =CI8*($A8-$A7)/(24*60) -> 0 | CK8: 0 | CL8: =IF(CK8<0.01,0,interp(INDIRECT("'MPM-Woo'!O"&CL$3&":O"&CM$3),INDIRECT("'MPM-Woo'!AA"&CL$3&":AA"&CM$3),CK8,3)) -> 0 | CM8: =CL8*($A8-$A7)/(24*60) -> 0 | CN8: 0 | CO8: =IF(CN8<0.01,0,interp(INDIRECT("'MPM-Woo'!O"&CO$3&":O"&CP$3),INDIRECT("'MPM-Woo'!AA"&CO$3&":AA"&CP$3),CN8,3)) -> 0 | CP8: =CO8*($A8-$A7)/(24*60) -> 0 | CQ8: 0 | CR8: =IF(CQ8<0.01,0,interp(INDIRECT("'MPM-Woo'!O"&CR$3&":O"&CS$3),INDIRECT("'MPM-Woo'!AA"&CR$3&":AA"&CS$3),CQ8,3)) -> 0 | CS8: =CR8*($A8-$A7)/(24*60) -> 0 | CT8: 0 | CU8: =IF(CT8<0.01,0,interp(INDIRECT("'MPM-Woo'!O"&CU$3&":O"&CV$3),INDIRECT("'MPM-Woo'!AA"&CU$3&":AA"&CV$3),CT8,3)) -> 0 | CV8: =CU8*($A8-$A7)/(24*60) -> 0 | CW8: 0 | CX8: =IF(CW8<0.01,0,interp(INDIRECT("'MPM-Woo'!O"&CX$3&":O"&CY$3),INDIRECT("'MPM-Woo'!AA"&CX$3&":AA"&CY$3),CW8,3)) -> 0 | CY8: =CX8*($A8-$A7)/(24*60) -> 0 | CZ8: 0 | DA8: =IF(CZ8<0.01,0,interp(INDIRECT("'MPM-Woo'!O"&DA$3&":O"&DB$3),INDIRECT("'MPM-Woo'!AA"&DA$3&":AA"&DB$3),CZ8,3)) -> 0 | DB8: =DA8*($A8-$A7)/(24*60) -> 0 | DC8: 0 | DD8: =IF(DC8<0.01,0,interp(INDIRECT("'MPM-Woo'!O"&DD$3&":O"&DE$3),INDIRECT("'MPM-Woo'!AA"&DD$3&":AA"&DE$3),DC8,3)) -> 0 | DE8: =DD8*($A8-$A7)/(24*60) -> 0 | DF8: 0 | DG8: =IF(DF8<0.01,0,interp(INDIRECT("'MPM-Woo'!O"&DG$3&":O"&DH$3),INDIRECT("'MPM-Woo'!AA"&DG$3&":AA"&DH$3),DF8,3)) -> 0 | DH8: =DG8*($A8-$A7)/(24*60) -> 0 | DI8: 0 | DJ8: =IF(DI8<0.01,0,interp(INDIRECT("'MPM-Woo'!O"&DJ$3&":O"&DK$3),INDIRECT("'MPM-Woo'!AA"&DJ$3&":AA"&DK$3),DI8,3)) -> 0 | DK8: =DJ8*($A8-$A7)/(24*60) -> 0 | DL8: 0 | DM8: =IF(DL8<0.01,0,interp(INDIRECT("'MPM-Woo'!O"&DM$3&":O"&DN$3),INDIRECT("'MPM-Woo'!AA"&DM$3&":AA"&DN$3),DL8,3)) -> 0 | DN8: =DM8*($A8-$A7)/(24*60) -> 0 | DO8: 0 | DP8: =IF(DO8<0.01,0,interp(INDIRECT("'MPM-Woo'!O"&DP$3&":O"&DQ$3),INDIRECT("'MPM-Woo'!AA"&DP$3&":AA"&DQ$3),DO8,3)) -> 0 | DQ8: =DP8*($A8-$A7)/(24*60) -> 0 | DR8: 0 | DS8: =IF(DR8<0.01,0,interp(INDIRECT("'MPM-Woo'!O"&DS$3&":O"&DT$3),INDIRECT("'MPM-Woo'!AA"&DS$3&":AA"&DT$3),DR8,3)) -> 0 | DT8: =DS8*($A8-$A7)/(24*60) -> 0 | DU8: 0 | DV8: =IF(DU8<0.01,0,interp(INDIRECT("'MPM-Woo'!O"&DV$3&":O"&DW$3),INDIRECT("'MPM-Woo'!AA"&DV$3&":AA"&DW$3),DU8,3)) -> 0 | DW8: =DV8*($A8-$A7)/(24*60) -> 0 | DX8: 0 | DY8: =IF(DX8<0.01,0,interp(INDIRECT("'MPM-Woo'!O"&DY$3&":O"&DZ$3),INDIRECT("'MPM-Woo'!AA"&DY$3&":AA"&DZ$3),DX8,3)) -> 0 | DZ8: =DY8*($A8-$A7)/(24*60) -> 0 | EA8: 0 | EB8: =IF(EA8<0.01,0,interp(INDIRECT("'MPM-Woo'!O"&EB$3&":O"&EC$3),INDIRECT("'MPM-Woo'!AA"&EB$3&":AA"&EC$3),EA8,3)) -> 0 | EC8: =EB8*($A8-$A7)/(24*60) -> 0 | ED8: 0 | EE8: =IF(ED8<0.01,0,interp(INDIRECT("'MPM-Woo'!O"&EE$3&":O"&EF$3),INDIRECT("'MPM-Woo'!AA"&EE$3&":AA"&EF$3),ED8,3)) -> 0 | EF8: =EE8*($A8-$A7)/(24*60) -> 0 | EG8: 0 | EH8: =IF(EG8<0.01,0,interp(INDIRECT("'MPM-Woo'!O"&EH$3&":O"&EI$3),INDIRECT("'MPM-Woo'!AA"&EH$3&":AA"&EI$3),EG8,3)) -> 0 | EI8: =EH8*($A8-$A7)/(24*60) -> 0 | EJ8: 0 | EK8: 0 | EL8: =EJ8*VLOOKUP(EJ$6,LookupTables!$K$4:$L$14,2,FALSE)+EK8*VLOOKUP(EK$6,LookupTables!$K$4:$L$14,2,FALSE) -> 0 | EM8: =IF(EL8<0.01,0,interp(INDIRECT("'MPM-Woo'!O"&EM$3&":O"&EN$3),INDIRECT("'MPM-Woo'!AA"&EM$3&":AA"&EN$3),EL8,3)) -> 0 | EN8: =EM8*($A8-$A7)/(24*60) -> 0 | EO8: 0 | EP8: 0 | EQ8: =EO8*VLOOKUP(EO$6,LookupTables!$K$4:$L$14,2,FALSE)+EP8*VLOOKUP(EP$6,LookupTables!$K$4:$L$14,2,FALSE) -> 0 | ER8: =IF(EQ8<0.01,0,interp(INDIRECT("'MPM-Woo'!O"&ER$3&":O"&ES$3),INDIRECT("'MPM-Woo'!AA"&ER$3&":AA"&ES$3),EQ8,3)) -> 0 | ES8: =ER8*($A8-$A7)/(24*60) -> 0 | ET8: 0 | EU8: 0 | EV8: =ET8*VLOOKUP(ET$6,LookupTables!$K$4:$L$14,2,FALSE)+EU8*VLOOKUP(EU$6,LookupTables!$K$4:$L$14,2,FALSE) -> 0 | EW8: =IF(EV8<0.01,0,interp(INDIRECT("'MPM-Woo'!O"&EW$3&":O"&EX$3),INDIRECT("'MPM-Woo'!AA"&EW$3&":AA"&EX$3),EV8,3)) -> 0 | EX8: =EW8*($A8-$A7)/(24*60) -> 0 | EY8: 0 | EZ8: 0 | FA8: =EY8*VLOOKUP(EY$6,LookupTables!$K$4:$L$14,2,FALSE)+EZ8*VLOOKUP(EZ$6,LookupTables!$K$4:$L$14,2,FALSE) -> 0 | FB8: =IF(FA8<0.01,0,interp(INDIRECT("'MPM-Woo'!O"&FB$3&":O"&FC$3),INDIRECT("'MPM-Woo'!AA"&FB$3&":AA"&FC$3),FA8,3)) -> 0 | FC8: =FB8*($A8-$A7)/(24*60) -> 0 | FD8: 0 | FE8: 0 | FF8: =FD8*VLOOKUP(FD$6,LookupTables!$K$4:$L$14,2,FALSE)+FE8*VLOOKUP(FE$6,LookupTables!$K$4:$L$14,2,FALSE) -> 0 | FG8: =IF(FF8<0.01,0,interp(INDIRECT("'MPM-Woo'!O"&FG$3&":O"&FH$3),INDIRECT("'MPM-Woo'!AA"&FG$3&":AA"&FH$3),FF8,3)) -> 0 | FH8: =FG8*($A8-$A7)/(24*60) -> 0 | FI8: 0 | FJ8: 0 | FK8: =FI8*VLOOKUP(FI$6,LookupTables!$K$4:$L$14,2,FALSE)+FJ8*VLOOKUP(FJ$6,LookupTables!$K$4:$L$14,2,FALSE) -> 0 | FL8: =IF(FK8<0.01,0,interp(INDIRECT("'MPM-Woo'!O"&FL$3&":O"&FM$3),INDIRECT("'MPM-Woo'!AA"&FL$3&":AA"&FM$3),FK8,3)) -> 0 | FM8: =FL8*($A8-$A7)/(24*60) -> 0 | FN8: 0 | FO8: =IF(FN8<0.01,0,interp(INDIRECT("'MPM-Woo'!O"&FO$3&":O"&FP$3),INDIRECT("'MPM-Woo'!AA"&FO$3&":AA"&FP$3),FN8,3)) -> 0 | FP8: =FO8*($A8-$A7)/(24*60) -> 0 | FQ8: 0 | FR8: =IF(FQ8<0.01,0,interp(INDIRECT("'MPM-Woo'!O"&FR$3&":O"&FS$3),INDIRECT("'MPM-Woo'!AA"&FR$3&":AA"&FS$3),FQ8,3)) -> 0 | FS8: =FR8*($A8-$A7)/(24*60) -> 0 | FT8: 0 | FU8: =IF(FT8<0.01,0,interp(INDIRECT("'MPM-Woo'!O"&FU$3&":O"&FV$3),INDIRECT("'MPM-Woo'!AA"&FU$3&":AA"&FV$3),FT8,3)) -> 0 | FV8: =FU8*($A8-$A7)/(24*60) -> 0 | FW8: 0 | FX8: =IF(FW8<0.01,0,interp(INDIRECT("'MPM-Woo'!O"&FX$3&":O"&FY$3),INDIRECT("'MPM-Woo'!AA"&FX$3&":AA"&FY$3),FW8,3)) -> 0 | FY8: =FX8*($A8-$A7)/(24*60) -> 0 | FZ8: 0 | GA8: =IF(FZ8<0.01,0,interp(INDIRECT("'MPM-Woo'!O"&GA$3&":O"&GB$3),INDIRECT("'MPM-Woo'!AA"&GA$3&":AA"&GB$3),FZ8,3)) -> 0 | GB8: =GA8*($A8-$A7)/(24*60) -> 0 | GC8: 0 | GD8: =IF(GC8<0.01,0,interp(INDIRECT("'MPM-Woo'!O"&GD$3&":O"&GE$3),INDIRECT("'MPM-Woo'!AA"&GD$3&":AA"&GE$3),GC8,3)) -> 0 | GE8: =GD8*($A8-$A7)/(24*60) -> 0 | GF8: 0 | GG8: =IF(GF8<0.01,0,interp(INDIRECT("'MPM-Woo'!O"&GG$3&":O"&GH$3),INDIRECT("'MPM-Woo'!AA"&GG$3&":AA"&GH$3),GF8,3)) -> 0 | GH8: =GG8*($A8-$A7)/(24*60) -> 0 | GI8: 0 | GJ8: =IF(GI8<0.01,0,interp(INDIRECT("'MPM-Woo'!O"&GJ$3&":O"&GK$3),INDIRECT("'MPM-Woo'!AA"&GJ$3&":AA"&GK$3),GI8,3)) -> 0 | GK8: =GJ8*($A8-$A7)/(24*60) -> 0 | GL8: 0 | GM8: =IF(GL8<0.01,0,interp(INDIRECT("'MPM-Woo'!O"&GM$3&":O"&GN$3),INDIRECT("'MPM-Woo'!AA"&GM$3&":AA"&GN$3),GL8,3)) -> 0 | GN8: =GM8*($A8-$A7)/(24*60) -> 0 | GO8: 0 | GP8: =IF(GO8<0.01,0,interp(INDIRECT("'MPM-Woo'!O"&GP$3&":O"&GQ$3),INDIRECT("'MPM-Woo'!AA"&GP$3&":AA"&GQ$3),GO8,3)) -> 0 | GQ8: =GP8*($A8-$A7)/(24*60) -> 0 | GR8: 0 | GS8: =IF(GR8<0.01,0,interp(INDIRECT("'MPM-Woo'!O"&GS$3&":O"&GT$3),INDIRECT("'MPM-Woo'!AA"&GS$3&":AA"&GT$3),GR8,3)) -> 0 | GT8: =GS8*($A8-$A7)/(24*60) -> 0 | GU8: 0 | GV8: =IF(GU8<0.01,0,interp(INDIRECT("'MPM-Woo'!O"&GV$3&":O"&GW$3),INDIRECT("'MPM-Woo'!AA"&GV$3&":AA"&GW$3),GU8,3)) -> 0 | GW8: =GV8*($A8-$A7)/(24*60) -> 0
A9: 3 | B9: 0 | C9: 0 | D9: =B9*VLOOKUP(B$6,LookupTables!$K$4:$L$14,2,FALSE)+C9*VLOOKUP(C$6,LookupTables!$K$4:$L$14,2,FALSE) -> 0 | E9: =IF(D9<0.01,0,interp(INDIRECT("'MPM-Woo'!O"&E$3&":O"&F$3),INDIRECT("'MPM-Woo'!AA"&E$3&":AA"&F$3),D9,3)) -> 0 | F9: =E9*($A9-$A8)/(24*60) -> 0 | G9: 0 | H9: 0 | I9: =G9*VLOOKUP(G$6,LookupTables!$K$4:$L$14,2,FALSE)+H9*VLOOKUP(H$6,LookupTables!$K$4:$L$14,2,FALSE) -> 0 | J9: =IF(I9<0.01,0,interp(INDIRECT("'MPM-Woo'!O"&J$3&":O"&K$3),INDIRECT("'MPM-Woo'!AA"&J$3&":AA"&K$3),I9,3)) -> 0 | K9: =J9*($A9-$A8)/(24*60) -> 0 | L9: 0 | M9: 0 | N9: =L9*VLOOKUP(L$6,LookupTables!$K$4:$L$14,2,FALSE)+M9*VLOOKUP(M$6,LookupTables!$K$4:$L$14,2,FALSE) -> 0 | O9: =IF(N9<0.01,0,interp(INDIRECT("'MPM-Woo'!O"&O$3&":O"&P$3),INDIRECT("'MPM-Woo'!AA"&O$3&":AA"&P$3),N9,3)) -> 0 | P9: =O9*($A9-$A8)/(24*60) -> 0 | Q9: 0 | R9: 0 | S9: =Q9*VLOOKUP(Q$6,LookupTables!$K$4:$L$14,2,FALSE)+R9*VLOOKUP(R$6,LookupTables!$K$4:$L$14,2,FALSE) -> 0 | T9: =IF(S9<0.01,0,interp(INDIRECT("'MPM-Woo'!O"&T$3&":O"&U$3),INDIRECT("'MPM-Woo'!AA"&T$3&":AA"&U$3),S9,3)) -> 0 | U9: =T9*($A9-$A8)/(24*60) -> 0 | V9: 0 | W9: 0 | X9: =V9*VLOOKUP(V$6,LookupTables!$K$4:$L$14,2,FALSE)+W9*VLOOKUP(W$6,LookupTables!$K$4:$L$14,2,FALSE) -> 0 | Y9: =IF(X9<0.01,0,interp(INDIRECT("'MPM-Woo'!O"&Y$3&":O"&Z$3),INDIRECT("'MPM-Woo'!AA"&Y$3&":AA"&Z$3),X9,3)) -> 0 | Z9: =Y9*($A9-$A8)/(24*60) -> 0 | AA9: 0 | AB9: 0 | AC9: =AA9*VLOOKUP(AA$6,LookupTables!$K$4:$L$14,2,FALSE)+AB9*VLOOKUP(AB$6,LookupTables!$K$4:$L$14,2,FALSE) -> 0 | AD9: =IF(AC9<0.01,0,interp(INDIRECT("'MPM-Woo'!O"&AD$3&":O"&AE$3),INDIRECT("'MPM-Woo'!AA"&AD$3&":AA"&AE$3),AC9,3)) -> 0 | AE9: =AD9*($A9-$A8)/(24*60) -> 0 | AF9: 0 | AG9: =IF(AF9<0.01,0,interp(INDIRECT("'MPM-Woo'!O"&AG$3&":O"&AH$3),INDIRECT("'MPM-Woo'!AA"&AG$3&":AA"&AH$3),AF9,3)) -> 0 | AH9: =AG9*($A9-$A8)/(24*60) -> 0 | AI9: 0 | AJ9: =IF(AI9<0.01,0,interp(INDIRECT("'MPM-Woo'!O"&AJ$3&":O"&AK$3),INDIRECT("'MPM-Woo'!AA"&AJ$3&":AA"&AK$3),AI9,3)) -> 0 | AK9: =AJ9*($A9-$A8)/(24*60) -> 0 | AL9: 0 | AM9: =IF(AL9<0.01,0,interp(INDIRECT("'MPM-Woo'!O"&AM$3&":O"&AN$3),INDIRECT("'MPM-Woo'!AA"&AM$3&":AA"&AN$3),AL9,3)) -> 0 | AN9: =AM9*($A9-$A8)/(24*60) -> 0 | AO9: 0 | AP9: =IF(AO9<0.01,0,interp(INDIRECT("'MPM-Woo'!O"&AP$3&":O"&AQ$3),INDIRECT("'MPM-Woo'!AA"&AP$3&":AA"&AQ$3),AO9,3)) -> 0 | AQ9: =AP9*($A9-$A8)/(24*60) -> 0 | AR9: 0 | AS9: =IF(AR9<0.01,0,interp(INDIRECT("'MPM-Woo'!O"&AS$3&":O"&AT$3),INDIRECT("'MPM-Woo'!AA"&AS$3&":AA"&AT$3),AR9,3)) -> 0 | AT9: =AS9*($A9-$A8)/(24*60) -> 0 | AU9: 0 | AV9: =IF(AU9<0.01,0,interp(INDIRECT("'MPM-Woo'!O"&AV$3&":O"&AW$3),INDIRECT("'MPM-Woo'!AA"&AV$3&":AA"&AW$3),AU9,3)) -> 0 | AW9: =AV9*($A9-$A8)/(24*60) -> 0 | AX9: 0 | AY9: =IF(AX9<0.01,0,interp(INDIRECT("'MPM-Woo'!O"&AY$3&":O"&AZ$3),INDIRECT("'MPM-Woo'!AA"&AY$3&":AA"&AZ$3),AX9,3)) -> 0 | AZ9: =AY9*($A9-$A8)/(24*60) -> 0 | BA9: 0 | BB9: =IF(BA9<0.01,0,interp(INDIRECT("'MPM-Woo'!O"&BB$3&":O"&BC$3),INDIRECT("'MPM-Woo'!AA"&BB$3&":AA"&BC$3),BA9,3)) -> 0 | BC9: =BB9*($A9-$A8)/(24*60) -> 0 | BD9: 0 | BE9: =IF(BD9<0.01,0,interp(INDIRECT("'MPM-Woo'!O"&BE$3&":O"&BF$3),INDIRECT("'MPM-Woo'!AA"&BE$3&":AA"&BF$3),BD9,3)) -> 0 | BF9: =BE9*($A9-$A8)/(24*60) -> 0 | BG9: 0 | BH9: =IF(BG9<0.01,0,interp(INDIRECT("'MPM-Woo'!O"&BH$3&":O"&BI$3),INDIRECT("'MPM-Woo'!AA"&BH$3&":AA"&BI$3),BG9,3)) -> 0 | BI9: =BH9*($A9-$A8)/(24*60) -> 0 | BJ9: 0 | BK9: =IF(BJ9<0.01,0,interp(INDIRECT("'MPM-Woo'!O"&BK$3&":O"&BL$3),INDIRECT("'MPM-Woo'!AA"&BK$3&":AA"&BL$3),BJ9,3)) -> 0 | BL9: =BK9*($A9-$A8)/(24*60) -> 0 | BM9: 0 | BN9: =IF(BM9<0.01,0,interp(INDIRECT("'MPM-Woo'!O"&BN$3&":O"&BO$3),INDIRECT("'MPM-Woo'!AA"&BN$3&":AA"&BO$3),BM9,3)) -> 0 | BO9: =BN9*($A9-$A8)/(24*60) -> 0 | BP9: 0 | BQ9: =IF(BP9<0.01,0,interp(INDIRECT("'MPM-Woo'!O"&BQ$3&":O"&BR$3),INDIRECT("'MPM-Woo'!AA"&BQ$3&":AA"&BR$3),BP9,3)) -> 0 | BR9: =BQ9*($A9-$A8)/(24*60) -> 0 | BS9: 0 | BT9: =IF(BS9<0.01,0,interp(INDIRECT("'MPM-Woo'!O"&BT$3&":O"&BU$3),INDIRECT("'MPM-Woo'!AA"&BT$3&":AA"&BU$3),BS9,3)) -> 0 | BU9: =BT9*($A9-$A8)/(24*60) -> 0 | BV9: 0 | BW9: =IF(BV9<0.01,0,interp(INDIRECT("'MPM-Woo'!O"&BW$3&":O"&BX$3),INDIRECT("'MPM-Woo'!AA"&BW$3&":AA"&BX$3),BV9,3)) -> 0 | BX9: =BW9*($A9-$A8)/(24*60) -> 0 | BY9: 0 | BZ9: =IF(BY9<0.01,0,interp(INDIRECT("'MPM-Woo'!O"&BZ$3&":O"&CA$3),INDIRECT("'MPM-Woo'!AA"&BZ$3&":AA"&CA$3),BY9,3)) -> 0 | CA9: =BZ9*($A9-$A8)/(24*60) -> 0 | CB9: 0 | CC9: =IF(CB9<0.01,0,interp(INDIRECT("'MPM-Woo'!O"&CC$3&":O"&CD$3),INDIRECT("'MPM-Woo'!AA"&CC$3&":AA"&CD$3),CB9,3)) -> 0 | CD9: =CC9*($A9-$A8)/(24*60) -> 0 | CE9: 0 | CF9: =IF(CE9<0.01,0,interp(INDIRECT("'MPM-Woo'!O"&CF$3&":O"&CG$3),INDIRECT("'MPM-Woo'!AA"&CF$3&":AA"&CG$3),CE9,3)) -> 0 | CG9: =CF9*($A9-$A8)/(24*60) -> 0 | CH9: 0 | CI9: =IF(CH9<0.01,0,interp(INDIRECT("'MPM-Woo'!O"&CI$3&":O"&CJ$3),INDIRECT("'MPM-Woo'!AA"&CI$3&":AA"&CJ$3),CH9,3)) -> 0 | CJ9: =CI9*($A9-$A8)/(24*60) -> 0 | CK9: 0 | CL9: =IF(CK9<0.01,0,interp(INDIRECT("'MPM-Woo'!O"&CL$3&":O"&CM$3),INDIRECT("'MPM-Woo'!AA"&CL$3&":AA"&CM$3),CK9,3)) -> 0 | CM9: =CL9*($A9-$A8)/(24*60) -> 0 | CN9: 0 | CO9: =IF(CN9<0.01,0,interp(INDIRECT("'MPM-Woo'!O"&CO$3&":O"&CP$3),INDIRECT("'MPM-Woo'!AA"&CO$3&":AA"&CP$3),CN9,3)) -> 0 | CP9: =CO9*($A9-$A8)/(24*60) -> 0 | CQ9: 0 | CR9: =IF(CQ9<0.01,0,interp(INDIRECT("'MPM-Woo'!O"&CR$3&":O"&CS$3),INDIRECT("'MPM-Woo'!AA"&CR$3&":AA"&CS$3),CQ9,3)) -> 0 | CS9: =CR9*($A9-$A8)/(24*60) -> 0 | CT9: 0 | CU9: =IF(CT9<0.01,0,interp(INDIRECT("'MPM-Woo'!O"&CU$3&":O"&CV$3),INDIRECT("'MPM-Woo'!AA"&CU$3&":AA"&CV$3),CT9,3)) -> 0 | CV9: =CU9*($A9-$A8)/(24*60) -> 0 | CW9: 0 | CX9: =IF(CW9<0.01,0,interp(INDIRECT("'MPM-Woo'!O"&CX$3&":O"&CY$3),INDIRECT("'MPM-Woo'!AA"&CX$3&":AA"&CY$3),CW9,3)) -> 0 | CY9: =CX9*($A9-$A8)/(24*60) -> 0 | CZ9: 0 | DA9: =IF(CZ9<0.01,0,interp(INDIRECT("'MPM-Woo'!O"&DA$3&":O"&DB$3),INDIRECT("'MPM-Woo'!AA"&DA$3&":AA"&DB$3),CZ9,3)) -> 0 | DB9: =DA9*($A9-$A8)/(24*60) -> 0 | DC9: 0 | DD9: =IF(DC9<0.01,0,interp(INDIRECT("'MPM-Woo'!O"&DD$3&":O"&DE$3),INDIRECT("'MPM-Woo'!AA"&DD$3&":AA"&DE$3),DC9,3)) -> 0 | DE9: =DD9*($A9-$A8)/(24*60) -> 0 | DF9: 0 | DG9: =IF(DF9<0.01,0,interp(INDIRECT("'MPM-Woo'!O"&DG$3&":O"&DH$3),INDIRECT("'MPM-Woo'!AA"&DG$3&":AA"&DH$3),DF9,3)) -> 0 | DH9: =DG9*($A9-$A8)/(24*60) -> 0 | DI9: 0 | DJ9: =IF(DI9<0.01,0,interp(INDIRECT("'MPM-Woo'!O"&DJ$3&":O"&DK$3),INDIRECT("'MPM-Woo'!AA"&DJ$3&":AA"&DK$3),DI9,3)) -> 0 | DK9: =DJ9*($A9-$A8)/(24*60) -> 0 | DL9: 0 | DM9: =IF(DL9<0.01,0,interp(INDIRECT("'MPM-Woo'!O"&DM$3&":O"&DN$3),INDIRECT("'MPM-Woo'!AA"&DM$3&":AA"&DN$3),DL9,3)) -> 0 | DN9: =DM9*($A9-$A8)/(24*60) -> 0 | DO9: 0 | DP9: =IF(DO9<0.01,0,interp(INDIRECT("'MPM-Woo'!O"&DP$3&":O"&DQ$3),INDIRECT("'MPM-Woo'!AA"&DP$3&":AA"&DQ$3),DO9,3)) -> 0 | DQ9: =DP9*($A9-$A8)/(24*60) -> 0 | DR9: 0 | DS9: =IF(DR9<0.01,0,interp(INDIRECT("'MPM-Woo'!O"&DS$3&":O"&DT$3),INDIRECT("'MPM-Woo'!AA"&DS$3&":AA"&DT$3),DR9,3)) -> 0 | DT9: =DS9*($A9-$A8)/(24*60) -> 0 | DU9: 0 | DV9: =IF(DU9<0.01,0,interp(INDIRECT("'MPM-Woo'!O"&DV$3&":O"&DW$3),INDIRECT("'MPM-Woo'!AA"&DV$3&":AA"&DW$3),DU9,3)) -> 0 | DW9: =DV9*($A9-$A8)/(24*60) -> 0 | DX9: 0 | DY9: =IF(DX9<0.01,0,interp(INDIRECT("'MPM-Woo'!O"&DY$3&":O"&DZ$3),INDIRECT("'MPM-Woo'!AA"&DY$3&":AA"&DZ$3),DX9,3)) -> 0 | DZ9: =DY9*($A9-$A8)/(24*60) -> 0 | EA9: 0 | EB9: =IF(EA9<0.01,0,interp(INDIRECT("'MPM-Woo'!O"&EB$3&":O"&EC$3),INDIRECT("'MPM-Woo'!AA"&EB$3&":AA"&EC$3),EA9,3)) -> 0 | EC9: =EB9*($A9-$A8)/(24*60) -> 0 | ED9: 0 | EE9: =IF(ED9<0.01,0,interp(INDIRECT("'MPM-Woo'!O"&EE$3&":O"&EF$3),INDIRECT("'MPM-Woo'!AA"&EE$3&":AA"&EF$3),ED9,3)) -> 0 | EF9: =EE9*($A9-$A8)/(24*60) -> 0 | EG9: 0 | EH9: =IF(EG9<0.01,0,interp(INDIRECT("'MPM-Woo'!O"&EH$3&":O"&EI$3),INDIRECT("'MPM-Woo'!AA"&EH$3&":AA"&EI$3),EG9,3)) -> 0 | EI9: =EH9*($A9-$A8)/(24*60) -> 0 | EJ9: 0 | EK9: 0 | EL9: =EJ9*VLOOKUP(EJ$6,LookupTables!$K$4:$L$14,2,FALSE)+EK9*VLOOKUP(EK$6,LookupTables!$K$4:$L$14,2,FALSE) -> 0 | EM9: =IF(EL9<0.01,0,interp(INDIRECT("'MPM-Woo'!O"&EM$3&":O"&EN$3),INDIRECT("'MPM-Woo'!AA"&EM$3&":AA"&EN$3),EL9,3)) -> 0 | EN9: =EM9*($A9-$A8)/(24*60) -> 0 | EO9: 0 | EP9: 0 | EQ9: =EO9*VLOOKUP(EO$6,LookupTables!$K$4:$L$14,2,FALSE)+EP9*VLOOKUP(EP$6,LookupTables!$K$4:$L$14,2,FALSE) -> 0 | ER9: =IF(EQ9<0.01,0,interp(INDIRECT("'MPM-Woo'!O"&ER$3&":O"&ES$3),INDIRECT("'MPM-Woo'!AA"&ER$3&":AA"&ES$3),EQ9,3)) -> 0 | ES9: =ER9*($A9-$A8)/(24*60) -> 0 | ET9: 0 | EU9: 0 | EV9: =ET9*VLOOKUP(ET$6,LookupTables!$K$4:$L$14,2,FALSE)+EU9*VLOOKUP(EU$6,LookupTables!$K$4:$L$14,2,FALSE) -> 0 | EW9: =IF(EV9<0.01,0,interp(INDIRECT("'MPM-Woo'!O"&EW$3&":O"&EX$3),INDIRECT("'MPM-Woo'!AA"&EW$3&":AA"&EX$3),EV9,3)) -> 0 | EX9: =EW9*($A9-$A8)/(24*60) -> 0 | EY9: 0 | EZ9: 0 | FA9: =EY9*VLOOKUP(EY$6,LookupTables!$K$4:$L$14,2,FALSE)+EZ9*VLOOKUP(EZ$6,LookupTables!$K$4:$L$14,2,FALSE) -> 0 | FB9: =IF(FA9<0.01,0,interp(INDIRECT("'MPM-Woo'!O"&FB$3&":O"&FC$3),INDIRECT("'MPM-Woo'!AA"&FB$3&":AA"&FC$3),FA9,3)) -> 0 | FC9: =FB9*($A9-$A8)/(24*60) -> 0 | FD9: 0 | FE9: 0 | FF9: =FD9*VLOOKUP(FD$6,LookupTables!$K$4:$L$14,2,FALSE)+FE9*VLOOKUP(FE$6,LookupTables!$K$4:$L$14,2,FALSE) -> 0 | FG9: =IF(FF9<0.01,0,interp(INDIRECT("'MPM-Woo'!O"&FG$3&":O"&FH$3),INDIRECT("'MPM-Woo'!AA"&FG$3&":AA"&FH$3),FF9,3)) -> 0 | FH9: =FG9*($A9-$A8)/(24*60) -> 0 | FI9: 0 | FJ9: 0 | FK9: =FI9*VLOOKUP(FI$6,LookupTables!$K$4:$L$14,2,FALSE)+FJ9*VLOOKUP(FJ$6,LookupTables!$K$4:$L$14,2,FALSE) -> 0 | FL9: =IF(FK9<0.01,0,interp(INDIRECT("'MPM-Woo'!O"&FL$3&":O"&FM$3),INDIRECT("'MPM-Woo'!AA"&FL$3&":AA"&FM$3),FK9,3)) -> 0 | FM9: =FL9*($A9-$A8)/(24*60) -> 0 | FN9: 0 | FO9: =IF(FN9<0.01,0,interp(INDIRECT("'MPM-Woo'!O"&FO$3&":O"&FP$3),INDIRECT("'MPM-Woo'!AA"&FO$3&":AA"&FP$3),FN9,3)) -> 0 | FP9: =FO9*($A9-$A8)/(24*60) -> 0 | FQ9: 0 | FR9: =IF(FQ9<0.01,0,interp(INDIRECT("'MPM-Woo'!O"&FR$3&":O"&FS$3),INDIRECT("'MPM-Woo'!AA"&FR$3&":AA"&FS$3),FQ9,3)) -> 0 | FS9: =FR9*($A9-$A8)/(24*60) -> 0 | FT9: 0 | FU9: =IF(FT9<0.01,0,interp(INDIRECT("'MPM-Woo'!O"&FU$3&":O"&FV$3),INDIRECT("'MPM-Woo'!AA"&FU$3&":AA"&FV$3),FT9,3)) -> 0 | FV9: =FU9*($A9-$A8)/(24*60) -> 0 | FW9: 0 | FX9: =IF(FW9<0.01,0,interp(INDIRECT("'MPM-Woo'!O"&FX$3&":O"&FY$3),INDIRECT("'MPM-Woo'!AA"&FX$3&":AA"&FY$3),FW9,3)) -> 0 | FY9: =FX9*($A9-$A8)/(24*60) -> 0 | FZ9: 0 | GA9: =IF(FZ9<0.01,0,interp(INDIRECT("'MPM-Woo'!O"&GA$3&":O"&GB$3),INDIRECT("'MPM-Woo'!AA"&GA$3&":AA"&GB$3),FZ9,3)) -> 0 | GB9: =GA9*($A9-$A8)/(24*60) -> 0 | GC9: 0 | GD9: =IF(GC9<0.01,0,interp(INDIRECT("'MPM-Woo'!O"&GD$3&":O"&GE$3),INDIRECT("'MPM-Woo'!AA"&GD$3&":AA"&GE$3),GC9,3)) -> 0 | GE9: =GD9*($A9-$A8)/(24*60) -> 0 | GF9: 0 | GG9: =IF(GF9<0.01,0,interp(INDIRECT("'MPM-Woo'!O"&GG$3&":O"&GH$3),INDIRECT("'MPM-Woo'!AA"&GG$3&":AA"&GH$3),GF9,3)) -> 0 | GH9: =GG9*($A9-$A8)/(24*60) -> 0 | GI9: 0 | GJ9: =IF(GI9<0.01,0,interp(INDIRECT("'MPM-Woo'!O"&GJ$3&":O"&GK$3),INDIRECT("'MPM-Woo'!AA"&GJ$3&":AA"&GK$3),GI9,3)) -> 0 | GK9: =GJ9*($A9-$A8)/(24*60) -> 0 | GL9: 0 | GM9: =IF(GL9<0.01,0,interp(INDIRECT("'MPM-Woo'!O"&GM$3&":O"&GN$3),INDIRECT("'MPM-Woo'!AA"&GM$3&":AA"&GN$3),GL9,3)) -> 0 | GN9: =GM9*($A9-$A8)/(24*60) -> 0 | GO9: 0 | GP9: =IF(GO9<0.01,0,interp(INDIRECT("'MPM-Woo'!O"&GP$3&":O"&GQ$3),INDIRECT("'MPM-Woo'!AA"&GP$3&":AA"&GQ$3),GO9,3)) -> 0 | GQ9: =GP9*($A9-$A8)/(24*60) -> 0 | GR9: 0 | GS9: =IF(GR9<0.01,0,interp(INDIRECT("'MPM-Woo'!O"&GS$3&":O"&GT$3),INDIRECT("'MPM-Woo'!AA"&GS$3&":AA"&GT$3),GR9,3)) -> 0 | GT9: =GS9*($A9-$A8)/(24*60) -> 0 | GU9: 0 | GV9: =IF(GU9<0.01,0,interp(INDIRECT("'MPM-Woo'!O"&GV$3&":O"&GW$3),INDIRECT("'MPM-Woo'!AA"&GV$3&":AA"&GW$3),GU9,3)) -> 0 | GW9: =GV9*($A9-$A8)/(24*60) -> 0
A10: 4 | B10: 0 | C10: 0 | D10: =B10*VLOOKUP(B$6,LookupTables!$K$4:$L$14,2,FALSE)+C10*VLOOKUP(C$6,LookupTables!$K$4:$L$14,2,FALSE) -> 0 | E10: =IF(D10<0.01,0,interp(INDIRECT("'MPM-Woo'!O"&E$3&":O"&F$3),INDIRECT("'MPM-Woo'!AA"&E$3&":AA"&F$3),D10,3)) -> 0 | F10: 0 | G10: 0 | H10: 0 | I10: =G10*VLOOKUP(G$6,LookupTables!$K$4:$L$14,2,FALSE)+H10*VLOOKUP(H$6,LookupTables!$K$4:$L$14,2,FALSE) -> 0 | J10: =IF(I10<0.01,0,interp(INDIRECT("'MPM-Woo'!O"&J$3&":O"&K$3),INDIRECT("'MPM-Woo'!AA"&J$3&":AA"&K$3),I10,3)) -> 0 | K10: 0 | L10: 0 | M10: 0 | N10: =L10*VLOOKUP(L$6,LookupTables!$K$4:$L$14,2,FALSE)+M10*VLOOKUP(M$6,LookupTables!$K$4:$L$14,2,FALSE) -> 0 | O10: =IF(N10<0.01,0,interp(INDIRECT("'MPM-Woo'!O"&O$3&":O"&P$3),INDIRECT("'MPM-Woo'!AA"&O$3&":AA"&P$3),N10,3)) -> 0 | P10: 0 | Q10: 0 | R10: 0 | S10: =Q10*VLOOKUP(Q$6,LookupTables!$K$4:$L$14,2,FALSE)+R10*VLOOKUP(R$6,LookupTables!$K$4:$L$14,2,FALSE) -> 0 | T10: =IF(S10<0.01,0,interp(INDIRECT("'MPM-Woo'!O"&T$3&":O"&U$3),INDIRECT("'MPM-Woo'!AA"&T$3&":AA"&U$3),S10,3)) -> 0 | U10: 0 | V10: 0 | W10: 0 | X10: =V10*VLOOKUP(V$6,LookupTables!$K$4:$L$14,2,FALSE)+W10*VLOOKUP(W$6,LookupTables!$K$4:$L$14,2,FALSE) -> 0 | Y10: =IF(X10<0.01,0,interp(INDIRECT("'MPM-Woo'!O"&Y$3&":O"&Z$3),INDIRECT("'MPM-Woo'!AA"&Y$3&":AA"&Z$3),X10,3)) -> 0 | Z10: 0 | AA10: 0 | AB10: 0 | AC10: =AA10*VLOOKUP(AA$6,LookupTables!$K$4:$L$14,2,FALSE)+AB10*VLOOKUP(AB$6,LookupTables!$K$4:$L$14,2,FALSE) -> 0 | AD10: =IF(AC10<0.01,0,interp(INDIRECT("'MPM-Woo'!O"&AD$3&":O"&AE$3),INDIRECT("'MPM-Woo'!AA"&AD$3&":AA"&AE$3),AC10,3)) -> 0 | AE10: 0 | AF10: 0 | AG10: =IF(AF10<0.01,0,interp(INDIRECT("'MPM-Woo'!O"&AG$3&":O"&AH$3),INDIRECT("'MPM-Woo'!AA"&AG$3&":AA"&AH$3),AF10,3)) -> 0 | AH10: 0 | AI10: 0 | AJ10: =IF(AI10<0.01,0,interp(INDIRECT("'MPM-Woo'!O"&AJ$3&":O"&AK$3),INDIRECT("'MPM-Woo'!AA"&AJ$3&":AA"&AK$3),AI10,3)) -> 0 | AK10: 0 | AL10: 0 | AM10: =IF(AL10<0.01,0,interp(INDIRECT("'MPM-Woo'!O"&AM$3&":O"&AN$3),INDIRECT("'MPM-Woo'!AA"&AM$3&":AA"&AN$3),AL10,3)) -> 0 | AN10: 0 | AO10: 0 | AP10: =IF(AO10<0.01,0,interp(INDIRECT("'MPM-Woo'!O"&AP$3&":O"&AQ$3),INDIRECT("'MPM-Woo'!AA"&AP$3&":AA"&AQ$3),AO10,3)) -> 0 | AQ10: 0 | AR10: 0 | AS10: =IF(AR10<0.01,0,interp(INDIRECT("'MPM-Woo'!O"&AS$3&":O"&AT$3),INDIRECT("'MPM-Woo'!AA"&AS$3&":AA"&AT$3),AR10,3)) -> 0 | AT10: 0 | AU10: 0 | AV10: =IF(AU10<0.01,0,interp(INDIRECT("'MPM-Woo'!O"&AV$3&":O"&AW$3),INDIRECT("'MPM-Woo'!AA"&AV$3&":AA"&AW$3),AU10,3)) -> 0 | AW10: 0 | AX10: 0 | AY10: =IF(AX10<0.01,0,interp(INDIRECT("'MPM-Woo'!O"&AY$3&":O"&AZ$3),INDIRECT("'MPM-Woo'!AA"&AY$3&":AA"&AZ$3),AX10,3)) -> 0 | AZ10: 0 | BA10: 0 | BB10: =IF(BA10<0.01,0,interp(INDIRECT("'MPM-Woo'!O"&BB$3&":O"&BC$3),INDIRECT("'MPM-Woo'!AA"&BB$3&":AA"&BC$3),BA10,3)) -> 0 | BC10: 0 | BD10: 0 | BE10: =IF(BD10<0.01,0,interp(INDIRECT("'MPM-Woo'!O"&BE$3&":O"&BF$3),INDIRECT("'MPM-Woo'!AA"&BE$3&":AA"&BF$3),BD10,3)) -> 0 | BF10: 0 | BG10: 0 | BH10: =IF(BG10<0.01,0,interp(INDIRECT("'MPM-Woo'!O"&BH$3&":O"&BI$3),INDIRECT("'MPM-Woo'!AA"&BH$3&":AA"&BI$3),BG10,3)) -> 0 | BI10: 0 | BJ10: 0 | BK10: =IF(BJ10<0.01,0,interp(INDIRECT("'MPM-Woo'!O"&BK$3&":O"&BL$3),INDIRECT("'MPM-Woo'!AA"&BK$3&":AA"&BL$3),BJ10,3)) -> 0 | BL10: 0 | BM10: 0 | BN10: =IF(BM10<0.01,0,interp(INDIRECT("'MPM-Woo'!O"&BN$3&":O"&BO$3),INDIRECT("'MPM-Woo'!AA"&BN$3&":AA"&BO$3),BM10,3)) -> 0 | BO10: =BN10*($A10-$A9)/(24*60) -> 0 | BP10: 0 | BQ10: =IF(BP10<0.01,0,interp(INDIRECT("'MPM-Woo'!O"&BQ$3&":O"&BR$3),INDIRECT("'MPM-Woo'!AA"&BQ$3&":AA"&BR$3),BP10,3)) -> 0 | BR10: 0 | BS10: 0 | BT10: =IF(BS10<0.01,0,interp(INDIRECT("'MPM-Woo'!O"&BT$3&":O"&BU$3),INDIRECT("'MPM-Woo'!AA"&BT$3&":AA"&BU$3),BS10,3)) -> 0 | BU10: 0 | BV10: 0 | BW10: =IF(BV10<0.01,0,interp(INDIRECT("'MPM-Woo'!O"&BW$3&":O"&BX$3),INDIRECT("'MPM-Woo'!AA"&BW$3&":AA"&BX$3),BV10,3)) -> 0 | BX10: 0 | BY10: 0 | BZ10: =IF(BY10<0.01,0,interp(INDIRECT("'MPM-Woo'!O"&BZ$3&":O"&CA$3),INDIRECT("'MPM-Woo'!AA"&BZ$3&":AA"&CA$3),BY10,3)) -> 0 | CA10: 0 | CB10: 0 | CC10: =IF(CB10<0.01,0,interp(INDIRECT("'MPM-Woo'!O"&CC$3&":O"&CD$3),INDIRECT("'MPM-Woo'!AA"&CC$3&":AA"&CD$3),CB10,3)) -> 0 | CD10: 0 | CE10: 0 | CF10: =IF(CE10<0.01,0,interp(INDIRECT("'MPM-Woo'!O"&CF$3&":O"&CG$3),INDIRECT("'MPM-Woo'!AA"&CF$3&":AA"&CG$3),CE10,3)) -> 0 | CG10: 0 | CH10: 0 | CI10: =IF(CH10<0.01,0,interp(INDIRECT("'MPM-Woo'!O"&CI$3&":O"&CJ$3),INDIRECT("'MPM-Woo'!AA"&CI$3&":AA"&CJ$3),CH10,3)) -> 0 | CJ10: 0 | CK10: 0 | CL10: =IF(CK10<0.01,0,interp(INDIRECT("'MPM-Woo'!O"&CL$3&":O"&CM$3),INDIRECT("'MPM-Woo'!AA"&CL$3&":AA"&CM$3),CK10,3)) -> 0 | CM10: 0 | CN10: 0 | CO10: =IF(CN10<0.01,0,interp(INDIRECT("'MPM-Woo'!O"&CO$3&":O"&CP$3),INDIRECT("'MPM-Woo'!AA"&CO$3&":AA"&CP$3),CN10,3)) -> 0 | CP10: 0 | CQ10: 0 | CR10: =IF(CQ10<0.01,0,interp(INDIRECT("'MPM-Woo'!O"&CR$3&":O"&CS$3),INDIRECT("'MPM-Woo'!AA"&CR$3&":AA"&CS$3),CQ10,3)) -> 0 | CS10: 0 | CT10: 0 | CU10: =IF(CT10<0.01,0,interp(INDIRECT("'MPM-Woo'!O"&CU$3&":O"&CV$3),INDIRECT("'MPM-Woo'!AA"&CU$3&":AA"&CV$3),CT10,3)) -> 0 | CV10: 0 | CW10: 0 | CX10: =IF(CW10<0.01,0,interp(INDIRECT("'MPM-Woo'!O"&CX$3&":O"&CY$3),INDIRECT("'MPM-Woo'!AA"&CX$3&":AA"&CY$3),CW10,3)) -> 0 | CY10: 0 | CZ10: 0 | DA10: =IF(CZ10<0.01,0,interp(INDIRECT("'MPM-Woo'!O"&DA$3&":O"&DB$3),INDIRECT("'MPM-Woo'!AA"&DA$3&":AA"&DB$3),CZ10,3)) -> 0 | DB10: 0 | DC10: 0 | DD10: =IF(DC10<0.01,0,interp(INDIRECT("'MPM-Woo'!O"&DD$3&":O"&DE$3),INDIRECT("'MPM-Woo'!AA"&DD$3&":AA"&DE$3),DC10,3)) -> 0 | DE10: 0 | DF10: 0 | DG10: =IF(DF10<0.01,0,interp(INDIRECT("'MPM-Woo'!O"&DG$3&":O"&DH$3),INDIRECT("'MPM-Woo'!AA"&DG$3&":AA"&DH$3),DF10,3)) -> 0 | DH10: 0 | DI10: 0 | DJ10: =IF(DI10<0.01,0,interp(INDIRECT("'MPM-Woo'!O"&DJ$3&":O"&DK$3),INDIRECT("'MPM-Woo'!AA"&DJ$3&":AA"&DK$3),DI10,3)) -> 0 | DK10: 0 | DL10: 0 | DM10: =IF(DL10<0.01,0,interp(INDIRECT("'MPM-Woo'!O"&DM$3&":O"&DN$3),INDIRECT("'MPM-Woo'!AA"&DM$3&":AA"&DN$3),DL10,3)) -> 0 | DN10: 0 | DO10: 0 | DP10: =IF(DO10<0.01,0,interp(INDIRECT("'MPM-Woo'!O"&DP$3&":O"&DQ$3),INDIRECT("'MPM-Woo'!AA"&DP$3&":AA"&DQ$3),DO10,3)) -> 0 | DQ10: 0 | DR10: 0 | DS10: =IF(DR10<0.01,0,interp(INDIRECT("'MPM-Woo'!O"&DS$3&":O"&DT$3),INDIRECT("'MPM-Woo'!AA"&DS$3&":AA"&DT$3),DR10,3)) -> 0 | DT10: 0 | DU10: 0 | DV10: =IF(DU10<0.01,0,interp(INDIRECT("'MPM-Woo'!O"&DV$3&":O"&DW$3),INDIRECT("'MPM-Woo'!AA"&DV$3&":AA"&DW$3),DU10,3)) -> 0 | DW10: 0 | DX10: 0 | DY10: =IF(DX10<0.01,0,interp(INDIRECT("'MPM-Woo'!O"&DY$3&":O"&DZ$3),INDIRECT("'MPM-Woo'!AA"&DY$3&":AA"&DZ$3),DX10,3)) -> 0 | DZ10: 0 | EA10: 0 | EB10: =IF(EA10<0.01,0,interp(INDIRECT("'MPM-Woo'!O"&EB$3&":O"&EC$3),INDIRECT("'MPM-Woo'!AA"&EB$3&":AA"&EC$3),EA10,3)) -> 0 | EC10: 0 | ED10: 0 | EE10: =IF(ED10<0.01,0,interp(INDIRECT("'MPM-Woo'!O"&EE$3&":O"&EF$3),INDIRECT("'MPM-Woo'!AA"&EE$3&":AA"&EF$3),ED10,3)) -> 0 | EF10: 0 | EG10: 0 | EH10: =IF(EG10<0.01,0,interp(INDIRECT("'MPM-Woo'!O"&EH$3&":O"&EI$3),INDIRECT("'MPM-Woo'!AA"&EH$3&":AA"&EI$3),EG10,3)) -> 0 | EI10: 0 | EJ10: 0 | EK10: 0 | EL10: =EJ10*VLOOKUP(EJ$6,LookupTables!$K$4:$L$14,2,FALSE)+EK10*VLOOKUP(EK$6,LookupTables!$K$4:$L$14,2,FALSE) -> 0 | EM10: =IF(EL10<0.01,0,interp(INDIRECT("'MPM-Woo'!O"&EM$3&":O"&EN$3),INDIRECT("'MPM-Woo'!AA"&EM$3&":AA"&EN$3),EL10,3)) -> 0 | EN10: 0 | EO10: 0 | EP10: 0 | EQ10: =EO10*VLOOKUP(EO$6,LookupTables!$K$4:$L$14,2,FALSE)+EP10*VLOOKUP(EP$6,LookupTables!$K$4:$L$14,2,FALSE) -> 0 | ER10: =IF(EQ10<0.01,0,interp(INDIRECT("'MPM-Woo'!O"&ER$3&":O"&ES$3),INDIRECT("'MPM-Woo'!AA"&ER$3&":AA"&ES$3),EQ10,3)) -> 0 | ES10: 0 | ET10: 0 | EU10: 0 | EV10: =ET10*VLOOKUP(ET$6,LookupTables!$K$4:$L$14,2,FALSE)+EU10*VLOOKUP(EU$6,LookupTables!$K$4:$L$14,2,FALSE) -> 0 | EW10: =IF(EV10<0.01,0,interp(INDIRECT("'MPM-Woo'!O"&EW$3&":O"&EX$3),INDIRECT("'MPM-Woo'!AA"&EW$3&":AA"&EX$3),EV10,3)) -> 0 | EX10: 0 | EY10: 0 | EZ10: 0 | FA10: =EY10*VLOOKUP(EY$6,LookupTables!$K$4:$L$14,2,FALSE)+EZ10*VLOOKUP(EZ$6,LookupTables!$K$4:$L$14,2,FALSE) -> 0 | FB10: =IF(FA10<0.01,0,interp(INDIRECT("'MPM-Woo'!O"&FB$3&":O"&FC$3),INDIRECT("'MPM-Woo'!AA"&FB$3&":AA"&FC$3),FA10,3)) -> 0 | FC10: 0 | FD10: 0 | FE10: 0 | FF10: =FD10*VLOOKUP(FD$6,LookupTables!$K$4:$L$14,2,FALSE)+FE10*VLOOKUP(FE$6,LookupTables!$K$4:$L$14,2,FALSE) -> 0 | FG10: =IF(FF10<0.01,0,interp(INDIRECT("'MPM-Woo'!O"&FG$3&":O"&FH$3),INDIRECT("'MPM-Woo'!AA"&FG$3&":AA"&FH$3),FF10,3)) -> 0 | FH10: 0 | FI10: 0 | FJ10: 0 | FK10: =FI10*VLOOKUP(FI$6,LookupTables!$K$4:$L$14,2,FALSE)+FJ10*VLOOKUP(FJ$6,LookupTables!$K$4:$L$14,2,FALSE) -> 0 | FL10: =IF(FK10<0.01,0,interp(INDIRECT("'MPM-Woo'!O"&FL$3&":O"&FM$3),INDIRECT("'MPM-Woo'!AA"&FL$3&":AA"&FM$3),FK10,3)) -> 0 | FM10: 0 | FN10: 0 | FO10: =IF(FN10<0.01,0,interp(INDIRECT("'MPM-Woo'!O"&FO$3&":O"&FP$3),INDIRECT("'MPM-Woo'!AA"&FO$3&":AA"&FP$3),FN10,3)) -> 0 | FP10: 0 | FQ10: 0 | FR10: =IF(FQ10<0.01,0,interp(INDIRECT("'MPM-Woo'!O"&FR$3&":O"&FS$3),INDIRECT("'MPM-Woo'!AA"&FR$3&":AA"&FS$3),FQ10,3)) -> 0 | FS10: 0 | FT10: 0 | FU10: =IF(FT10<0.01,0,interp(INDIRECT("'MPM-Woo'!O"&FU$3&":O"&FV$3),INDIRECT("'MPM-Woo'!AA"&FU$3&":AA"&FV$3),FT10,3)) -> 0 | FV10: 0 | FW10: 0 | FX10: =IF(FW10<0.01,0,interp(INDIRECT("'MPM-Woo'!O"&FX$3&":O"&FY$3),INDIRECT("'MPM-Woo'!AA"&FX$3&":AA"&FY$3),FW10,3)) -> 0 | FY10: 0 | FZ10: 0 | GA10: =IF(FZ10<0.01,0,interp(INDIRECT("'MPM-Woo'!O"&GA$3&":O"&GB$3),INDIRECT("'MPM-Woo'!AA"&GA$3&":AA"&GB$3),FZ10,3)) -> 0 | GB10: 0 | GC10: 0 | GD10: =IF(GC10<0.01,0,interp(INDIRECT("'MPM-Woo'!O"&GD$3&":O"&GE$3),INDIRECT("'MPM-Woo'!AA"&GD$3&":AA"&GE$3),GC10,3)) -> 0 | GE10: 0 | GF10: 0 | GG10: =IF(GF10<0.01,0,interp(INDIRECT("'MPM-Woo'!O"&GG$3&":O"&GH$3),INDIRECT("'MPM-Woo'!AA"&GG$3&":AA"&GH$3),GF10,3)) -> 0 | GH10: 0 | GI10: 0 | GJ10: =IF(GI10<0.01,0,interp(INDIRECT("'MPM-Woo'!O"&GJ$3&":O"&GK$3),INDIRECT("'MPM-Woo'!AA"&GJ$3&":AA"&GK$3),GI10,3)) -> 0 | GK10: 0 | GL10: 0 | GM10: =IF(GL10<0.01,0,interp(INDIRECT("'MPM-Woo'!O"&GM$3&":O"&GN$3),INDIRECT("'MPM-Woo'!AA"&GM$3&":AA"&GN$3),GL10,3)) -> 0 | GN10: 0 | GO10: 0 | GP10: =IF(GO10<0.01,0,interp(INDIRECT("'MPM-Woo'!O"&GP$3&":O"&GQ$3),INDIRECT("'MPM-Woo'!AA"&GP$3&":AA"&GQ$3),GO10,3)) -> 0 | GQ10: 0 | GR10: 0 | GS10: =IF(GR10<0.01,0,interp(INDIRECT("'MPM-Woo'!O"&GS$3&":O"&GT$3),INDIRECT("'MPM-Woo'!AA"&GS$3&":AA"&GT$3),GR10,3)) -> 0 | GT10: 0 | GU10: 0 | GV10: =IF(GU10<0.01,0,interp(INDIRECT("'MPM-Woo'!O"&GV$3&":O"&GW$3),INDIRECT("'MPM-Woo'!AA"&GV$3&":AA"&GW$3),GU10,3)) -> 0 | GW10: 0
A11: 5 | B11: 0 | C11: 0 | D11: =B11*VLOOKUP(B$6,LookupTables!$K$4:$L$14,2,FALSE)+C11*VLOOKUP(C$6,LookupTables!$K$4:$L$14,2,FALSE) -> 0 | E11: =IF(D11<0.01,0,interp(INDIRECT("'MPM-Woo'!O"&E$3&":O"&F$3),INDIRECT("'MPM-Woo'!AA"&E$3&":AA"&F$3),D11,3)) -> 0 | F11: 0 | G11: 0 | H11: 0 | I11: =G11*VLOOKUP(G$6,LookupTables!$K$4:$L$14,2,FALSE)+H11*VLOOKUP(H$6,LookupTables!$K$4:$L$14,2,FALSE) -> 0 | J11: =IF(I11<0.01,0,interp(INDIRECT("'MPM-Woo'!O"&J$3&":O"&K$3),INDIRECT("'MPM-Woo'!AA"&J$3&":AA"&K$3),I11,3)) -> 0 | K11: 0 | L11: 0 | M11: 0 | N11: =L11*VLOOKUP(L$6,LookupTables!$K$4:$L$14,2,FALSE)+M11*VLOOKUP(M$6,LookupTables!$K$4:$L$14,2,FALSE) -> 0 | O11: =IF(N11<0.01,0,interp(INDIRECT("'MPM-Woo'!O"&O$3&":O"&P$3),INDIRECT("'MPM-Woo'!AA"&O$3&":AA"&P$3),N11,3)) -> 0 | P11: 0 | Q11: 0 | R11: 0 | S11: =Q11*VLOOKUP(Q$6,LookupTables!$K$4:$L$14,2,FALSE)+R11*VLOOKUP(R$6,LookupTables!$K$4:$L$14,2,FALSE) -> 0 | T11: =IF(S11<0.01,0,interp(INDIRECT("'MPM-Woo'!O"&T$3&":O"&U$3),INDIRECT("'MPM-Woo'!AA"&T$3&":AA"&U$3),S11,3)) -> 0 | U11: 0 | V11: 0 | W11: 0 | X11: =V11*VLOOKUP(V$6,LookupTables!$K$4:$L$14,2,FALSE)+W11*VLOOKUP(W$6,LookupTables!$K$4:$L$14,2,FALSE) -> 0 | Y11: =IF(X11<0.01,0,interp(INDIRECT("'MPM-Woo'!O"&Y$3&":O"&Z$3),INDIRECT("'MPM-Woo'!AA"&Y$3&":AA"&Z$3),X11,3)) -> 0 | Z11: 0 | AA11: 0 | AB11: 0 | AC11: =AA11*VLOOKUP(AA$6,LookupTables!$K$4:$L$14,2,FALSE)+AB11*VLOOKUP(AB$6,LookupTables!$K$4:$L$14,2,FALSE) -> 0 | AD11: =IF(AC11<0.01,0,interp(INDIRECT("'MPM-Woo'!O"&AD$3&":O"&AE$3),INDIRECT("'MPM-Woo'!AA"&AD$3&":AA"&AE$3),AC11,3)) -> 0 | AE11: 0 | AF11: 0 | AG11: =IF(AF11<0.01,0,interp(INDIRECT("'MPM-Woo'!O"&AG$3&":O"&AH$3),INDIRECT("'MPM-Woo'!AA"&AG$3&":AA"&AH$3),AF11,3)) -> 0 | AH11: 0 | AI11: 0 | AJ11: =IF(AI11<0.01,0,interp(INDIRECT("'MPM-Woo'!O"&AJ$3&":O"&AK$3),INDIRECT("'MPM-Woo'!AA"&AJ$3&":AA"&AK$3),AI11,3)) -> 0 | AK11: 0 | AL11: 0 | AM11: =IF(AL11<0.01,0,interp(INDIRECT("'MPM-Woo'!O"&AM$3&":O"&AN$3),INDIRECT("'MPM-Woo'!AA"&AM$3&":AA"&AN$3),AL11,3)) -> 0 | AN11: 0 | AO11: 0 | AP11: =IF(AO11<0.01,0,interp(INDIRECT("'MPM-Woo'!O"&AP$3&":O"&AQ$3),INDIRECT("'MPM-Woo'!AA"&AP$3&":AA"&AQ$3),AO11,3)) -> 0 | AQ11: 0 | AR11: 0 | AS11: =IF(AR11<0.01,0,interp(INDIRECT("'MPM-Woo'!O"&AS$3&":O"&AT$3),INDIRECT("'MPM-Woo'!AA"&AS$3&":AA"&AT$3),AR11,3)) -> 0 | AT11: 0 | AU11: 0 | AV11: =IF(AU11<0.01,0,interp(INDIRECT("'MPM-Woo'!O"&AV$3&":O"&AW$3),INDIRECT("'MPM-Woo'!AA"&AV$3&":AA"&AW$3),AU11,3)) -> 0 | AW11: 0 | AX11: 0 | AY11: =IF(AX11<0.01,0,interp(INDIRECT("'MPM-Woo'!O"&AY$3&":O"&AZ$3),INDIRECT("'MPM-Woo'!AA"&AY$3&":AA"&AZ$3),AX11,3)) -> 0 | AZ11: 0 | BA11: 0 | BB11: =IF(BA11<0.01,0,interp(INDIRECT("'MPM-Woo'!O"&BB$3&":O"&BC$3),INDIRECT("'MPM-Woo'!AA"&BB$3&":AA"&BC$3),BA11,3)) -> 0 | BC11: 0 | BD11: 0 | BE11: =IF(BD11<0.01,0,interp(INDIRECT("'MPM-Woo'!O"&BE$3&":O"&BF$3),INDIRECT("'MPM-Woo'!AA"&BE$3&":AA"&BF$3),BD11,3)) -> 0 | BF11: 0 | BG11: 0 | BH11: =IF(BG11<0.01,0,interp(INDIRECT("'MPM-Woo'!O"&BH$3&":O"&BI$3),INDIRECT("'MPM-Woo'!AA"&BH$3&":AA"&BI$3),BG11,3)) -> 0 | BI11: 0 | BJ11: 0 | BK11: =IF(BJ11<0.01,0,interp(INDIRECT("'MPM-Woo'!O"&BK$3&":O"&BL$3),INDIRECT("'MPM-Woo'!AA"&BK$3&":AA"&BL$3),BJ11,3)) -> 0 | BL11: 0 | BM11: 0 | BN11: =IF(BM11<0.01,0,interp(INDIRECT("'MPM-Woo'!O"&BN$3&":O"&BO$3),INDIRECT("'MPM-Woo'!AA"&BN$3&":AA"&BO$3),BM11,3)) -> 0 | BO11: 0 | BP11: 0 | BQ11: =IF(BP11<0.01,0,interp(INDIRECT("'MPM-Woo'!O"&BQ$3&":O"&BR$3),INDIRECT("'MPM-Woo'!AA"&BQ$3&":AA"&BR$3),BP11,3)) -> 0 | BR11: 0 | BS11: 0 | BT11: =IF(BS11<0.01,0,interp(INDIRECT("'MPM-Woo'!O"&BT$3&":O"&BU$3),INDIRECT("'MPM-Woo'!AA"&BT$3&":AA"&BU$3),BS11,3)) -> 0 | BU11: 0 | BV11: 0 | BW11: =IF(BV11<0.01,0,interp(INDIRECT("'MPM-Woo'!O"&BW$3&":O"&BX$3),INDIRECT("'MPM-Woo'!AA"&BW$3&":AA"&BX$3),BV11,3)) -> 0 | BX11: 0 | BY11: 0 | BZ11: =IF(BY11<0.01,0,interp(INDIRECT("'MPM-Woo'!O"&BZ$3&":O"&CA$3),INDIRECT("'MPM-Woo'!AA"&BZ$3&":AA"&CA$3),BY11,3)) -> 0 | CA11: 0 | CB11: 0 | CC11: =IF(CB11<0.01,0,interp(INDIRECT("'MPM-Woo'!O"&CC$3&":O"&CD$3),INDIRECT("'MPM-Woo'!AA"&CC$3&":AA"&CD$3),CB11,3)) -> 0 | CD11: 0 | CE11: 0 | CF11: =IF(CE11<0.01,0,interp(INDIRECT("'MPM-Woo'!O"&CF$3&":O"&CG$3),INDIRECT("'MPM-Woo'!AA"&CF$3&":AA"&CG$3),CE11,3)) -> 0 | CG11: 0 | CH11: 0 | CI11: =IF(CH11<0.01,0,interp(INDIRECT("'MPM-Woo'!O"&CI$3&":O"&CJ$3),INDIRECT("'MPM-Woo'!AA"&CI$3&":AA"&CJ$3),CH11,3)) -> 0 | CJ11: 0 | CK11: 0 | CL11: =IF(CK11<0.01,0,interp(INDIRECT("'MPM-Woo'!O"&CL$3&":O"&CM$3),INDIRECT("'MPM-Woo'!AA"&CL$3&":AA"&CM$3),CK11,3)) -> 0 | CM11: 0 | CN11: 0 | CO11: =IF(CN11<0.01,0,interp(INDIRECT("'MPM-Woo'!O"&CO$3&":O"&CP$3),INDIRECT("'MPM-Woo'!AA"&CO$3&":AA"&CP$3),CN11,3)) -> 0 | CP11: 0 | CQ11: 0 | CR11: =IF(CQ11<0.01,0,interp(INDIRECT("'MPM-Woo'!O"&CR$3&":O"&CS$3),INDIRECT("'MPM-Woo'!AA"&CR$3&":AA"&CS$3),CQ11,3)) -> 0 | CS11: 0 | CT11: 0 | CU11: =IF(CT11<0.01,0,interp(INDIRECT("'MPM-Woo'!O"&CU$3&":O"&CV$3),INDIRECT("'MPM-Woo'!AA"&CU$3&":AA"&CV$3),CT11,3)) -> 0 | CV11: 0 | CW11: 0 | CX11: =IF(CW11<0.01,0,interp(INDIRECT("'MPM-Woo'!O"&CX$3&":O"&CY$3),INDIRECT("'MPM-Woo'!AA"&CX$3&":AA"&CY$3),CW11,3)) -> 0 | CY11: 0 | CZ11: 0 | DA11: =IF(CZ11<0.01,0,interp(INDIRECT("'MPM-Woo'!O"&DA$3&":O"&DB$3),INDIRECT("'MPM-Woo'!AA"&DA$3&":AA"&DB$3),CZ11,3)) -> 0 | DB11: 0 | DC11: 0 | DD11: =IF(DC11<0.01,0,interp(INDIRECT("'MPM-Woo'!O"&DD$3&":O"&DE$3),INDIRECT("'MPM-Woo'!AA"&DD$3&":AA"&DE$3),DC11,3)) -> 0 | DE11: 0 | DF11: 0 | DG11: =IF(DF11<0.01,0,interp(INDIRECT("'MPM-Woo'!O"&DG$3&":O"&DH$3),INDIRECT("'MPM-Woo'!AA"&DG$3&":AA"&DH$3),DF11,3)) -> 0 | DH11: 0 | DI11: 0 | DJ11: =IF(DI11<0.01,0,interp(INDIRECT("'MPM-Woo'!O"&DJ$3&":O"&DK$3),INDIRECT("'MPM-Woo'!AA"&DJ$3&":AA"&DK$3),DI11,3)) -> 0 | DK11: 0 | DL11: 0 | DM11: =IF(DL11<0.01,0,interp(INDIRECT("'MPM-Woo'!O"&DM$3&":O"&DN$3),INDIRECT("'MPM-Woo'!AA"&DM$3&":AA"&DN$3),DL11,3)) -> 0 | DN11: 0 | DO11: 0 | DP11: =IF(DO11<0.01,0,interp(INDIRECT("'MPM-Woo'!O"&DP$3&":O"&DQ$3),INDIRECT("'MPM-Woo'!AA"&DP$3&":AA"&DQ$3),DO11,3)) -> 0 | DQ11: 0 | DR11: 0 | DS11: =IF(DR11<0.01,0,interp(INDIRECT("'MPM-Woo'!O"&DS$3&":O"&DT$3),INDIRECT("'MPM-Woo'!AA"&DS$3&":AA"&DT$3),DR11,3)) -> 0 | DT11: 0 | DU11: 0 | DV11: =IF(DU11<0.01,0,interp(INDIRECT("'MPM-Woo'!O"&DV$3&":O"&DW$3),INDIRECT("'MPM-Woo'!AA"&DV$3&":AA"&DW$3),DU11,3)) -> 0 | DW11: 0 | DX11: 0 | DY11: =IF(DX11<0.01,0,interp(INDIRECT("'MPM-Woo'!O"&DY$3&":O"&DZ$3),INDIRECT("'MPM-Woo'!AA"&DY$3&":AA"&DZ$3),DX11,3)) -> 0 | DZ11: 0 | EA11: 0 | EB11: =IF(EA11<0.01,0,interp(INDIRECT("'MPM-Woo'!O"&EB$3&":O"&EC$3),INDIRECT("'MPM-Woo'!AA"&EB$3&":AA"&EC$3),EA11,3)) -> 0 | EC11: 0 | ED11: 0 | EE11: =IF(ED11<0.01,0,interp(INDIRECT("'MPM-Woo'!O"&EE$3&":O"&EF$3),INDIRECT("'MPM-Woo'!AA"&EE$3&":AA"&EF$3),ED11,3)) -> 0 | EF11: 0 | EG11: 0 | EH11: =IF(EG11<0.01,0,interp(INDIRECT("'MPM-Woo'!O"&EH$3&":O"&EI$3),INDIRECT("'MPM-Woo'!AA"&EH$3&":AA"&EI$3),EG11,3)) -> 0 | EI11: 0 | EJ11: 0 | EK11: 0 | EL11: =EJ11*VLOOKUP(EJ$6,LookupTables!$K$4:$L$14,2,FALSE)+EK11*VLOOKUP(EK$6,LookupTables!$K$4:$L$14,2,FALSE) -> 0 | EM11: =IF(EL11<0.01,0,interp(INDIRECT("'MPM-Woo'!O"&EM$3&":O"&EN$3),INDIRECT("'MPM-Woo'!AA"&EM$3&":AA"&EN$3),EL11,3)) -> 0 | EN11: 0 | EO11: 0 | EP11: 0 | EQ11: =EO11*VLOOKUP(EO$6,LookupTables!$K$4:$L$14,2,FALSE)+EP11*VLOOKUP(EP$6,LookupTables!$K$4:$L$14,2,FALSE) -> 0 | ER11: =IF(EQ11<0.01,0,interp(INDIRECT("'MPM-Woo'!O"&ER$3&":O"&ES$3),INDIRECT("'MPM-Woo'!AA"&ER$3&":AA"&ES$3),EQ11,3)) -> 0 | ES11: 0 | ET11: 0 | EU11: 0 | EV11: =ET11*VLOOKUP(ET$6,LookupTables!$K$4:$L$14,2,FALSE)+EU11*VLOOKUP(EU$6,LookupTables!$K$4:$L$14,2,FALSE) -> 0 | EW11: =IF(EV11<0.01,0,interp(INDIRECT("'MPM-Woo'!O"&EW$3&":O"&EX$3),INDIRECT("'MPM-Woo'!AA"&EW$3&":AA"&EX$3),EV11,3)) -> 0 | EX11: 0 | EY11: 0 | EZ11: 0 | FA11: =EY11*VLOOKUP(EY$6,LookupTables!$K$4:$L$14,2,FALSE)+EZ11*VLOOKUP(EZ$6,LookupTables!$K$4:$L$14,2,FALSE) -> 0 | FB11: =IF(FA11<0.01,0,interp(INDIRECT("'MPM-Woo'!O"&FB$3&":O"&FC$3),INDIRECT("'MPM-Woo'!AA"&FB$3&":AA"&FC$3),FA11,3)) -> 0 | FC11: 0 | FD11: 0 | FE11: 0 | FF11: =FD11*VLOOKUP(FD$6,LookupTables!$K$4:$L$14,2,FALSE)+FE11*VLOOKUP(FE$6,LookupTables!$K$4:$L$14,2,FALSE) -> 0 | FG11: =IF(FF11<0.01,0,interp(INDIRECT("'MPM-Woo'!O"&FG$3&":O"&FH$3),INDIRECT("'MPM-Woo'!AA"&FG$3&":AA"&FH$3),FF11,3)) -> 0 | FH11: 0 | FI11: 0 | FJ11: 0 | FK11: =FI11*VLOOKUP(FI$6,LookupTables!$K$4:$L$14,2,FALSE)+FJ11*VLOOKUP(FJ$6,LookupTables!$K$4:$L$14,2,FALSE) -> 0 | FL11: =IF(FK11<0.01,0,interp(INDIRECT("'MPM-Woo'!O"&FL$3&":O"&FM$3),INDIRECT("'MPM-Woo'!AA"&FL$3&":AA"&FM$3),FK11,3)) -> 0 | FM11: 0 | FN11: 0 | FO11: =IF(FN11<0.01,0,interp(INDIRECT("'MPM-Woo'!O"&FO$3&":O"&FP$3),INDIRECT("'MPM-Woo'!AA"&FO$3&":AA"&FP$3),FN11,3)) -> 0 | FP11: 0 | FQ11: 0 | FR11: =IF(FQ11<0.01,0,interp(INDIRECT("'MPM-Woo'!O"&FR$3&":O"&FS$3),INDIRECT("'MPM-Woo'!AA"&FR$3&":AA"&FS$3),FQ11,3)) -> 0 | FS11: 0 | FT11: 0 | FU11: =IF(FT11<0.01,0,interp(INDIRECT("'MPM-Woo'!O"&FU$3&":O"&FV$3),INDIRECT("'MPM-Woo'!AA"&FU$3&":AA"&FV$3),FT11,3)) -> 0 | FV11: 0 | FW11: 0 | FX11: =IF(FW11<0.01,0,interp(INDIRECT("'MPM-Woo'!O"&FX$3&":O"&FY$3),INDIRECT("'MPM-Woo'!AA"&FX$3&":AA"&FY$3),FW11,3)) -> 0 | FY11: 0 | FZ11: 0 | GA11: =IF(FZ11<0.01,0,interp(INDIRECT("'MPM-Woo'!O"&GA$3&":O"&GB$3),INDIRECT("'MPM-Woo'!AA"&GA$3&":AA"&GB$3),FZ11,3)) -> 0 | GB11: 0 | GC11: 0 | GD11: =IF(GC11<0.01,0,interp(INDIRECT("'MPM-Woo'!O"&GD$3&":O"&GE$3),INDIRECT("'MPM-Woo'!AA"&GD$3&":AA"&GE$3),GC11,3)) -> 0 | GE11: 0 | GF11: 0 | GG11: =IF(GF11<0.01,0,interp(INDIRECT("'MPM-Woo'!O"&GG$3&":O"&GH$3),INDIRECT("'MPM-Woo'!AA"&GG$3&":AA"&GH$3),GF11,3)) -> 0 | GH11: 0 | GI11: 0 | GJ11: =IF(GI11<0.01,0,interp(INDIRECT("'MPM-Woo'!O"&GJ$3&":O"&GK$3),INDIRECT("'MPM-Woo'!AA"&GJ$3&":AA"&GK$3),GI11,3)) -> 0 | GK11: 0 | GL11: 0 | GM11: =IF(GL11<0.01,0,interp(INDIRECT("'MPM-Woo'!O"&GM$3&":O"&GN$3),INDIRECT("'MPM-Woo'!AA"&GM$3&":AA"&GN$3),GL11,3)) -> 0 | GN11: 0 | GO11: 0 | GP11: =IF(GO11<0.01,0,interp(INDIRECT("'MPM-Woo'!O"&GP$3&":O"&GQ$3),INDIRECT("'MPM-Woo'!AA"&GP$3&":AA"&GQ$3),GO11,3)) -> 0 | GQ11: 0 | GR11: 0 | GS11: =IF(GR11<0.01,0,interp(INDIRECT("'MPM-Woo'!O"&GS$3&":O"&GT$3),INDIRECT("'MPM-Woo'!AA"&GS$3&":AA"&GT$3),GR11,3)) -> 0 | GT11: 0 | GU11: 0 | GV11: =IF(GU11<0.01,0,interp(INDIRECT("'MPM-Woo'!O"&GV$3&":O"&GW$3),INDIRECT("'MPM-Woo'!AA"&GV$3&":AA"&GW$3),GU11,3)) -> 0 | GW11: 0
A12: 6 | B12: 0 | C12: 0 | D12: =B12*VLOOKUP(B$6,LookupTables!$K$4:$L$14,2,FALSE)+C12*VLOOKUP(C$6,LookupTables!$K$4:$L$14,2,FALSE) -> 0 | E12: =IF(D12<0.01,0,interp(INDIRECT("'MPM-Woo'!O"&E$3&":O"&F$3),INDIRECT("'MPM-Woo'!AA"&E$3&":AA"&F$3),D12,3)) -> 0 | F12: 0 | G12: 0 | H12: 0 | I12: =G12*VLOOKUP(G$6,LookupTables!$K$4:$L$14,2,FALSE)+H12*VLOOKUP(H$6,LookupTables!$K$4:$L$14,2,FALSE) -> 0 | J12: =IF(I12<0.01,0,interp(INDIRECT("'MPM-Woo'!O"&J$3&":O"&K$3),INDIRECT("'MPM-Woo'!AA"&J$3&":AA"&K$3),I12,3)) -> 0 | K12: 0 | L12: 0 | M12: 0 | N12: =L12*VLOOKUP(L$6,LookupTables!$K$4:$L$14,2,FALSE)+M12*VLOOKUP(M$6,LookupTables!$K$4:$L$14,2,FALSE) -> 0 | O12: =IF(N12<0.01,0,interp(INDIRECT("'MPM-Woo'!O"&O$3&":O"&P$3),INDIRECT("'MPM-Woo'!AA"&O$3&":AA"&P$3),N12,3)) -> 0 | P12: 0 | Q12: 0 | R12: 0 | S12: =Q12*VLOOKUP(Q$6,LookupTables!$K$4:$L$14,2,FALSE)+R12*VLOOKUP(R$6,LookupTables!$K$4:$L$14,2,FALSE) -> 0 | T12: =IF(S12<0.01,0,interp(INDIRECT("'MPM-Woo'!O"&T$3&":O"&U$3),INDIRECT("'MPM-Woo'!AA"&T$3&":AA"&U$3),S12,3)) -> 0 | U12: 0 | V12: 0 | W12: 0 | X12: =V12*VLOOKUP(V$6,LookupTables!$K$4:$L$14,2,FALSE)+W12*VLOOKUP(W$6,LookupTables!$K$4:$L$14,2,FALSE) -> 0 | Y12: =IF(X12<0.01,0,interp(INDIRECT("'MPM-Woo'!O"&Y$3&":O"&Z$3),INDIRECT("'MPM-Woo'!AA"&Y$3&":AA"&Z$3),X12,3)) -> 0 | Z12: 0 | AA12: 0 | AB12: 0 | AC12: =AA12*VLOOKUP(AA$6,LookupTables!$K$4:$L$14,2,FALSE)+AB12*VLOOKUP(AB$6,LookupTables!$K$4:$L$14,2,FALSE) -> 0 | AD12: =IF(AC12<0.01,0,interp(INDIRECT("'MPM-Woo'!O"&AD$3&":O"&AE$3),INDIRECT("'MPM-Woo'!AA"&AD$3&":AA"&AE$3),AC12,3)) -> 0 | AE12: 0 | AF12: 0 | AG12: =IF(AF12<0.01,0,interp(INDIRECT("'MPM-Woo'!O"&AG$3&":O"&AH$3),INDIRECT("'MPM-Woo'!AA"&AG$3&":AA"&AH$3),AF12,3)) -> 0 | AH12: 0 | AI12: 0 | AJ12: =IF(AI12<0.01,0,interp(INDIRECT("'MPM-Woo'!O"&AJ$3&":O"&AK$3),INDIRECT("'MPM-Woo'!AA"&AJ$3&":AA"&AK$3),AI12,3)) -> 0 | AK12: 0 | AL12: 0 | AM12: =IF(AL12<0.01,0,interp(INDIRECT("'MPM-Woo'!O"&AM$3&":O"&AN$3),INDIRECT("'MPM-Woo'!AA"&AM$3&":AA"&AN$3),AL12,3)) -> 0 | AN12: 0 | AO12: 0 | AP12: =IF(AO12<0.01,0,interp(INDIRECT("'MPM-Woo'!O"&AP$3&":O"&AQ$3),INDIRECT("'MPM-Woo'!AA"&AP$3&":AA"&AQ$3),AO12,3)) -> 0 | AQ12: 0 | AR12: 0 | AS12: =IF(AR12<0.01,0,interp(INDIRECT("'MPM-Woo'!O"&AS$3&":O"&AT$3),INDIRECT("'MPM-Woo'!AA"&AS$3&":AA"&AT$3),AR12,3)) -> 0 | AT12: 0 | AU12: 0 | AV12: =IF(AU12<0.01,0,interp(INDIRECT("'MPM-Woo'!O"&AV$3&":O"&AW$3),INDIRECT("'MPM-Woo'!AA"&AV$3&":AA"&AW$3),AU12,3)) -> 0 | AW12: 0 | AX12: 0 | AY12: =IF(AX12<0.01,0,interp(INDIRECT("'MPM-Woo'!O"&AY$3&":O"&AZ$3),INDIRECT("'MPM-Woo'!AA"&AY$3&":AA"&AZ$3),AX12,3)) -> 0 | AZ12: 0 | BA12: 0 | BB12: =IF(BA12<0.01,0,interp(INDIRECT("'MPM-Woo'!O"&BB$3&":O"&BC$3),INDIRECT("'MPM-Woo'!AA"&BB$3&":AA"&BC$3),BA12,3)) -> 0 | BC12: 0 | BD12: 0 | BE12: =IF(BD12<0.01,0,interp(INDIRECT("'MPM-Woo'!O"&BE$3&":O"&BF$3),INDIRECT("'MPM-Woo'!AA"&BE$3&":AA"&BF$3),BD12,3)) -> 0 | BF12: 0 | BG12: 0 | BH12: =IF(BG12<0.01,0,interp(INDIRECT("'MPM-Woo'!O"&BH$3&":O"&BI$3),INDIRECT("'MPM-Woo'!AA"&BH$3&":AA"&BI$3),BG12,3)) -> 0 | BI12: 0 | BJ12: 0 | BK12: =IF(BJ12<0.01,0,interp(INDIRECT("'MPM-Woo'!O"&BK$3&":O"&BL$3),INDIRECT("'MPM-Woo'!AA"&BK$3&":AA"&BL$3),BJ12,3)) -> 0 | BL12: 0 | BM12: 0 | BN12: =IF(BM12<0.01,0,interp(INDIRECT("'MPM-Woo'!O"&BN$3&":O"&BO$3),INDIRECT("'MPM-Woo'!AA"&BN$3&":AA"&BO$3),BM12,3)) -> 0 | BO12: 0 | BP12: 0 | BQ12: =IF(BP12<0.01,0,interp(INDIRECT("'MPM-Woo'!O"&BQ$3&":O"&BR$3),INDIRECT("'MPM-Woo'!AA"&BQ$3&":AA"&BR$3),BP12,3)) -> 0 | BR12: 0 | BS12: 0 | BT12: =IF(BS12<0.01,0,interp(INDIRECT("'MPM-Woo'!O"&BT$3&":O"&BU$3),INDIRECT("'MPM-Woo'!AA"&BT$3&":AA"&BU$3),BS12,3)) -> 0 | BU12: 0 | BV12: 0 | BW12: =IF(BV12<0.01,0,interp(INDIRECT("'MPM-Woo'!O"&BW$3&":O"&BX$3),INDIRECT("'MPM-Woo'!AA"&BW$3&":AA"&BX$3),BV12,3)) -> 0 | BX12: 0 | BY12: 0 | BZ12: =IF(BY12<0.01,0,interp(INDIRECT("'MPM-Woo'!O"&BZ$3&":O"&CA$3),INDIRECT("'MPM-Woo'!AA"&BZ$3&":AA"&CA$3),BY12,3)) -> 0 | CA12: 0 | CB12: 0 | CC12: =IF(CB12<0.01,0,interp(INDIRECT("'MPM-Woo'!O"&CC$3&":O"&CD$3),INDIRECT("'MPM-Woo'!AA"&CC$3&":AA"&CD$3),CB12,3)) -> 0 | CD12: 0 | CE12: 0 | CF12: =IF(CE12<0.01,0,interp(INDIRECT("'MPM-Woo'!O"&CF$3&":O"&CG$3),INDIRECT("'MPM-Woo'!AA"&CF$3&":AA"&CG$3),CE12,3)) -> 0 | CG12: 0 | CH12: 0 | CI12: =IF(CH12<0.01,0,interp(INDIRECT("'MPM-Woo'!O"&CI$3&":O"&CJ$3),INDIRECT("'MPM-Woo'!AA"&CI$3&":AA"&CJ$3),CH12,3)) -> 0 | CJ12: 0 | CK12: 0 | CL12: =IF(CK12<0.01,0,interp(INDIRECT("'MPM-Woo'!O"&CL$3&":O"&CM$3),INDIRECT("'MPM-Woo'!AA"&CL$3&":AA"&CM$3),CK12,3)) -> 0 | CM12: 0 | CN12: 0 | CO12: =IF(CN12<0.01,0,interp(INDIRECT("'MPM-Woo'!O"&CO$3&":O"&CP$3),INDIRECT("'MPM-Woo'!AA"&CO$3&":AA"&CP$3),CN12,3)) -> 0 | CP12: 0 | CQ12: 0 | CR12: =IF(CQ12<0.01,0,interp(INDIRECT("'MPM-Woo'!O"&CR$3&":O"&CS$3),INDIRECT("'MPM-Woo'!AA"&CR$3&":AA"&CS$3),CQ12,3)) -> 0 | CS12: 0 | CT12: 0 | CU12: =IF(CT12<0.01,0,interp(INDIRECT("'MPM-Woo'!O"&CU$3&":O"&CV$3),INDIRECT("'MPM-Woo'!AA"&CU$3&":AA"&CV$3),CT12,3)) -> 0 | CV12: 0 | CW12: 0 | CX12: =IF(CW12<0.01,0,interp(INDIRECT("'MPM-Woo'!O"&CX$3&":O"&CY$3),INDIRECT("'MPM-Woo'!AA"&CX$3&":AA"&CY$3),CW12,3)) -> 0 | CY12: 0 | CZ12: 0 | DA12: =IF(CZ12<0.01,0,interp(INDIRECT("'MPM-Woo'!O"&DA$3&":O"&DB$3),INDIRECT("'MPM-Woo'!AA"&DA$3&":AA"&DB$3),CZ12,3)) -> 0 | DB12: 0 | DC12: 0 | DD12: =IF(DC12<0.01,0,interp(INDIRECT("'MPM-Woo'!O"&DD$3&":O"&DE$3),INDIRECT("'MPM-Woo'!AA"&DD$3&":AA"&DE$3),DC12,3)) -> 0 | DE12: 0 | DF12: 0 | DG12: =IF(DF12<0.01,0,interp(INDIRECT("'MPM-Woo'!O"&DG$3&":O"&DH$3),INDIRECT("'MPM-Woo'!AA"&DG$3&":AA"&DH$3),DF12,3)) -> 0 | DH12: 0 | DI12: 0 | DJ12: =IF(DI12<0.01,0,interp(INDIRECT("'MPM-Woo'!O"&DJ$3&":O"&DK$3),INDIRECT("'MPM-Woo'!AA"&DJ$3&":AA"&DK$3),DI12,3)) -> 0 | DK12: 0 | DL12: 0 | DM12: =IF(DL12<0.01,0,interp(INDIRECT("'MPM-Woo'!O"&DM$3&":O"&DN$3),INDIRECT("'MPM-Woo'!AA"&DM$3&":AA"&DN$3),DL12,3)) -> 0 | DN12: 0 | DO12: 0 | DP12: =IF(DO12<0.01,0,interp(INDIRECT("'MPM-Woo'!O"&DP$3&":O"&DQ$3),INDIRECT("'MPM-Woo'!AA"&DP$3&":AA"&DQ$3),DO12,3)) -> 0 | DQ12: 0 | DR12: 0 | DS12: =IF(DR12<0.01,0,interp(INDIRECT("'MPM-Woo'!O"&DS$3&":O"&DT$3),INDIRECT("'MPM-Woo'!AA"&DS$3&":AA"&DT$3),DR12,3)) -> 0 | DT12: 0 | DU12: 0 | DV12: =IF(DU12<0.01,0,interp(INDIRECT("'MPM-Woo'!O"&DV$3&":O"&DW$3),INDIRECT("'MPM-Woo'!AA"&DV$3&":AA"&DW$3),DU12,3)) -> 0 | DW12: 0 | DX12: 0 | DY12: =IF(DX12<0.01,0,interp(INDIRECT("'MPM-Woo'!O"&DY$3&":O"&DZ$3),INDIRECT("'MPM-Woo'!AA"&DY$3&":AA"&DZ$3),DX12,3)) -> 0 | DZ12: 0 | EA12: 0 | EB12: =IF(EA12<0.01,0,interp(INDIRECT("'MPM-Woo'!O"&EB$3&":O"&EC$3),INDIRECT("'MPM-Woo'!AA"&EB$3&":AA"&EC$3),EA12,3)) -> 0 | EC12: 0 | ED12: 0 | EE12: =IF(ED12<0.01,0,interp(INDIRECT("'MPM-Woo'!O"&EE$3&":O"&EF$3),INDIRECT("'MPM-Woo'!AA"&EE$3&":AA"&EF$3),ED12,3)) -> 0 | EF12: 0 | EG12: 0 | EH12: =IF(EG12<0.01,0,interp(INDIRECT("'MPM-Woo'!O"&EH$3&":O"&EI$3),INDIRECT("'MPM-Woo'!AA"&EH$3&":AA"&EI$3),EG12,3)) -> 0 | EI12: 0 | EJ12: 0 | EK12: 0 | EL12: =EJ12*VLOOKUP(EJ$6,LookupTables!$K$4:$L$14,2,FALSE)+EK12*VLOOKUP(EK$6,LookupTables!$K$4:$L$14,2,FALSE) -> 0 | EM12: =IF(EL12<0.01,0,interp(INDIRECT("'MPM-Woo'!O"&EM$3&":O"&EN$3),INDIRECT("'MPM-Woo'!AA"&EM$3&":AA"&EN$3),EL12,3)) -> 0 | EN12: 0 | EO12: 0 | EP12: 0 | EQ12: =EO12*VLOOKUP(EO$6,LookupTables!$K$4:$L$14,2,FALSE)+EP12*VLOOKUP(EP$6,LookupTables!$K$4:$L$14,2,FALSE) -> 0 | ER12: =IF(EQ12<0.01,0,interp(INDIRECT("'MPM-Woo'!O"&ER$3&":O"&ES$3),INDIRECT("'MPM-Woo'!AA"&ER$3&":AA"&ES$3),EQ12,3)) -> 0 | ES12: 0 | ET12: 0 | EU12: 0 | EV12: =ET12*VLOOKUP(ET$6,LookupTables!$K$4:$L$14,2,FALSE)+EU12*VLOOKUP(EU$6,LookupTables!$K$4:$L$14,2,FALSE) -> 0 | EW12: =IF(EV12<0.01,0,interp(INDIRECT("'MPM-Woo'!O"&EW$3&":O"&EX$3),INDIRECT("'MPM-Woo'!AA"&EW$3&":AA"&EX$3),EV12,3)) -> 0 | EX12: 0 | EY12: 0 | EZ12: 0 | FA12: =EY12*VLOOKUP(EY$6,LookupTables!$K$4:$L$14,2,FALSE)+EZ12*VLOOKUP(EZ$6,LookupTables!$K$4:$L$14,2,FALSE) -> 0 | FB12: =IF(FA12<0.01,0,interp(INDIRECT("'MPM-Woo'!O"&FB$3&":O"&FC$3),INDIRECT("'MPM-Woo'!AA"&FB$3&":AA"&FC$3),FA12,3)) -> 0 | FC12: 0 | FD12: 0 | FE12: 0 | FF12: =FD12*VLOOKUP(FD$6,LookupTables!$K$4:$L$14,2,FALSE)+FE12*VLOOKUP(FE$6,LookupTables!$K$4:$L$14,2,FALSE) -> 0 | FG12: =IF(FF12<0.01,0,interp(INDIRECT("'MPM-Woo'!O"&FG$3&":O"&FH$3),INDIRECT("'MPM-Woo'!AA"&FG$3&":AA"&FH$3),FF12,3)) -> 0 | FH12: 0 | FI12: 0 | FJ12: 0 | FK12: =FI12*VLOOKUP(FI$6,LookupTables!$K$4:$L$14,2,FALSE)+FJ12*VLOOKUP(FJ$6,LookupTables!$K$4:$L$14,2,FALSE) -> 0 | FL12: =IF(FK12<0.01,0,interp(INDIRECT("'MPM-Woo'!O"&FL$3&":O"&FM$3),INDIRECT("'MPM-Woo'!AA"&FL$3&":AA"&FM$3),FK12,3)) -> 0 | FM12: 0 | FN12: 0 | FO12: =IF(FN12<0.01,0,interp(INDIRECT("'MPM-Woo'!O"&FO$3&":O"&FP$3),INDIRECT("'MPM-Woo'!AA"&FO$3&":AA"&FP$3),FN12,3)) -> 0 | FP12: 0 | FQ12: 0 | FR12: =IF(FQ12<0.01,0,interp(INDIRECT("'MPM-Woo'!O"&FR$3&":O"&FS$3),INDIRECT("'MPM-Woo'!AA"&FR$3&":AA"&FS$3),FQ12,3)) -> 0 | FS12: 0 | FT12: 0 | FU12: =IF(FT12<0.01,0,interp(INDIRECT("'MPM-Woo'!O"&FU$3&":O"&FV$3),INDIRECT("'MPM-Woo'!AA"&FU$3&":AA"&FV$3),FT12,3)) -> 0 | FV12: 0 | FW12: 0 | FX12: =IF(FW12<0.01,0,interp(INDIRECT("'MPM-Woo'!O"&FX$3&":O"&FY$3),INDIRECT("'MPM-Woo'!AA"&FX$3&":AA"&FY$3),FW12,3)) -> 0 | FY12: 0 | FZ12: 0 | GA12: =IF(FZ12<0.01,0,interp(INDIRECT("'MPM-Woo'!O"&GA$3&":O"&GB$3),INDIRECT("'MPM-Woo'!AA"&GA$3&":AA"&GB$3),FZ12,3)) -> 0 | GB12: 0 | GC12: 0 | GD12: =IF(GC12<0.01,0,interp(INDIRECT("'MPM-Woo'!O"&GD$3&":O"&GE$3),INDIRECT("'MPM-Woo'!AA"&GD$3&":AA"&GE$3),GC12,3)) -> 0 | GE12: 0 | GF12: 0 | GG12: =IF(GF12<0.01,0,interp(INDIRECT("'MPM-Woo'!O"&GG$3&":O"&GH$3),INDIRECT("'MPM-Woo'!AA"&GG$3&":AA"&GH$3),GF12,3)) -> 0 | GH12: 0 | GI12: 0 | GJ12: =IF(GI12<0.01,0,interp(INDIRECT("'MPM-Woo'!O"&GJ$3&":O"&GK$3),INDIRECT("'MPM-Woo'!AA"&GJ$3&":AA"&GK$3),GI12,3)) -> 0 | GK12: 0 | GL12: 0 | GM12: =IF(GL12<0.01,0,interp(INDIRECT("'MPM-Woo'!O"&GM$3&":O"&GN$3),INDIRECT("'MPM-Woo'!AA"&GM$3&":AA"&GN$3),GL12,3)) -> 0 | GN12: 0 | GO12: 0 | GP12: =IF(GO12<0.01,0,interp(INDIRECT("'MPM-Woo'!O"&GP$3&":O"&GQ$3),INDIRECT("'MPM-Woo'!AA"&GP$3&":AA"&GQ$3),GO12,3)) -> 0 | GQ12: 0 | GR12: 0 | GS12: =IF(GR12<0.01,0,interp(INDIRECT("'MPM-Woo'!O"&GS$3&":O"&GT$3),INDIRECT("'MPM-Woo'!AA"&GS$3&":AA"&GT$3),GR12,3)) -> 0 | GT12: 0 | GU12: 0 | GV12: =IF(GU12<0.01,0,interp(INDIRECT("'MPM-Woo'!O"&GV$3&":O"&GW$3),INDIRECT("'MPM-Woo'!AA"&GV$3&":AA"&GW$3),GU12,3)) -> 0 | GW12: 0
A13: 7 | B13: 0 | C13: 0 | D13: =B13*VLOOKUP(B$6,LookupTables!$K$4:$L$14,2,FALSE)+C13*VLOOKUP(C$6,LookupTables!$K$4:$L$14,2,FALSE) -> 0 | E13: =IF(D13<0.01,0,interp(INDIRECT("'MPM-Woo'!O"&E$3&":O"&F$3),INDIRECT("'MPM-Woo'!AA"&E$3&":AA"&F$3),D13,3)) -> 0 | F13: 0 | G13: 0 | H13: 0 | I13: =G13*VLOOKUP(G$6,LookupTables!$K$4:$L$14,2,FALSE)+H13*VLOOKUP(H$6,LookupTables!$K$4:$L$14,2,FALSE) -> 0 | J13: =IF(I13<0.01,0,interp(INDIRECT("'MPM-Woo'!O"&J$3&":O"&K$3),INDIRECT("'MPM-Woo'!AA"&J$3&":AA"&K$3),I13,3)) -> 0 | K13: 0 | L13: 0 | M13: 0 | N13: =L13*VLOOKUP(L$6,LookupTables!$K$4:$L$14,2,FALSE)+M13*VLOOKUP(M$6,LookupTables!$K$4:$L$14,2,FALSE) -> 0 | O13: =IF(N13<0.01,0,interp(INDIRECT("'MPM-Woo'!O"&O$3&":O"&P$3),INDIRECT("'MPM-Woo'!AA"&O$3&":AA"&P$3),N13,3)) -> 0 | P13: 0 | Q13: 0 | R13: 0 | S13: =Q13*VLOOKUP(Q$6,LookupTables!$K$4:$L$14,2,FALSE)+R13*VLOOKUP(R$6,LookupTables!$K$4:$L$14,2,FALSE) -> 0 | T13: =IF(S13<0.01,0,interp(INDIRECT("'MPM-Woo'!O"&T$3&":O"&U$3),INDIRECT("'MPM-Woo'!AA"&T$3&":AA"&U$3),S13,3)) -> 0 | U13: 0 | V13: 0 | W13: 0 | X13: =V13*VLOOKUP(V$6,LookupTables!$K$4:$L$14,2,FALSE)+W13*VLOOKUP(W$6,LookupTables!$K$4:$L$14,2,FALSE) -> 0 | Y13: =IF(X13<0.01,0,interp(INDIRECT("'MPM-Woo'!O"&Y$3&":O"&Z$3),INDIRECT("'MPM-Woo'!AA"&Y$3&":AA"&Z$3),X13,3)) -> 0 | Z13: 0 | AA13: 0 | AB13: 0 | AC13: =AA13*VLOOKUP(AA$6,LookupTables!$K$4:$L$14,2,FALSE)+AB13*VLOOKUP(AB$6,LookupTables!$K$4:$L$14,2,FALSE) -> 0 | AD13: =IF(AC13<0.01,0,interp(INDIRECT("'MPM-Woo'!O"&AD$3&":O"&AE$3),INDIRECT("'MPM-Woo'!AA"&AD$3&":AA"&AE$3),AC13,3)) -> 0 | AE13: 0 | AF13: 0 | AG13: =IF(AF13<0.01,0,interp(INDIRECT("'MPM-Woo'!O"&AG$3&":O"&AH$3),INDIRECT("'MPM-Woo'!AA"&AG$3&":AA"&AH$3),AF13,3)) -> 0 | AH13: 0 | AI13: 0 | AJ13: =IF(AI13<0.01,0,interp(INDIRECT("'MPM-Woo'!O"&AJ$3&":O"&AK$3),INDIRECT("'MPM-Woo'!AA"&AJ$3&":AA"&AK$3),AI13,3)) -> 0 | AK13: 0 | AL13: 0 | AM13: =IF(AL13<0.01,0,interp(INDIRECT("'MPM-Woo'!O"&AM$3&":O"&AN$3),INDIRECT("'MPM-Woo'!AA"&AM$3&":AA"&AN$3),AL13,3)) -> 0 | AN13: 0 | AO13: 0 | AP13: =IF(AO13<0.01,0,interp(INDIRECT("'MPM-Woo'!O"&AP$3&":O"&AQ$3),INDIRECT("'MPM-Woo'!AA"&AP$3&":AA"&AQ$3),AO13,3)) -> 0 | AQ13: 0 | AR13: 0 | AS13: =IF(AR13<0.01,0,interp(INDIRECT("'MPM-Woo'!O"&AS$3&":O"&AT$3),INDIRECT("'MPM-Woo'!AA"&AS$3&":AA"&AT$3),AR13,3)) -> 0 | AT13: 0 | AU13: 0 | AV13: =IF(AU13<0.01,0,interp(INDIRECT("'MPM-Woo'!O"&AV$3&":O"&AW$3),INDIRECT("'MPM-Woo'!AA"&AV$3&":AA"&AW$3),AU13,3)) -> 0 | AW13: 0 | AX13: 0 | AY13: =IF(AX13<0.01,0,interp(INDIRECT("'MPM-Woo'!O"&AY$3&":O"&AZ$3),INDIRECT("'MPM-Woo'!AA"&AY$3&":AA"&AZ$3),AX13,3)) -> 0 | AZ13: 0 | BA13: 0 | BB13: =IF(BA13<0.01,0,interp(INDIRECT("'MPM-Woo'!O"&BB$3&":O"&BC$3),INDIRECT("'MPM-Woo'!AA"&BB$3&":AA"&BC$3),BA13,3)) -> 0 | BC13: 0 | BD13: 0 | BE13: =IF(BD13<0.01,0,interp(INDIRECT("'MPM-Woo'!O"&BE$3&":O"&BF$3),INDIRECT("'MPM-Woo'!AA"&BE$3&":AA"&BF$3),BD13,3)) -> 0 | BF13: 0 | BG13: 0 | BH13: =IF(BG13<0.01,0,interp(INDIRECT("'MPM-Woo'!O"&BH$3&":O"&BI$3),INDIRECT("'MPM-Woo'!AA"&BH$3&":AA"&BI$3),BG13,3)) -> 0 | BI13: 0 | BJ13: 0 | BK13: =IF(BJ13<0.01,0,interp(INDIRECT("'MPM-Woo'!O"&BK$3&":O"&BL$3),INDIRECT("'MPM-Woo'!AA"&BK$3&":AA"&BL$3),BJ13,3)) -> 0 | BL13: 0 | BM13: 0 | BN13: =IF(BM13<0.01,0,interp(INDIRECT("'MPM-Woo'!O"&BN$3&":O"&BO$3),INDIRECT("'MPM-Woo'!AA"&BN$3&":AA"&BO$3),BM13,3)) -> 0 | BO13: 0 | BP13: 0 | BQ13: =IF(BP13<0.01,0,interp(INDIRECT("'MPM-Woo'!O"&BQ$3&":O"&BR$3),INDIRECT("'MPM-Woo'!AA"&BQ$3&":AA"&BR$3),BP13,3)) -> 0 | BR13: 0 | BS13: 0 | BT13: =IF(BS13<0.01,0,interp(INDIRECT("'MPM-Woo'!O"&BT$3&":O"&BU$3),INDIRECT("'MPM-Woo'!AA"&BT$3&":AA"&BU$3),BS13,3)) -> 0 | BU13: 0 | BV13: 0 | BW13: =IF(BV13<0.01,0,interp(INDIRECT("'MPM-Woo'!O"&BW$3&":O"&BX$3),INDIRECT("'MPM-Woo'!AA"&BW$3&":AA"&BX$3),BV13,3)) -> 0 | BX13: 0 | BY13: 0 | BZ13: =IF(BY13<0.01,0,interp(INDIRECT("'MPM-Woo'!O"&BZ$3&":O"&CA$3),INDIRECT("'MPM-Woo'!AA"&BZ$3&":AA"&CA$3),BY13,3)) -> 0 | CA13: 0 | CB13: 0 | CC13: =IF(CB13<0.01,0,interp(INDIRECT("'MPM-Woo'!O"&CC$3&":O"&CD$3),INDIRECT("'MPM-Woo'!AA"&CC$3&":AA"&CD$3),CB13,3)) -> 0 | CD13: 0 | CE13: 0 | CF13: =IF(CE13<0.01,0,interp(INDIRECT("'MPM-Woo'!O"&CF$3&":O"&CG$3),INDIRECT("'MPM-Woo'!AA"&CF$3&":AA"&CG$3),CE13,3)) -> 0 | CG13: 0 | CH13: 0 | CI13: =IF(CH13<0.01,0,interp(INDIRECT("'MPM-Woo'!O"&CI$3&":O"&CJ$3),INDIRECT("'MPM-Woo'!AA"&CI$3&":AA"&CJ$3),CH13,3)) -> 0 | CJ13: 0 | CK13: 0 | CL13: =IF(CK13<0.01,0,interp(INDIRECT("'MPM-Woo'!O"&CL$3&":O"&CM$3),INDIRECT("'MPM-Woo'!AA"&CL$3&":AA"&CM$3),CK13,3)) -> 0 | CM13: 0 | CN13: 0 | CO13: =IF(CN13<0.01,0,interp(INDIRECT("'MPM-Woo'!O"&CO$3&":O"&CP$3),INDIRECT("'MPM-Woo'!AA"&CO$3&":AA"&CP$3),CN13,3)) -> 0 | CP13: 0 | CQ13: 0 | CR13: =IF(CQ13<0.01,0,interp(INDIRECT("'MPM-Woo'!O"&CR$3&":O"&CS$3),INDIRECT("'MPM-Woo'!AA"&CR$3&":AA"&CS$3),CQ13,3)) -> 0 | CS13: 0 | CT13: 0 | CU13: =IF(CT13<0.01,0,interp(INDIRECT("'MPM-Woo'!O"&CU$3&":O"&CV$3),INDIRECT("'MPM-Woo'!AA"&CU$3&":AA"&CV$3),CT13,3)) -> 0 | CV13: 0 | CW13: 0 | CX13: =IF(CW13<0.01,0,interp(INDIRECT("'MPM-Woo'!O"&CX$3&":O"&CY$3),INDIRECT("'MPM-Woo'!AA"&CX$3&":AA"&CY$3),CW13,3)) -> 0 | CY13: 0 | CZ13: 0 | DA13: =IF(CZ13<0.01,0,interp(INDIRECT("'MPM-Woo'!O"&DA$3&":O"&DB$3),INDIRECT("'MPM-Woo'!AA"&DA$3&":AA"&DB$3),CZ13,3)) -> 0 | DB13: 0 | DC13: 0 | DD13: =IF(DC13<0.01,0,interp(INDIRECT("'MPM-Woo'!O"&DD$3&":O"&DE$3),INDIRECT("'MPM-Woo'!AA"&DD$3&":AA"&DE$3),DC13,3)) -> 0 | DE13: 0 | DF13: 0 | DG13: =IF(DF13<0.01,0,interp(INDIRECT("'MPM-Woo'!O"&DG$3&":O"&DH$3),INDIRECT("'MPM-Woo'!AA"&DG$3&":AA"&DH$3),DF13,3)) -> 0 | DH13: 0 | DI13: 0 | DJ13: =IF(DI13<0.01,0,interp(INDIRECT("'MPM-Woo'!O"&DJ$3&":O"&DK$3),INDIRECT("'MPM-Woo'!AA"&DJ$3&":AA"&DK$3),DI13,3)) -> 0 | DK13: 0 | DL13: 0 | DM13: =IF(DL13<0.01,0,interp(INDIRECT("'MPM-Woo'!O"&DM$3&":O"&DN$3),INDIRECT("'MPM-Woo'!AA"&DM$3&":AA"&DN$3),DL13,3)) -> 0 | DN13: 0 | DO13: 0 | DP13: =IF(DO13<0.01,0,interp(INDIRECT("'MPM-Woo'!O"&DP$3&":O"&DQ$3),INDIRECT("'MPM-Woo'!AA"&DP$3&":AA"&DQ$3),DO13,3)) -> 0 | DQ13: 0 | DR13: 0 | DS13: =IF(DR13<0.01,0,interp(INDIRECT("'MPM-Woo'!O"&DS$3&":O"&DT$3),INDIRECT("'MPM-Woo'!AA"&DS$3&":AA"&DT$3),DR13,3)) -> 0 | DT13: 0 | DU13: 0 | DV13: =IF(DU13<0.01,0,interp(INDIRECT("'MPM-Woo'!O"&DV$3&":O"&DW$3),INDIRECT("'MPM-Woo'!AA"&DV$3&":AA"&DW$3),DU13,3)) -> 0 | DW13: 0 | DX13: 0 | DY13: =IF(DX13<0.01,0,interp(INDIRECT("'MPM-Woo'!O"&DY$3&":O"&DZ$3),INDIRECT("'MPM-Woo'!AA"&DY$3&":AA"&DZ$3),DX13,3)) -> 0 | DZ13: 0 | EA13: 0 | EB13: =IF(EA13<0.01,0,interp(INDIRECT("'MPM-Woo'!O"&EB$3&":O"&EC$3),INDIRECT("'MPM-Woo'!AA"&EB$3&":AA"&EC$3),EA13,3)) -> 0 | EC13: 0 | ED13: 0 | EE13: =IF(ED13<0.01,0,interp(INDIRECT("'MPM-Woo'!O"&EE$3&":O"&EF$3),INDIRECT("'MPM-Woo'!AA"&EE$3&":AA"&EF$3),ED13,3)) -> 0 | EF13: 0 | EG13: 0 | EH13: =IF(EG13<0.01,0,interp(INDIRECT("'MPM-Woo'!O"&EH$3&":O"&EI$3),INDIRECT("'MPM-Woo'!AA"&EH$3&":AA"&EI$3),EG13,3)) -> 0 | EI13: 0 | EJ13: 0 | EK13: 0 | EL13: =EJ13*VLOOKUP(EJ$6,LookupTables!$K$4:$L$14,2,FALSE)+EK13*VLOOKUP(EK$6,LookupTables!$K$4:$L$14,2,FALSE) -> 0 | EM13: =IF(EL13<0.01,0,interp(INDIRECT("'MPM-Woo'!O"&EM$3&":O"&EN$3),INDIRECT("'MPM-Woo'!AA"&EM$3&":AA"&EN$3),EL13,3)) -> 0 | EN13: 0 | EO13: 0 | EP13: 0 | EQ13: =EO13*VLOOKUP(EO$6,LookupTables!$K$4:$L$14,2,FALSE)+EP13*VLOOKUP(EP$6,LookupTables!$K$4:$L$14,2,FALSE) -> 0 | ER13: =IF(EQ13<0.01,0,interp(INDIRECT("'MPM-Woo'!O"&ER$3&":O"&ES$3),INDIRECT("'MPM-Woo'!AA"&ER$3&":AA"&ES$3),EQ13,3)) -> 0 | ES13: 0 | ET13: 0 | EU13: 0 | EV13: =ET13*VLOOKUP(ET$6,LookupTables!$K$4:$L$14,2,FALSE)+EU13*VLOOKUP(EU$6,LookupTables!$K$4:$L$14,2,FALSE) -> 0 | EW13: =IF(EV13<0.01,0,interp(INDIRECT("'MPM-Woo'!O"&EW$3&":O"&EX$3),INDIRECT("'MPM-Woo'!AA"&EW$3&":AA"&EX$3),EV13,3)) -> 0 | EX13: 0 | EY13: 0 | EZ13: 0 | FA13: =EY13*VLOOKUP(EY$6,LookupTables!$K$4:$L$14,2,FALSE)+EZ13*VLOOKUP(EZ$6,LookupTables!$K$4:$L$14,2,FALSE) -> 0 | FB13: =IF(FA13<0.01,0,interp(INDIRECT("'MPM-Woo'!O"&FB$3&":O"&FC$3),INDIRECT("'MPM-Woo'!AA"&FB$3&":AA"&FC$3),FA13,3)) -> 0 | FC13: 0 | FD13: 0 | FE13: 0 | FF13: =FD13*VLOOKUP(FD$6,LookupTables!$K$4:$L$14,2,FALSE)+FE13*VLOOKUP(FE$6,LookupTables!$K$4:$L$14,2,FALSE) -> 0 | FG13: =IF(FF13<0.01,0,interp(INDIRECT("'MPM-Woo'!O"&FG$3&":O"&FH$3),INDIRECT("'MPM-Woo'!AA"&FG$3&":AA"&FH$3),FF13,3)) -> 0 | FH13: 0 | FI13: 0 | FJ13: 0 | FK13: =FI13*VLOOKUP(FI$6,LookupTables!$K$4:$L$14,2,FALSE)+FJ13*VLOOKUP(FJ$6,LookupTables!$K$4:$L$14,2,FALSE) -> 0 | FL13: =IF(FK13<0.01,0,interp(INDIRECT("'MPM-Woo'!O"&FL$3&":O"&FM$3),INDIRECT("'MPM-Woo'!AA"&FL$3&":AA"&FM$3),FK13,3)) -> 0 | FM13: 0 | FN13: 0 | FO13: =IF(FN13<0.01,0,interp(INDIRECT("'MPM-Woo'!O"&FO$3&":O"&FP$3),INDIRECT("'MPM-Woo'!AA"&FO$3&":AA"&FP$3),FN13,3)) -> 0 | FP13: 0 | FQ13: 0 | FR13: =IF(FQ13<0.01,0,interp(INDIRECT("'MPM-Woo'!O"&FR$3&":O"&FS$3),INDIRECT("'MPM-Woo'!AA"&FR$3&":AA"&FS$3),FQ13,3)) -> 0 | FS13: 0 | FT13: 0 | FU13: =IF(FT13<0.01,0,interp(INDIRECT("'MPM-Woo'!O"&FU$3&":O"&FV$3),INDIRECT("'MPM-Woo'!AA"&FU$3&":AA"&FV$3),FT13,3)) -> 0 | FV13: 0 | FW13: 0 | FX13: =IF(FW13<0.01,0,interp(INDIRECT("'MPM-Woo'!O"&FX$3&":O"&FY$3),INDIRECT("'MPM-Woo'!AA"&FX$3&":AA"&FY$3),FW13,3)) -> 0 | FY13: 0 | FZ13: 0 | GA13: =IF(FZ13<0.01,0,interp(INDIRECT("'MPM-Woo'!O"&GA$3&":O"&GB$3),INDIRECT("'MPM-Woo'!AA"&GA$3&":AA"&GB$3),FZ13,3)) -> 0 | GB13: 0 | GC13: 0 | GD13: =IF(GC13<0.01,0,interp(INDIRECT("'MPM-Woo'!O"&GD$3&":O"&GE$3),INDIRECT("'MPM-Woo'!AA"&GD$3&":AA"&GE$3),GC13,3)) -> 0 | GE13: 0 | GF13: 0 | GG13: =IF(GF13<0.01,0,interp(INDIRECT("'MPM-Woo'!O"&GG$3&":O"&GH$3),INDIRECT("'MPM-Woo'!AA"&GG$3&":AA"&GH$3),GF13,3)) -> 0 | GH13: 0 | GI13: 0 | GJ13: =IF(GI13<0.01,0,interp(INDIRECT("'MPM-Woo'!O"&GJ$3&":O"&GK$3),INDIRECT("'MPM-Woo'!AA"&GJ$3&":AA"&GK$3),GI13,3)) -> 0 | GK13: 0 | GL13: 0 | GM13: =IF(GL13<0.01,0,interp(INDIRECT("'MPM-Woo'!O"&GM$3&":O"&GN$3),INDIRECT("'MPM-Woo'!AA"&GM$3&":AA"&GN$3),GL13,3)) -> 0 | GN13: 0 | GO13: 0 | GP13: =IF(GO13<0.01,0,interp(INDIRECT("'MPM-Woo'!O"&GP$3&":O"&GQ$3),INDIRECT("'MPM-Woo'!AA"&GP$3&":AA"&GQ$3),GO13,3)) -> 0 | GQ13: 0 | GR13: 0 | GS13: =IF(GR13<0.01,0,interp(INDIRECT("'MPM-Woo'!O"&GS$3&":O"&GT$3),INDIRECT("'MPM-Woo'!AA"&GS$3&":AA"&GT$3),GR13,3)) -> 0 | GT13: 0 | GU13: 0 | GV13: =IF(GU13<0.01,0,interp(INDIRECT("'MPM-Woo'!O"&GV$3&":O"&GW$3),INDIRECT("'MPM-Woo'!AA"&GV$3&":AA"&GW$3),GU13,3)) -> 0 | GW13: 0
